Workbook

Sheet Instrucciones
B3: CALIFICACIÓN DE LAS COMPETENCIAS CLAVE Y DE LAS MATERIAS 1º_ESO
B6: INSTRUCCIONES 1. INCORPORAR LOS CRITERIOS DE CALIFICACIÓN DE LAS COMPETENCIAS CLAVE BOTÓN: "INCORPORAR LOS CRITERIOS DE CALIFICACIÓN DE LAS COMPETENCIAS CLAVE." Para introducir los criterios de calificación de las competencias clave hay que seleccionar una opción en cada uno de los siguientes campos: -Pesos de los criterios de evaluación en el cálculo de la calificación de los descriptores operativos. -Pesos de los descriptores operativos en el cálculo de la calificación de las competencias clave. Si se considera, se puede bloquear la información introducida pulsado en el botón "PROTEGIDA" e introduciendo una contaseña. En caso de querer desbloquear la página se debe pulsar en el botón "DESPROTEGIDA" e introducir la contraseña marcada. 2. INCORPORAR EL NOMBRE DE LOS ALUMNOS QUE COMPONEN EL GRUPO. BOTÓN: "INCORPORAR EL LISTADO DE ALUMNOS" Introducir el nombre de todos los alumnos que componen el grupo-clase. Marcar las materias de opción que cursa cada alumno. Pulsando sobre el botón "informe" en cada alumnno se visualiza de forma individualizada la composición de las calificaciones de las materias y de las competencias clave a partir de las notas de los criterios de evaluación. Además, se incorporan dos botones para facilitar el trabajo colaborativo a través de TEAMS o Onedrive. El procedimiento es el siguiente: 1º Se pulsa el botón superior de esta sección TEAMS/Onedrive; 2º Una vez guardado el archivo, se comparte con las citadas aplicaciones; 3º Los docentes incorporan las céntésimas de redondeo de su materia en la pestaña "Redondeo" y las notas de los criterios de evaluación en la pestaña correspondiente a su materia; 4º Se descarga el archivo y se pulsa en el segundo botón de esta sección TEAMS/Onedrive para normalizar su funcionamiento y poder visualizar toda la información que esta herramienta ofrece. 3. INCORPORAR LAS CALIFICACIONES DE LOS CRITERIOS DE EVALUACIÓN DE LAS MATERIAS CURSADAS POR EL ALUMNO. BOTÓN: "INCORPORAR LA CALIFICACIÓN POR MATERIAS DE LOS CRITERIOS DE EVALUACIÓN " Seleccionar la materia. En la pestaña de destino introducir los pesos (ponderaciones) de cada criterio de evaluación (es decir, los criterios de calificación de la materia) y las calificaciones de los criterios de evaluación para los alumnos que cursen la materia o, en su caso, la calificación de la materia. 4. OBSERVAR LAS NOTAS DE LAS COMPETENCIAS CLAVE DE LOS ALUMNOS. BOTÓN: "VISUALIZAR LAS NOTAS DE LAS COMPETENCIAS CLAVE" Permite observar las notas de las competencias clave de cada alumno en función de los criterios de calificación de las competencias clave introducidos. Además, desde la pantalla de destino se puede generar un documento para exportar las notas de las competencias clave a STILUS. Para ello, previamente es necesario introducir las centésimas de redondeo de las notas de las competencias clave en la celda creada al efecto. 5. OBSERVAR LAS NOTAS DE LAS MATERIAS DE LOS ALUMNOS. BOTÓN: "VISUALIZAR LAS NOTAS DE LAS MATERIAS" Permite observar las notas de las materias de cada alumno, en función de los criterios de calificación de la materia introducidos. Además, desde la pantalla de destino se puede generar un documento para exportar las notas de las materias a STILUS.

Sheet Criterios de calificaciOn CClav
D4: CRITERIOS DE CALIFICACIÓN DE LAS COMPETENCIAS CLAVE
D6: Pesos de los criterios de evaluación en el cálculo de la calificación de los descriptores operativos
E8: MEDIA SIMPLE. Se aplica un criterio común para el cálculo de la calificación de todos los descriptores. Todos los criterios de evaluación pesan (ponderan) los mismo en la calificaión de los descriptores operativos.
E10: MEDIA PONDERADA POR CARGA HORARIA. Se aplica un criterio común para el cálculo de la calificación de todos los descriptores. El peso de los criterios de evaluación se determina en función de la carga horaria de la materia. (RECOMENDADO)
E12: LIBRE. Se aplica un criterio común para el cálculo de la calificación de todos los descriptores. El peso de cada criterio de evaluación en la calificación de los descriptores se determina por el centro.
E14: LIBRE DIFERENCIADO POR DESCRIPTORES. Se aplica un criterio diferenciado para el cálculo de la calificación de cada descriptor. El peso de cada criterio de evaluación en la calificación de cada descriptor se determina por el centro.
D16: Pesos de los descriptores operativos en el cálculo de la calificación de las competencias clave
E18: MEDIA PONDERADA. El peso de los descriptores operativos en el cálculo de la calificación de la competencia clave se determina en proporción al número de vinculaciones de cada descriptor operativo con los criterios de evaluación (RECOMENDADO)
E20: LIBRE. El peso (ponderación) de los descriptores operativos en el cálculo de la calificación de la competencia clave se determina por el centro.

Sheet Peso criterios carga horaria
F2: Mismo peso todos los descriptores
F3: Sí
E4: CALIFICACIÓN | F4: PESO TODOS
B5: Biología y Geología | C5: Comp. Esp. 1 | D5: Criterio Evaluación 1.1 | F5: 3
D6: Criterio Evaluación 1.2 | F6: 3
D7: Criterio Evaluación 1.3 | F7: 3
C8: Comp. Esp. 2 | D8: Criterio Evaluación 2.1 | F8: 3
D9: Criterio Evaluación 2.2 | F9: 3
D10: Criterio Evaluación 2.3 | F10: 3
D11: Criterio Evaluación 2.4 | F11: 3
C12: Comp. Esp. 3 | D12: Criterio Evaluación 3.1 | F12: 3
D13: Criterio Evaluación 3.2 | F13: 3
D14: Criterio Evaluación 3.3 | F14: 3
D15: Criterio Evaluación 3.4 | F15: 3
D16: Criterio Evaluación 3.5 | F16: 3
D17: Criterio Evaluación 3.6 | F17: 3
D18: Criterio Evaluación 3.7 | F18: 3
C19: Comp. Esp. 4 | D19: Criterio Evaluación 4.1 | F19: 3
C20: Comp. Esp. 5 | D20: Criterio Evaluación 5.1 | F20: 3
C21: Comp. Esp. 6 | D21: Criterio Evaluación 6.1 | F21: 3
D22: Criterio Evaluación 6.2 | F22: 3
B23: Conocimiento de las Matemáticas | C23: Comp. Esp. 1 | D23: Criterio Evaluación 1.1 | F23: 2
D24: Criterio Evaluación 1.2 | F24: 2
D25: Criterio Evaluación 1.3 | F25: 2
C26: Comp. Esp. 2 | D26: Criterio Evaluación 2.1 | F26: 2
D27: Criterio Evaluación 2.2 | F27: 2
C28: Comp. Esp. 3 | D28: Criterio Evaluación 3.1 | F28: 2
D29: Criterio Evaluación 3.2 | F29: 2
C30: Comp. Esp. 4 | D30: Criterio Evaluación 4.1 | F30: 2
D31: Criterio Evaluación 4.2 | F31: 2
C32: Comp. Esp. 5 | D32: Criterio Evaluación 5.1 | F32: 2
D33: Criterio Evaluación 5.2 | F33: 2
D34: Criterio Evaluación 5.3 | F34: 2
B35: Conocimiento del Lenguaje | C35: Comp. Esp. 1 | D35: Criterio Evaluación 1.1 | F35: 2
D36: Criterio Evaluación 1.2 | F36: 2
C37: Comp. Esp. 2 | D37: Criterio Evaluación 2.1 | F37: 2
D38: Criterio Evaluación 2.2 | F38: 2
C39: Comp. Esp. 3 | D39: Criterio Evaluación 3.1 | F39: 2
D40: Criterio Evaluación 3.2 | F40: 2
C41: Comp. Esp. 4 | D41: Criterio Evaluación 4.1 | F41: 2
D42: Criterio Evaluación 4.2 | F42: 2
C43: Comp. Esp. 5 | D43: Criterio Evaluación 5.1 | F43: 2
D44: Criterio Evaluación 5.2 | F44: 2
C45: Comp. Esp. 6 | D45: Criterio Evaluación 6.1 | F45: 2
D46: Criterio Evaluación 6.2 | F46: 2
B47: Educación Física | C47: Comp. Esp. 1 | D47: Criterio Evaluación 1.1 | F47: 2
D48: Criterio Evaluación 1.2 | F48: 2
D49: Criterio Evaluación 1.3 | F49: 2
D50: Criterio Evaluación 1.4 | F50: 2
D51: Criterio Evaluación 1.5 | F51: 2
D52: Criterio Evaluación 1.6 | F52: 2
D53: Criterio Evaluación 1.7 | F53: 2
D54: Criterio Evaluación 1.8 | F54: 2
D55: Criterio Evaluación 1.9 | F55: 2
C56: Comp. Esp. 2 | D56: Criterio Evaluación 2.1 | F56: 2
D57: Criterio Evaluación 2.2 | F57: 2
D58: Criterio Evaluación 2.3 | F58: 2
D59: Criterio Evaluación 2.4 | F59: 2
C60: Comp. Esp. 3 | D60: Criterio Evaluación 3.1 | F60: 2
D61: Criterio Evaluación 3.2 | F61: 2
D62: Criterio Evaluación 3.3 | F62: 2
C63: Comp. Esp. 4 | D63: Criterio Evaluación 4.1 | F63: 2
D64: Criterio Evaluación 4.2 | F64: 2
D65: Criterio Evaluación 4.3 | F65: 2
C66: Comp. Esp. 5 | D66: Criterio Evaluación 5.1 | F66: 2
D67: Criterio Evaluación 5.2 | F67: 2
B68: Educación Plástica, Visual y Audiovisual | C68: Comp. Esp. 1 | D68: Criterio Evaluación 1.1 | F68: 3
D69: Criterio Evaluación 1.2 | F69: 3
D70: Criterio Evaluación 1.3 | F70: 3
C71: Comp. Esp. 2 | D71: Criterio Evaluación 2.1 | F71: 3
D72: Criterio Evaluación 2.2 | F72: 3
C73: Comp. Esp. 3 | D73: Criterio Evaluación 3.1 | F73: 3
D74: Criterio Evaluación 3.2 | F74: 3
D75: Criterio Evaluación 3.3 | F75: 3
D76: Criterio Evaluación 3.4 | F76: 3
C77: Comp. Esp. 4 | D77: Criterio Evaluación 4.1 | F77: 3
D78: Criterio Evaluación 4.2 | F78: 3
C79: Comp. Esp. 5 | D79: Criterio Evaluación 5.1 | F79: 3
D80: Criterio Evaluación 5.2 | F80: 3
D81: Criterio Evaluación 5.3 | F81: 3
C82: Comp. Esp. 6 | D82: Criterio Evaluación 6.1 | F82: 3
D83: Criterio Evaluación 6.2 | F83: 3
C84: Comp. Esp. 7 | D84: Criterio Evaluación 7.1 | F84: 3
D85: Criterio Evaluación 7.2 | F85: 3
D86: Criterio Evaluación 7.3 | F86: 3
D87: Criterio Evaluación 7.4 | F87: 3
C88: Comp. Esp. 8 | D88: Criterio Evaluación 8.1 | F88: 3
D89: Criterio Evaluación 8.2 | F89: 3
D90: Criterio Evaluación 8.3 | F90: 3
D91: Criterio Evaluación 8.4 | F91: 3
B92: Geografía e Historia | C92: Comp. Esp. 1 | D92: Criterio Evaluación 1.1 | F92: 3
D93: Criterio Evaluación 1.2 | F93: 3
C94: Comp. Esp. 2 | D94: Criterio Evaluación 2.1 | F94: 3
C95: Comp. Esp. 3 | D95: Criterio Evaluación 3.1 | F95: 3
D96: Criterio Evaluación 3.2 | F96: 3
D97: Criterio Evaluación 3.3 | F97: 3
C98: Comp. Esp. 4 | D98: Criterio Evaluación 4.1 | F98: 3
C99: Comp. Esp. 5 | D99: Criterio Evaluación 5.1 | F99: 3
D100: Criterio Evaluación 5.2 | F100: 3
C101: Comp. Esp. 6 | D101: Criterio Evaluación 6.1 | F101: 3
D102: Criterio Evaluación 6.2 | F102: 3
C103: Comp. Esp. 7 | D103: Criterio Evaluación 7.1 | F103: 3
D104: Criterio Evaluación 7.2 | F104: 3
C105: Comp. Esp. 8 | D105: Criterio Evaluación 8.1 | F105: 3
D106: Criterio Evaluación 8.2 | F106: 3
C107: Comp. Esp. 9 | D107: Criterio Evaluación 9.1 | F107: 3
B108: Lengua Castellana y Literatura | C108: Comp. Esp. 1 | D108: Criterio Evaluación 1.1 | F108: 4
D109: Criterio Evaluación 1.2 | F109: 4
D110: Criterio Evaluación 1.3 | F110: 4
C111: Comp. Esp. 2 | D111: Criterio Evaluación 2.1 | F111: 4
D112: Criterio Evaluación 2.2 | F112: 4
C113: Comp. Esp. 3 | D113: Criterio Evaluación 3.1 | F113: 4
D114: Criterio Evaluación 3.2 | F114: 4
D115: Criterio Evaluación 3.3 | F115: 4
C116: Comp. Esp. 4 | D116: Criterio Evaluación 4.1 | F116: 4
D117: Criterio Evaluación 4.2 | F117: 4
C118: Comp. Esp. 5 | D118: Criterio Evaluación 5.1 | F118: 4
D119: Criterio Evaluación 5.2 | F119: 4
D120: Criterio Evaluación 5.3 | F120: 4
C121: Comp. Esp. 6 | D121: Criterio Evaluación 6.1 | F121: 4
D122: Criterio Evaluación 6.2 | F122: 4
D123: Criterio Evaluación 6.3 | F123: 4
C124: Comp. Esp. 7 | D124: Criterio Evaluación 7.1 | F124: 4
D125: Criterio Evaluación 7.2 | F125: 4
C126: Comp. Esp. 8 | D126: Criterio Evaluación 8.1 | F126: 4
D127: Criterio Evaluación 8.2 | F127: 4
D128: Criterio Evaluación 8.3 | F128: 4
C129: Comp. Esp. 9 | D129: Criterio Evaluación 9.1 | F129: 4
D130: Criterio Evaluación 9.2 | F130: 4
D131: Criterio Evaluación 9.3 | F131: 4
D132: Criterio Evaluación 9.4 | F132: 4
C133: Comp. Esp. 10 | D133: Criterio Evaluación 10.1 | F133: 4
D134: Criterio Evaluación 10.2 | F134: 4
B135: Lengua Extranjera | C135: Comp. Esp. 1 | D135: Criterio Evaluación 1.1 | F135: 4
D136: Criterio Evaluación 1.2 | F136: 4
C137: Comp. Esp. 2 | D137: Criterio Evaluación 2.1 | F137: 4
D138: Criterio Evaluación 2.2 | F138: 4
D139: Criterio Evaluación 2.3 | F139: 4
D140: Criterio Evaluación 2.4 | F140: 4
D141: Criterio Evaluación 2.5 | F141: 4
C142: Comp. Esp. 3 | D142: Criterio Evaluación 3.1 | F142: 4
D143: Criterio Evaluación 3.2 | F143: 4
D144: Criterio Evaluación 3.3 | F144: 4
D145: Criterio Evaluación 3.4 | F145: 4
C146: Comp. Esp. 4 | D146: Criterio Evaluación 4.1 | F146: 4
D147: Criterio Evaluación 4.2 | F147: 4
D148: Criterio Evaluación 4.3 | F148: 4
C149: Comp. Esp. 5 | D149: Criterio Evaluación 5.1 | F149: 4
D150: Criterio Evaluación 5.2 | F150: 4
D151: Criterio Evaluación 5.3 | F151: 4
C152: Comp. Esp. 6 | D152: Criterio Evaluación 6.1 | F152: 4
D153: Criterio Evaluación 6.2 | F153: 4
D154: Criterio Evaluación 6.3 | F154: 4
B155: Lengua y Cultura China | C155: Comp. Esp. 1 | D155: Criterio Evaluación 1.1 | F155: 2
D156: Criterio Evaluación 1.2 | F156: 2
D157: Criterio Evaluación 1.3 | F157: 2
C158: Comp. Esp. 2 | D158: Criterio Evaluación 2.1 | F158: 2
D159: Criterio Evaluación 2.2 | F159: 2
D160: Criterio Evaluación 2.3 | F160: 2
D161: Criterio Evaluación 2.4 | F161: 2
D162: Criterio Evaluación 2.5 | F162: 2
D163: Criterio Evaluación 2.6 | F163: 2
C164: Comp. Esp. 3 | D164: Criterio Evaluación 3.1 | F164: 2
D165: Criterio Evaluación 3.2 | F165: 2
D166: Criterio Evaluación 3.3 | F166: 2
C167: Comp. Esp. 4 | D167: Criterio Evaluación 4.1 | F167: 2
D168: Criterio Evaluación 4.2 | F168: 2
D169: Criterio Evaluación 4.3 | F169: 2
D170: Criterio Evaluación 4.4 | F170: 2
C171: Comp. Esp. 5 | D171: Criterio Evaluación 5.1 | F171: 2
D172: Criterio Evaluación 5.2 | F172: 2
D173: Criterio Evaluación 5.3 | F173: 2
D174: Criterio Evaluación 5.4 | F174: 2
B175: Matemáticas | C175: Comp. Esp. 1 | D175: Criterio Evaluación 1.1 | F175: 4
D176: Criterio Evaluación 1.2 | F176: 4
D177: Criterio Evaluación 1.3 | F177: 4
C178: Comp. Esp. 2 | D178: Criterio Evaluación 2.1 | F178: 4
D179: Criterio Evaluación 2.2 | F179: 4
C180: Comp. Esp. 3 | D180: Criterio Evaluación 3.1 | F180: 4
D181: Criterio Evaluación 3.2 | F181: 4
D182: Criterio Evaluación 3.3 | F182: 4
C183: Comp. Esp. 4 | D183: Criterio Evaluación 4.1 | F183: 4
D184: Criterio Evaluación 4.2 | F184: 4
C185: Comp. Esp. 5 | D185: Criterio Evaluación 5.1 | F185: 4
D186: Criterio Evaluación 5.2 | F186: 4
C187: Comp. Esp. 6 | D187: Criterio Evaluación 6.1 | F187: 4
D188: Criterio Evaluación 6.2 | F188: 4
D189: Criterio Evaluación 6.3 | F189: 4
C190: Comp. Esp. 7 | D190: Criterio Evaluación 7.1 | F190: 4
D191: Criterio Evaluación 7.2 | F191: 4
C192: Comp. Esp. 8 | D192: Criterio Evaluación 8.1 | F192: 4
D193: Criterio Evaluación 8.2 | F193: 4
C194: Comp. Esp. 9 | D194: Criterio Evaluación 9.1 | F194: 4
D195: Criterio Evaluación 9.2 | F195: 4
C196: Comp. Esp. 10 | D196: Criterio Evaluación 10.1 | F196: 4
D197: Criterio Evaluación 10.2 | F197: 4
B198: Materia dirigida al alumnado que no cursa religión | C198: Comp. Esp. 1 | D198: Criterio Evaluación 1.1 | F198: 1
C199: Comp. Esp. 2 | D199: Criterio Evaluación 2.1 | F199: 1
C200: Comp. Esp. 3 | D200: Criterio Evaluación 3.1 | F200: 1
C201: Comp. Esp. 4 | D201: Criterio Evaluación 4.1 | F201: 1
... 129 more rows

Sheet Peso criterios libre
E4: CALIFICACIÓN | F4: PESO | G4: PORCENTAJE | H4: POR. AJUSTA
B5: Biología y Geología | C5: Comp. Esp. 1 | D5: Criterio Evaluación 1.1 | E5: - | F5: 1 | G5: =F5/SUM($F$5:$F$329) -> 0.003076923077
D6: Criterio Evaluación 1.2 | E6: - | F6: 1 | G6: 0.003076923077
D7: Criterio Evaluación 1.3 | E7: - | F7: 1 | G7: 0.003076923077
C8: Comp. Esp. 2 | D8: Criterio Evaluación 2.1 | E8: - | F8: 1 | G8: 0.003076923077
D9: Criterio Evaluación 2.2 | E9: - | F9: 1 | G9: 0.003076923077
D10: Criterio Evaluación 2.3 | E10: - | F10: 1 | G10: 0.003076923077
D11: Criterio Evaluación 2.4 | E11: - | F11: 1 | G11: 0.003076923077
C12: Comp. Esp. 3 | D12: Criterio Evaluación 3.1 | E12: - | F12: 1 | G12: 0.003076923077
D13: Criterio Evaluación 3.2 | E13: - | F13: 1 | G13: 0.003076923077
D14: Criterio Evaluación 3.3 | E14: - | F14: 1 | G14: 0.003076923077
D15: Criterio Evaluación 3.4 | E15: - | F15: 1 | G15: 0.003076923077
D16: Criterio Evaluación 3.5 | E16: - | F16: 1 | G16: 0.003076923077
D17: Criterio Evaluación 3.6 | E17: - | F17: 1 | G17: 0.003076923077
D18: Criterio Evaluación 3.7 | E18: - | F18: 1 | G18: 0.003076923077
C19: Comp. Esp. 4 | D19: Criterio Evaluación 4.1 | E19: - | F19: 1 | G19: 0.003076923077
C20: Comp. Esp. 5 | D20: Criterio Evaluación 5.1 | E20: - | F20: 1 | G20: 0.003076923077
C21: Comp. Esp. 6 | D21: Criterio Evaluación 6.1 | E21: - | F21: 1 | G21: 0.003076923077
D22: Criterio Evaluación 6.2 | E22: - | F22: 1 | G22: 0.003076923077
B23: Conocimiento de las Matemáticas | C23: Comp. Esp. 1 | D23: Criterio Evaluación 1.1 | E23: - | F23: 1 | G23: 0.003076923077
D24: Criterio Evaluación 1.2 | E24: - | F24: 1 | G24: 0.003076923077
D25: Criterio Evaluación 1.3 | E25: - | F25: 1 | G25: 0.003076923077
C26: Comp. Esp. 2 | D26: Criterio Evaluación 2.1 | E26: - | F26: 1 | G26: 0.003076923077
D27: Criterio Evaluación 2.2 | E27: - | F27: 1 | G27: 0.003076923077
C28: Comp. Esp. 3 | D28: Criterio Evaluación 3.1 | E28: - | F28: 1 | G28: 0.003076923077
D29: Criterio Evaluación 3.2 | E29: - | F29: 1 | G29: 0.003076923077
C30: Comp. Esp. 4 | D30: Criterio Evaluación 4.1 | E30: - | F30: 1 | G30: 0.003076923077
D31: Criterio Evaluación 4.2 | E31: - | F31: 1 | G31: 0.003076923077
C32: Comp. Esp. 5 | D32: Criterio Evaluación 5.1 | E32: - | F32: 1 | G32: 0.003076923077
D33: Criterio Evaluación 5.2 | E33: - | F33: 1 | G33: 0.003076923077
D34: Criterio Evaluación 5.3 | E34: - | F34: 1 | G34: 0.003076923077
B35: Conocimiento del Lenguaje | C35: Comp. Esp. 1 | D35: Criterio Evaluación 1.1 | F35: 1 | G35: 0.003076923077
D36: Criterio Evaluación 1.2 | F36: 1 | G36: 0.003076923077
C37: Comp. Esp. 2 | D37: Criterio Evaluación 2.1 | E37: 1 | F37: 1 | G37: 0.003076923077
D38: Criterio Evaluación 2.2 | E38: 1 | F38: 1 | G38: 0.003076923077
C39: Comp. Esp. 3 | D39: Criterio Evaluación 3.1 | F39: 1 | G39: 0.003076923077
D40: Criterio Evaluación 3.2 | F40: 1 | G40: 0.003076923077
C41: Comp. Esp. 4 | D41: Criterio Evaluación 4.1 | F41: 1 | G41: 0.003076923077
D42: Criterio Evaluación 4.2 | E42: 1 | F42: 1 | G42: 0.003076923077
C43: Comp. Esp. 5 | D43: Criterio Evaluación 5.1 | E43: 1 | F43: 1 | G43: 0.003076923077
D44: Criterio Evaluación 5.2 | E44: 1 | F44: 1 | G44: 0.003076923077
C45: Comp. Esp. 6 | D45: Criterio Evaluación 6.1 | F45: 1 | G45: 0.003076923077
D46: Criterio Evaluación 6.2 | F46: 1 | G46: 0.003076923077
B47: Educación Física | C47: Comp. Esp. 1 | D47: Criterio Evaluación 1.1 | E47: - | F47: 1 | G47: 0.003076923077
D48: Criterio Evaluación 1.2 | E48: - | F48: 1 | G48: 0.003076923077
D49: Criterio Evaluación 1.3 | E49: - | F49: 1 | G49: 0.003076923077
D50: Criterio Evaluación 1.4 | E50: - | F50: 1 | G50: 0.003076923077
D51: Criterio Evaluación 1.5 | E51: - | F51: 1 | G51: 0.003076923077
D52: Criterio Evaluación 1.6 | E52: - | F52: 1 | G52: 0.003076923077
D53: Criterio Evaluación 1.7 | E53: - | F53: 1 | G53: 0.003076923077
D54: Criterio Evaluación 1.8 | E54: - | F54: 1 | G54: 0.003076923077
D55: Criterio Evaluación 1.9 | E55: - | F55: 1 | G55: 0.003076923077
C56: Comp. Esp. 2 | D56: Criterio Evaluación 2.1 | E56: - | F56: 1 | G56: 0.003076923077
D57: Criterio Evaluación 2.2 | E57: - | F57: 1 | G57: 0.003076923077
D58: Criterio Evaluación 2.3 | E58: - | F58: 1 | G58: 0.003076923077
D59: Criterio Evaluación 2.4 | E59: - | F59: 1 | G59: 0.003076923077
C60: Comp. Esp. 3 | D60: Criterio Evaluación 3.1 | E60: - | F60: 1 | G60: 0.003076923077
D61: Criterio Evaluación 3.2 | E61: - | F61: 1 | G61: 0.003076923077
D62: Criterio Evaluación 3.3 | E62: - | F62: 1 | G62: 0.003076923077
C63: Comp. Esp. 4 | D63: Criterio Evaluación 4.1 | E63: - | F63: 1 | G63: 0.003076923077
D64: Criterio Evaluación 4.2 | E64: - | F64: 1 | G64: 0.003076923077
D65: Criterio Evaluación 4.3 | E65: - | F65: 1 | G65: 0.003076923077
C66: Comp. Esp. 5 | D66: Criterio Evaluación 5.1 | E66: - | F66: 1 | G66: 0.003076923077
D67: Criterio Evaluación 5.2 | E67: - | F67: 1 | G67: 0.003076923077
B68: Educación Plástica, Visual y Audiovisual | C68: Comp. Esp. 1 | D68: Criterio Evaluación 1.1 | E68: - | F68: 1 | G68: 0.003076923077
D69: Criterio Evaluación 1.2 | E69: - | F69: 1 | G69: =F69/SUM($F$5:$F$329) -> 0.003076923077
D70: Criterio Evaluación 1.3 | E70: - | F70: 1 | G70: 0.003076923077
C71: Comp. Esp. 2 | D71: Criterio Evaluación 2.1 | E71: - | F71: 1 | G71: 0.003076923077
D72: Criterio Evaluación 2.2 | E72: - | F72: 1 | G72: 0.003076923077
C73: Comp. Esp. 3 | D73: Criterio Evaluación 3.1 | E73: - | F73: 1 | G73: 0.003076923077
D74: Criterio Evaluación 3.2 | E74: - | F74: 1 | G74: 0.003076923077
D75: Criterio Evaluación 3.3 | E75: - | F75: 1 | G75: 0.003076923077
D76: Criterio Evaluación 3.4 | E76: - | F76: 1 | G76: 0.003076923077
C77: Comp. Esp. 4 | D77: Criterio Evaluación 4.1 | E77: - | F77: 1 | G77: 0.003076923077
D78: Criterio Evaluación 4.2 | E78: - | F78: 1 | G78: 0.003076923077
C79: Comp. Esp. 5 | D79: Criterio Evaluación 5.1 | E79: - | F79: 1 | G79: 0.003076923077
D80: Criterio Evaluación 5.2 | E80: - | F80: 1 | G80: 0.003076923077
D81: Criterio Evaluación 5.3 | E81: - | F81: 1 | G81: 0.003076923077
C82: Comp. Esp. 6 | D82: Criterio Evaluación 6.1 | E82: - | F82: 1 | G82: 0.003076923077
D83: Criterio Evaluación 6.2 | E83: - | F83: 1 | G83: 0.003076923077
C84: Comp. Esp. 7 | D84: Criterio Evaluación 7.1 | E84: - | F84: 1 | G84: 0.003076923077
D85: Criterio Evaluación 7.2 | E85: - | F85: 1 | G85: 0.003076923077
D86: Criterio Evaluación 7.3 | E86: - | F86: 1 | G86: 0.003076923077
D87: Criterio Evaluación 7.4 | E87: - | F87: 1 | G87: 0.003076923077
C88: Comp. Esp. 8 | D88: Criterio Evaluación 8.1 | E88: - | F88: 1 | G88: 0.003076923077
D89: Criterio Evaluación 8.2 | E89: - | F89: 1 | G89: 0.003076923077
D90: Criterio Evaluación 8.3 | E90: - | F90: 1 | G90: 0.003076923077
D91: Criterio Evaluación 8.4 | E91: - | F91: 1 | G91: 0.003076923077
B92: Geografía e Historia | C92: Comp. Esp. 1 | D92: Criterio Evaluación 1.1 | E92: - | F92: 1 | G92: 0.003076923077
D93: Criterio Evaluación 1.2 | E93: - | F93: 1 | G93: 0.003076923077
C94: Comp. Esp. 2 | D94: Criterio Evaluación 2.1 | E94: - | F94: 1 | G94: 0.003076923077
C95: Comp. Esp. 3 | D95: Criterio Evaluación 3.1 | E95: - | F95: 1 | G95: 0.003076923077
D96: Criterio Evaluación 3.2 | E96: - | F96: 1 | G96: 0.003076923077
D97: Criterio Evaluación 3.3 | E97: - | F97: 1 | G97: 0.003076923077
C98: Comp. Esp. 4 | D98: Criterio Evaluación 4.1 | E98: - | F98: 1 | G98: 0.003076923077
C99: Comp. Esp. 5 | D99: Criterio Evaluación 5.1 | E99: - | F99: 1 | G99: 0.003076923077
D100: Criterio Evaluación 5.2 | E100: - | F100: 1 | G100: 0.003076923077
C101: Comp. Esp. 6 | D101: Criterio Evaluación 6.1 | E101: - | F101: 1 | G101: 0.003076923077
D102: Criterio Evaluación 6.2 | E102: - | F102: 1 | G102: 0.003076923077
C103: Comp. Esp. 7 | D103: Criterio Evaluación 7.1 | E103: - | F103: 1 | G103: 0.003076923077
D104: Criterio Evaluación 7.2 | E104: - | F104: 1 | G104: 0.003076923077
C105: Comp. Esp. 8 | D105: Criterio Evaluación 8.1 | E105: - | F105: 1 | G105: 0.003076923077
D106: Criterio Evaluación 8.2 | E106: - | F106: 1 | G106: 0.003076923077
C107: Comp. Esp. 9 | D107: Criterio Evaluación 9.1 | E107: - | F107: 1 | G107: 0.003076923077
B108: Lengua Castellana y Literatura | C108: Comp. Esp. 1 | D108: Criterio Evaluación 1.1 | E108: - | F108: 1 | G108: 0.003076923077
D109: Criterio Evaluación 1.2 | E109: - | F109: 1 | G109: 0.003076923077
D110: Criterio Evaluación 1.3 | E110: - | F110: 1 | G110: 0.003076923077
C111: Comp. Esp. 2 | D111: Criterio Evaluación 2.1 | E111: - | F111: 1 | G111: 0.003076923077
D112: Criterio Evaluación 2.2 | E112: - | F112: 1 | G112: 0.003076923077
C113: Comp. Esp. 3 | D113: Criterio Evaluación 3.1 | E113: - | F113: 1 | G113: 0.003076923077
D114: Criterio Evaluación 3.2 | E114: - | F114: 1 | G114: 0.003076923077
D115: Criterio Evaluación 3.3 | E115: - | F115: 1 | G115: 0.003076923077
C116: Comp. Esp. 4 | D116: Criterio Evaluación 4.1 | E116: - | F116: 1 | G116: 0.003076923077
D117: Criterio Evaluación 4.2 | E117: - | F117: 1 | G117: 0.003076923077
C118: Comp. Esp. 5 | D118: Criterio Evaluación 5.1 | E118: - | F118: 1 | G118: 0.003076923077
D119: Criterio Evaluación 5.2 | E119: - | F119: 1 | G119: 0.003076923077
D120: Criterio Evaluación 5.3 | E120: - | F120: 1 | G120: 0.003076923077
C121: Comp. Esp. 6 | D121: Criterio Evaluación 6.1 | E121: - | F121: 1 | G121: 0.003076923077
D122: Criterio Evaluación 6.2 | E122: - | F122: 1 | G122: 0.003076923077
D123: Criterio Evaluación 6.3 | E123: - | F123: 1 | G123: 0.003076923077
C124: Comp. Esp. 7 | D124: Criterio Evaluación 7.1 | E124: - | F124: 1 | G124: 0.003076923077
D125: Criterio Evaluación 7.2 | E125: - | F125: 1 | G125: 0.003076923077
C126: Comp. Esp. 8 | D126: Criterio Evaluación 8.1 | E126: - | F126: 1 | G126: 0.003076923077
D127: Criterio Evaluación 8.2 | E127: - | F127: 1 | G127: 0.003076923077
D128: Criterio Evaluación 8.3 | E128: - | F128: 1 | G128: 0.003076923077
C129: Comp. Esp. 9 | D129: Criterio Evaluación 9.1 | E129: - | F129: 1 | G129: 0.003076923077
D130: Criterio Evaluación 9.2 | E130: - | F130: 1 | G130: 0.003076923077
D131: Criterio Evaluación 9.3 | E131: - | F131: 1 | G131: 0.003076923077
D132: Criterio Evaluación 9.4 | E132: - | F132: 1 | G132: 0.003076923077
C133: Comp. Esp. 10 | D133: Criterio Evaluación 10.1 | E133: - | F133: 1 | G133: =F133/SUM($F$5:$F$329) -> 0.003076923077
D134: Criterio Evaluación 10.2 | E134: - | F134: 1 | G134: 0.003076923077
B135: Lengua Extranjera | C135: Comp. Esp. 1 | D135: Criterio Evaluación 1.1 | E135: - | F135: 1 | G135: 0.003076923077
D136: Criterio Evaluación 1.2 | E136: - | F136: 1 | G136: 0.003076923077
C137: Comp. Esp. 2 | D137: Criterio Evaluación 2.1 | E137: - | F137: 1 | G137: 0.003076923077
D138: Criterio Evaluación 2.2 | E138: - | F138: 1 | G138: 0.003076923077
D139: Criterio Evaluación 2.3 | E139: - | F139: 1 | G139: 0.003076923077
D140: Criterio Evaluación 2.4 | E140: - | F140: 1 | G140: 0.003076923077
D141: Criterio Evaluación 2.5 | E141: - | F141: 1 | G141: 0.003076923077
C142: Comp. Esp. 3 | D142: Criterio Evaluación 3.1 | E142: - | F142: 1 | G142: 0.003076923077
D143: Criterio Evaluación 3.2 | E143: - | F143: 1 | G143: 0.003076923077
D144: Criterio Evaluación 3.3 | E144: - | F144: 1 | G144: 0.003076923077
D145: Criterio Evaluación 3.4 | E145: - | F145: 1 | G145: 0.003076923077
C146: Comp. Esp. 4 | D146: Criterio Evaluación 4.1 | E146: - | F146: 1 | G146: 0.003076923077
D147: Criterio Evaluación 4.2 | E147: - | F147: 1 | G147: 0.003076923077
D148: Criterio Evaluación 4.3 | E148: - | F148: 1 | G148: 0.003076923077
C149: Comp. Esp. 5 | D149: Criterio Evaluación 5.1 | E149: - | F149: 1 | G149: 0.003076923077
D150: Criterio Evaluación 5.2 | E150: - | F150: 1 | G150: 0.003076923077
D151: Criterio Evaluación 5.3 | E151: - | F151: 1 | G151: 0.003076923077
C152: Comp. Esp. 6 | D152: Criterio Evaluación 6.1 | E152: - | F152: 1 | G152: 0.003076923077
D153: Criterio Evaluación 6.2 | E153: - | F153: 1 | G153: 0.003076923077
D154: Criterio Evaluación 6.3 | E154: - | F154: 1 | G154: 0.003076923077
B155: Lengua y Cultura China | C155: Comp. Esp. 1 | D155: Criterio Evaluación 1.1 | E155: - | F155: 1 | G155: 0.003076923077
D156: Criterio Evaluación 1.2 | E156: - | F156: 1 | G156: 0.003076923077
D157: Criterio Evaluación 1.3 | E157: - | F157: 1 | G157: 0.003076923077
C158: Comp. Esp. 2 | D158: Criterio Evaluación 2.1 | E158: - | F158: 1 | G158: 0.003076923077
D159: Criterio Evaluación 2.2 | E159: - | F159: 1 | G159: 0.003076923077
D160: Criterio Evaluación 2.3 | E160: - | F160: 1 | G160: 0.003076923077
D161: Criterio Evaluación 2.4 | E161: - | F161: 1 | G161: 0.003076923077
D162: Criterio Evaluación 2.5 | E162: - | F162: 1 | G162: 0.003076923077
D163: Criterio Evaluación 2.6 | E163: - | F163: 1 | G163: 0.003076923077
C164: Comp. Esp. 3 | D164: Criterio Evaluación 3.1 | E164: - | F164: 1 | G164: 0.003076923077
D165: Criterio Evaluación 3.2 | E165: - | F165: 1 | G165: 0.003076923077
D166: Criterio Evaluación 3.3 | E166: - | F166: 1 | G166: 0.003076923077
C167: Comp. Esp. 4 | D167: Criterio Evaluación 4.1 | E167: - | F167: 1 | G167: 0.003076923077
D168: Criterio Evaluación 4.2 | E168: - | F168: 1 | G168: 0.003076923077
D169: Criterio Evaluación 4.3 | E169: - | F169: 1 | G169: 0.003076923077
D170: Criterio Evaluación 4.4 | E170: - | F170: 1 | G170: 0.003076923077
C171: Comp. Esp. 5 | D171: Criterio Evaluación 5.1 | E171: - | F171: 1 | G171: 0.003076923077
D172: Criterio Evaluación 5.2 | E172: - | F172: 1 | G172: 0.003076923077
D173: Criterio Evaluación 5.3 | E173: - | F173: 1 | G173: 0.003076923077
D174: Criterio Evaluación 5.4 | E174: - | F174: 1 | G174: 0.003076923077
B175: Matemáticas | C175: Comp. Esp. 1 | D175: Criterio Evaluación 1.1 | E175: - | F175: 1 | G175: 0.003076923077
D176: Criterio Evaluación 1.2 | E176: - | F176: 1 | G176: 0.003076923077
D177: Criterio Evaluación 1.3 | E177: - | F177: 1 | G177: 0.003076923077
C178: Comp. Esp. 2 | D178: Criterio Evaluación 2.1 | E178: - | F178: 1 | G178: 0.003076923077
D179: Criterio Evaluación 2.2 | E179: - | F179: 1 | G179: 0.003076923077
C180: Comp. Esp. 3 | D180: Criterio Evaluación 3.1 | E180: - | F180: 1 | G180: 0.003076923077
D181: Criterio Evaluación 3.2 | E181: - | F181: 1 | G181: 0.003076923077
D182: Criterio Evaluación 3.3 | E182: - | F182: 1 | G182: 0.003076923077
C183: Comp. Esp. 4 | D183: Criterio Evaluación 4.1 | E183: - | F183: 1 | G183: 0.003076923077
D184: Criterio Evaluación 4.2 | E184: - | F184: 1 | G184: 0.003076923077
C185: Comp. Esp. 5 | D185: Criterio Evaluación 5.1 | E185: - | F185: 1 | G185: 0.003076923077
D186: Criterio Evaluación 5.2 | E186: - | F186: 1 | G186: 0.003076923077
C187: Comp. Esp. 6 | D187: Criterio Evaluación 6.1 | E187: - | F187: 1 | G187: 0.003076923077
D188: Criterio Evaluación 6.2 | E188: - | F188: 1 | G188: 0.003076923077
D189: Criterio Evaluación 6.3 | E189: - | F189: 1 | G189: 0.003076923077
C190: Comp. Esp. 7 | D190: Criterio Evaluación 7.1 | E190: - | F190: 1 | G190: 0.003076923077
D191: Criterio Evaluación 7.2 | E191: - | F191: 1 | G191: 0.003076923077
C192: Comp. Esp. 8 | D192: Criterio Evaluación 8.1 | E192: - | F192: 1 | G192: 0.003076923077
D193: Criterio Evaluación 8.2 | E193: - | F193: 1 | G193: 0.003076923077
C194: Comp. Esp. 9 | D194: Criterio Evaluación 9.1 | E194: - | F194: 1 | G194: 0.003076923077
D195: Criterio Evaluación 9.2 | E195: - | F195: 1 | G195: 0.003076923077
C196: Comp. Esp. 10 | D196: Criterio Evaluación 10.1 | E196: - | F196: 1 | G196: 0.003076923077
D197: Criterio Evaluación 10.2 | E197: - | F197: 1 | G197: =F197/SUM($F$5:$F$329) -> 0.003076923077
B198: Materia No Religión | C198: Comp. Esp. 1 | D198: Criterio Evaluación 1.1 | E198: - | F198: 1 | G198: 0.003076923077
C199: Comp. Esp. 2 | D199: Criterio Evaluación 2.1 | E199: - | F199: 1 | G199: 0.003076923077
C200: Comp. Esp. 3 | D200: Criterio Evaluación 3.1 | E200: - | F200: 1 | G200: 0.003076923077
C201: Comp. Esp. 4 | D201: Criterio Evaluación 4.1 | E201: - | F201: 1 | G201: 0.003076923077
C202: Comp. Esp. 5 | D202: Criterio Evaluación 5.1 | E202: - | F202: 1 | G202: 0.003076923077
C203: Comp. Esp. 6 | D203: Criterio Evaluación 6.1 | E203: - | F203: 1 | G203: 0.003076923077
... 127 more rows

Sheet Peso descrip. libre
E2: Competencia en Comunicación Lingüística | Y2: Competencia Plurilingüe | AK2: Competencia Matemática y Competencia en Ciencia, Tecnología e Ingeniería | BE2: Competencia Digital | BY2: Competencia Personal, Social y de Aprender a Aprender | CS2: Competencia Ciudadana | DI2: Competencia Emprendedora | DU2: Competencia en Conciencia y Expresión Culturales
E3: CCL 1 | I3: CCL 2 | M3: CCL 3 | Q3: CCL 4 | U3: CCL 5 | Y3: CP 1 | AC3: CP 2 | AG3: CP 3 | AK3: STEM 1 | AO3: STEM 2 | AS3: STEM 3 | AW3: STEM 4 | BA3: STEM 5 | BE3: CD 1 | BI3: CD 2 | BM3: CD 3 | BQ3: CD 4 | BU3: CD 5 | BY3: CPSAA 1 | CC3: CPSAA 2 | CG3: CPSAA 3 | CK3: CPSAA 4 | CO3: CPSAA 5 | CS3: CC 1 | CW3: CC 2 | DA3: CC 3 | DE3: CC 4 | DI3: CE 1 | DM3: CE 2 | DQ3: CE 3 | DU3: CCEC 1 | DY3: CCEC 2 | EC3: CCEC 3 | EG3: CCEC 4
B5: NO | C5: PESO DESCRIPTORES | E5: 1 | I5: 1 | M5: 1 | Q5: 1 | U5: 1 | Y5: 1 | AC5: 1 | AG5: 1 | AK5: 1 | AO5: 1 | AS5: 1 | AW5: 1 | BA5: 1 | BE5: 1 | BI5: 1 | BM5: 1 | BQ5: 1 | BU5: 1 | BY5: 1 | CC5: 1 | CG5: 1 | CK5: 1 | CO5: 1 | CS5: 1 | CW5: 1 | DA5: 1 | DE5: 1 | DI5: 1 | DM5: 1 | DQ5: 1 | DU5: 1 | DY5: 1 | EC5: 1 | EG5: 1
C6: PORCENTAJES | E6: =E5/SUM($E5:$U5) -> 0.2 | I6: =I5/SUM($E5:$U5) -> 0.2 | M6: =M5/SUM($E5:$U5) -> 0.2 | Q6: =Q5/SUM($E5:$U5) -> 0.2 | U6: =U5/SUM($E5:$U5) -> 0.2 | Y6: =Y5/SUM($Y5:$AG5) -> 0.3333333333 | AC6: =AC5/SUM($Y5:$AG5) -> 0.3333333333 | AG6: 0.3333333333 | AK6: =AK5/SUM($AK5:$BA5) -> 0.2 | AO6: =AO5/SUM($AK5:$BA5) -> 0.2 | AS6: 0.2 | AW6: 0.2 | BA6: 0.2 | BE6: =BE5/SUM($BE5:$BU5) -> 0.2 | BI6: =BI5/SUM($BE5:$BU5) -> 0.2 | BM6: 0.2 | BQ6: 0.2 | BU6: 0.2 | BY6: =BY5/SUM($BY5:$CO5) -> 0.2 | CC6: =CC5/SUM($BY5:$CO5) -> 0.2 | CG6: 0.2 | CK6: 0.2 | CO6: 0.2 | CS6: =CS5/SUM($CS5:$DE5) -> 0.25 | CW6: =CW5/SUM($CS5:$DE5) -> 0.25 | DA6: 0.25 | DE6: 0.25 | DI6: =DI5/SUM($DI5:$DQ5) -> 0.3333333333 | DM6: =DM5/SUM($DI5:$DQ5) -> 0.3333333333 | DQ6: 0.3333333333 | DU6: =DU5/SUM($DU5:$EG5) -> 0.25 | DY6: =DY5/SUM($DU5:$EG5) -> 0.25 | EC6: 0.25 | EG6: 0.25

Sheet Peso descrip. vinculaciones
E2: Competencia en Comunicación Lingüística | Y2: Competencia Plurilingüe | AK2: Competencia Matemática y Competencia en Ciencia, Tecnología e Ingeniería | BE2: Competencia Digital | BY2: Competencia Personal, Social y de Aprender a Aprender | CS2: Competencia Ciudadana | DI2: Competencia Emprendedora | DU2: Competencia en Conciencia y Expresión Culturales
E3: CCL 1 | I3: CCL 2 | M3: CCL 3 | Q3: CCL 4 | U3: CCL 5 | Y3: CP 1 | AC3: CP 2 | AG3: CP 3 | AK3: STEM 1 | AO3: STEM 2 | AS3: STEM 3 | AW3: STEM 4 | BA3: STEM 5 | BE3: CD 1 | BI3: CD 2 | BM3: CD 3 | BQ3: CD 4 | BU3: CD 5 | BY3: CPSAA 1 | CC3: CPSAA 2 | CG3: CPSAA 3 | CK3: CPSAA 4 | CO3: CPSAA 5 | CS3: CC 1 | CW3: CC 2 | DA3: CC 3 | DE3: CC 4 | DI3: CE 1 | DM3: CE 2 | DQ3: CE 3 | DU3: CCEC 1 | DY3: CCEC 2 | EC3: CCEC 3 | EG3: CCEC 4
B5: NO | C5: PESO DESCRIPTORES | E5: 0.3563636364 | I5: 0.2290909091 | M5: 0.1527272727 | Q5: 0.05818181818 | U5: 0.2036363636 | Y5: 0.3615384615 | AC5: 0.4 | AG5: 0.2384615385 | AK5: 0.3935185185 | AO5: 0.1990740741 | AS5: 0.1574074074 | AW5: 0.1574074074 | BA5: 0.09259259259 | BE5: 0.2398190045 | BI5: 0.2941176471 | BM5: 0.2941176471 | BQ5: 0.1040723982 | BU5: 0.06787330317 | BY5: 0.2146118721 | CC5: 0.0502283105 | CG5: 0.2420091324 | CK5: 0.2146118721 | CO5: 0.2785388128 | CS5: 0.2344827586 | CW5: 0.2413793103 | DA5: 0.3862068966 | DE5: 0.1379310345 | DI5: 0.4423076923 | DM5: 0.07692307692 | DQ5: 0.4807692308 | DU5: 0.2781456954 | DY5: 0.2450331126 | EC5: 0.2847682119 | EG5: 0.1920529801
C6: PORCENTAJES | E6: =E5/SUM($E5:$U5) -> 0.3563636364 | I6: =I5/SUM($E5:$U5) -> 0.2290909091 | M6: =M5/SUM($E5:$U5) -> 0.1527272727 | Q6: =Q5/SUM($E5:$U5) -> 0.05818181818 | U6: =U5/SUM($E5:$U5) -> 0.2036363636 | Y6: =Y5/SUM($Y5:$AG5) -> 0.3615384615 | AC6: =AC5/SUM($Y5:$AG5) -> 0.4 | AG6: 0.2384615385 | AK6: =AK5/SUM($AK5:$BA5) -> 0.3935185185 | AO6: =AO5/SUM($AK5:$BA5) -> 0.1990740741 | AS6: 0.1574074074 | AW6: 0.1574074074 | BA6: 0.09259259259 | BE6: =BE5/SUM($BE5:$BU5) -> 0.2398190045 | BI6: =BI5/SUM($BE5:$BU5) -> 0.2941176471 | BM6: 0.2941176471 | BQ6: 0.1040723982 | BU6: 0.06787330317 | BY6: =BY5/SUM($BY5:$CO5) -> 0.2146118721 | CC6: =CC5/SUM($BY5:$CO5) -> 0.0502283105 | CG6: 0.2420091324 | CK6: 0.2146118721 | CO6: 0.2785388128 | CS6: =CS5/SUM($CS5:$DE5) -> 0.2344827586 | CW6: =CW5/SUM($CS5:$DE5) -> 0.2413793103 | DA6: 0.3862068966 | DE6: 0.1379310345 | DI6: =DI5/SUM($DI5:$DQ5) -> 0.4423076923 | DM6: =DM5/SUM($DI5:$DQ5) -> 0.07692307692 | DQ6: 0.4807692308 | DU6: =DU5/SUM($DU5:$EG5) -> 0.2781456954 | DY6: =DY5/SUM($DU5:$EG5) -> 0.2450331126 | EC6: 0.2847682119 | EG6: 0.1920529801
C7: CALIFICACIONES COMPETENCIAS | E7: =IFERROR(SUMPRODUCT(#REF!,E5:U5)/SUMIF(#REF!,">=0",E5:U5),"") ->  | Y7: =IFERROR(SUMPRODUCT(#REF!,Y5:AG5)/SUMIF(#REF!,">=0",Y5:AG5),"") ->  | AK7: =IFERROR(SUMPRODUCT(#REF!,AK5:BA5)/SUMIF(#REF!,">=0",AK5:BA5),"") ->  | BE7: =IFERROR(SUMPRODUCT(#REF!,BE5:BU5)/SUMIF(#REF!,">=0",BE5:BU5),"") ->  | BY7: =IFERROR(SUMPRODUCT(#REF!,BY5:CO5)/SUMIF(#REF!,">=0",BY5:CO5),"") ->  | CS7: =IFERROR(SUMPRODUCT(#REF!,CS5:DE5)/SUMIF(#REF!,">=0",CS5:DE5),"") ->  | DI7: =IFERROR(SUMPRODUCT(#REF!,DI5:DQ5)/SUMIF(#REF!,">=0",DI5:DQ5),"") ->  | DU7: =IFERROR(SUMPRODUCT(#REF!,DU5:EG5)/SUMIF(#REF!,">=0",DU5:EG5),"") -> 

Sheet Alumnos
A1: C:\Users\GALMARBL\Documents\_O\2ºA_Nombres alumnos.xlsx
C3: LISTADO DE ALUMNOS | F3: MATERIAS
C4: Informe | D4: Grupo 1º _____ | E4: ID Matrícula | F4: CMAT | G4: CLEN | H4: LCChina | I4: Segunda Lengua Extranjera | N4: MatNoRel | O4: REL | Q4: TEAMS / Onedrive
I5: AL | J5: FR | K5: ING | L5: ITA | M5: POR
D6: Nombre_Alumno_1 | E6: ID_1 | F6: x | H6: x | N6: x
C7: 2 | D7: Nombre_Alumno_2 | E7: ID_2 | G7: x | J7: x | O7: x
C8: 3 | D8: Nombre_Alumno_3 | E8: ID_3 | H8: x | K8: x | N8: x
C9: 4 | D9: Nombre_Alumno_4 | E9: ID_4 | G9: x | O9: x
D10: Nombre_Alumno_5 | E10: ID_5 | F10: x | N10: x
C11: 6
C12: 7
C13: 8
C14: 9
C15: 10
C16: 11
C17: 12
C18: 13
C19: 14
C20: 15
C21: 16
C22: 17
C23: 18
C24: 19
C25: 20
C26: 21
C27: 22
C28: 23
C29: 24
C30: 25
C31: 26
C32: 27
C33: 28
C34: 29
C35: 30
C36: 31
C37: 32
C38: 33
C39: 34
C40: 35
D41: TOTAL MATRICULADOS | F41: =COUNTA(F6:F40) -> 2 | G41: =COUNTA(G6:G40) -> 2 | H41: 2 | I41: 0 | J41: 1 | K41: 1 | L41: 0 | M41: 0 | N41: 3 | O41: 2

Sheet Redondeo
X2: EXPORTACIÓN NOTAS COMPETENCIAS A STILUS
C3: CALIFICACIONES DE MATERIAS | X3: 1º_Introduce para cada materia las centésimas a partir de las que se realizará un redondeo al alza (valor entre 1 y 100):
C4: CENTÉSIMAS REONDEO
C5: 90 | D5: 90 | E5: 90 | F5: 90 | G5: 90 | H5: 90 | I5: 90 | J5: 90 | K5: 90 | L5: 90 | M5: 90 | N5: 90 | O5: 90 | P5: 90 | Q5: 90 | R5: 90 | S5: 90 | T5: 90 | X5: Ejemplo: si se marca 85, desde el 4,85 (inclusive) se redondeará a 5, Si se marca 100, el 4,99 e inferiores se redondearán a 4
B6: =TRANSPOSE('Calificación materias'!B5:AK23) -> 0 | C6: Biología y Geología | D6: Educación Física | E6: Educación Plástica, Visual y Audiovisual | F6: Geografía e Historia | G6: Lengua Castellana y Literatura | H6: Lengua Extranjera | I6: Matemáticas | J6: Tecnología y Digitalización | K6: Conocimiento de las Matemáticas | L6: Conocimiento del Lenguaje | M6: Lengua y Cultura China | N6: Segunda Lengua Extranjera_ALE | O6: Segunda Lengua Extranjera_FRA | P6: Segunda Lengua Extranjera_ING | Q6: Segunda Lengua Extranjera_ITA | R6: Segunda Lengua Extranjera_POR | S6: Materia alumnado no Religión | T6: Religión | X6: 2º_Pulsa el siguiente botón:
B7: Nombre_Alumno_1
B8: Nombre_Alumno_2
B9: Nombre_Alumno_3
B10: Nombre_Alumno_4
B11: Nombre_Alumno_5

Sheet Materias
C2: MATERIAS DE 1º ESO

Sheet 2LEX
C2: MATERIAS DE 1º ESO

Sheet Calif. de crit.
E2: =IF(Alumnos!D6="","",Alumnos!D6) -> Nombre_Alumno_1 | F2: =IF(Alumnos!D7="","",Alumnos!D7) -> Nombre_Alumno_2 | G2: =IF(Alumnos!D8="","",Alumnos!D8) -> Nombre_Alumno_3 | H2: =IF(Alumnos!D9="","",Alumnos!D9) -> Nombre_Alumno_4 | I2: =IF(Alumnos!D10="","",Alumnos!D10) -> Nombre_Alumno_5 | J2: =IF(Alumnos!D11="","",Alumnos!D11) ->  | K2: =IF(Alumnos!D12="","",Alumnos!D12) ->  | L2: =IF(Alumnos!D13="","",Alumnos!D13) ->  | M2: =IF(Alumnos!D14="","",Alumnos!D14) ->  | N2: =IF(Alumnos!D15="","",Alumnos!D15) ->  | O2: =IF(Alumnos!D16="","",Alumnos!D16) ->  | P2: =IF(Alumnos!D17="","",Alumnos!D17) ->  | Q2: =IF(Alumnos!D18="","",Alumnos!D18) ->  | R2: =IF(Alumnos!D19="","",Alumnos!D19) ->  | S2: =IF(Alumnos!D20="","",Alumnos!D20) ->  | T2: =IF(Alumnos!D21="","",Alumnos!D21) ->  | U2: =IF(Alumnos!D22="","",Alumnos!D22) ->  | V2: =IF(Alumnos!D23="","",Alumnos!D23) ->  | W2: =IF(Alumnos!D24="","",Alumnos!D24) ->  | X2: =IF(Alumnos!D25="","",Alumnos!D25) ->  | Y2: =IF(Alumnos!D26="","",Alumnos!D26) ->  | Z2: =IF(Alumnos!D27="","",Alumnos!D27) ->  | AA2: =IF(Alumnos!D28="","",Alumnos!D28) ->  | AB2: =IF(Alumnos!D29="","",Alumnos!D29) ->  | AC2: =IF(Alumnos!D30="","",Alumnos!D30) ->  | AD2: =IF(Alumnos!D31="","",Alumnos!D31) ->  | AE2: =IF(Alumnos!D32="","",Alumnos!D32) ->  | AF2: =IF(Alumnos!D33="","",Alumnos!D33) ->  | AG2: =IF(Alumnos!D34="","",Alumnos!D34) ->  | AH2: =IF(Alumnos!D35="","",Alumnos!D35) ->  | AI2: =IF(Alumnos!D36="","",Alumnos!D36) ->  | AJ2: =IF(Alumnos!D37="","",Alumnos!D37) ->  | AK2: =IF(Alumnos!D38="","",Alumnos!D38) ->  | AL2: =IF(Alumnos!D39="","",Alumnos!D39) ->  | AM2: =IF(Alumnos!D40="","",Alumnos!D40) -> 
B3: Biología y Geología | C3: Comp. Esp. 1 | D3: Criterio Evaluación 1.1 | E3: =IF('Biologia y Geologia'!H4="","",'Biologia y Geologia'!H4) ->  | F3: =IF('Biologia y Geologia'!I4="","",'Biologia y Geologia'!I4) ->  | G3: =IF('Biologia y Geologia'!J4="","",'Biologia y Geologia'!J4) ->  | H3: =IF('Biologia y Geologia'!K4="","",'Biologia y Geologia'!K4) ->  | I3: =IF('Biologia y Geologia'!L4="","",'Biologia y Geologia'!L4) ->  | J3: =IF('Biologia y Geologia'!M4="","",'Biologia y Geologia'!M4) ->  | K3: =IF('Biologia y Geologia'!N4="","",'Biologia y Geologia'!N4) ->  | L3: =IF('Biologia y Geologia'!O4="","",'Biologia y Geologia'!O4) ->  | M3: =IF('Biologia y Geologia'!P4="","",'Biologia y Geologia'!P4) ->  | N3: =IF('Biologia y Geologia'!Q4="","",'Biologia y Geologia'!Q4) ->  | O3: =IF('Biologia y Geologia'!R4="","",'Biologia y Geologia'!R4) ->  | P3: =IF('Biologia y Geologia'!S4="","",'Biologia y Geologia'!S4) ->  | Q3: =IF('Biologia y Geologia'!T4="","",'Biologia y Geologia'!T4) ->  | R3: =IF('Biologia y Geologia'!U4="","",'Biologia y Geologia'!U4) ->  | S3: =IF('Biologia y Geologia'!V4="","",'Biologia y Geologia'!V4) ->  | T3: =IF('Biologia y Geologia'!W4="","",'Biologia y Geologia'!W4) ->  | U3: =IF('Biologia y Geologia'!X4="","",'Biologia y Geologia'!X4) ->  | V3: =IF('Biologia y Geologia'!Y4="","",'Biologia y Geologia'!Y4) ->  | W3: =IF('Biologia y Geologia'!Z4="","",'Biologia y Geologia'!Z4) ->  | X3: =IF('Biologia y Geologia'!AA4="","",'Biologia y Geologia'!AA4) ->  | Y3: =IF('Biologia y Geologia'!AB4="","",'Biologia y Geologia'!AB4) ->  | Z3: =IF('Biologia y Geologia'!AC4="","",'Biologia y Geologia'!AC4) ->  | AA3: =IF('Biologia y Geologia'!AD4="","",'Biologia y Geologia'!AD4) ->  | AB3: =IF('Biologia y Geologia'!AE4="","",'Biologia y Geologia'!AE4) ->  | AC3: =IF('Biologia y Geologia'!AF4="","",'Biologia y Geologia'!AF4) ->  | AD3: =IF('Biologia y Geologia'!AG4="","",'Biologia y Geologia'!AG4) ->  | AE3: =IF('Biologia y Geologia'!AH4="","",'Biologia y Geologia'!AH4) ->  | AF3: =IF('Biologia y Geologia'!AI4="","",'Biologia y Geologia'!AI4) ->  | AG3: =IF('Biologia y Geologia'!AJ4="","",'Biologia y Geologia'!AJ4) ->  | AH3: =IF('Biologia y Geologia'!AK4="","",'Biologia y Geologia'!AK4) ->  | AI3: =IF('Biologia y Geologia'!AL4="","",'Biologia y Geologia'!AL4) ->  | AJ3: =IF('Biologia y Geologia'!AM4="","",'Biologia y Geologia'!AM4) ->  | AK3: =IF('Biologia y Geologia'!AN4="","",'Biologia y Geologia'!AN4) ->  | AL3: =IF('Biologia y Geologia'!AO4="","",'Biologia y Geologia'!AO4) ->  | AM3: =IF('Biologia y Geologia'!AP4="","",'Biologia y Geologia'!AP4) -> 
D4: Criterio Evaluación 1.2 | E4: =IF('Biologia y Geologia'!H5="","",'Biologia y Geologia'!H5) ->  | F4: =IF('Biologia y Geologia'!I5="","",'Biologia y Geologia'!I5) ->  | G4: =IF('Biologia y Geologia'!J5="","",'Biologia y Geologia'!J5) ->  | H4: =IF('Biologia y Geologia'!K5="","",'Biologia y Geologia'!K5) ->  | I4: =IF('Biologia y Geologia'!L5="","",'Biologia y Geologia'!L5) ->  | J4: =IF('Biologia y Geologia'!M5="","",'Biologia y Geologia'!M5) ->  | K4: =IF('Biologia y Geologia'!N5="","",'Biologia y Geologia'!N5) ->  | L4: =IF('Biologia y Geologia'!O5="","",'Biologia y Geologia'!O5) ->  | M4: =IF('Biologia y Geologia'!P5="","",'Biologia y Geologia'!P5) ->  | N4: =IF('Biologia y Geologia'!Q5="","",'Biologia y Geologia'!Q5) ->  | O4: =IF('Biologia y Geologia'!R5="","",'Biologia y Geologia'!R5) ->  | P4: =IF('Biologia y Geologia'!S5="","",'Biologia y Geologia'!S5) ->  | Q4: =IF('Biologia y Geologia'!T5="","",'Biologia y Geologia'!T5) ->  | R4: =IF('Biologia y Geologia'!U5="","",'Biologia y Geologia'!U5) ->  | S4: =IF('Biologia y Geologia'!V5="","",'Biologia y Geologia'!V5) ->  | T4: =IF('Biologia y Geologia'!W5="","",'Biologia y Geologia'!W5) ->  | U4: =IF('Biologia y Geologia'!X5="","",'Biologia y Geologia'!X5) ->  | V4: =IF('Biologia y Geologia'!Y5="","",'Biologia y Geologia'!Y5) ->  | W4: =IF('Biologia y Geologia'!Z5="","",'Biologia y Geologia'!Z5) ->  | X4: =IF('Biologia y Geologia'!AA5="","",'Biologia y Geologia'!AA5) ->  | Y4: =IF('Biologia y Geologia'!AB5="","",'Biologia y Geologia'!AB5) ->  | Z4: =IF('Biologia y Geologia'!AC5="","",'Biologia y Geologia'!AC5) ->  | AA4: =IF('Biologia y Geologia'!AD5="","",'Biologia y Geologia'!AD5) ->  | AB4: =IF('Biologia y Geologia'!AE5="","",'Biologia y Geologia'!AE5) ->  | AC4: =IF('Biologia y Geologia'!AF5="","",'Biologia y Geologia'!AF5) ->  | AD4: =IF('Biologia y Geologia'!AG5="","",'Biologia y Geologia'!AG5) ->  | AE4: =IF('Biologia y Geologia'!AH5="","",'Biologia y Geologia'!AH5) ->  | AF4: =IF('Biologia y Geologia'!AI5="","",'Biologia y Geologia'!AI5) ->  | AG4: =IF('Biologia y Geologia'!AJ5="","",'Biologia y Geologia'!AJ5) ->  | AH4: =IF('Biologia y Geologia'!AK5="","",'Biologia y Geologia'!AK5) ->  | AI4: =IF('Biologia y Geologia'!AL5="","",'Biologia y Geologia'!AL5) ->  | AJ4: =IF('Biologia y Geologia'!AM5="","",'Biologia y Geologia'!AM5) ->  | AK4: =IF('Biologia y Geologia'!AN5="","",'Biologia y Geologia'!AN5) ->  | AL4: =IF('Biologia y Geologia'!AO5="","",'Biologia y Geologia'!AO5) ->  | AM4: =IF('Biologia y Geologia'!AP5="","",'Biologia y Geologia'!AP5) -> 
D5: Criterio Evaluación 1.3 | E5: =IF('Biologia y Geologia'!H6="","",'Biologia y Geologia'!H6) ->  | F5: =IF('Biologia y Geologia'!I6="","",'Biologia y Geologia'!I6) ->  | G5: =IF('Biologia y Geologia'!J6="","",'Biologia y Geologia'!J6) ->  | H5: =IF('Biologia y Geologia'!K6="","",'Biologia y Geologia'!K6) ->  | I5: =IF('Biologia y Geologia'!L6="","",'Biologia y Geologia'!L6) ->  | J5: =IF('Biologia y Geologia'!M6="","",'Biologia y Geologia'!M6) ->  | K5: =IF('Biologia y Geologia'!N6="","",'Biologia y Geologia'!N6) ->  | L5: =IF('Biologia y Geologia'!O6="","",'Biologia y Geologia'!O6) ->  | M5: =IF('Biologia y Geologia'!P6="","",'Biologia y Geologia'!P6) ->  | N5: =IF('Biologia y Geologia'!Q6="","",'Biologia y Geologia'!Q6) ->  | O5: =IF('Biologia y Geologia'!R6="","",'Biologia y Geologia'!R6) ->  | P5: =IF('Biologia y Geologia'!S6="","",'Biologia y Geologia'!S6) ->  | Q5: =IF('Biologia y Geologia'!T6="","",'Biologia y Geologia'!T6) ->  | R5: =IF('Biologia y Geologia'!U6="","",'Biologia y Geologia'!U6) ->  | S5: =IF('Biologia y Geologia'!V6="","",'Biologia y Geologia'!V6) ->  | T5: =IF('Biologia y Geologia'!W6="","",'Biologia y Geologia'!W6) ->  | U5: =IF('Biologia y Geologia'!X6="","",'Biologia y Geologia'!X6) ->  | V5: =IF('Biologia y Geologia'!Y6="","",'Biologia y Geologia'!Y6) ->  | W5: =IF('Biologia y Geologia'!Z6="","",'Biologia y Geologia'!Z6) ->  | X5: =IF('Biologia y Geologia'!AA6="","",'Biologia y Geologia'!AA6) ->  | Y5: =IF('Biologia y Geologia'!AB6="","",'Biologia y Geologia'!AB6) ->  | Z5: =IF('Biologia y Geologia'!AC6="","",'Biologia y Geologia'!AC6) ->  | AA5: =IF('Biologia y Geologia'!AD6="","",'Biologia y Geologia'!AD6) ->  | AB5: =IF('Biologia y Geologia'!AE6="","",'Biologia y Geologia'!AE6) ->  | AC5: =IF('Biologia y Geologia'!AF6="","",'Biologia y Geologia'!AF6) ->  | AD5: =IF('Biologia y Geologia'!AG6="","",'Biologia y Geologia'!AG6) ->  | AE5: =IF('Biologia y Geologia'!AH6="","",'Biologia y Geologia'!AH6) ->  | AF5: =IF('Biologia y Geologia'!AI6="","",'Biologia y Geologia'!AI6) ->  | AG5: =IF('Biologia y Geologia'!AJ6="","",'Biologia y Geologia'!AJ6) ->  | AH5: =IF('Biologia y Geologia'!AK6="","",'Biologia y Geologia'!AK6) ->  | AI5: =IF('Biologia y Geologia'!AL6="","",'Biologia y Geologia'!AL6) ->  | AJ5: =IF('Biologia y Geologia'!AM6="","",'Biologia y Geologia'!AM6) ->  | AK5: =IF('Biologia y Geologia'!AN6="","",'Biologia y Geologia'!AN6) ->  | AL5: =IF('Biologia y Geologia'!AO6="","",'Biologia y Geologia'!AO6) ->  | AM5: =IF('Biologia y Geologia'!AP6="","",'Biologia y Geologia'!AP6) -> 
C6: Comp. Esp. 2 | D6: Criterio Evaluación 2.1 | E6: =IF('Biologia y Geologia'!H7="","",'Biologia y Geologia'!H7) ->  | F6: =IF('Biologia y Geologia'!I7="","",'Biologia y Geologia'!I7) ->  | G6: =IF('Biologia y Geologia'!J7="","",'Biologia y Geologia'!J7) ->  | H6: =IF('Biologia y Geologia'!K7="","",'Biologia y Geologia'!K7) ->  | I6: =IF('Biologia y Geologia'!L7="","",'Biologia y Geologia'!L7) ->  | J6: =IF('Biologia y Geologia'!M7="","",'Biologia y Geologia'!M7) ->  | K6: =IF('Biologia y Geologia'!N7="","",'Biologia y Geologia'!N7) ->  | L6: =IF('Biologia y Geologia'!O7="","",'Biologia y Geologia'!O7) ->  | M6: =IF('Biologia y Geologia'!P7="","",'Biologia y Geologia'!P7) ->  | N6: =IF('Biologia y Geologia'!Q7="","",'Biologia y Geologia'!Q7) ->  | O6: =IF('Biologia y Geologia'!R7="","",'Biologia y Geologia'!R7) ->  | P6: =IF('Biologia y Geologia'!S7="","",'Biologia y Geologia'!S7) ->  | Q6: =IF('Biologia y Geologia'!T7="","",'Biologia y Geologia'!T7) ->  | R6: =IF('Biologia y Geologia'!U7="","",'Biologia y Geologia'!U7) ->  | S6: =IF('Biologia y Geologia'!V7="","",'Biologia y Geologia'!V7) ->  | T6: =IF('Biologia y Geologia'!W7="","",'Biologia y Geologia'!W7) ->  | U6: =IF('Biologia y Geologia'!X7="","",'Biologia y Geologia'!X7) ->  | V6: =IF('Biologia y Geologia'!Y7="","",'Biologia y Geologia'!Y7) ->  | W6: =IF('Biologia y Geologia'!Z7="","",'Biologia y Geologia'!Z7) ->  | X6: =IF('Biologia y Geologia'!AA7="","",'Biologia y Geologia'!AA7) ->  | Y6: =IF('Biologia y Geologia'!AB7="","",'Biologia y Geologia'!AB7) ->  | Z6: =IF('Biologia y Geologia'!AC7="","",'Biologia y Geologia'!AC7) ->  | AA6: =IF('Biologia y Geologia'!AD7="","",'Biologia y Geologia'!AD7) ->  | AB6: =IF('Biologia y Geologia'!AE7="","",'Biologia y Geologia'!AE7) ->  | AC6: =IF('Biologia y Geologia'!AF7="","",'Biologia y Geologia'!AF7) ->  | AD6: =IF('Biologia y Geologia'!AG7="","",'Biologia y Geologia'!AG7) ->  | AE6: =IF('Biologia y Geologia'!AH7="","",'Biologia y Geologia'!AH7) ->  | AF6: =IF('Biologia y Geologia'!AI7="","",'Biologia y Geologia'!AI7) ->  | AG6: =IF('Biologia y Geologia'!AJ7="","",'Biologia y Geologia'!AJ7) ->  | AH6: =IF('Biologia y Geologia'!AK7="","",'Biologia y Geologia'!AK7) ->  | AI6: =IF('Biologia y Geologia'!AL7="","",'Biologia y Geologia'!AL7) ->  | AJ6: =IF('Biologia y Geologia'!AM7="","",'Biologia y Geologia'!AM7) ->  | AK6: =IF('Biologia y Geologia'!AN7="","",'Biologia y Geologia'!AN7) ->  | AL6: =IF('Biologia y Geologia'!AO7="","",'Biologia y Geologia'!AO7) ->  | AM6: =IF('Biologia y Geologia'!AP7="","",'Biologia y Geologia'!AP7) -> 
D7: Criterio Evaluación 2.2 | E7: =IF('Biologia y Geologia'!H8="","",'Biologia y Geologia'!H8) ->  | F7: =IF('Biologia y Geologia'!I8="","",'Biologia y Geologia'!I8) ->  | G7: =IF('Biologia y Geologia'!J8="","",'Biologia y Geologia'!J8) ->  | H7: =IF('Biologia y Geologia'!K8="","",'Biologia y Geologia'!K8) ->  | I7: =IF('Biologia y Geologia'!L8="","",'Biologia y Geologia'!L8) ->  | J7: =IF('Biologia y Geologia'!M8="","",'Biologia y Geologia'!M8) ->  | K7: =IF('Biologia y Geologia'!N8="","",'Biologia y Geologia'!N8) ->  | L7: =IF('Biologia y Geologia'!O8="","",'Biologia y Geologia'!O8) ->  | M7: =IF('Biologia y Geologia'!P8="","",'Biologia y Geologia'!P8) ->  | N7: =IF('Biologia y Geologia'!Q8="","",'Biologia y Geologia'!Q8) ->  | O7: =IF('Biologia y Geologia'!R8="","",'Biologia y Geologia'!R8) ->  | P7: =IF('Biologia y Geologia'!S8="","",'Biologia y Geologia'!S8) ->  | Q7: =IF('Biologia y Geologia'!T8="","",'Biologia y Geologia'!T8) ->  | R7: =IF('Biologia y Geologia'!U8="","",'Biologia y Geologia'!U8) ->  | S7: =IF('Biologia y Geologia'!V8="","",'Biologia y Geologia'!V8) ->  | T7: =IF('Biologia y Geologia'!W8="","",'Biologia y Geologia'!W8) ->  | U7: =IF('Biologia y Geologia'!X8="","",'Biologia y Geologia'!X8) ->  | V7: =IF('Biologia y Geologia'!Y8="","",'Biologia y Geologia'!Y8) ->  | W7: =IF('Biologia y Geologia'!Z8="","",'Biologia y Geologia'!Z8) ->  | X7: =IF('Biologia y Geologia'!AA8="","",'Biologia y Geologia'!AA8) ->  | Y7: =IF('Biologia y Geologia'!AB8="","",'Biologia y Geologia'!AB8) ->  | Z7: =IF('Biologia y Geologia'!AC8="","",'Biologia y Geologia'!AC8) ->  | AA7: =IF('Biologia y Geologia'!AD8="","",'Biologia y Geologia'!AD8) ->  | AB7: =IF('Biologia y Geologia'!AE8="","",'Biologia y Geologia'!AE8) ->  | AC7: =IF('Biologia y Geologia'!AF8="","",'Biologia y Geologia'!AF8) ->  | AD7: =IF('Biologia y Geologia'!AG8="","",'Biologia y Geologia'!AG8) ->  | AE7: =IF('Biologia y Geologia'!AH8="","",'Biologia y Geologia'!AH8) ->  | AF7: =IF('Biologia y Geologia'!AI8="","",'Biologia y Geologia'!AI8) ->  | AG7: =IF('Biologia y Geologia'!AJ8="","",'Biologia y Geologia'!AJ8) ->  | AH7: =IF('Biologia y Geologia'!AK8="","",'Biologia y Geologia'!AK8) ->  | AI7: =IF('Biologia y Geologia'!AL8="","",'Biologia y Geologia'!AL8) ->  | AJ7: =IF('Biologia y Geologia'!AM8="","",'Biologia y Geologia'!AM8) ->  | AK7: =IF('Biologia y Geologia'!AN8="","",'Biologia y Geologia'!AN8) ->  | AL7: =IF('Biologia y Geologia'!AO8="","",'Biologia y Geologia'!AO8) ->  | AM7: =IF('Biologia y Geologia'!AP8="","",'Biologia y Geologia'!AP8) -> 
D8: Criterio Evaluación 2.3 | E8: =IF('Biologia y Geologia'!H9="","",'Biologia y Geologia'!H9) ->  | F8: =IF('Biologia y Geologia'!I9="","",'Biologia y Geologia'!I9) ->  | G8: =IF('Biologia y Geologia'!J9="","",'Biologia y Geologia'!J9) ->  | H8: =IF('Biologia y Geologia'!K9="","",'Biologia y Geologia'!K9) ->  | I8: =IF('Biologia y Geologia'!L9="","",'Biologia y Geologia'!L9) ->  | J8: =IF('Biologia y Geologia'!M9="","",'Biologia y Geologia'!M9) ->  | K8: =IF('Biologia y Geologia'!N9="","",'Biologia y Geologia'!N9) ->  | L8: =IF('Biologia y Geologia'!O9="","",'Biologia y Geologia'!O9) ->  | M8: =IF('Biologia y Geologia'!P9="","",'Biologia y Geologia'!P9) ->  | N8: =IF('Biologia y Geologia'!Q9="","",'Biologia y Geologia'!Q9) ->  | O8: =IF('Biologia y Geologia'!R9="","",'Biologia y Geologia'!R9) ->  | P8: =IF('Biologia y Geologia'!S9="","",'Biologia y Geologia'!S9) ->  | Q8: =IF('Biologia y Geologia'!T9="","",'Biologia y Geologia'!T9) ->  | R8: =IF('Biologia y Geologia'!U9="","",'Biologia y Geologia'!U9) ->  | S8: =IF('Biologia y Geologia'!V9="","",'Biologia y Geologia'!V9) ->  | T8: =IF('Biologia y Geologia'!W9="","",'Biologia y Geologia'!W9) ->  | U8: =IF('Biologia y Geologia'!X9="","",'Biologia y Geologia'!X9) ->  | V8: =IF('Biologia y Geologia'!Y9="","",'Biologia y Geologia'!Y9) ->  | W8: =IF('Biologia y Geologia'!Z9="","",'Biologia y Geologia'!Z9) ->  | X8: =IF('Biologia y Geologia'!AA9="","",'Biologia y Geologia'!AA9) ->  | Y8: =IF('Biologia y Geologia'!AB9="","",'Biologia y Geologia'!AB9) ->  | Z8: =IF('Biologia y Geologia'!AC9="","",'Biologia y Geologia'!AC9) ->  | AA8: =IF('Biologia y Geologia'!AD9="","",'Biologia y Geologia'!AD9) ->  | AB8: =IF('Biologia y Geologia'!AE9="","",'Biologia y Geologia'!AE9) ->  | AC8: =IF('Biologia y Geologia'!AF9="","",'Biologia y Geologia'!AF9) ->  | AD8: =IF('Biologia y Geologia'!AG9="","",'Biologia y Geologia'!AG9) ->  | AE8: =IF('Biologia y Geologia'!AH9="","",'Biologia y Geologia'!AH9) ->  | AF8: =IF('Biologia y Geologia'!AI9="","",'Biologia y Geologia'!AI9) ->  | AG8: =IF('Biologia y Geologia'!AJ9="","",'Biologia y Geologia'!AJ9) ->  | AH8: =IF('Biologia y Geologia'!AK9="","",'Biologia y Geologia'!AK9) ->  | AI8: =IF('Biologia y Geologia'!AL9="","",'Biologia y Geologia'!AL9) ->  | AJ8: =IF('Biologia y Geologia'!AM9="","",'Biologia y Geologia'!AM9) ->  | AK8: =IF('Biologia y Geologia'!AN9="","",'Biologia y Geologia'!AN9) ->  | AL8: =IF('Biologia y Geologia'!AO9="","",'Biologia y Geologia'!AO9) ->  | AM8: =IF('Biologia y Geologia'!AP9="","",'Biologia y Geologia'!AP9) -> 
D9: Criterio Evaluación 2.4 | E9: =IF('Biologia y Geologia'!H10="","",'Biologia y Geologia'!H10) ->  | F9: =IF('Biologia y Geologia'!I10="","",'Biologia y Geologia'!I10) ->  | G9: =IF('Biologia y Geologia'!J10="","",'Biologia y Geologia'!J10) ->  | H9: =IF('Biologia y Geologia'!K10="","",'Biologia y Geologia'!K10) ->  | I9: =IF('Biologia y Geologia'!L10="","",'Biologia y Geologia'!L10) ->  | J9: =IF('Biologia y Geologia'!M10="","",'Biologia y Geologia'!M10) ->  | K9: =IF('Biologia y Geologia'!N10="","",'Biologia y Geologia'!N10) ->  | L9: =IF('Biologia y Geologia'!O10="","",'Biologia y Geologia'!O10) ->  | M9: =IF('Biologia y Geologia'!P10="","",'Biologia y Geologia'!P10) ->  | N9: =IF('Biologia y Geologia'!Q10="","",'Biologia y Geologia'!Q10) ->  | O9: =IF('Biologia y Geologia'!R10="","",'Biologia y Geologia'!R10) ->  | P9: =IF('Biologia y Geologia'!S10="","",'Biologia y Geologia'!S10) ->  | Q9: =IF('Biologia y Geologia'!T10="","",'Biologia y Geologia'!T10) ->  | R9: =IF('Biologia y Geologia'!U10="","",'Biologia y Geologia'!U10) ->  | S9: =IF('Biologia y Geologia'!V10="","",'Biologia y Geologia'!V10) ->  | T9: =IF('Biologia y Geologia'!W10="","",'Biologia y Geologia'!W10) ->  | U9: =IF('Biologia y Geologia'!X10="","",'Biologia y Geologia'!X10) ->  | V9: =IF('Biologia y Geologia'!Y10="","",'Biologia y Geologia'!Y10) ->  | W9: =IF('Biologia y Geologia'!Z10="","",'Biologia y Geologia'!Z10) ->  | X9: =IF('Biologia y Geologia'!AA10="","",'Biologia y Geologia'!AA10) ->  | Y9: =IF('Biologia y Geologia'!AB10="","",'Biologia y Geologia'!AB10) ->  | Z9: =IF('Biologia y Geologia'!AC10="","",'Biologia y Geologia'!AC10) ->  | AA9: =IF('Biologia y Geologia'!AD10="","",'Biologia y Geologia'!AD10) ->  | AB9: =IF('Biologia y Geologia'!AE10="","",'Biologia y Geologia'!AE10) ->  | AC9: =IF('Biologia y Geologia'!AF10="","",'Biologia y Geologia'!AF10) ->  | AD9: =IF('Biologia y Geologia'!AG10="","",'Biologia y Geologia'!AG10) ->  | AE9: =IF('Biologia y Geologia'!AH10="","",'Biologia y Geologia'!AH10) ->  | AF9: =IF('Biologia y Geologia'!AI10="","",'Biologia y Geologia'!AI10) ->  | AG9: =IF('Biologia y Geologia'!AJ10="","",'Biologia y Geologia'!AJ10) ->  | AH9: =IF('Biologia y Geologia'!AK10="","",'Biologia y Geologia'!AK10) ->  | AI9: =IF('Biologia y Geologia'!AL10="","",'Biologia y Geologia'!AL10) ->  | AJ9: =IF('Biologia y Geologia'!AM10="","",'Biologia y Geologia'!AM10) ->  | AK9: =IF('Biologia y Geologia'!AN10="","",'Biologia y Geologia'!AN10) ->  | AL9: =IF('Biologia y Geologia'!AO10="","",'Biologia y Geologia'!AO10) ->  | AM9: =IF('Biologia y Geologia'!AP10="","",'Biologia y Geologia'!AP10) -> 
C10: Comp. Esp. 3 | D10: Criterio Evaluación 3.1 | E10: =IF('Biologia y Geologia'!H11="","",'Biologia y Geologia'!H11) ->  | F10: =IF('Biologia y Geologia'!I11="","",'Biologia y Geologia'!I11) ->  | G10: =IF('Biologia y Geologia'!J11="","",'Biologia y Geologia'!J11) ->  | H10: =IF('Biologia y Geologia'!K11="","",'Biologia y Geologia'!K11) ->  | I10: =IF('Biologia y Geologia'!L11="","",'Biologia y Geologia'!L11) ->  | J10: =IF('Biologia y Geologia'!M11="","",'Biologia y Geologia'!M11) ->  | K10: =IF('Biologia y Geologia'!N11="","",'Biologia y Geologia'!N11) ->  | L10: =IF('Biologia y Geologia'!O11="","",'Biologia y Geologia'!O11) ->  | M10: =IF('Biologia y Geologia'!P11="","",'Biologia y Geologia'!P11) ->  | N10: =IF('Biologia y Geologia'!Q11="","",'Biologia y Geologia'!Q11) ->  | O10: =IF('Biologia y Geologia'!R11="","",'Biologia y Geologia'!R11) ->  | P10: =IF('Biologia y Geologia'!S11="","",'Biologia y Geologia'!S11) ->  | Q10: =IF('Biologia y Geologia'!T11="","",'Biologia y Geologia'!T11) ->  | R10: =IF('Biologia y Geologia'!U11="","",'Biologia y Geologia'!U11) ->  | S10: =IF('Biologia y Geologia'!V11="","",'Biologia y Geologia'!V11) ->  | T10: =IF('Biologia y Geologia'!W11="","",'Biologia y Geologia'!W11) ->  | U10: =IF('Biologia y Geologia'!X11="","",'Biologia y Geologia'!X11) ->  | V10: =IF('Biologia y Geologia'!Y11="","",'Biologia y Geologia'!Y11) ->  | W10: =IF('Biologia y Geologia'!Z11="","",'Biologia y Geologia'!Z11) ->  | X10: =IF('Biologia y Geologia'!AA11="","",'Biologia y Geologia'!AA11) ->  | Y10: =IF('Biologia y Geologia'!AB11="","",'Biologia y Geologia'!AB11) ->  | Z10: =IF('Biologia y Geologia'!AC11="","",'Biologia y Geologia'!AC11) ->  | AA10: =IF('Biologia y Geologia'!AD11="","",'Biologia y Geologia'!AD11) ->  | AB10: =IF('Biologia y Geologia'!AE11="","",'Biologia y Geologia'!AE11) ->  | AC10: =IF('Biologia y Geologia'!AF11="","",'Biologia y Geologia'!AF11) ->  | AD10: =IF('Biologia y Geologia'!AG11="","",'Biologia y Geologia'!AG11) ->  | AE10: =IF('Biologia y Geologia'!AH11="","",'Biologia y Geologia'!AH11) ->  | AF10: =IF('Biologia y Geologia'!AI11="","",'Biologia y Geologia'!AI11) ->  | AG10: =IF('Biologia y Geologia'!AJ11="","",'Biologia y Geologia'!AJ11) ->  | AH10: =IF('Biologia y Geologia'!AK11="","",'Biologia y Geologia'!AK11) ->  | AI10: =IF('Biologia y Geologia'!AL11="","",'Biologia y Geologia'!AL11) ->  | AJ10: =IF('Biologia y Geologia'!AM11="","",'Biologia y Geologia'!AM11) ->  | AK10: =IF('Biologia y Geologia'!AN11="","",'Biologia y Geologia'!AN11) ->  | AL10: =IF('Biologia y Geologia'!AO11="","",'Biologia y Geologia'!AO11) ->  | AM10: =IF('Biologia y Geologia'!AP11="","",'Biologia y Geologia'!AP11) -> 
D11: Criterio Evaluación 3.2 | E11: =IF('Biologia y Geologia'!H12="","",'Biologia y Geologia'!H12) ->  | F11: =IF('Biologia y Geologia'!I12="","",'Biologia y Geologia'!I12) ->  | G11: =IF('Biologia y Geologia'!J12="","",'Biologia y Geologia'!J12) ->  | H11: =IF('Biologia y Geologia'!K12="","",'Biologia y Geologia'!K12) ->  | I11: =IF('Biologia y Geologia'!L12="","",'Biologia y Geologia'!L12) ->  | J11: =IF('Biologia y Geologia'!M12="","",'Biologia y Geologia'!M12) ->  | K11: =IF('Biologia y Geologia'!N12="","",'Biologia y Geologia'!N12) ->  | L11: =IF('Biologia y Geologia'!O12="","",'Biologia y Geologia'!O12) ->  | M11: =IF('Biologia y Geologia'!P12="","",'Biologia y Geologia'!P12) ->  | N11: =IF('Biologia y Geologia'!Q12="","",'Biologia y Geologia'!Q12) ->  | O11: =IF('Biologia y Geologia'!R12="","",'Biologia y Geologia'!R12) ->  | P11: =IF('Biologia y Geologia'!S12="","",'Biologia y Geologia'!S12) ->  | Q11: =IF('Biologia y Geologia'!T12="","",'Biologia y Geologia'!T12) ->  | R11: =IF('Biologia y Geologia'!U12="","",'Biologia y Geologia'!U12) ->  | S11: =IF('Biologia y Geologia'!V12="","",'Biologia y Geologia'!V12) ->  | T11: =IF('Biologia y Geologia'!W12="","",'Biologia y Geologia'!W12) ->  | U11: =IF('Biologia y Geologia'!X12="","",'Biologia y Geologia'!X12) ->  | V11: =IF('Biologia y Geologia'!Y12="","",'Biologia y Geologia'!Y12) ->  | W11: =IF('Biologia y Geologia'!Z12="","",'Biologia y Geologia'!Z12) ->  | X11: =IF('Biologia y Geologia'!AA12="","",'Biologia y Geologia'!AA12) ->  | Y11: =IF('Biologia y Geologia'!AB12="","",'Biologia y Geologia'!AB12) ->  | Z11: =IF('Biologia y Geologia'!AC12="","",'Biologia y Geologia'!AC12) ->  | AA11: =IF('Biologia y Geologia'!AD12="","",'Biologia y Geologia'!AD12) ->  | AB11: =IF('Biologia y Geologia'!AE12="","",'Biologia y Geologia'!AE12) ->  | AC11: =IF('Biologia y Geologia'!AF12="","",'Biologia y Geologia'!AF12) ->  | AD11: =IF('Biologia y Geologia'!AG12="","",'Biologia y Geologia'!AG12) ->  | AE11: =IF('Biologia y Geologia'!AH12="","",'Biologia y Geologia'!AH12) ->  | AF11: =IF('Biologia y Geologia'!AI12="","",'Biologia y Geologia'!AI12) ->  | AG11: =IF('Biologia y Geologia'!AJ12="","",'Biologia y Geologia'!AJ12) ->  | AH11: =IF('Biologia y Geologia'!AK12="","",'Biologia y Geologia'!AK12) ->  | AI11: =IF('Biologia y Geologia'!AL12="","",'Biologia y Geologia'!AL12) ->  | AJ11: =IF('Biologia y Geologia'!AM12="","",'Biologia y Geologia'!AM12) ->  | AK11: =IF('Biologia y Geologia'!AN12="","",'Biologia y Geologia'!AN12) ->  | AL11: =IF('Biologia y Geologia'!AO12="","",'Biologia y Geologia'!AO12) ->  | AM11: =IF('Biologia y Geologia'!AP12="","",'Biologia y Geologia'!AP12) -> 
D12: Criterio Evaluación 3.3 | E12: =IF('Biologia y Geologia'!H13="","",'Biologia y Geologia'!H13) ->  | F12: =IF('Biologia y Geologia'!I13="","",'Biologia y Geologia'!I13) ->  | G12: =IF('Biologia y Geologia'!J13="","",'Biologia y Geologia'!J13) ->  | H12: =IF('Biologia y Geologia'!K13="","",'Biologia y Geologia'!K13) ->  | I12: =IF('Biologia y Geologia'!L13="","",'Biologia y Geologia'!L13) ->  | J12: =IF('Biologia y Geologia'!M13="","",'Biologia y Geologia'!M13) ->  | K12: =IF('Biologia y Geologia'!N13="","",'Biologia y Geologia'!N13) ->  | L12: =IF('Biologia y Geologia'!O13="","",'Biologia y Geologia'!O13) ->  | M12: =IF('Biologia y Geologia'!P13="","",'Biologia y Geologia'!P13) ->  | N12: =IF('Biologia y Geologia'!Q13="","",'Biologia y Geologia'!Q13) ->  | O12: =IF('Biologia y Geologia'!R13="","",'Biologia y Geologia'!R13) ->  | P12: =IF('Biologia y Geologia'!S13="","",'Biologia y Geologia'!S13) ->  | Q12: =IF('Biologia y Geologia'!T13="","",'Biologia y Geologia'!T13) ->  | R12: =IF('Biologia y Geologia'!U13="","",'Biologia y Geologia'!U13) ->  | S12: =IF('Biologia y Geologia'!V13="","",'Biologia y Geologia'!V13) ->  | T12: =IF('Biologia y Geologia'!W13="","",'Biologia y Geologia'!W13) ->  | U12: =IF('Biologia y Geologia'!X13="","",'Biologia y Geologia'!X13) ->  | V12: =IF('Biologia y Geologia'!Y13="","",'Biologia y Geologia'!Y13) ->  | W12: =IF('Biologia y Geologia'!Z13="","",'Biologia y Geologia'!Z13) ->  | X12: =IF('Biologia y Geologia'!AA13="","",'Biologia y Geologia'!AA13) ->  | Y12: =IF('Biologia y Geologia'!AB13="","",'Biologia y Geologia'!AB13) ->  | Z12: =IF('Biologia y Geologia'!AC13="","",'Biologia y Geologia'!AC13) ->  | AA12: =IF('Biologia y Geologia'!AD13="","",'Biologia y Geologia'!AD13) ->  | AB12: =IF('Biologia y Geologia'!AE13="","",'Biologia y Geologia'!AE13) ->  | AC12: =IF('Biologia y Geologia'!AF13="","",'Biologia y Geologia'!AF13) ->  | AD12: =IF('Biologia y Geologia'!AG13="","",'Biologia y Geologia'!AG13) ->  | AE12: =IF('Biologia y Geologia'!AH13="","",'Biologia y Geologia'!AH13) ->  | AF12: =IF('Biologia y Geologia'!AI13="","",'Biologia y Geologia'!AI13) ->  | AG12: =IF('Biologia y Geologia'!AJ13="","",'Biologia y Geologia'!AJ13) ->  | AH12: =IF('Biologia y Geologia'!AK13="","",'Biologia y Geologia'!AK13) ->  | AI12: =IF('Biologia y Geologia'!AL13="","",'Biologia y Geologia'!AL13) ->  | AJ12: =IF('Biologia y Geologia'!AM13="","",'Biologia y Geologia'!AM13) ->  | AK12: =IF('Biologia y Geologia'!AN13="","",'Biologia y Geologia'!AN13) ->  | AL12: =IF('Biologia y Geologia'!AO13="","",'Biologia y Geologia'!AO13) ->  | AM12: =IF('Biologia y Geologia'!AP13="","",'Biologia y Geologia'!AP13) -> 
D13: Criterio Evaluación 3.4 | E13: =IF('Biologia y Geologia'!H14="","",'Biologia y Geologia'!H14) ->  | F13: =IF('Biologia y Geologia'!I14="","",'Biologia y Geologia'!I14) ->  | G13: =IF('Biologia y Geologia'!J14="","",'Biologia y Geologia'!J14) ->  | H13: =IF('Biologia y Geologia'!K14="","",'Biologia y Geologia'!K14) ->  | I13: =IF('Biologia y Geologia'!L14="","",'Biologia y Geologia'!L14) ->  | J13: =IF('Biologia y Geologia'!M14="","",'Biologia y Geologia'!M14) ->  | K13: =IF('Biologia y Geologia'!N14="","",'Biologia y Geologia'!N14) ->  | L13: =IF('Biologia y Geologia'!O14="","",'Biologia y Geologia'!O14) ->  | M13: =IF('Biologia y Geologia'!P14="","",'Biologia y Geologia'!P14) ->  | N13: =IF('Biologia y Geologia'!Q14="","",'Biologia y Geologia'!Q14) ->  | O13: =IF('Biologia y Geologia'!R14="","",'Biologia y Geologia'!R14) ->  | P13: =IF('Biologia y Geologia'!S14="","",'Biologia y Geologia'!S14) ->  | Q13: =IF('Biologia y Geologia'!T14="","",'Biologia y Geologia'!T14) ->  | R13: =IF('Biologia y Geologia'!U14="","",'Biologia y Geologia'!U14) ->  | S13: =IF('Biologia y Geologia'!V14="","",'Biologia y Geologia'!V14) ->  | T13: =IF('Biologia y Geologia'!W14="","",'Biologia y Geologia'!W14) ->  | U13: =IF('Biologia y Geologia'!X14="","",'Biologia y Geologia'!X14) ->  | V13: =IF('Biologia y Geologia'!Y14="","",'Biologia y Geologia'!Y14) ->  | W13: =IF('Biologia y Geologia'!Z14="","",'Biologia y Geologia'!Z14) ->  | X13: =IF('Biologia y Geologia'!AA14="","",'Biologia y Geologia'!AA14) ->  | Y13: =IF('Biologia y Geologia'!AB14="","",'Biologia y Geologia'!AB14) ->  | Z13: =IF('Biologia y Geologia'!AC14="","",'Biologia y Geologia'!AC14) ->  | AA13: =IF('Biologia y Geologia'!AD14="","",'Biologia y Geologia'!AD14) ->  | AB13: =IF('Biologia y Geologia'!AE14="","",'Biologia y Geologia'!AE14) ->  | AC13: =IF('Biologia y Geologia'!AF14="","",'Biologia y Geologia'!AF14) ->  | AD13: =IF('Biologia y Geologia'!AG14="","",'Biologia y Geologia'!AG14) ->  | AE13: =IF('Biologia y Geologia'!AH14="","",'Biologia y Geologia'!AH14) ->  | AF13: =IF('Biologia y Geologia'!AI14="","",'Biologia y Geologia'!AI14) ->  | AG13: =IF('Biologia y Geologia'!AJ14="","",'Biologia y Geologia'!AJ14) ->  | AH13: =IF('Biologia y Geologia'!AK14="","",'Biologia y Geologia'!AK14) ->  | AI13: =IF('Biologia y Geologia'!AL14="","",'Biologia y Geologia'!AL14) ->  | AJ13: =IF('Biologia y Geologia'!AM14="","",'Biologia y Geologia'!AM14) ->  | AK13: =IF('Biologia y Geologia'!AN14="","",'Biologia y Geologia'!AN14) ->  | AL13: =IF('Biologia y Geologia'!AO14="","",'Biologia y Geologia'!AO14) ->  | AM13: =IF('Biologia y Geologia'!AP14="","",'Biologia y Geologia'!AP14) -> 
D14: Criterio Evaluación 3.5 | E14: =IF('Biologia y Geologia'!H15="","",'Biologia y Geologia'!H15) ->  | F14: =IF('Biologia y Geologia'!I15="","",'Biologia y Geologia'!I15) ->  | G14: =IF('Biologia y Geologia'!J15="","",'Biologia y Geologia'!J15) ->  | H14: =IF('Biologia y Geologia'!K15="","",'Biologia y Geologia'!K15) ->  | I14: =IF('Biologia y Geologia'!L15="","",'Biologia y Geologia'!L15) ->  | J14: =IF('Biologia y Geologia'!M15="","",'Biologia y Geologia'!M15) ->  | K14: =IF('Biologia y Geologia'!N15="","",'Biologia y Geologia'!N15) ->  | L14: =IF('Biologia y Geologia'!O15="","",'Biologia y Geologia'!O15) ->  | M14: =IF('Biologia y Geologia'!P15="","",'Biologia y Geologia'!P15) ->  | N14: =IF('Biologia y Geologia'!Q15="","",'Biologia y Geologia'!Q15) ->  | O14: =IF('Biologia y Geologia'!R15="","",'Biologia y Geologia'!R15) ->  | P14: =IF('Biologia y Geologia'!S15="","",'Biologia y Geologia'!S15) ->  | Q14: =IF('Biologia y Geologia'!T15="","",'Biologia y Geologia'!T15) ->  | R14: =IF('Biologia y Geologia'!U15="","",'Biologia y Geologia'!U15) ->  | S14: =IF('Biologia y Geologia'!V15="","",'Biologia y Geologia'!V15) ->  | T14: =IF('Biologia y Geologia'!W15="","",'Biologia y Geologia'!W15) ->  | U14: =IF('Biologia y Geologia'!X15="","",'Biologia y Geologia'!X15) ->  | V14: =IF('Biologia y Geologia'!Y15="","",'Biologia y Geologia'!Y15) ->  | W14: =IF('Biologia y Geologia'!Z15="","",'Biologia y Geologia'!Z15) ->  | X14: =IF('Biologia y Geologia'!AA15="","",'Biologia y Geologia'!AA15) ->  | Y14: =IF('Biologia y Geologia'!AB15="","",'Biologia y Geologia'!AB15) ->  | Z14: =IF('Biologia y Geologia'!AC15="","",'Biologia y Geologia'!AC15) ->  | AA14: =IF('Biologia y Geologia'!AD15="","",'Biologia y Geologia'!AD15) ->  | AB14: =IF('Biologia y Geologia'!AE15="","",'Biologia y Geologia'!AE15) ->  | AC14: =IF('Biologia y Geologia'!AF15="","",'Biologia y Geologia'!AF15) ->  | AD14: =IF('Biologia y Geologia'!AG15="","",'Biologia y Geologia'!AG15) ->  | AE14: =IF('Biologia y Geologia'!AH15="","",'Biologia y Geologia'!AH15) ->  | AF14: =IF('Biologia y Geologia'!AI15="","",'Biologia y Geologia'!AI15) ->  | AG14: =IF('Biologia y Geologia'!AJ15="","",'Biologia y Geologia'!AJ15) ->  | AH14: =IF('Biologia y Geologia'!AK15="","",'Biologia y Geologia'!AK15) ->  | AI14: =IF('Biologia y Geologia'!AL15="","",'Biologia y Geologia'!AL15) ->  | AJ14: =IF('Biologia y Geologia'!AM15="","",'Biologia y Geologia'!AM15) ->  | AK14: =IF('Biologia y Geologia'!AN15="","",'Biologia y Geologia'!AN15) ->  | AL14: =IF('Biologia y Geologia'!AO15="","",'Biologia y Geologia'!AO15) ->  | AM14: =IF('Biologia y Geologia'!AP15="","",'Biologia y Geologia'!AP15) -> 
D15: Criterio Evaluación 3.6 | E15: =IF('Biologia y Geologia'!H16="","",'Biologia y Geologia'!H16) ->  | F15: =IF('Biologia y Geologia'!I16="","",'Biologia y Geologia'!I16) ->  | G15: =IF('Biologia y Geologia'!J16="","",'Biologia y Geologia'!J16) ->  | H15: =IF('Biologia y Geologia'!K16="","",'Biologia y Geologia'!K16) ->  | I15: =IF('Biologia y Geologia'!L16="","",'Biologia y Geologia'!L16) ->  | J15: =IF('Biologia y Geologia'!M16="","",'Biologia y Geologia'!M16) ->  | K15: =IF('Biologia y Geologia'!N16="","",'Biologia y Geologia'!N16) ->  | L15: =IF('Biologia y Geologia'!O16="","",'Biologia y Geologia'!O16) ->  | M15: =IF('Biologia y Geologia'!P16="","",'Biologia y Geologia'!P16) ->  | N15: =IF('Biologia y Geologia'!Q16="","",'Biologia y Geologia'!Q16) ->  | O15: =IF('Biologia y Geologia'!R16="","",'Biologia y Geologia'!R16) ->  | P15: =IF('Biologia y Geologia'!S16="","",'Biologia y Geologia'!S16) ->  | Q15: =IF('Biologia y Geologia'!T16="","",'Biologia y Geologia'!T16) ->  | R15: =IF('Biologia y Geologia'!U16="","",'Biologia y Geologia'!U16) ->  | S15: =IF('Biologia y Geologia'!V16="","",'Biologia y Geologia'!V16) ->  | T15: =IF('Biologia y Geologia'!W16="","",'Biologia y Geologia'!W16) ->  | U15: =IF('Biologia y Geologia'!X16="","",'Biologia y Geologia'!X16) ->  | V15: =IF('Biologia y Geologia'!Y16="","",'Biologia y Geologia'!Y16) ->  | W15: =IF('Biologia y Geologia'!Z16="","",'Biologia y Geologia'!Z16) ->  | X15: =IF('Biologia y Geologia'!AA16="","",'Biologia y Geologia'!AA16) ->  | Y15: =IF('Biologia y Geologia'!AB16="","",'Biologia y Geologia'!AB16) ->  | Z15: =IF('Biologia y Geologia'!AC16="","",'Biologia y Geologia'!AC16) ->  | AA15: =IF('Biologia y Geologia'!AD16="","",'Biologia y Geologia'!AD16) ->  | AB15: =IF('Biologia y Geologia'!AE16="","",'Biologia y Geologia'!AE16) ->  | AC15: =IF('Biologia y Geologia'!AF16="","",'Biologia y Geologia'!AF16) ->  | AD15: =IF('Biologia y Geologia'!AG16="","",'Biologia y Geologia'!AG16) ->  | AE15: =IF('Biologia y Geologia'!AH16="","",'Biologia y Geologia'!AH16) ->  | AF15: =IF('Biologia y Geologia'!AI16="","",'Biologia y Geologia'!AI16) ->  | AG15: =IF('Biologia y Geologia'!AJ16="","",'Biologia y Geologia'!AJ16) ->  | AH15: =IF('Biologia y Geologia'!AK16="","",'Biologia y Geologia'!AK16) ->  | AI15: =IF('Biologia y Geologia'!AL16="","",'Biologia y Geologia'!AL16) ->  | AJ15: =IF('Biologia y Geologia'!AM16="","",'Biologia y Geologia'!AM16) ->  | AK15: =IF('Biologia y Geologia'!AN16="","",'Biologia y Geologia'!AN16) ->  | AL15: =IF('Biologia y Geologia'!AO16="","",'Biologia y Geologia'!AO16) ->  | AM15: =IF('Biologia y Geologia'!AP16="","",'Biologia y Geologia'!AP16) -> 
D16: Criterio Evaluación 3.7 | E16: =IF('Biologia y Geologia'!H17="","",'Biologia y Geologia'!H17) ->  | F16: =IF('Biologia y Geologia'!I17="","",'Biologia y Geologia'!I17) ->  | G16: =IF('Biologia y Geologia'!J17="","",'Biologia y Geologia'!J17) ->  | H16: =IF('Biologia y Geologia'!K17="","",'Biologia y Geologia'!K17) ->  | I16: =IF('Biologia y Geologia'!L17="","",'Biologia y Geologia'!L17) ->  | J16: =IF('Biologia y Geologia'!M17="","",'Biologia y Geologia'!M17) ->  | K16: =IF('Biologia y Geologia'!N17="","",'Biologia y Geologia'!N17) ->  | L16: =IF('Biologia y Geologia'!O17="","",'Biologia y Geologia'!O17) ->  | M16: =IF('Biologia y Geologia'!P17="","",'Biologia y Geologia'!P17) ->  | N16: =IF('Biologia y Geologia'!Q17="","",'Biologia y Geologia'!Q17) ->  | O16: =IF('Biologia y Geologia'!R17="","",'Biologia y Geologia'!R17) ->  | P16: =IF('Biologia y Geologia'!S17="","",'Biologia y Geologia'!S17) ->  | Q16: =IF('Biologia y Geologia'!T17="","",'Biologia y Geologia'!T17) ->  | R16: =IF('Biologia y Geologia'!U17="","",'Biologia y Geologia'!U17) ->  | S16: =IF('Biologia y Geologia'!V17="","",'Biologia y Geologia'!V17) ->  | T16: =IF('Biologia y Geologia'!W17="","",'Biologia y Geologia'!W17) ->  | U16: =IF('Biologia y Geologia'!X17="","",'Biologia y Geologia'!X17) ->  | V16: =IF('Biologia y Geologia'!Y17="","",'Biologia y Geologia'!Y17) ->  | W16: =IF('Biologia y Geologia'!Z17="","",'Biologia y Geologia'!Z17) ->  | X16: =IF('Biologia y Geologia'!AA17="","",'Biologia y Geologia'!AA17) ->  | Y16: =IF('Biologia y Geologia'!AB17="","",'Biologia y Geologia'!AB17) ->  | Z16: =IF('Biologia y Geologia'!AC17="","",'Biologia y Geologia'!AC17) ->  | AA16: =IF('Biologia y Geologia'!AD17="","",'Biologia y Geologia'!AD17) ->  | AB16: =IF('Biologia y Geologia'!AE17="","",'Biologia y Geologia'!AE17) ->  | AC16: =IF('Biologia y Geologia'!AF17="","",'Biologia y Geologia'!AF17) ->  | AD16: =IF('Biologia y Geologia'!AG17="","",'Biologia y Geologia'!AG17) ->  | AE16: =IF('Biologia y Geologia'!AH17="","",'Biologia y Geologia'!AH17) ->  | AF16: =IF('Biologia y Geologia'!AI17="","",'Biologia y Geologia'!AI17) ->  | AG16: =IF('Biologia y Geologia'!AJ17="","",'Biologia y Geologia'!AJ17) ->  | AH16: =IF('Biologia y Geologia'!AK17="","",'Biologia y Geologia'!AK17) ->  | AI16: =IF('Biologia y Geologia'!AL17="","",'Biologia y Geologia'!AL17) ->  | AJ16: =IF('Biologia y Geologia'!AM17="","",'Biologia y Geologia'!AM17) ->  | AK16: =IF('Biologia y Geologia'!AN17="","",'Biologia y Geologia'!AN17) ->  | AL16: =IF('Biologia y Geologia'!AO17="","",'Biologia y Geologia'!AO17) ->  | AM16: =IF('Biologia y Geologia'!AP17="","",'Biologia y Geologia'!AP17) -> 
C17: Comp. Esp. 4 | D17: Criterio Evaluación 4.1 | E17: =IF('Biologia y Geologia'!H18="","",'Biologia y Geologia'!H18) ->  | F17: =IF('Biologia y Geologia'!I18="","",'Biologia y Geologia'!I18) ->  | G17: =IF('Biologia y Geologia'!J18="","",'Biologia y Geologia'!J18) ->  | H17: =IF('Biologia y Geologia'!K18="","",'Biologia y Geologia'!K18) ->  | I17: =IF('Biologia y Geologia'!L18="","",'Biologia y Geologia'!L18) ->  | J17: =IF('Biologia y Geologia'!M18="","",'Biologia y Geologia'!M18) ->  | K17: =IF('Biologia y Geologia'!N18="","",'Biologia y Geologia'!N18) ->  | L17: =IF('Biologia y Geologia'!O18="","",'Biologia y Geologia'!O18) ->  | M17: =IF('Biologia y Geologia'!P18="","",'Biologia y Geologia'!P18) ->  | N17: =IF('Biologia y Geologia'!Q18="","",'Biologia y Geologia'!Q18) ->  | O17: =IF('Biologia y Geologia'!R18="","",'Biologia y Geologia'!R18) ->  | P17: =IF('Biologia y Geologia'!S18="","",'Biologia y Geologia'!S18) ->  | Q17: =IF('Biologia y Geologia'!T18="","",'Biologia y Geologia'!T18) ->  | R17: =IF('Biologia y Geologia'!U18="","",'Biologia y Geologia'!U18) ->  | S17: =IF('Biologia y Geologia'!V18="","",'Biologia y Geologia'!V18) ->  | T17: =IF('Biologia y Geologia'!W18="","",'Biologia y Geologia'!W18) ->  | U17: =IF('Biologia y Geologia'!X18="","",'Biologia y Geologia'!X18) ->  | V17: =IF('Biologia y Geologia'!Y18="","",'Biologia y Geologia'!Y18) ->  | W17: =IF('Biologia y Geologia'!Z18="","",'Biologia y Geologia'!Z18) ->  | X17: =IF('Biologia y Geologia'!AA18="","",'Biologia y Geologia'!AA18) ->  | Y17: =IF('Biologia y Geologia'!AB18="","",'Biologia y Geologia'!AB18) ->  | Z17: =IF('Biologia y Geologia'!AC18="","",'Biologia y Geologia'!AC18) ->  | AA17: =IF('Biologia y Geologia'!AD18="","",'Biologia y Geologia'!AD18) ->  | AB17: =IF('Biologia y Geologia'!AE18="","",'Biologia y Geologia'!AE18) ->  | AC17: =IF('Biologia y Geologia'!AF18="","",'Biologia y Geologia'!AF18) ->  | AD17: =IF('Biologia y Geologia'!AG18="","",'Biologia y Geologia'!AG18) ->  | AE17: =IF('Biologia y Geologia'!AH18="","",'Biologia y Geologia'!AH18) ->  | AF17: =IF('Biologia y Geologia'!AI18="","",'Biologia y Geologia'!AI18) ->  | AG17: =IF('Biologia y Geologia'!AJ18="","",'Biologia y Geologia'!AJ18) ->  | AH17: =IF('Biologia y Geologia'!AK18="","",'Biologia y Geologia'!AK18) ->  | AI17: =IF('Biologia y Geologia'!AL18="","",'Biologia y Geologia'!AL18) ->  | AJ17: =IF('Biologia y Geologia'!AM18="","",'Biologia y Geologia'!AM18) ->  | AK17: =IF('Biologia y Geologia'!AN18="","",'Biologia y Geologia'!AN18) ->  | AL17: =IF('Biologia y Geologia'!AO18="","",'Biologia y Geologia'!AO18) ->  | AM17: =IF('Biologia y Geologia'!AP18="","",'Biologia y Geologia'!AP18) -> 
C18: Comp. Esp. 5 | D18: Criterio Evaluación 5.1 | E18: =IF('Biologia y Geologia'!H19="","",'Biologia y Geologia'!H19) ->  | F18: =IF('Biologia y Geologia'!I19="","",'Biologia y Geologia'!I19) ->  | G18: =IF('Biologia y Geologia'!J19="","",'Biologia y Geologia'!J19) ->  | H18: =IF('Biologia y Geologia'!K19="","",'Biologia y Geologia'!K19) ->  | I18: =IF('Biologia y Geologia'!L19="","",'Biologia y Geologia'!L19) ->  | J18: =IF('Biologia y Geologia'!M19="","",'Biologia y Geologia'!M19) ->  | K18: =IF('Biologia y Geologia'!N19="","",'Biologia y Geologia'!N19) ->  | L18: =IF('Biologia y Geologia'!O19="","",'Biologia y Geologia'!O19) ->  | M18: =IF('Biologia y Geologia'!P19="","",'Biologia y Geologia'!P19) ->  | N18: =IF('Biologia y Geologia'!Q19="","",'Biologia y Geologia'!Q19) ->  | O18: =IF('Biologia y Geologia'!R19="","",'Biologia y Geologia'!R19) ->  | P18: =IF('Biologia y Geologia'!S19="","",'Biologia y Geologia'!S19) ->  | Q18: =IF('Biologia y Geologia'!T19="","",'Biologia y Geologia'!T19) ->  | R18: =IF('Biologia y Geologia'!U19="","",'Biologia y Geologia'!U19) ->  | S18: =IF('Biologia y Geologia'!V19="","",'Biologia y Geologia'!V19) ->  | T18: =IF('Biologia y Geologia'!W19="","",'Biologia y Geologia'!W19) ->  | U18: =IF('Biologia y Geologia'!X19="","",'Biologia y Geologia'!X19) ->  | V18: =IF('Biologia y Geologia'!Y19="","",'Biologia y Geologia'!Y19) ->  | W18: =IF('Biologia y Geologia'!Z19="","",'Biologia y Geologia'!Z19) ->  | X18: =IF('Biologia y Geologia'!AA19="","",'Biologia y Geologia'!AA19) ->  | Y18: =IF('Biologia y Geologia'!AB19="","",'Biologia y Geologia'!AB19) ->  | Z18: =IF('Biologia y Geologia'!AC19="","",'Biologia y Geologia'!AC19) ->  | AA18: =IF('Biologia y Geologia'!AD19="","",'Biologia y Geologia'!AD19) ->  | AB18: =IF('Biologia y Geologia'!AE19="","",'Biologia y Geologia'!AE19) ->  | AC18: =IF('Biologia y Geologia'!AF19="","",'Biologia y Geologia'!AF19) ->  | AD18: =IF('Biologia y Geologia'!AG19="","",'Biologia y Geologia'!AG19) ->  | AE18: =IF('Biologia y Geologia'!AH19="","",'Biologia y Geologia'!AH19) ->  | AF18: =IF('Biologia y Geologia'!AI19="","",'Biologia y Geologia'!AI19) ->  | AG18: =IF('Biologia y Geologia'!AJ19="","",'Biologia y Geologia'!AJ19) ->  | AH18: =IF('Biologia y Geologia'!AK19="","",'Biologia y Geologia'!AK19) ->  | AI18: =IF('Biologia y Geologia'!AL19="","",'Biologia y Geologia'!AL19) ->  | AJ18: =IF('Biologia y Geologia'!AM19="","",'Biologia y Geologia'!AM19) ->  | AK18: =IF('Biologia y Geologia'!AN19="","",'Biologia y Geologia'!AN19) ->  | AL18: =IF('Biologia y Geologia'!AO19="","",'Biologia y Geologia'!AO19) ->  | AM18: =IF('Biologia y Geologia'!AP19="","",'Biologia y Geologia'!AP19) -> 
C19: Comp. Esp. 6 | D19: Criterio Evaluación 6.1 | E19: =IF('Biologia y Geologia'!H20="","",'Biologia y Geologia'!H20) ->  | F19: =IF('Biologia y Geologia'!I20="","",'Biologia y Geologia'!I20) ->  | G19: =IF('Biologia y Geologia'!J20="","",'Biologia y Geologia'!J20) ->  | H19: =IF('Biologia y Geologia'!K20="","",'Biologia y Geologia'!K20) ->  | I19: =IF('Biologia y Geologia'!L20="","",'Biologia y Geologia'!L20) ->  | J19: =IF('Biologia y Geologia'!M20="","",'Biologia y Geologia'!M20) ->  | K19: =IF('Biologia y Geologia'!N20="","",'Biologia y Geologia'!N20) ->  | L19: =IF('Biologia y Geologia'!O20="","",'Biologia y Geologia'!O20) ->  | M19: =IF('Biologia y Geologia'!P20="","",'Biologia y Geologia'!P20) ->  | N19: =IF('Biologia y Geologia'!Q20="","",'Biologia y Geologia'!Q20) ->  | O19: =IF('Biologia y Geologia'!R20="","",'Biologia y Geologia'!R20) ->  | P19: =IF('Biologia y Geologia'!S20="","",'Biologia y Geologia'!S20) ->  | Q19: =IF('Biologia y Geologia'!T20="","",'Biologia y Geologia'!T20) ->  | R19: =IF('Biologia y Geologia'!U20="","",'Biologia y Geologia'!U20) ->  | S19: =IF('Biologia y Geologia'!V20="","",'Biologia y Geologia'!V20) ->  | T19: =IF('Biologia y Geologia'!W20="","",'Biologia y Geologia'!W20) ->  | U19: =IF('Biologia y Geologia'!X20="","",'Biologia y Geologia'!X20) ->  | V19: =IF('Biologia y Geologia'!Y20="","",'Biologia y Geologia'!Y20) ->  | W19: =IF('Biologia y Geologia'!Z20="","",'Biologia y Geologia'!Z20) ->  | X19: =IF('Biologia y Geologia'!AA20="","",'Biologia y Geologia'!AA20) ->  | Y19: =IF('Biologia y Geologia'!AB20="","",'Biologia y Geologia'!AB20) ->  | Z19: =IF('Biologia y Geologia'!AC20="","",'Biologia y Geologia'!AC20) ->  | AA19: =IF('Biologia y Geologia'!AD20="","",'Biologia y Geologia'!AD20) ->  | AB19: =IF('Biologia y Geologia'!AE20="","",'Biologia y Geologia'!AE20) ->  | AC19: =IF('Biologia y Geologia'!AF20="","",'Biologia y Geologia'!AF20) ->  | AD19: =IF('Biologia y Geologia'!AG20="","",'Biologia y Geologia'!AG20) ->  | AE19: =IF('Biologia y Geologia'!AH20="","",'Biologia y Geologia'!AH20) ->  | AF19: =IF('Biologia y Geologia'!AI20="","",'Biologia y Geologia'!AI20) ->  | AG19: =IF('Biologia y Geologia'!AJ20="","",'Biologia y Geologia'!AJ20) ->  | AH19: =IF('Biologia y Geologia'!AK20="","",'Biologia y Geologia'!AK20) ->  | AI19: =IF('Biologia y Geologia'!AL20="","",'Biologia y Geologia'!AL20) ->  | AJ19: =IF('Biologia y Geologia'!AM20="","",'Biologia y Geologia'!AM20) ->  | AK19: =IF('Biologia y Geologia'!AN20="","",'Biologia y Geologia'!AN20) ->  | AL19: =IF('Biologia y Geologia'!AO20="","",'Biologia y Geologia'!AO20) ->  | AM19: =IF('Biologia y Geologia'!AP20="","",'Biologia y Geologia'!AP20) -> 
D20: Criterio Evaluación 6.2 | E20: =IF('Biologia y Geologia'!H21="","",'Biologia y Geologia'!H21) ->  | F20: =IF('Biologia y Geologia'!I21="","",'Biologia y Geologia'!I21) ->  | G20: =IF('Biologia y Geologia'!J21="","",'Biologia y Geologia'!J21) ->  | H20: =IF('Biologia y Geologia'!K21="","",'Biologia y Geologia'!K21) ->  | I20: =IF('Biologia y Geologia'!L21="","",'Biologia y Geologia'!L21) ->  | J20: =IF('Biologia y Geologia'!M21="","",'Biologia y Geologia'!M21) ->  | K20: =IF('Biologia y Geologia'!N21="","",'Biologia y Geologia'!N21) ->  | L20: =IF('Biologia y Geologia'!O21="","",'Biologia y Geologia'!O21) ->  | M20: =IF('Biologia y Geologia'!P21="","",'Biologia y Geologia'!P21) ->  | N20: =IF('Biologia y Geologia'!Q21="","",'Biologia y Geologia'!Q21) ->  | O20: =IF('Biologia y Geologia'!R21="","",'Biologia y Geologia'!R21) ->  | P20: =IF('Biologia y Geologia'!S21="","",'Biologia y Geologia'!S21) ->  | Q20: =IF('Biologia y Geologia'!T21="","",'Biologia y Geologia'!T21) ->  | R20: =IF('Biologia y Geologia'!U21="","",'Biologia y Geologia'!U21) ->  | S20: =IF('Biologia y Geologia'!V21="","",'Biologia y Geologia'!V21) ->  | T20: =IF('Biologia y Geologia'!W21="","",'Biologia y Geologia'!W21) ->  | U20: =IF('Biologia y Geologia'!X21="","",'Biologia y Geologia'!X21) ->  | V20: =IF('Biologia y Geologia'!Y21="","",'Biologia y Geologia'!Y21) ->  | W20: =IF('Biologia y Geologia'!Z21="","",'Biologia y Geologia'!Z21) ->  | X20: =IF('Biologia y Geologia'!AA21="","",'Biologia y Geologia'!AA21) ->  | Y20: =IF('Biologia y Geologia'!AB21="","",'Biologia y Geologia'!AB21) ->  | Z20: =IF('Biologia y Geologia'!AC21="","",'Biologia y Geologia'!AC21) ->  | AA20: =IF('Biologia y Geologia'!AD21="","",'Biologia y Geologia'!AD21) ->  | AB20: =IF('Biologia y Geologia'!AE21="","",'Biologia y Geologia'!AE21) ->  | AC20: =IF('Biologia y Geologia'!AF21="","",'Biologia y Geologia'!AF21) ->  | AD20: =IF('Biologia y Geologia'!AG21="","",'Biologia y Geologia'!AG21) ->  | AE20: =IF('Biologia y Geologia'!AH21="","",'Biologia y Geologia'!AH21) ->  | AF20: =IF('Biologia y Geologia'!AI21="","",'Biologia y Geologia'!AI21) ->  | AG20: =IF('Biologia y Geologia'!AJ21="","",'Biologia y Geologia'!AJ21) ->  | AH20: =IF('Biologia y Geologia'!AK21="","",'Biologia y Geologia'!AK21) ->  | AI20: =IF('Biologia y Geologia'!AL21="","",'Biologia y Geologia'!AL21) ->  | AJ20: =IF('Biologia y Geologia'!AM21="","",'Biologia y Geologia'!AM21) ->  | AK20: =IF('Biologia y Geologia'!AN21="","",'Biologia y Geologia'!AN21) ->  | AL20: =IF('Biologia y Geologia'!AO21="","",'Biologia y Geologia'!AO21) ->  | AM20: =IF('Biologia y Geologia'!AP21="","",'Biologia y Geologia'!AP21) -> 
B21: Conocimiento de las Matemáticas | C21: Comp. Esp. 1 | D21: Criterio Evaluación 1.1 | E21: =IF('Conocimiento de las mat.'!H4="","",'Conocimiento de las mat.'!H4) ->  | F21: =IF('Conocimiento de las mat.'!I4="","",'Conocimiento de las mat.'!I4) ->  | G21: =IF('Conocimiento de las mat.'!J4="","",'Conocimiento de las mat.'!J4) ->  | H21: =IF('Conocimiento de las mat.'!K4="","",'Conocimiento de las mat.'!K4) ->  | I21: =IF('Conocimiento de las mat.'!L4="","",'Conocimiento de las mat.'!L4) ->  | J21: =IF('Conocimiento de las mat.'!M4="","",'Conocimiento de las mat.'!M4) ->  | K21: =IF('Conocimiento de las mat.'!N4="","",'Conocimiento de las mat.'!N4) ->  | L21: =IF('Conocimiento de las mat.'!O4="","",'Conocimiento de las mat.'!O4) ->  | M21: =IF('Conocimiento de las mat.'!P4="","",'Conocimiento de las mat.'!P4) ->  | N21: =IF('Conocimiento de las mat.'!Q4="","",'Conocimiento de las mat.'!Q4) ->  | O21: =IF('Conocimiento de las mat.'!R4="","",'Conocimiento de las mat.'!R4) ->  | P21: =IF('Conocimiento de las mat.'!S4="","",'Conocimiento de las mat.'!S4) ->  | Q21: =IF('Conocimiento de las mat.'!T4="","",'Conocimiento de las mat.'!T4) ->  | R21: =IF('Conocimiento de las mat.'!U4="","",'Conocimiento de las mat.'!U4) ->  | S21: =IF('Conocimiento de las mat.'!V4="","",'Conocimiento de las mat.'!V4) ->  | T21: =IF('Conocimiento de las mat.'!W4="","",'Conocimiento de las mat.'!W4) ->  | U21: =IF('Conocimiento de las mat.'!X4="","",'Conocimiento de las mat.'!X4) ->  | V21: =IF('Conocimiento de las mat.'!Y4="","",'Conocimiento de las mat.'!Y4) ->  | W21: =IF('Conocimiento de las mat.'!Z4="","",'Conocimiento de las mat.'!Z4) ->  | X21: =IF('Conocimiento de las mat.'!AA4="","",'Conocimiento de las mat.'!AA4) ->  | Y21: =IF('Conocimiento de las mat.'!AB4="","",'Conocimiento de las mat.'!AB4) ->  | Z21: =IF('Conocimiento de las mat.'!AC4="","",'Conocimiento de las mat.'!AC4) ->  | AA21: =IF('Conocimiento de las mat.'!AD4="","",'Conocimiento de las mat.'!AD4) ->  | AB21: =IF('Conocimiento de las mat.'!AE4="","",'Conocimiento de las mat.'!AE4) ->  | AC21: =IF('Conocimiento de las mat.'!AF4="","",'Conocimiento de las mat.'!AF4) ->  | AD21: =IF('Conocimiento de las mat.'!AG4="","",'Conocimiento de las mat.'!AG4) ->  | AE21: =IF('Conocimiento de las mat.'!AH4="","",'Conocimiento de las mat.'!AH4) ->  | AF21: =IF('Conocimiento de las mat.'!AI4="","",'Conocimiento de las mat.'!AI4) ->  | AG21: =IF('Conocimiento de las mat.'!AJ4="","",'Conocimiento de las mat.'!AJ4) ->  | AH21: =IF('Conocimiento de las mat.'!AK4="","",'Conocimiento de las mat.'!AK4) ->  | AI21: =IF('Conocimiento de las mat.'!AL4="","",'Conocimiento de las mat.'!AL4) ->  | AJ21: =IF('Conocimiento de las mat.'!AM4="","",'Conocimiento de las mat.'!AM4) ->  | AK21: =IF('Conocimiento de las mat.'!AN4="","",'Conocimiento de las mat.'!AN4) ->  | AL21: =IF('Conocimiento de las mat.'!AO4="","",'Conocimiento de las mat.'!AO4) ->  | AM21: =IF('Conocimiento de las mat.'!AP4="","",'Conocimiento de las mat.'!AP4) -> 
D22: Criterio Evaluación 1.2 | E22: =IF('Conocimiento de las mat.'!H5="","",'Conocimiento de las mat.'!H5) ->  | F22: =IF('Conocimiento de las mat.'!I5="","",'Conocimiento de las mat.'!I5) ->  | G22: =IF('Conocimiento de las mat.'!J5="","",'Conocimiento de las mat.'!J5) ->  | H22: =IF('Conocimiento de las mat.'!K5="","",'Conocimiento de las mat.'!K5) ->  | I22: =IF('Conocimiento de las mat.'!L5="","",'Conocimiento de las mat.'!L5) ->  | J22: =IF('Conocimiento de las mat.'!M5="","",'Conocimiento de las mat.'!M5) ->  | K22: =IF('Conocimiento de las mat.'!N5="","",'Conocimiento de las mat.'!N5) ->  | L22: =IF('Conocimiento de las mat.'!O5="","",'Conocimiento de las mat.'!O5) ->  | M22: =IF('Conocimiento de las mat.'!P5="","",'Conocimiento de las mat.'!P5) ->  | N22: =IF('Conocimiento de las mat.'!Q5="","",'Conocimiento de las mat.'!Q5) ->  | O22: =IF('Conocimiento de las mat.'!R5="","",'Conocimiento de las mat.'!R5) ->  | P22: =IF('Conocimiento de las mat.'!S5="","",'Conocimiento de las mat.'!S5) ->  | Q22: =IF('Conocimiento de las mat.'!T5="","",'Conocimiento de las mat.'!T5) ->  | R22: =IF('Conocimiento de las mat.'!U5="","",'Conocimiento de las mat.'!U5) ->  | S22: =IF('Conocimiento de las mat.'!V5="","",'Conocimiento de las mat.'!V5) ->  | T22: =IF('Conocimiento de las mat.'!W5="","",'Conocimiento de las mat.'!W5) ->  | U22: =IF('Conocimiento de las mat.'!X5="","",'Conocimiento de las mat.'!X5) ->  | V22: =IF('Conocimiento de las mat.'!Y5="","",'Conocimiento de las mat.'!Y5) ->  | W22: =IF('Conocimiento de las mat.'!Z5="","",'Conocimiento de las mat.'!Z5) ->  | X22: =IF('Conocimiento de las mat.'!AA5="","",'Conocimiento de las mat.'!AA5) ->  | Y22: =IF('Conocimiento de las mat.'!AB5="","",'Conocimiento de las mat.'!AB5) ->  | Z22: =IF('Conocimiento de las mat.'!AC5="","",'Conocimiento de las mat.'!AC5) ->  | AA22: =IF('Conocimiento de las mat.'!AD5="","",'Conocimiento de las mat.'!AD5) ->  | AB22: =IF('Conocimiento de las mat.'!AE5="","",'Conocimiento de las mat.'!AE5) ->  | AC22: =IF('Conocimiento de las mat.'!AF5="","",'Conocimiento de las mat.'!AF5) ->  | AD22: =IF('Conocimiento de las mat.'!AG5="","",'Conocimiento de las mat.'!AG5) ->  | AE22: =IF('Conocimiento de las mat.'!AH5="","",'Conocimiento de las mat.'!AH5) ->  | AF22: =IF('Conocimiento de las mat.'!AI5="","",'Conocimiento de las mat.'!AI5) ->  | AG22: =IF('Conocimiento de las mat.'!AJ5="","",'Conocimiento de las mat.'!AJ5) ->  | AH22: =IF('Conocimiento de las mat.'!AK5="","",'Conocimiento de las mat.'!AK5) ->  | AI22: =IF('Conocimiento de las mat.'!AL5="","",'Conocimiento de las mat.'!AL5) ->  | AJ22: =IF('Conocimiento de las mat.'!AM5="","",'Conocimiento de las mat.'!AM5) ->  | AK22: =IF('Conocimiento de las mat.'!AN5="","",'Conocimiento de las mat.'!AN5) ->  | AL22: =IF('Conocimiento de las mat.'!AO5="","",'Conocimiento de las mat.'!AO5) ->  | AM22: =IF('Conocimiento de las mat.'!AP5="","",'Conocimiento de las mat.'!AP5) -> 
D23: Criterio Evaluación 1.3 | E23: =IF('Conocimiento de las mat.'!H6="","",'Conocimiento de las mat.'!H6) ->  | F23: =IF('Conocimiento de las mat.'!I6="","",'Conocimiento de las mat.'!I6) ->  | G23: =IF('Conocimiento de las mat.'!J6="","",'Conocimiento de las mat.'!J6) ->  | H23: =IF('Conocimiento de las mat.'!K6="","",'Conocimiento de las mat.'!K6) ->  | I23: =IF('Conocimiento de las mat.'!L6="","",'Conocimiento de las mat.'!L6) ->  | J23: =IF('Conocimiento de las mat.'!M6="","",'Conocimiento de las mat.'!M6) ->  | K23: =IF('Conocimiento de las mat.'!N6="","",'Conocimiento de las mat.'!N6) ->  | L23: =IF('Conocimiento de las mat.'!O6="","",'Conocimiento de las mat.'!O6) ->  | M23: =IF('Conocimiento de las mat.'!P6="","",'Conocimiento de las mat.'!P6) ->  | N23: =IF('Conocimiento de las mat.'!Q6="","",'Conocimiento de las mat.'!Q6) ->  | O23: =IF('Conocimiento de las mat.'!R6="","",'Conocimiento de las mat.'!R6) ->  | P23: =IF('Conocimiento de las mat.'!S6="","",'Conocimiento de las mat.'!S6) ->  | Q23: =IF('Conocimiento de las mat.'!T6="","",'Conocimiento de las mat.'!T6) ->  | R23: =IF('Conocimiento de las mat.'!U6="","",'Conocimiento de las mat.'!U6) ->  | S23: =IF('Conocimiento de las mat.'!V6="","",'Conocimiento de las mat.'!V6) ->  | T23: =IF('Conocimiento de las mat.'!W6="","",'Conocimiento de las mat.'!W6) ->  | U23: =IF('Conocimiento de las mat.'!X6="","",'Conocimiento de las mat.'!X6) ->  | V23: =IF('Conocimiento de las mat.'!Y6="","",'Conocimiento de las mat.'!Y6) ->  | W23: =IF('Conocimiento de las mat.'!Z6="","",'Conocimiento de las mat.'!Z6) ->  | X23: =IF('Conocimiento de las mat.'!AA6="","",'Conocimiento de las mat.'!AA6) ->  | Y23: =IF('Conocimiento de las mat.'!AB6="","",'Conocimiento de las mat.'!AB6) ->  | Z23: =IF('Conocimiento de las mat.'!AC6="","",'Conocimiento de las mat.'!AC6) ->  | AA23: =IF('Conocimiento de las mat.'!AD6="","",'Conocimiento de las mat.'!AD6) ->  | AB23: =IF('Conocimiento de las mat.'!AE6="","",'Conocimiento de las mat.'!AE6) ->  | AC23: =IF('Conocimiento de las mat.'!AF6="","",'Conocimiento de las mat.'!AF6) ->  | AD23: =IF('Conocimiento de las mat.'!AG6="","",'Conocimiento de las mat.'!AG6) ->  | AE23: =IF('Conocimiento de las mat.'!AH6="","",'Conocimiento de las mat.'!AH6) ->  | AF23: =IF('Conocimiento de las mat.'!AI6="","",'Conocimiento de las mat.'!AI6) ->  | AG23: =IF('Conocimiento de las mat.'!AJ6="","",'Conocimiento de las mat.'!AJ6) ->  | AH23: =IF('Conocimiento de las mat.'!AK6="","",'Conocimiento de las mat.'!AK6) ->  | AI23: =IF('Conocimiento de las mat.'!AL6="","",'Conocimiento de las mat.'!AL6) ->  | AJ23: =IF('Conocimiento de las mat.'!AM6="","",'Conocimiento de las mat.'!AM6) ->  | AK23: =IF('Conocimiento de las mat.'!AN6="","",'Conocimiento de las mat.'!AN6) ->  | AL23: =IF('Conocimiento de las mat.'!AO6="","",'Conocimiento de las mat.'!AO6) ->  | AM23: =IF('Conocimiento de las mat.'!AP6="","",'Conocimiento de las mat.'!AP6) -> 
C24: Comp. Esp. 2 | D24: Criterio Evaluación 2.1 | E24: =IF('Conocimiento de las mat.'!H7="","",'Conocimiento de las mat.'!H7) ->  | F24: =IF('Conocimiento de las mat.'!I7="","",'Conocimiento de las mat.'!I7) ->  | G24: =IF('Conocimiento de las mat.'!J7="","",'Conocimiento de las mat.'!J7) ->  | H24: =IF('Conocimiento de las mat.'!K7="","",'Conocimiento de las mat.'!K7) ->  | I24: =IF('Conocimiento de las mat.'!L7="","",'Conocimiento de las mat.'!L7) ->  | J24: =IF('Conocimiento de las mat.'!M7="","",'Conocimiento de las mat.'!M7) ->  | K24: =IF('Conocimiento de las mat.'!N7="","",'Conocimiento de las mat.'!N7) ->  | L24: =IF('Conocimiento de las mat.'!O7="","",'Conocimiento de las mat.'!O7) ->  | M24: =IF('Conocimiento de las mat.'!P7="","",'Conocimiento de las mat.'!P7) ->  | N24: =IF('Conocimiento de las mat.'!Q7="","",'Conocimiento de las mat.'!Q7) ->  | O24: =IF('Conocimiento de las mat.'!R7="","",'Conocimiento de las mat.'!R7) ->  | P24: =IF('Conocimiento de las mat.'!S7="","",'Conocimiento de las mat.'!S7) ->  | Q24: =IF('Conocimiento de las mat.'!T7="","",'Conocimiento de las mat.'!T7) ->  | R24: =IF('Conocimiento de las mat.'!U7="","",'Conocimiento de las mat.'!U7) ->  | S24: =IF('Conocimiento de las mat.'!V7="","",'Conocimiento de las mat.'!V7) ->  | T24: =IF('Conocimiento de las mat.'!W7="","",'Conocimiento de las mat.'!W7) ->  | U24: =IF('Conocimiento de las mat.'!X7="","",'Conocimiento de las mat.'!X7) ->  | V24: =IF('Conocimiento de las mat.'!Y7="","",'Conocimiento de las mat.'!Y7) ->  | W24: =IF('Conocimiento de las mat.'!Z7="","",'Conocimiento de las mat.'!Z7) ->  | X24: =IF('Conocimiento de las mat.'!AA7="","",'Conocimiento de las mat.'!AA7) ->  | Y24: =IF('Conocimiento de las mat.'!AB7="","",'Conocimiento de las mat.'!AB7) ->  | Z24: =IF('Conocimiento de las mat.'!AC7="","",'Conocimiento de las mat.'!AC7) ->  | AA24: =IF('Conocimiento de las mat.'!AD7="","",'Conocimiento de las mat.'!AD7) ->  | AB24: =IF('Conocimiento de las mat.'!AE7="","",'Conocimiento de las mat.'!AE7) ->  | AC24: =IF('Conocimiento de las mat.'!AF7="","",'Conocimiento de las mat.'!AF7) ->  | AD24: =IF('Conocimiento de las mat.'!AG7="","",'Conocimiento de las mat.'!AG7) ->  | AE24: =IF('Conocimiento de las mat.'!AH7="","",'Conocimiento de las mat.'!AH7) ->  | AF24: =IF('Conocimiento de las mat.'!AI7="","",'Conocimiento de las mat.'!AI7) ->  | AG24: =IF('Conocimiento de las mat.'!AJ7="","",'Conocimiento de las mat.'!AJ7) ->  | AH24: =IF('Conocimiento de las mat.'!AK7="","",'Conocimiento de las mat.'!AK7) ->  | AI24: =IF('Conocimiento de las mat.'!AL7="","",'Conocimiento de las mat.'!AL7) ->  | AJ24: =IF('Conocimiento de las mat.'!AM7="","",'Conocimiento de las mat.'!AM7) ->  | AK24: =IF('Conocimiento de las mat.'!AN7="","",'Conocimiento de las mat.'!AN7) ->  | AL24: =IF('Conocimiento de las mat.'!AO7="","",'Conocimiento de las mat.'!AO7) ->  | AM24: =IF('Conocimiento de las mat.'!AP7="","",'Conocimiento de las mat.'!AP7) -> 
D25: Criterio Evaluación 2.2 | E25: =IF('Conocimiento de las mat.'!H8="","",'Conocimiento de las mat.'!H8) ->  | F25: =IF('Conocimiento de las mat.'!I8="","",'Conocimiento de las mat.'!I8) ->  | G25: =IF('Conocimiento de las mat.'!J8="","",'Conocimiento de las mat.'!J8) ->  | H25: =IF('Conocimiento de las mat.'!K8="","",'Conocimiento de las mat.'!K8) ->  | I25: =IF('Conocimiento de las mat.'!L8="","",'Conocimiento de las mat.'!L8) ->  | J25: =IF('Conocimiento de las mat.'!M8="","",'Conocimiento de las mat.'!M8) ->  | K25: =IF('Conocimiento de las mat.'!N8="","",'Conocimiento de las mat.'!N8) ->  | L25: =IF('Conocimiento de las mat.'!O8="","",'Conocimiento de las mat.'!O8) ->  | M25: =IF('Conocimiento de las mat.'!P8="","",'Conocimiento de las mat.'!P8) ->  | N25: =IF('Conocimiento de las mat.'!Q8="","",'Conocimiento de las mat.'!Q8) ->  | O25: =IF('Conocimiento de las mat.'!R8="","",'Conocimiento de las mat.'!R8) ->  | P25: =IF('Conocimiento de las mat.'!S8="","",'Conocimiento de las mat.'!S8) ->  | Q25: =IF('Conocimiento de las mat.'!T8="","",'Conocimiento de las mat.'!T8) ->  | R25: =IF('Conocimiento de las mat.'!U8="","",'Conocimiento de las mat.'!U8) ->  | S25: =IF('Conocimiento de las mat.'!V8="","",'Conocimiento de las mat.'!V8) ->  | T25: =IF('Conocimiento de las mat.'!W8="","",'Conocimiento de las mat.'!W8) ->  | U25: =IF('Conocimiento de las mat.'!X8="","",'Conocimiento de las mat.'!X8) ->  | V25: =IF('Conocimiento de las mat.'!Y8="","",'Conocimiento de las mat.'!Y8) ->  | W25: =IF('Conocimiento de las mat.'!Z8="","",'Conocimiento de las mat.'!Z8) ->  | X25: =IF('Conocimiento de las mat.'!AA8="","",'Conocimiento de las mat.'!AA8) ->  | Y25: =IF('Conocimiento de las mat.'!AB8="","",'Conocimiento de las mat.'!AB8) ->  | Z25: =IF('Conocimiento de las mat.'!AC8="","",'Conocimiento de las mat.'!AC8) ->  | AA25: =IF('Conocimiento de las mat.'!AD8="","",'Conocimiento de las mat.'!AD8) ->  | AB25: =IF('Conocimiento de las mat.'!AE8="","",'Conocimiento de las mat.'!AE8) ->  | AC25: =IF('Conocimiento de las mat.'!AF8="","",'Conocimiento de las mat.'!AF8) ->  | AD25: =IF('Conocimiento de las mat.'!AG8="","",'Conocimiento de las mat.'!AG8) ->  | AE25: =IF('Conocimiento de las mat.'!AH8="","",'Conocimiento de las mat.'!AH8) ->  | AF25: =IF('Conocimiento de las mat.'!AI8="","",'Conocimiento de las mat.'!AI8) ->  | AG25: =IF('Conocimiento de las mat.'!AJ8="","",'Conocimiento de las mat.'!AJ8) ->  | AH25: =IF('Conocimiento de las mat.'!AK8="","",'Conocimiento de las mat.'!AK8) ->  | AI25: =IF('Conocimiento de las mat.'!AL8="","",'Conocimiento de las mat.'!AL8) ->  | AJ25: =IF('Conocimiento de las mat.'!AM8="","",'Conocimiento de las mat.'!AM8) ->  | AK25: =IF('Conocimiento de las mat.'!AN8="","",'Conocimiento de las mat.'!AN8) ->  | AL25: =IF('Conocimiento de las mat.'!AO8="","",'Conocimiento de las mat.'!AO8) ->  | AM25: =IF('Conocimiento de las mat.'!AP8="","",'Conocimiento de las mat.'!AP8) -> 
C26: Comp. Esp. 3 | D26: Criterio Evaluación 3.1 | E26: =IF('Conocimiento de las mat.'!H9="","",'Conocimiento de las mat.'!H9) ->  | F26: =IF('Conocimiento de las mat.'!I9="","",'Conocimiento de las mat.'!I9) ->  | G26: =IF('Conocimiento de las mat.'!J9="","",'Conocimiento de las mat.'!J9) ->  | H26: =IF('Conocimiento de las mat.'!K9="","",'Conocimiento de las mat.'!K9) ->  | I26: =IF('Conocimiento de las mat.'!L9="","",'Conocimiento de las mat.'!L9) ->  | J26: =IF('Conocimiento de las mat.'!M9="","",'Conocimiento de las mat.'!M9) ->  | K26: =IF('Conocimiento de las mat.'!N9="","",'Conocimiento de las mat.'!N9) ->  | L26: =IF('Conocimiento de las mat.'!O9="","",'Conocimiento de las mat.'!O9) ->  | M26: =IF('Conocimiento de las mat.'!P9="","",'Conocimiento de las mat.'!P9) ->  | N26: =IF('Conocimiento de las mat.'!Q9="","",'Conocimiento de las mat.'!Q9) ->  | O26: =IF('Conocimiento de las mat.'!R9="","",'Conocimiento de las mat.'!R9) ->  | P26: =IF('Conocimiento de las mat.'!S9="","",'Conocimiento de las mat.'!S9) ->  | Q26: =IF('Conocimiento de las mat.'!T9="","",'Conocimiento de las mat.'!T9) ->  | R26: =IF('Conocimiento de las mat.'!U9="","",'Conocimiento de las mat.'!U9) ->  | S26: =IF('Conocimiento de las mat.'!V9="","",'Conocimiento de las mat.'!V9) ->  | T26: =IF('Conocimiento de las mat.'!W9="","",'Conocimiento de las mat.'!W9) ->  | U26: =IF('Conocimiento de las mat.'!X9="","",'Conocimiento de las mat.'!X9) ->  | V26: =IF('Conocimiento de las mat.'!Y9="","",'Conocimiento de las mat.'!Y9) ->  | W26: =IF('Conocimiento de las mat.'!Z9="","",'Conocimiento de las mat.'!Z9) ->  | X26: =IF('Conocimiento de las mat.'!AA9="","",'Conocimiento de las mat.'!AA9) ->  | Y26: =IF('Conocimiento de las mat.'!AB9="","",'Conocimiento de las mat.'!AB9) ->  | Z26: =IF('Conocimiento de las mat.'!AC9="","",'Conocimiento de las mat.'!AC9) ->  | AA26: =IF('Conocimiento de las mat.'!AD9="","",'Conocimiento de las mat.'!AD9) ->  | AB26: =IF('Conocimiento de las mat.'!AE9="","",'Conocimiento de las mat.'!AE9) ->  | AC26: =IF('Conocimiento de las mat.'!AF9="","",'Conocimiento de las mat.'!AF9) ->  | AD26: =IF('Conocimiento de las mat.'!AG9="","",'Conocimiento de las mat.'!AG9) ->  | AE26: =IF('Conocimiento de las mat.'!AH9="","",'Conocimiento de las mat.'!AH9) ->  | AF26: =IF('Conocimiento de las mat.'!AI9="","",'Conocimiento de las mat.'!AI9) ->  | AG26: =IF('Conocimiento de las mat.'!AJ9="","",'Conocimiento de las mat.'!AJ9) ->  | AH26: =IF('Conocimiento de las mat.'!AK9="","",'Conocimiento de las mat.'!AK9) ->  | AI26: =IF('Conocimiento de las mat.'!AL9="","",'Conocimiento de las mat.'!AL9) ->  | AJ26: =IF('Conocimiento de las mat.'!AM9="","",'Conocimiento de las mat.'!AM9) ->  | AK26: =IF('Conocimiento de las mat.'!AN9="","",'Conocimiento de las mat.'!AN9) ->  | AL26: =IF('Conocimiento de las mat.'!AO9="","",'Conocimiento de las mat.'!AO9) ->  | AM26: =IF('Conocimiento de las mat.'!AP9="","",'Conocimiento de las mat.'!AP9) -> 
D27: Criterio Evaluación 3.2 | E27: =IF('Conocimiento de las mat.'!H10="","",'Conocimiento de las mat.'!H10) ->  | F27: =IF('Conocimiento de las mat.'!I10="","",'Conocimiento de las mat.'!I10) ->  | G27: =IF('Conocimiento de las mat.'!J10="","",'Conocimiento de las mat.'!J10) ->  | H27: =IF('Conocimiento de las mat.'!K10="","",'Conocimiento de las mat.'!K10) ->  | I27: =IF('Conocimiento de las mat.'!L10="","",'Conocimiento de las mat.'!L10) ->  | J27: =IF('Conocimiento de las mat.'!M10="","",'Conocimiento de las mat.'!M10) ->  | K27: =IF('Conocimiento de las mat.'!N10="","",'Conocimiento de las mat.'!N10) ->  | L27: =IF('Conocimiento de las mat.'!O10="","",'Conocimiento de las mat.'!O10) ->  | M27: =IF('Conocimiento de las mat.'!P10="","",'Conocimiento de las mat.'!P10) ->  | N27: =IF('Conocimiento de las mat.'!Q10="","",'Conocimiento de las mat.'!Q10) ->  | O27: =IF('Conocimiento de las mat.'!R10="","",'Conocimiento de las mat.'!R10) ->  | P27: =IF('Conocimiento de las mat.'!S10="","",'Conocimiento de las mat.'!S10) ->  | Q27: =IF('Conocimiento de las mat.'!T10="","",'Conocimiento de las mat.'!T10) ->  | R27: =IF('Conocimiento de las mat.'!U10="","",'Conocimiento de las mat.'!U10) ->  | S27: =IF('Conocimiento de las mat.'!V10="","",'Conocimiento de las mat.'!V10) ->  | T27: =IF('Conocimiento de las mat.'!W10="","",'Conocimiento de las mat.'!W10) ->  | U27: =IF('Conocimiento de las mat.'!X10="","",'Conocimiento de las mat.'!X10) ->  | V27: =IF('Conocimiento de las mat.'!Y10="","",'Conocimiento de las mat.'!Y10) ->  | W27: =IF('Conocimiento de las mat.'!Z10="","",'Conocimiento de las mat.'!Z10) ->  | X27: =IF('Conocimiento de las mat.'!AA10="","",'Conocimiento de las mat.'!AA10) ->  | Y27: =IF('Conocimiento de las mat.'!AB10="","",'Conocimiento de las mat.'!AB10) ->  | Z27: =IF('Conocimiento de las mat.'!AC10="","",'Conocimiento de las mat.'!AC10) ->  | AA27: =IF('Conocimiento de las mat.'!AD10="","",'Conocimiento de las mat.'!AD10) ->  | AB27: =IF('Conocimiento de las mat.'!AE10="","",'Conocimiento de las mat.'!AE10) ->  | AC27: =IF('Conocimiento de las mat.'!AF10="","",'Conocimiento de las mat.'!AF10) ->  | AD27: =IF('Conocimiento de las mat.'!AG10="","",'Conocimiento de las mat.'!AG10) ->  | AE27: =IF('Conocimiento de las mat.'!AH10="","",'Conocimiento de las mat.'!AH10) ->  | AF27: =IF('Conocimiento de las mat.'!AI10="","",'Conocimiento de las mat.'!AI10) ->  | AG27: =IF('Conocimiento de las mat.'!AJ10="","",'Conocimiento de las mat.'!AJ10) ->  | AH27: =IF('Conocimiento de las mat.'!AK10="","",'Conocimiento de las mat.'!AK10) ->  | AI27: =IF('Conocimiento de las mat.'!AL10="","",'Conocimiento de las mat.'!AL10) ->  | AJ27: =IF('Conocimiento de las mat.'!AM10="","",'Conocimiento de las mat.'!AM10) ->  | AK27: =IF('Conocimiento de las mat.'!AN10="","",'Conocimiento de las mat.'!AN10) ->  | AL27: =IF('Conocimiento de las mat.'!AO10="","",'Conocimiento de las mat.'!AO10) ->  | AM27: =IF('Conocimiento de las mat.'!AP10="","",'Conocimiento de las mat.'!AP10) -> 
C28: Comp. Esp. 4 | D28: Criterio Evaluación 4.1 | E28: =IF('Conocimiento de las mat.'!H11="","",'Conocimiento de las mat.'!H11) ->  | F28: =IF('Conocimiento de las mat.'!I11="","",'Conocimiento de las mat.'!I11) ->  | G28: =IF('Conocimiento de las mat.'!J11="","",'Conocimiento de las mat.'!J11) ->  | H28: =IF('Conocimiento de las mat.'!K11="","",'Conocimiento de las mat.'!K11) ->  | I28: =IF('Conocimiento de las mat.'!L11="","",'Conocimiento de las mat.'!L11) ->  | J28: =IF('Conocimiento de las mat.'!M11="","",'Conocimiento de las mat.'!M11) ->  | K28: =IF('Conocimiento de las mat.'!N11="","",'Conocimiento de las mat.'!N11) ->  | L28: =IF('Conocimiento de las mat.'!O11="","",'Conocimiento de las mat.'!O11) ->  | M28: =IF('Conocimiento de las mat.'!P11="","",'Conocimiento de las mat.'!P11) ->  | N28: =IF('Conocimiento de las mat.'!Q11="","",'Conocimiento de las mat.'!Q11) ->  | O28: =IF('Conocimiento de las mat.'!R11="","",'Conocimiento de las mat.'!R11) ->  | P28: =IF('Conocimiento de las mat.'!S11="","",'Conocimiento de las mat.'!S11) ->  | Q28: =IF('Conocimiento de las mat.'!T11="","",'Conocimiento de las mat.'!T11) ->  | R28: =IF('Conocimiento de las mat.'!U11="","",'Conocimiento de las mat.'!U11) ->  | S28: =IF('Conocimiento de las mat.'!V11="","",'Conocimiento de las mat.'!V11) ->  | T28: =IF('Conocimiento de las mat.'!W11="","",'Conocimiento de las mat.'!W11) ->  | U28: =IF('Conocimiento de las mat.'!X11="","",'Conocimiento de las mat.'!X11) ->  | V28: =IF('Conocimiento de las mat.'!Y11="","",'Conocimiento de las mat.'!Y11) ->  | W28: =IF('Conocimiento de las mat.'!Z11="","",'Conocimiento de las mat.'!Z11) ->  | X28: =IF('Conocimiento de las mat.'!AA11="","",'Conocimiento de las mat.'!AA11) ->  | Y28: =IF('Conocimiento de las mat.'!AB11="","",'Conocimiento de las mat.'!AB11) ->  | Z28: =IF('Conocimiento de las mat.'!AC11="","",'Conocimiento de las mat.'!AC11) ->  | AA28: =IF('Conocimiento de las mat.'!AD11="","",'Conocimiento de las mat.'!AD11) ->  | AB28: =IF('Conocimiento de las mat.'!AE11="","",'Conocimiento de las mat.'!AE11) ->  | AC28: =IF('Conocimiento de las mat.'!AF11="","",'Conocimiento de las mat.'!AF11) ->  | AD28: =IF('Conocimiento de las mat.'!AG11="","",'Conocimiento de las mat.'!AG11) ->  | AE28: =IF('Conocimiento de las mat.'!AH11="","",'Conocimiento de las mat.'!AH11) ->  | AF28: =IF('Conocimiento de las mat.'!AI11="","",'Conocimiento de las mat.'!AI11) ->  | AG28: =IF('Conocimiento de las mat.'!AJ11="","",'Conocimiento de las mat.'!AJ11) ->  | AH28: =IF('Conocimiento de las mat.'!AK11="","",'Conocimiento de las mat.'!AK11) ->  | AI28: =IF('Conocimiento de las mat.'!AL11="","",'Conocimiento de las mat.'!AL11) ->  | AJ28: =IF('Conocimiento de las mat.'!AM11="","",'Conocimiento de las mat.'!AM11) ->  | AK28: =IF('Conocimiento de las mat.'!AN11="","",'Conocimiento de las mat.'!AN11) ->  | AL28: =IF('Conocimiento de las mat.'!AO11="","",'Conocimiento de las mat.'!AO11) ->  | AM28: =IF('Conocimiento de las mat.'!AP11="","",'Conocimiento de las mat.'!AP11) -> 
D29: Criterio Evaluación 4.2 | E29: =IF('Conocimiento de las mat.'!H12="","",'Conocimiento de las mat.'!H12) ->  | F29: =IF('Conocimiento de las mat.'!I12="","",'Conocimiento de las mat.'!I12) ->  | G29: =IF('Conocimiento de las mat.'!J12="","",'Conocimiento de las mat.'!J12) ->  | H29: =IF('Conocimiento de las mat.'!K12="","",'Conocimiento de las mat.'!K12) ->  | I29: =IF('Conocimiento de las mat.'!L12="","",'Conocimiento de las mat.'!L12) ->  | J29: =IF('Conocimiento de las mat.'!M12="","",'Conocimiento de las mat.'!M12) ->  | K29: =IF('Conocimiento de las mat.'!N12="","",'Conocimiento de las mat.'!N12) ->  | L29: =IF('Conocimiento de las mat.'!O12="","",'Conocimiento de las mat.'!O12) ->  | M29: =IF('Conocimiento de las mat.'!P12="","",'Conocimiento de las mat.'!P12) ->  | N29: =IF('Conocimiento de las mat.'!Q12="","",'Conocimiento de las mat.'!Q12) ->  | O29: =IF('Conocimiento de las mat.'!R12="","",'Conocimiento de las mat.'!R12) ->  | P29: =IF('Conocimiento de las mat.'!S12="","",'Conocimiento de las mat.'!S12) ->  | Q29: =IF('Conocimiento de las mat.'!T12="","",'Conocimiento de las mat.'!T12) ->  | R29: =IF('Conocimiento de las mat.'!U12="","",'Conocimiento de las mat.'!U12) ->  | S29: =IF('Conocimiento de las mat.'!V12="","",'Conocimiento de las mat.'!V12) ->  | T29: =IF('Conocimiento de las mat.'!W12="","",'Conocimiento de las mat.'!W12) ->  | U29: =IF('Conocimiento de las mat.'!X12="","",'Conocimiento de las mat.'!X12) ->  | V29: =IF('Conocimiento de las mat.'!Y12="","",'Conocimiento de las mat.'!Y12) ->  | W29: =IF('Conocimiento de las mat.'!Z12="","",'Conocimiento de las mat.'!Z12) ->  | X29: =IF('Conocimiento de las mat.'!AA12="","",'Conocimiento de las mat.'!AA12) ->  | Y29: =IF('Conocimiento de las mat.'!AB12="","",'Conocimiento de las mat.'!AB12) ->  | Z29: =IF('Conocimiento de las mat.'!AC12="","",'Conocimiento de las mat.'!AC12) ->  | AA29: =IF('Conocimiento de las mat.'!AD12="","",'Conocimiento de las mat.'!AD12) ->  | AB29: =IF('Conocimiento de las mat.'!AE12="","",'Conocimiento de las mat.'!AE12) ->  | AC29: =IF('Conocimiento de las mat.'!AF12="","",'Conocimiento de las mat.'!AF12) ->  | AD29: =IF('Conocimiento de las mat.'!AG12="","",'Conocimiento de las mat.'!AG12) ->  | AE29: =IF('Conocimiento de las mat.'!AH12="","",'Conocimiento de las mat.'!AH12) ->  | AF29: =IF('Conocimiento de las mat.'!AI12="","",'Conocimiento de las mat.'!AI12) ->  | AG29: =IF('Conocimiento de las mat.'!AJ12="","",'Conocimiento de las mat.'!AJ12) ->  | AH29: =IF('Conocimiento de las mat.'!AK12="","",'Conocimiento de las mat.'!AK12) ->  | AI29: =IF('Conocimiento de las mat.'!AL12="","",'Conocimiento de las mat.'!AL12) ->  | AJ29: =IF('Conocimiento de las mat.'!AM12="","",'Conocimiento de las mat.'!AM12) ->  | AK29: =IF('Conocimiento de las mat.'!AN12="","",'Conocimiento de las mat.'!AN12) ->  | AL29: =IF('Conocimiento de las mat.'!AO12="","",'Conocimiento de las mat.'!AO12) ->  | AM29: =IF('Conocimiento de las mat.'!AP12="","",'Conocimiento de las mat.'!AP12) -> 
C30: Comp. Esp. 5 | D30: Criterio Evaluación 5.1 | E30: =IF('Conocimiento de las mat.'!H13="","",'Conocimiento de las mat.'!H13) ->  | F30: =IF('Conocimiento de las mat.'!I13="","",'Conocimiento de las mat.'!I13) ->  | G30: =IF('Conocimiento de las mat.'!J13="","",'Conocimiento de las mat.'!J13) ->  | H30: =IF('Conocimiento de las mat.'!K13="","",'Conocimiento de las mat.'!K13) ->  | I30: =IF('Conocimiento de las mat.'!L13="","",'Conocimiento de las mat.'!L13) ->  | J30: =IF('Conocimiento de las mat.'!M13="","",'Conocimiento de las mat.'!M13) ->  | K30: =IF('Conocimiento de las mat.'!N13="","",'Conocimiento de las mat.'!N13) ->  | L30: =IF('Conocimiento de las mat.'!O13="","",'Conocimiento de las mat.'!O13) ->  | M30: =IF('Conocimiento de las mat.'!P13="","",'Conocimiento de las mat.'!P13) ->  | N30: =IF('Conocimiento de las mat.'!Q13="","",'Conocimiento de las mat.'!Q13) ->  | O30: =IF('Conocimiento de las mat.'!R13="","",'Conocimiento de las mat.'!R13) ->  | P30: =IF('Conocimiento de las mat.'!S13="","",'Conocimiento de las mat.'!S13) ->  | Q30: =IF('Conocimiento de las mat.'!T13="","",'Conocimiento de las mat.'!T13) ->  | R30: =IF('Conocimiento de las mat.'!U13="","",'Conocimiento de las mat.'!U13) ->  | S30: =IF('Conocimiento de las mat.'!V13="","",'Conocimiento de las mat.'!V13) ->  | T30: =IF('Conocimiento de las mat.'!W13="","",'Conocimiento de las mat.'!W13) ->  | U30: =IF('Conocimiento de las mat.'!X13="","",'Conocimiento de las mat.'!X13) ->  | V30: =IF('Conocimiento de las mat.'!Y13="","",'Conocimiento de las mat.'!Y13) ->  | W30: =IF('Conocimiento de las mat.'!Z13="","",'Conocimiento de las mat.'!Z13) ->  | X30: =IF('Conocimiento de las mat.'!AA13="","",'Conocimiento de las mat.'!AA13) ->  | Y30: =IF('Conocimiento de las mat.'!AB13="","",'Conocimiento de las mat.'!AB13) ->  | Z30: =IF('Conocimiento de las mat.'!AC13="","",'Conocimiento de las mat.'!AC13) ->  | AA30: =IF('Conocimiento de las mat.'!AD13="","",'Conocimiento de las mat.'!AD13) ->  | AB30: =IF('Conocimiento de las mat.'!AE13="","",'Conocimiento de las mat.'!AE13) ->  | AC30: =IF('Conocimiento de las mat.'!AF13="","",'Conocimiento de las mat.'!AF13) ->  | AD30: =IF('Conocimiento de las mat.'!AG13="","",'Conocimiento de las mat.'!AG13) ->  | AE30: =IF('Conocimiento de las mat.'!AH13="","",'Conocimiento de las mat.'!AH13) ->  | AF30: =IF('Conocimiento de las mat.'!AI13="","",'Conocimiento de las mat.'!AI13) ->  | AG30: =IF('Conocimiento de las mat.'!AJ13="","",'Conocimiento de las mat.'!AJ13) ->  | AH30: =IF('Conocimiento de las mat.'!AK13="","",'Conocimiento de las mat.'!AK13) ->  | AI30: =IF('Conocimiento de las mat.'!AL13="","",'Conocimiento de las mat.'!AL13) ->  | AJ30: =IF('Conocimiento de las mat.'!AM13="","",'Conocimiento de las mat.'!AM13) ->  | AK30: =IF('Conocimiento de las mat.'!AN13="","",'Conocimiento de las mat.'!AN13) ->  | AL30: =IF('Conocimiento de las mat.'!AO13="","",'Conocimiento de las mat.'!AO13) ->  | AM30: =IF('Conocimiento de las mat.'!AP13="","",'Conocimiento de las mat.'!AP13) -> 
D31: Criterio Evaluación 5.2 | E31: =IF('Conocimiento de las mat.'!H14="","",'Conocimiento de las mat.'!H14) ->  | F31: =IF('Conocimiento de las mat.'!I14="","",'Conocimiento de las mat.'!I14) ->  | G31: =IF('Conocimiento de las mat.'!J14="","",'Conocimiento de las mat.'!J14) ->  | H31: =IF('Conocimiento de las mat.'!K14="","",'Conocimiento de las mat.'!K14) ->  | I31: =IF('Conocimiento de las mat.'!L14="","",'Conocimiento de las mat.'!L14) ->  | J31: =IF('Conocimiento de las mat.'!M14="","",'Conocimiento de las mat.'!M14) ->  | K31: =IF('Conocimiento de las mat.'!N14="","",'Conocimiento de las mat.'!N14) ->  | L31: =IF('Conocimiento de las mat.'!O14="","",'Conocimiento de las mat.'!O14) ->  | M31: =IF('Conocimiento de las mat.'!P14="","",'Conocimiento de las mat.'!P14) ->  | N31: =IF('Conocimiento de las mat.'!Q14="","",'Conocimiento de las mat.'!Q14) ->  | O31: =IF('Conocimiento de las mat.'!R14="","",'Conocimiento de las mat.'!R14) ->  | P31: =IF('Conocimiento de las mat.'!S14="","",'Conocimiento de las mat.'!S14) ->  | Q31: =IF('Conocimiento de las mat.'!T14="","",'Conocimiento de las mat.'!T14) ->  | R31: =IF('Conocimiento de las mat.'!U14="","",'Conocimiento de las mat.'!U14) ->  | S31: =IF('Conocimiento de las mat.'!V14="","",'Conocimiento de las mat.'!V14) ->  | T31: =IF('Conocimiento de las mat.'!W14="","",'Conocimiento de las mat.'!W14) ->  | U31: =IF('Conocimiento de las mat.'!X14="","",'Conocimiento de las mat.'!X14) ->  | V31: =IF('Conocimiento de las mat.'!Y14="","",'Conocimiento de las mat.'!Y14) ->  | W31: =IF('Conocimiento de las mat.'!Z14="","",'Conocimiento de las mat.'!Z14) ->  | X31: =IF('Conocimiento de las mat.'!AA14="","",'Conocimiento de las mat.'!AA14) ->  | Y31: =IF('Conocimiento de las mat.'!AB14="","",'Conocimiento de las mat.'!AB14) ->  | Z31: =IF('Conocimiento de las mat.'!AC14="","",'Conocimiento de las mat.'!AC14) ->  | AA31: =IF('Conocimiento de las mat.'!AD14="","",'Conocimiento de las mat.'!AD14) ->  | AB31: =IF('Conocimiento de las mat.'!AE14="","",'Conocimiento de las mat.'!AE14) ->  | AC31: =IF('Conocimiento de las mat.'!AF14="","",'Conocimiento de las mat.'!AF14) ->  | AD31: =IF('Conocimiento de las mat.'!AG14="","",'Conocimiento de las mat.'!AG14) ->  | AE31: =IF('Conocimiento de las mat.'!AH14="","",'Conocimiento de las mat.'!AH14) ->  | AF31: =IF('Conocimiento de las mat.'!AI14="","",'Conocimiento de las mat.'!AI14) ->  | AG31: =IF('Conocimiento de las mat.'!AJ14="","",'Conocimiento de las mat.'!AJ14) ->  | AH31: =IF('Conocimiento de las mat.'!AK14="","",'Conocimiento de las mat.'!AK14) ->  | AI31: =IF('Conocimiento de las mat.'!AL14="","",'Conocimiento de las mat.'!AL14) ->  | AJ31: =IF('Conocimiento de las mat.'!AM14="","",'Conocimiento de las mat.'!AM14) ->  | AK31: =IF('Conocimiento de las mat.'!AN14="","",'Conocimiento de las mat.'!AN14) ->  | AL31: =IF('Conocimiento de las mat.'!AO14="","",'Conocimiento de las mat.'!AO14) ->  | AM31: =IF('Conocimiento de las mat.'!AP14="","",'Conocimiento de las mat.'!AP14) -> 
D32: Criterio Evaluación 5.3 | E32: =IF('Conocimiento de las mat.'!H15="","",'Conocimiento de las mat.'!H15) ->  | F32: =IF('Conocimiento de las mat.'!I15="","",'Conocimiento de las mat.'!I15) ->  | G32: =IF('Conocimiento de las mat.'!J15="","",'Conocimiento de las mat.'!J15) ->  | H32: =IF('Conocimiento de las mat.'!K15="","",'Conocimiento de las mat.'!K15) ->  | I32: =IF('Conocimiento de las mat.'!L15="","",'Conocimiento de las mat.'!L15) ->  | J32: =IF('Conocimiento de las mat.'!M15="","",'Conocimiento de las mat.'!M15) ->  | K32: =IF('Conocimiento de las mat.'!N15="","",'Conocimiento de las mat.'!N15) ->  | L32: =IF('Conocimiento de las mat.'!O15="","",'Conocimiento de las mat.'!O15) ->  | M32: =IF('Conocimiento de las mat.'!P15="","",'Conocimiento de las mat.'!P15) ->  | N32: =IF('Conocimiento de las mat.'!Q15="","",'Conocimiento de las mat.'!Q15) ->  | O32: =IF('Conocimiento de las mat.'!R15="","",'Conocimiento de las mat.'!R15) ->  | P32: =IF('Conocimiento de las mat.'!S15="","",'Conocimiento de las mat.'!S15) ->  | Q32: =IF('Conocimiento de las mat.'!T15="","",'Conocimiento de las mat.'!T15) ->  | R32: =IF('Conocimiento de las mat.'!U15="","",'Conocimiento de las mat.'!U15) ->  | S32: =IF('Conocimiento de las mat.'!V15="","",'Conocimiento de las mat.'!V15) ->  | T32: =IF('Conocimiento de las mat.'!W15="","",'Conocimiento de las mat.'!W15) ->  | U32: =IF('Conocimiento de las mat.'!X15="","",'Conocimiento de las mat.'!X15) ->  | V32: =IF('Conocimiento de las mat.'!Y15="","",'Conocimiento de las mat.'!Y15) ->  | W32: =IF('Conocimiento de las mat.'!Z15="","",'Conocimiento de las mat.'!Z15) ->  | X32: =IF('Conocimiento de las mat.'!AA15="","",'Conocimiento de las mat.'!AA15) ->  | Y32: =IF('Conocimiento de las mat.'!AB15="","",'Conocimiento de las mat.'!AB15) ->  | Z32: =IF('Conocimiento de las mat.'!AC15="","",'Conocimiento de las mat.'!AC15) ->  | AA32: =IF('Conocimiento de las mat.'!AD15="","",'Conocimiento de las mat.'!AD15) ->  | AB32: =IF('Conocimiento de las mat.'!AE15="","",'Conocimiento de las mat.'!AE15) ->  | AC32: =IF('Conocimiento de las mat.'!AF15="","",'Conocimiento de las mat.'!AF15) ->  | AD32: =IF('Conocimiento de las mat.'!AG15="","",'Conocimiento de las mat.'!AG15) ->  | AE32: =IF('Conocimiento de las mat.'!AH15="","",'Conocimiento de las mat.'!AH15) ->  | AF32: =IF('Conocimiento de las mat.'!AI15="","",'Conocimiento de las mat.'!AI15) ->  | AG32: =IF('Conocimiento de las mat.'!AJ15="","",'Conocimiento de las mat.'!AJ15) ->  | AH32: =IF('Conocimiento de las mat.'!AK15="","",'Conocimiento de las mat.'!AK15) ->  | AI32: =IF('Conocimiento de las mat.'!AL15="","",'Conocimiento de las mat.'!AL15) ->  | AJ32: =IF('Conocimiento de las mat.'!AM15="","",'Conocimiento de las mat.'!AM15) ->  | AK32: =IF('Conocimiento de las mat.'!AN15="","",'Conocimiento de las mat.'!AN15) ->  | AL32: =IF('Conocimiento de las mat.'!AO15="","",'Conocimiento de las mat.'!AO15) ->  | AM32: =IF('Conocimiento de las mat.'!AP15="","",'Conocimiento de las mat.'!AP15) -> 
B33: Conocimiento del Lenguaje | C33: Comp. Esp. 1 | D33: Criterio Evaluación 1.1 | E33: =IF('Conocimiento del lenguaje'!H4="","",'Conocimiento del lenguaje'!H4) ->  | F33: =IF('Conocimiento del lenguaje'!I4="","",'Conocimiento del lenguaje'!I4) ->  | G33: =IF('Conocimiento del lenguaje'!J4="","",'Conocimiento del lenguaje'!J4) ->  | H33: =IF('Conocimiento del lenguaje'!K4="","",'Conocimiento del lenguaje'!K4) ->  | I33: =IF('Conocimiento del lenguaje'!L4="","",'Conocimiento del lenguaje'!L4) ->  | J33: =IF('Conocimiento del lenguaje'!M4="","",'Conocimiento del lenguaje'!M4) ->  | K33: =IF('Conocimiento del lenguaje'!N4="","",'Conocimiento del lenguaje'!N4) ->  | L33: =IF('Conocimiento del lenguaje'!O4="","",'Conocimiento del lenguaje'!O4) ->  | M33: =IF('Conocimiento del lenguaje'!P4="","",'Conocimiento del lenguaje'!P4) ->  | N33: =IF('Conocimiento del lenguaje'!Q4="","",'Conocimiento del lenguaje'!Q4) ->  | O33: =IF('Conocimiento del lenguaje'!R4="","",'Conocimiento del lenguaje'!R4) ->  | P33: =IF('Conocimiento del lenguaje'!S4="","",'Conocimiento del lenguaje'!S4) ->  | Q33: =IF('Conocimiento del lenguaje'!T4="","",'Conocimiento del lenguaje'!T4) ->  | R33: =IF('Conocimiento del lenguaje'!U4="","",'Conocimiento del lenguaje'!U4) ->  | S33: =IF('Conocimiento del lenguaje'!V4="","",'Conocimiento del lenguaje'!V4) ->  | T33: =IF('Conocimiento del lenguaje'!W4="","",'Conocimiento del lenguaje'!W4) ->  | U33: =IF('Conocimiento del lenguaje'!X4="","",'Conocimiento del lenguaje'!X4) ->  | V33: =IF('Conocimiento del lenguaje'!Y4="","",'Conocimiento del lenguaje'!Y4) ->  | W33: =IF('Conocimiento del lenguaje'!Z4="","",'Conocimiento del lenguaje'!Z4) ->  | X33: =IF('Conocimiento del lenguaje'!AA4="","",'Conocimiento del lenguaje'!AA4) ->  | Y33: =IF('Conocimiento del lenguaje'!AB4="","",'Conocimiento del lenguaje'!AB4) ->  | Z33: =IF('Conocimiento del lenguaje'!AC4="","",'Conocimiento del lenguaje'!AC4) ->  | AA33: =IF('Conocimiento del lenguaje'!AD4="","",'Conocimiento del lenguaje'!AD4) ->  | AB33: =IF('Conocimiento del lenguaje'!AE4="","",'Conocimiento del lenguaje'!AE4) ->  | AC33: =IF('Conocimiento del lenguaje'!AF4="","",'Conocimiento del lenguaje'!AF4) ->  | AD33: =IF('Conocimiento del lenguaje'!AG4="","",'Conocimiento del lenguaje'!AG4) ->  | AE33: =IF('Conocimiento del lenguaje'!AH4="","",'Conocimiento del lenguaje'!AH4) ->  | AF33: =IF('Conocimiento del lenguaje'!AI4="","",'Conocimiento del lenguaje'!AI4) ->  | AG33: =IF('Conocimiento del lenguaje'!AJ4="","",'Conocimiento del lenguaje'!AJ4) ->  | AH33: =IF('Conocimiento del lenguaje'!AK4="","",'Conocimiento del lenguaje'!AK4) ->  | AI33: =IF('Conocimiento del lenguaje'!AL4="","",'Conocimiento del lenguaje'!AL4) ->  | AJ33: =IF('Conocimiento del lenguaje'!AM4="","",'Conocimiento del lenguaje'!AM4) ->  | AK33: =IF('Conocimiento del lenguaje'!AN4="","",'Conocimiento del lenguaje'!AN4) ->  | AL33: =IF('Conocimiento del lenguaje'!AO4="","",'Conocimiento del lenguaje'!AO4) ->  | AM33: =IF('Conocimiento del lenguaje'!AP4="","",'Conocimiento del lenguaje'!AP4) -> 
D34: Criterio Evaluación 1.2 | E34: =IF('Conocimiento del lenguaje'!H5="","",'Conocimiento del lenguaje'!H5) ->  | F34: =IF('Conocimiento del lenguaje'!I5="","",'Conocimiento del lenguaje'!I5) ->  | G34: =IF('Conocimiento del lenguaje'!J5="","",'Conocimiento del lenguaje'!J5) ->  | H34: =IF('Conocimiento del lenguaje'!K5="","",'Conocimiento del lenguaje'!K5) ->  | I34: =IF('Conocimiento del lenguaje'!L5="","",'Conocimiento del lenguaje'!L5) ->  | J34: =IF('Conocimiento del lenguaje'!M5="","",'Conocimiento del lenguaje'!M5) ->  | K34: =IF('Conocimiento del lenguaje'!N5="","",'Conocimiento del lenguaje'!N5) ->  | L34: =IF('Conocimiento del lenguaje'!O5="","",'Conocimiento del lenguaje'!O5) ->  | M34: =IF('Conocimiento del lenguaje'!P5="","",'Conocimiento del lenguaje'!P5) ->  | N34: =IF('Conocimiento del lenguaje'!Q5="","",'Conocimiento del lenguaje'!Q5) ->  | O34: =IF('Conocimiento del lenguaje'!R5="","",'Conocimiento del lenguaje'!R5) ->  | P34: =IF('Conocimiento del lenguaje'!S5="","",'Conocimiento del lenguaje'!S5) ->  | Q34: =IF('Conocimiento del lenguaje'!T5="","",'Conocimiento del lenguaje'!T5) ->  | R34: =IF('Conocimiento del lenguaje'!U5="","",'Conocimiento del lenguaje'!U5) ->  | S34: =IF('Conocimiento del lenguaje'!V5="","",'Conocimiento del lenguaje'!V5) ->  | T34: =IF('Conocimiento del lenguaje'!W5="","",'Conocimiento del lenguaje'!W5) ->  | U34: =IF('Conocimiento del lenguaje'!X5="","",'Conocimiento del lenguaje'!X5) ->  | V34: =IF('Conocimiento del lenguaje'!Y5="","",'Conocimiento del lenguaje'!Y5) ->  | W34: =IF('Conocimiento del lenguaje'!Z5="","",'Conocimiento del lenguaje'!Z5) ->  | X34: =IF('Conocimiento del lenguaje'!AA5="","",'Conocimiento del lenguaje'!AA5) ->  | Y34: =IF('Conocimiento del lenguaje'!AB5="","",'Conocimiento del lenguaje'!AB5) ->  | Z34: =IF('Conocimiento del lenguaje'!AC5="","",'Conocimiento del lenguaje'!AC5) ->  | AA34: =IF('Conocimiento del lenguaje'!AD5="","",'Conocimiento del lenguaje'!AD5) ->  | AB34: =IF('Conocimiento del lenguaje'!AE5="","",'Conocimiento del lenguaje'!AE5) ->  | AC34: =IF('Conocimiento del lenguaje'!AF5="","",'Conocimiento del lenguaje'!AF5) ->  | AD34: =IF('Conocimiento del lenguaje'!AG5="","",'Conocimiento del lenguaje'!AG5) ->  | AE34: =IF('Conocimiento del lenguaje'!AH5="","",'Conocimiento del lenguaje'!AH5) ->  | AF34: =IF('Conocimiento del lenguaje'!AI5="","",'Conocimiento del lenguaje'!AI5) ->  | AG34: =IF('Conocimiento del lenguaje'!AJ5="","",'Conocimiento del lenguaje'!AJ5) ->  | AH34: =IF('Conocimiento del lenguaje'!AK5="","",'Conocimiento del lenguaje'!AK5) ->  | AI34: =IF('Conocimiento del lenguaje'!AL5="","",'Conocimiento del lenguaje'!AL5) ->  | AJ34: =IF('Conocimiento del lenguaje'!AM5="","",'Conocimiento del lenguaje'!AM5) ->  | AK34: =IF('Conocimiento del lenguaje'!AN5="","",'Conocimiento del lenguaje'!AN5) ->  | AL34: =IF('Conocimiento del lenguaje'!AO5="","",'Conocimiento del lenguaje'!AO5) ->  | AM34: =IF('Conocimiento del lenguaje'!AP5="","",'Conocimiento del lenguaje'!AP5) -> 
C35: Comp. Esp. 2 | D35: Criterio Evaluación 2.1 | E35: =IF('Conocimiento del lenguaje'!H6="","",'Conocimiento del lenguaje'!H6) ->  | F35: =IF('Conocimiento del lenguaje'!I6="","",'Conocimiento del lenguaje'!I6) ->  | G35: =IF('Conocimiento del lenguaje'!J6="","",'Conocimiento del lenguaje'!J6) ->  | H35: =IF('Conocimiento del lenguaje'!K6="","",'Conocimiento del lenguaje'!K6) ->  | I35: =IF('Conocimiento del lenguaje'!L6="","",'Conocimiento del lenguaje'!L6) ->  | J35: =IF('Conocimiento del lenguaje'!M6="","",'Conocimiento del lenguaje'!M6) ->  | K35: =IF('Conocimiento del lenguaje'!N6="","",'Conocimiento del lenguaje'!N6) ->  | L35: =IF('Conocimiento del lenguaje'!O6="","",'Conocimiento del lenguaje'!O6) ->  | M35: =IF('Conocimiento del lenguaje'!P6="","",'Conocimiento del lenguaje'!P6) ->  | N35: =IF('Conocimiento del lenguaje'!Q6="","",'Conocimiento del lenguaje'!Q6) ->  | O35: =IF('Conocimiento del lenguaje'!R6="","",'Conocimiento del lenguaje'!R6) ->  | P35: =IF('Conocimiento del lenguaje'!S6="","",'Conocimiento del lenguaje'!S6) ->  | Q35: =IF('Conocimiento del lenguaje'!T6="","",'Conocimiento del lenguaje'!T6) ->  | R35: =IF('Conocimiento del lenguaje'!U6="","",'Conocimiento del lenguaje'!U6) ->  | S35: =IF('Conocimiento del lenguaje'!V6="","",'Conocimiento del lenguaje'!V6) ->  | T35: =IF('Conocimiento del lenguaje'!W6="","",'Conocimiento del lenguaje'!W6) ->  | U35: =IF('Conocimiento del lenguaje'!X6="","",'Conocimiento del lenguaje'!X6) ->  | V35: =IF('Conocimiento del lenguaje'!Y6="","",'Conocimiento del lenguaje'!Y6) ->  | W35: =IF('Conocimiento del lenguaje'!Z6="","",'Conocimiento del lenguaje'!Z6) ->  | X35: =IF('Conocimiento del lenguaje'!AA6="","",'Conocimiento del lenguaje'!AA6) ->  | Y35: =IF('Conocimiento del lenguaje'!AB6="","",'Conocimiento del lenguaje'!AB6) ->  | Z35: =IF('Conocimiento del lenguaje'!AC6="","",'Conocimiento del lenguaje'!AC6) ->  | AA35: =IF('Conocimiento del lenguaje'!AD6="","",'Conocimiento del lenguaje'!AD6) ->  | AB35: =IF('Conocimiento del lenguaje'!AE6="","",'Conocimiento del lenguaje'!AE6) ->  | AC35: =IF('Conocimiento del lenguaje'!AF6="","",'Conocimiento del lenguaje'!AF6) ->  | AD35: =IF('Conocimiento del lenguaje'!AG6="","",'Conocimiento del lenguaje'!AG6) ->  | AE35: =IF('Conocimiento del lenguaje'!AH6="","",'Conocimiento del lenguaje'!AH6) ->  | AF35: =IF('Conocimiento del lenguaje'!AI6="","",'Conocimiento del lenguaje'!AI6) ->  | AG35: =IF('Conocimiento del lenguaje'!AJ6="","",'Conocimiento del lenguaje'!AJ6) ->  | AH35: =IF('Conocimiento del lenguaje'!AK6="","",'Conocimiento del lenguaje'!AK6) ->  | AI35: =IF('Conocimiento del lenguaje'!AL6="","",'Conocimiento del lenguaje'!AL6) ->  | AJ35: =IF('Conocimiento del lenguaje'!AM6="","",'Conocimiento del lenguaje'!AM6) ->  | AK35: =IF('Conocimiento del lenguaje'!AN6="","",'Conocimiento del lenguaje'!AN6) ->  | AL35: =IF('Conocimiento del lenguaje'!AO6="","",'Conocimiento del lenguaje'!AO6) ->  | AM35: =IF('Conocimiento del lenguaje'!AP6="","",'Conocimiento del lenguaje'!AP6) -> 
D36: Criterio Evaluación 2.2 | E36: =IF('Conocimiento del lenguaje'!H7="","",'Conocimiento del lenguaje'!H7) ->  | F36: =IF('Conocimiento del lenguaje'!I7="","",'Conocimiento del lenguaje'!I7) ->  | G36: =IF('Conocimiento del lenguaje'!J7="","",'Conocimiento del lenguaje'!J7) ->  | H36: =IF('Conocimiento del lenguaje'!K7="","",'Conocimiento del lenguaje'!K7) ->  | I36: =IF('Conocimiento del lenguaje'!L7="","",'Conocimiento del lenguaje'!L7) ->  | J36: =IF('Conocimiento del lenguaje'!M7="","",'Conocimiento del lenguaje'!M7) ->  | K36: =IF('Conocimiento del lenguaje'!N7="","",'Conocimiento del lenguaje'!N7) ->  | L36: =IF('Conocimiento del lenguaje'!O7="","",'Conocimiento del lenguaje'!O7) ->  | M36: =IF('Conocimiento del lenguaje'!P7="","",'Conocimiento del lenguaje'!P7) ->  | N36: =IF('Conocimiento del lenguaje'!Q7="","",'Conocimiento del lenguaje'!Q7) ->  | O36: =IF('Conocimiento del lenguaje'!R7="","",'Conocimiento del lenguaje'!R7) ->  | P36: =IF('Conocimiento del lenguaje'!S7="","",'Conocimiento del lenguaje'!S7) ->  | Q36: =IF('Conocimiento del lenguaje'!T7="","",'Conocimiento del lenguaje'!T7) ->  | R36: =IF('Conocimiento del lenguaje'!U7="","",'Conocimiento del lenguaje'!U7) ->  | S36: =IF('Conocimiento del lenguaje'!V7="","",'Conocimiento del lenguaje'!V7) ->  | T36: =IF('Conocimiento del lenguaje'!W7="","",'Conocimiento del lenguaje'!W7) ->  | U36: =IF('Conocimiento del lenguaje'!X7="","",'Conocimiento del lenguaje'!X7) ->  | V36: =IF('Conocimiento del lenguaje'!Y7="","",'Conocimiento del lenguaje'!Y7) ->  | W36: =IF('Conocimiento del lenguaje'!Z7="","",'Conocimiento del lenguaje'!Z7) ->  | X36: =IF('Conocimiento del lenguaje'!AA7="","",'Conocimiento del lenguaje'!AA7) ->  | Y36: =IF('Conocimiento del lenguaje'!AB7="","",'Conocimiento del lenguaje'!AB7) ->  | Z36: =IF('Conocimiento del lenguaje'!AC7="","",'Conocimiento del lenguaje'!AC7) ->  | AA36: =IF('Conocimiento del lenguaje'!AD7="","",'Conocimiento del lenguaje'!AD7) ->  | AB36: =IF('Conocimiento del lenguaje'!AE7="","",'Conocimiento del lenguaje'!AE7) ->  | AC36: =IF('Conocimiento del lenguaje'!AF7="","",'Conocimiento del lenguaje'!AF7) ->  | AD36: =IF('Conocimiento del lenguaje'!AG7="","",'Conocimiento del lenguaje'!AG7) ->  | AE36: =IF('Conocimiento del lenguaje'!AH7="","",'Conocimiento del lenguaje'!AH7) ->  | AF36: =IF('Conocimiento del lenguaje'!AI7="","",'Conocimiento del lenguaje'!AI7) ->  | AG36: =IF('Conocimiento del lenguaje'!AJ7="","",'Conocimiento del lenguaje'!AJ7) ->  | AH36: =IF('Conocimiento del lenguaje'!AK7="","",'Conocimiento del lenguaje'!AK7) ->  | AI36: =IF('Conocimiento del lenguaje'!AL7="","",'Conocimiento del lenguaje'!AL7) ->  | AJ36: =IF('Conocimiento del lenguaje'!AM7="","",'Conocimiento del lenguaje'!AM7) ->  | AK36: =IF('Conocimiento del lenguaje'!AN7="","",'Conocimiento del lenguaje'!AN7) ->  | AL36: =IF('Conocimiento del lenguaje'!AO7="","",'Conocimiento del lenguaje'!AO7) ->  | AM36: =IF('Conocimiento del lenguaje'!AP7="","",'Conocimiento del lenguaje'!AP7) -> 
C37: Comp. Esp. 3 | D37: Criterio Evaluación 3.1 | E37: =IF('Conocimiento del lenguaje'!H8="","",'Conocimiento del lenguaje'!H8) ->  | F37: =IF('Conocimiento del lenguaje'!I8="","",'Conocimiento del lenguaje'!I8) ->  | G37: =IF('Conocimiento del lenguaje'!J8="","",'Conocimiento del lenguaje'!J8) ->  | H37: =IF('Conocimiento del lenguaje'!K8="","",'Conocimiento del lenguaje'!K8) ->  | I37: =IF('Conocimiento del lenguaje'!L8="","",'Conocimiento del lenguaje'!L8) ->  | J37: =IF('Conocimiento del lenguaje'!M8="","",'Conocimiento del lenguaje'!M8) ->  | K37: =IF('Conocimiento del lenguaje'!N8="","",'Conocimiento del lenguaje'!N8) ->  | L37: =IF('Conocimiento del lenguaje'!O8="","",'Conocimiento del lenguaje'!O8) ->  | M37: =IF('Conocimiento del lenguaje'!P8="","",'Conocimiento del lenguaje'!P8) ->  | N37: =IF('Conocimiento del lenguaje'!Q8="","",'Conocimiento del lenguaje'!Q8) ->  | O37: =IF('Conocimiento del lenguaje'!R8="","",'Conocimiento del lenguaje'!R8) ->  | P37: =IF('Conocimiento del lenguaje'!S8="","",'Conocimiento del lenguaje'!S8) ->  | Q37: =IF('Conocimiento del lenguaje'!T8="","",'Conocimiento del lenguaje'!T8) ->  | R37: =IF('Conocimiento del lenguaje'!U8="","",'Conocimiento del lenguaje'!U8) ->  | S37: =IF('Conocimiento del lenguaje'!V8="","",'Conocimiento del lenguaje'!V8) ->  | T37: =IF('Conocimiento del lenguaje'!W8="","",'Conocimiento del lenguaje'!W8) ->  | U37: =IF('Conocimiento del lenguaje'!X8="","",'Conocimiento del lenguaje'!X8) ->  | V37: =IF('Conocimiento del lenguaje'!Y8="","",'Conocimiento del lenguaje'!Y8) ->  | W37: =IF('Conocimiento del lenguaje'!Z8="","",'Conocimiento del lenguaje'!Z8) ->  | X37: =IF('Conocimiento del lenguaje'!AA8="","",'Conocimiento del lenguaje'!AA8) ->  | Y37: =IF('Conocimiento del lenguaje'!AB8="","",'Conocimiento del lenguaje'!AB8) ->  | Z37: =IF('Conocimiento del lenguaje'!AC8="","",'Conocimiento del lenguaje'!AC8) ->  | AA37: =IF('Conocimiento del lenguaje'!AD8="","",'Conocimiento del lenguaje'!AD8) ->  | AB37: =IF('Conocimiento del lenguaje'!AE8="","",'Conocimiento del lenguaje'!AE8) ->  | AC37: =IF('Conocimiento del lenguaje'!AF8="","",'Conocimiento del lenguaje'!AF8) ->  | AD37: =IF('Conocimiento del lenguaje'!AG8="","",'Conocimiento del lenguaje'!AG8) ->  | AE37: =IF('Conocimiento del lenguaje'!AH8="","",'Conocimiento del lenguaje'!AH8) ->  | AF37: =IF('Conocimiento del lenguaje'!AI8="","",'Conocimiento del lenguaje'!AI8) ->  | AG37: =IF('Conocimiento del lenguaje'!AJ8="","",'Conocimiento del lenguaje'!AJ8) ->  | AH37: =IF('Conocimiento del lenguaje'!AK8="","",'Conocimiento del lenguaje'!AK8) ->  | AI37: =IF('Conocimiento del lenguaje'!AL8="","",'Conocimiento del lenguaje'!AL8) ->  | AJ37: =IF('Conocimiento del lenguaje'!AM8="","",'Conocimiento del lenguaje'!AM8) ->  | AK37: =IF('Conocimiento del lenguaje'!AN8="","",'Conocimiento del lenguaje'!AN8) ->  | AL37: =IF('Conocimiento del lenguaje'!AO8="","",'Conocimiento del lenguaje'!AO8) ->  | AM37: =IF('Conocimiento del lenguaje'!AP8="","",'Conocimiento del lenguaje'!AP8) -> 
D38: Criterio Evaluación 3.2 | E38: =IF('Conocimiento del lenguaje'!H9="","",'Conocimiento del lenguaje'!H9) ->  | F38: =IF('Conocimiento del lenguaje'!I9="","",'Conocimiento del lenguaje'!I9) ->  | G38: =IF('Conocimiento del lenguaje'!J9="","",'Conocimiento del lenguaje'!J9) ->  | H38: =IF('Conocimiento del lenguaje'!K9="","",'Conocimiento del lenguaje'!K9) ->  | I38: =IF('Conocimiento del lenguaje'!L9="","",'Conocimiento del lenguaje'!L9) ->  | J38: =IF('Conocimiento del lenguaje'!M9="","",'Conocimiento del lenguaje'!M9) ->  | K38: =IF('Conocimiento del lenguaje'!N9="","",'Conocimiento del lenguaje'!N9) ->  | L38: =IF('Conocimiento del lenguaje'!O9="","",'Conocimiento del lenguaje'!O9) ->  | M38: =IF('Conocimiento del lenguaje'!P9="","",'Conocimiento del lenguaje'!P9) ->  | N38: =IF('Conocimiento del lenguaje'!Q9="","",'Conocimiento del lenguaje'!Q9) ->  | O38: =IF('Conocimiento del lenguaje'!R9="","",'Conocimiento del lenguaje'!R9) ->  | P38: =IF('Conocimiento del lenguaje'!S9="","",'Conocimiento del lenguaje'!S9) ->  | Q38: =IF('Conocimiento del lenguaje'!T9="","",'Conocimiento del lenguaje'!T9) ->  | R38: =IF('Conocimiento del lenguaje'!U9="","",'Conocimiento del lenguaje'!U9) ->  | S38: =IF('Conocimiento del lenguaje'!V9="","",'Conocimiento del lenguaje'!V9) ->  | T38: =IF('Conocimiento del lenguaje'!W9="","",'Conocimiento del lenguaje'!W9) ->  | U38: =IF('Conocimiento del lenguaje'!X9="","",'Conocimiento del lenguaje'!X9) ->  | V38: =IF('Conocimiento del lenguaje'!Y9="","",'Conocimiento del lenguaje'!Y9) ->  | W38: =IF('Conocimiento del lenguaje'!Z9="","",'Conocimiento del lenguaje'!Z9) ->  | X38: =IF('Conocimiento del lenguaje'!AA9="","",'Conocimiento del lenguaje'!AA9) ->  | Y38: =IF('Conocimiento del lenguaje'!AB9="","",'Conocimiento del lenguaje'!AB9) ->  | Z38: =IF('Conocimiento del lenguaje'!AC9="","",'Conocimiento del lenguaje'!AC9) ->  | AA38: =IF('Conocimiento del lenguaje'!AD9="","",'Conocimiento del lenguaje'!AD9) ->  | AB38: =IF('Conocimiento del lenguaje'!AE9="","",'Conocimiento del lenguaje'!AE9) ->  | AC38: =IF('Conocimiento del lenguaje'!AF9="","",'Conocimiento del lenguaje'!AF9) ->  | AD38: =IF('Conocimiento del lenguaje'!AG9="","",'Conocimiento del lenguaje'!AG9) ->  | AE38: =IF('Conocimiento del lenguaje'!AH9="","",'Conocimiento del lenguaje'!AH9) ->  | AF38: =IF('Conocimiento del lenguaje'!AI9="","",'Conocimiento del lenguaje'!AI9) ->  | AG38: =IF('Conocimiento del lenguaje'!AJ9="","",'Conocimiento del lenguaje'!AJ9) ->  | AH38: =IF('Conocimiento del lenguaje'!AK9="","",'Conocimiento del lenguaje'!AK9) ->  | AI38: =IF('Conocimiento del lenguaje'!AL9="","",'Conocimiento del lenguaje'!AL9) ->  | AJ38: =IF('Conocimiento del lenguaje'!AM9="","",'Conocimiento del lenguaje'!AM9) ->  | AK38: =IF('Conocimiento del lenguaje'!AN9="","",'Conocimiento del lenguaje'!AN9) ->  | AL38: =IF('Conocimiento del lenguaje'!AO9="","",'Conocimiento del lenguaje'!AO9) ->  | AM38: =IF('Conocimiento del lenguaje'!AP9="","",'Conocimiento del lenguaje'!AP9) -> 
C39: Comp. Esp. 4 | D39: Criterio Evaluación 4.1 | E39: =IF('Conocimiento del lenguaje'!H10="","",'Conocimiento del lenguaje'!H10) ->  | F39: =IF('Conocimiento del lenguaje'!I10="","",'Conocimiento del lenguaje'!I10) ->  | G39: =IF('Conocimiento del lenguaje'!J10="","",'Conocimiento del lenguaje'!J10) ->  | H39: =IF('Conocimiento del lenguaje'!K10="","",'Conocimiento del lenguaje'!K10) ->  | I39: =IF('Conocimiento del lenguaje'!L10="","",'Conocimiento del lenguaje'!L10) ->  | J39: =IF('Conocimiento del lenguaje'!M10="","",'Conocimiento del lenguaje'!M10) ->  | K39: =IF('Conocimiento del lenguaje'!N10="","",'Conocimiento del lenguaje'!N10) ->  | L39: =IF('Conocimiento del lenguaje'!O10="","",'Conocimiento del lenguaje'!O10) ->  | M39: =IF('Conocimiento del lenguaje'!P10="","",'Conocimiento del lenguaje'!P10) ->  | N39: =IF('Conocimiento del lenguaje'!Q10="","",'Conocimiento del lenguaje'!Q10) ->  | O39: =IF('Conocimiento del lenguaje'!R10="","",'Conocimiento del lenguaje'!R10) ->  | P39: =IF('Conocimiento del lenguaje'!S10="","",'Conocimiento del lenguaje'!S10) ->  | Q39: =IF('Conocimiento del lenguaje'!T10="","",'Conocimiento del lenguaje'!T10) ->  | R39: =IF('Conocimiento del lenguaje'!U10="","",'Conocimiento del lenguaje'!U10) ->  | S39: =IF('Conocimiento del lenguaje'!V10="","",'Conocimiento del lenguaje'!V10) ->  | T39: =IF('Conocimiento del lenguaje'!W10="","",'Conocimiento del lenguaje'!W10) ->  | U39: =IF('Conocimiento del lenguaje'!X10="","",'Conocimiento del lenguaje'!X10) ->  | V39: =IF('Conocimiento del lenguaje'!Y10="","",'Conocimiento del lenguaje'!Y10) ->  | W39: =IF('Conocimiento del lenguaje'!Z10="","",'Conocimiento del lenguaje'!Z10) ->  | X39: =IF('Conocimiento del lenguaje'!AA10="","",'Conocimiento del lenguaje'!AA10) ->  | Y39: =IF('Conocimiento del lenguaje'!AB10="","",'Conocimiento del lenguaje'!AB10) ->  | Z39: =IF('Conocimiento del lenguaje'!AC10="","",'Conocimiento del lenguaje'!AC10) ->  | AA39: =IF('Conocimiento del lenguaje'!AD10="","",'Conocimiento del lenguaje'!AD10) ->  | AB39: =IF('Conocimiento del lenguaje'!AE10="","",'Conocimiento del lenguaje'!AE10) ->  | AC39: =IF('Conocimiento del lenguaje'!AF10="","",'Conocimiento del lenguaje'!AF10) ->  | AD39: =IF('Conocimiento del lenguaje'!AG10="","",'Conocimiento del lenguaje'!AG10) ->  | AE39: =IF('Conocimiento del lenguaje'!AH10="","",'Conocimiento del lenguaje'!AH10) ->  | AF39: =IF('Conocimiento del lenguaje'!AI10="","",'Conocimiento del lenguaje'!AI10) ->  | AG39: =IF('Conocimiento del lenguaje'!AJ10="","",'Conocimiento del lenguaje'!AJ10) ->  | AH39: =IF('Conocimiento del lenguaje'!AK10="","",'Conocimiento del lenguaje'!AK10) ->  | AI39: =IF('Conocimiento del lenguaje'!AL10="","",'Conocimiento del lenguaje'!AL10) ->  | AJ39: =IF('Conocimiento del lenguaje'!AM10="","",'Conocimiento del lenguaje'!AM10) ->  | AK39: =IF('Conocimiento del lenguaje'!AN10="","",'Conocimiento del lenguaje'!AN10) ->  | AL39: =IF('Conocimiento del lenguaje'!AO10="","",'Conocimiento del lenguaje'!AO10) ->  | AM39: =IF('Conocimiento del lenguaje'!AP10="","",'Conocimiento del lenguaje'!AP10) -> 
D40: Criterio Evaluación 4.2 | E40: =IF('Conocimiento del lenguaje'!H11="","",'Conocimiento del lenguaje'!H11) ->  | F40: =IF('Conocimiento del lenguaje'!I11="","",'Conocimiento del lenguaje'!I11) ->  | G40: =IF('Conocimiento del lenguaje'!J11="","",'Conocimiento del lenguaje'!J11) ->  | H40: =IF('Conocimiento del lenguaje'!K11="","",'Conocimiento del lenguaje'!K11) ->  | I40: =IF('Conocimiento del lenguaje'!L11="","",'Conocimiento del lenguaje'!L11) ->  | J40: =IF('Conocimiento del lenguaje'!M11="","",'Conocimiento del lenguaje'!M11) ->  | K40: =IF('Conocimiento del lenguaje'!N11="","",'Conocimiento del lenguaje'!N11) ->  | L40: =IF('Conocimiento del lenguaje'!O11="","",'Conocimiento del lenguaje'!O11) ->  | M40: =IF('Conocimiento del lenguaje'!P11="","",'Conocimiento del lenguaje'!P11) ->  | N40: =IF('Conocimiento del lenguaje'!Q11="","",'Conocimiento del lenguaje'!Q11) ->  | O40: =IF('Conocimiento del lenguaje'!R11="","",'Conocimiento del lenguaje'!R11) ->  | P40: =IF('Conocimiento del lenguaje'!S11="","",'Conocimiento del lenguaje'!S11) ->  | Q40: =IF('Conocimiento del lenguaje'!T11="","",'Conocimiento del lenguaje'!T11) ->  | R40: =IF('Conocimiento del lenguaje'!U11="","",'Conocimiento del lenguaje'!U11) ->  | S40: =IF('Conocimiento del lenguaje'!V11="","",'Conocimiento del lenguaje'!V11) ->  | T40: =IF('Conocimiento del lenguaje'!W11="","",'Conocimiento del lenguaje'!W11) ->  | U40: =IF('Conocimiento del lenguaje'!X11="","",'Conocimiento del lenguaje'!X11) ->  | V40: =IF('Conocimiento del lenguaje'!Y11="","",'Conocimiento del lenguaje'!Y11) ->  | W40: =IF('Conocimiento del lenguaje'!Z11="","",'Conocimiento del lenguaje'!Z11) ->  | X40: =IF('Conocimiento del lenguaje'!AA11="","",'Conocimiento del lenguaje'!AA11) ->  | Y40: =IF('Conocimiento del lenguaje'!AB11="","",'Conocimiento del lenguaje'!AB11) ->  | Z40: =IF('Conocimiento del lenguaje'!AC11="","",'Conocimiento del lenguaje'!AC11) ->  | AA40: =IF('Conocimiento del lenguaje'!AD11="","",'Conocimiento del lenguaje'!AD11) ->  | AB40: =IF('Conocimiento del lenguaje'!AE11="","",'Conocimiento del lenguaje'!AE11) ->  | AC40: =IF('Conocimiento del lenguaje'!AF11="","",'Conocimiento del lenguaje'!AF11) ->  | AD40: =IF('Conocimiento del lenguaje'!AG11="","",'Conocimiento del lenguaje'!AG11) ->  | AE40: =IF('Conocimiento del lenguaje'!AH11="","",'Conocimiento del lenguaje'!AH11) ->  | AF40: =IF('Conocimiento del lenguaje'!AI11="","",'Conocimiento del lenguaje'!AI11) ->  | AG40: =IF('Conocimiento del lenguaje'!AJ11="","",'Conocimiento del lenguaje'!AJ11) ->  | AH40: =IF('Conocimiento del lenguaje'!AK11="","",'Conocimiento del lenguaje'!AK11) ->  | AI40: =IF('Conocimiento del lenguaje'!AL11="","",'Conocimiento del lenguaje'!AL11) ->  | AJ40: =IF('Conocimiento del lenguaje'!AM11="","",'Conocimiento del lenguaje'!AM11) ->  | AK40: =IF('Conocimiento del lenguaje'!AN11="","",'Conocimiento del lenguaje'!AN11) ->  | AL40: =IF('Conocimiento del lenguaje'!AO11="","",'Conocimiento del lenguaje'!AO11) ->  | AM40: =IF('Conocimiento del lenguaje'!AP11="","",'Conocimiento del lenguaje'!AP11) -> 
C41: Comp. Esp. 5 | D41: Criterio Evaluación 5.1 | E41: =IF('Conocimiento del lenguaje'!H12="","",'Conocimiento del lenguaje'!H12) ->  | F41: =IF('Conocimiento del lenguaje'!I12="","",'Conocimiento del lenguaje'!I12) ->  | G41: =IF('Conocimiento del lenguaje'!J12="","",'Conocimiento del lenguaje'!J12) ->  | H41: =IF('Conocimiento del lenguaje'!K12="","",'Conocimiento del lenguaje'!K12) ->  | I41: =IF('Conocimiento del lenguaje'!L12="","",'Conocimiento del lenguaje'!L12) ->  | J41: =IF('Conocimiento del lenguaje'!M12="","",'Conocimiento del lenguaje'!M12) ->  | K41: =IF('Conocimiento del lenguaje'!N12="","",'Conocimiento del lenguaje'!N12) ->  | L41: =IF('Conocimiento del lenguaje'!O12="","",'Conocimiento del lenguaje'!O12) ->  | M41: =IF('Conocimiento del lenguaje'!P12="","",'Conocimiento del lenguaje'!P12) ->  | N41: =IF('Conocimiento del lenguaje'!Q12="","",'Conocimiento del lenguaje'!Q12) ->  | O41: =IF('Conocimiento del lenguaje'!R12="","",'Conocimiento del lenguaje'!R12) ->  | P41: =IF('Conocimiento del lenguaje'!S12="","",'Conocimiento del lenguaje'!S12) ->  | Q41: =IF('Conocimiento del lenguaje'!T12="","",'Conocimiento del lenguaje'!T12) ->  | R41: =IF('Conocimiento del lenguaje'!U12="","",'Conocimiento del lenguaje'!U12) ->  | S41: =IF('Conocimiento del lenguaje'!V12="","",'Conocimiento del lenguaje'!V12) ->  | T41: =IF('Conocimiento del lenguaje'!W12="","",'Conocimiento del lenguaje'!W12) ->  | U41: =IF('Conocimiento del lenguaje'!X12="","",'Conocimiento del lenguaje'!X12) ->  | V41: =IF('Conocimiento del lenguaje'!Y12="","",'Conocimiento del lenguaje'!Y12) ->  | W41: =IF('Conocimiento del lenguaje'!Z12="","",'Conocimiento del lenguaje'!Z12) ->  | X41: =IF('Conocimiento del lenguaje'!AA12="","",'Conocimiento del lenguaje'!AA12) ->  | Y41: =IF('Conocimiento del lenguaje'!AB12="","",'Conocimiento del lenguaje'!AB12) ->  | Z41: =IF('Conocimiento del lenguaje'!AC12="","",'Conocimiento del lenguaje'!AC12) ->  | AA41: =IF('Conocimiento del lenguaje'!AD12="","",'Conocimiento del lenguaje'!AD12) ->  | AB41: =IF('Conocimiento del lenguaje'!AE12="","",'Conocimiento del lenguaje'!AE12) ->  | AC41: =IF('Conocimiento del lenguaje'!AF12="","",'Conocimiento del lenguaje'!AF12) ->  | AD41: =IF('Conocimiento del lenguaje'!AG12="","",'Conocimiento del lenguaje'!AG12) ->  | AE41: =IF('Conocimiento del lenguaje'!AH12="","",'Conocimiento del lenguaje'!AH12) ->  | AF41: =IF('Conocimiento del lenguaje'!AI12="","",'Conocimiento del lenguaje'!AI12) ->  | AG41: =IF('Conocimiento del lenguaje'!AJ12="","",'Conocimiento del lenguaje'!AJ12) ->  | AH41: =IF('Conocimiento del lenguaje'!AK12="","",'Conocimiento del lenguaje'!AK12) ->  | AI41: =IF('Conocimiento del lenguaje'!AL12="","",'Conocimiento del lenguaje'!AL12) ->  | AJ41: =IF('Conocimiento del lenguaje'!AM12="","",'Conocimiento del lenguaje'!AM12) ->  | AK41: =IF('Conocimiento del lenguaje'!AN12="","",'Conocimiento del lenguaje'!AN12) ->  | AL41: =IF('Conocimiento del lenguaje'!AO12="","",'Conocimiento del lenguaje'!AO12) ->  | AM41: =IF('Conocimiento del lenguaje'!AP12="","",'Conocimiento del lenguaje'!AP12) -> 
D42: Criterio Evaluación 5.2 | E42: =IF('Conocimiento del lenguaje'!H13="","",'Conocimiento del lenguaje'!H13) ->  | F42: =IF('Conocimiento del lenguaje'!I13="","",'Conocimiento del lenguaje'!I13) ->  | G42: =IF('Conocimiento del lenguaje'!J13="","",'Conocimiento del lenguaje'!J13) ->  | H42: =IF('Conocimiento del lenguaje'!K13="","",'Conocimiento del lenguaje'!K13) ->  | I42: =IF('Conocimiento del lenguaje'!L13="","",'Conocimiento del lenguaje'!L13) ->  | J42: =IF('Conocimiento del lenguaje'!M13="","",'Conocimiento del lenguaje'!M13) ->  | K42: =IF('Conocimiento del lenguaje'!N13="","",'Conocimiento del lenguaje'!N13) ->  | L42: =IF('Conocimiento del lenguaje'!O13="","",'Conocimiento del lenguaje'!O13) ->  | M42: =IF('Conocimiento del lenguaje'!P13="","",'Conocimiento del lenguaje'!P13) ->  | N42: =IF('Conocimiento del lenguaje'!Q13="","",'Conocimiento del lenguaje'!Q13) ->  | O42: =IF('Conocimiento del lenguaje'!R13="","",'Conocimiento del lenguaje'!R13) ->  | P42: =IF('Conocimiento del lenguaje'!S13="","",'Conocimiento del lenguaje'!S13) ->  | Q42: =IF('Conocimiento del lenguaje'!T13="","",'Conocimiento del lenguaje'!T13) ->  | R42: =IF('Conocimiento del lenguaje'!U13="","",'Conocimiento del lenguaje'!U13) ->  | S42: =IF('Conocimiento del lenguaje'!V13="","",'Conocimiento del lenguaje'!V13) ->  | T42: =IF('Conocimiento del lenguaje'!W13="","",'Conocimiento del lenguaje'!W13) ->  | U42: =IF('Conocimiento del lenguaje'!X13="","",'Conocimiento del lenguaje'!X13) ->  | V42: =IF('Conocimiento del lenguaje'!Y13="","",'Conocimiento del lenguaje'!Y13) ->  | W42: =IF('Conocimiento del lenguaje'!Z13="","",'Conocimiento del lenguaje'!Z13) ->  | X42: =IF('Conocimiento del lenguaje'!AA13="","",'Conocimiento del lenguaje'!AA13) ->  | Y42: =IF('Conocimiento del lenguaje'!AB13="","",'Conocimiento del lenguaje'!AB13) ->  | Z42: =IF('Conocimiento del lenguaje'!AC13="","",'Conocimiento del lenguaje'!AC13) ->  | AA42: =IF('Conocimiento del lenguaje'!AD13="","",'Conocimiento del lenguaje'!AD13) ->  | AB42: =IF('Conocimiento del lenguaje'!AE13="","",'Conocimiento del lenguaje'!AE13) ->  | AC42: =IF('Conocimiento del lenguaje'!AF13="","",'Conocimiento del lenguaje'!AF13) ->  | AD42: =IF('Conocimiento del lenguaje'!AG13="","",'Conocimiento del lenguaje'!AG13) ->  | AE42: =IF('Conocimiento del lenguaje'!AH13="","",'Conocimiento del lenguaje'!AH13) ->  | AF42: =IF('Conocimiento del lenguaje'!AI13="","",'Conocimiento del lenguaje'!AI13) ->  | AG42: =IF('Conocimiento del lenguaje'!AJ13="","",'Conocimiento del lenguaje'!AJ13) ->  | AH42: =IF('Conocimiento del lenguaje'!AK13="","",'Conocimiento del lenguaje'!AK13) ->  | AI42: =IF('Conocimiento del lenguaje'!AL13="","",'Conocimiento del lenguaje'!AL13) ->  | AJ42: =IF('Conocimiento del lenguaje'!AM13="","",'Conocimiento del lenguaje'!AM13) ->  | AK42: =IF('Conocimiento del lenguaje'!AN13="","",'Conocimiento del lenguaje'!AN13) ->  | AL42: =IF('Conocimiento del lenguaje'!AO13="","",'Conocimiento del lenguaje'!AO13) ->  | AM42: =IF('Conocimiento del lenguaje'!AP13="","",'Conocimiento del lenguaje'!AP13) -> 
C43: Comp. Esp. 6 | D43: Criterio Evaluación 6.1 | E43: =IF('Conocimiento del lenguaje'!H14="","",'Conocimiento del lenguaje'!H14) ->  | F43: =IF('Conocimiento del lenguaje'!I14="","",'Conocimiento del lenguaje'!I14) ->  | G43: =IF('Conocimiento del lenguaje'!J14="","",'Conocimiento del lenguaje'!J14) ->  | H43: =IF('Conocimiento del lenguaje'!K14="","",'Conocimiento del lenguaje'!K14) ->  | I43: =IF('Conocimiento del lenguaje'!L14="","",'Conocimiento del lenguaje'!L14) ->  | J43: =IF('Conocimiento del lenguaje'!M14="","",'Conocimiento del lenguaje'!M14) ->  | K43: =IF('Conocimiento del lenguaje'!N14="","",'Conocimiento del lenguaje'!N14) ->  | L43: =IF('Conocimiento del lenguaje'!O14="","",'Conocimiento del lenguaje'!O14) ->  | M43: =IF('Conocimiento del lenguaje'!P14="","",'Conocimiento del lenguaje'!P14) ->  | N43: =IF('Conocimiento del lenguaje'!Q14="","",'Conocimiento del lenguaje'!Q14) ->  | O43: =IF('Conocimiento del lenguaje'!R14="","",'Conocimiento del lenguaje'!R14) ->  | P43: =IF('Conocimiento del lenguaje'!S14="","",'Conocimiento del lenguaje'!S14) ->  | Q43: =IF('Conocimiento del lenguaje'!T14="","",'Conocimiento del lenguaje'!T14) ->  | R43: =IF('Conocimiento del lenguaje'!U14="","",'Conocimiento del lenguaje'!U14) ->  | S43: =IF('Conocimiento del lenguaje'!V14="","",'Conocimiento del lenguaje'!V14) ->  | T43: =IF('Conocimiento del lenguaje'!W14="","",'Conocimiento del lenguaje'!W14) ->  | U43: =IF('Conocimiento del lenguaje'!X14="","",'Conocimiento del lenguaje'!X14) ->  | V43: =IF('Conocimiento del lenguaje'!Y14="","",'Conocimiento del lenguaje'!Y14) ->  | W43: =IF('Conocimiento del lenguaje'!Z14="","",'Conocimiento del lenguaje'!Z14) ->  | X43: =IF('Conocimiento del lenguaje'!AA14="","",'Conocimiento del lenguaje'!AA14) ->  | Y43: =IF('Conocimiento del lenguaje'!AB14="","",'Conocimiento del lenguaje'!AB14) ->  | Z43: =IF('Conocimiento del lenguaje'!AC14="","",'Conocimiento del lenguaje'!AC14) ->  | AA43: =IF('Conocimiento del lenguaje'!AD14="","",'Conocimiento del lenguaje'!AD14) ->  | AB43: =IF('Conocimiento del lenguaje'!AE14="","",'Conocimiento del lenguaje'!AE14) ->  | AC43: =IF('Conocimiento del lenguaje'!AF14="","",'Conocimiento del lenguaje'!AF14) ->  | AD43: =IF('Conocimiento del lenguaje'!AG14="","",'Conocimiento del lenguaje'!AG14) ->  | AE43: =IF('Conocimiento del lenguaje'!AH14="","",'Conocimiento del lenguaje'!AH14) ->  | AF43: =IF('Conocimiento del lenguaje'!AI14="","",'Conocimiento del lenguaje'!AI14) ->  | AG43: =IF('Conocimiento del lenguaje'!AJ14="","",'Conocimiento del lenguaje'!AJ14) ->  | AH43: =IF('Conocimiento del lenguaje'!AK14="","",'Conocimiento del lenguaje'!AK14) ->  | AI43: =IF('Conocimiento del lenguaje'!AL14="","",'Conocimiento del lenguaje'!AL14) ->  | AJ43: =IF('Conocimiento del lenguaje'!AM14="","",'Conocimiento del lenguaje'!AM14) ->  | AK43: =IF('Conocimiento del lenguaje'!AN14="","",'Conocimiento del lenguaje'!AN14) ->  | AL43: =IF('Conocimiento del lenguaje'!AO14="","",'Conocimiento del lenguaje'!AO14) ->  | AM43: =IF('Conocimiento del lenguaje'!AP14="","",'Conocimiento del lenguaje'!AP14) -> 
D44: Criterio Evaluación 6.2 | E44: =IF('Conocimiento del lenguaje'!H15="","",'Conocimiento del lenguaje'!H15) ->  | F44: =IF('Conocimiento del lenguaje'!I15="","",'Conocimiento del lenguaje'!I15) ->  | G44: =IF('Conocimiento del lenguaje'!J15="","",'Conocimiento del lenguaje'!J15) ->  | H44: =IF('Conocimiento del lenguaje'!K15="","",'Conocimiento del lenguaje'!K15) ->  | I44: =IF('Conocimiento del lenguaje'!L15="","",'Conocimiento del lenguaje'!L15) ->  | J44: =IF('Conocimiento del lenguaje'!M15="","",'Conocimiento del lenguaje'!M15) ->  | K44: =IF('Conocimiento del lenguaje'!N15="","",'Conocimiento del lenguaje'!N15) ->  | L44: =IF('Conocimiento del lenguaje'!O15="","",'Conocimiento del lenguaje'!O15) ->  | M44: =IF('Conocimiento del lenguaje'!P15="","",'Conocimiento del lenguaje'!P15) ->  | N44: =IF('Conocimiento del lenguaje'!Q15="","",'Conocimiento del lenguaje'!Q15) ->  | O44: =IF('Conocimiento del lenguaje'!R15="","",'Conocimiento del lenguaje'!R15) ->  | P44: =IF('Conocimiento del lenguaje'!S15="","",'Conocimiento del lenguaje'!S15) ->  | Q44: =IF('Conocimiento del lenguaje'!T15="","",'Conocimiento del lenguaje'!T15) ->  | R44: =IF('Conocimiento del lenguaje'!U15="","",'Conocimiento del lenguaje'!U15) ->  | S44: =IF('Conocimiento del lenguaje'!V15="","",'Conocimiento del lenguaje'!V15) ->  | T44: =IF('Conocimiento del lenguaje'!W15="","",'Conocimiento del lenguaje'!W15) ->  | U44: =IF('Conocimiento del lenguaje'!X15="","",'Conocimiento del lenguaje'!X15) ->  | V44: =IF('Conocimiento del lenguaje'!Y15="","",'Conocimiento del lenguaje'!Y15) ->  | W44: =IF('Conocimiento del lenguaje'!Z15="","",'Conocimiento del lenguaje'!Z15) ->  | X44: =IF('Conocimiento del lenguaje'!AA15="","",'Conocimiento del lenguaje'!AA15) ->  | Y44: =IF('Conocimiento del lenguaje'!AB15="","",'Conocimiento del lenguaje'!AB15) ->  | Z44: =IF('Conocimiento del lenguaje'!AC15="","",'Conocimiento del lenguaje'!AC15) ->  | AA44: =IF('Conocimiento del lenguaje'!AD15="","",'Conocimiento del lenguaje'!AD15) ->  | AB44: =IF('Conocimiento del lenguaje'!AE15="","",'Conocimiento del lenguaje'!AE15) ->  | AC44: =IF('Conocimiento del lenguaje'!AF15="","",'Conocimiento del lenguaje'!AF15) ->  | AD44: =IF('Conocimiento del lenguaje'!AG15="","",'Conocimiento del lenguaje'!AG15) ->  | AE44: =IF('Conocimiento del lenguaje'!AH15="","",'Conocimiento del lenguaje'!AH15) ->  | AF44: =IF('Conocimiento del lenguaje'!AI15="","",'Conocimiento del lenguaje'!AI15) ->  | AG44: =IF('Conocimiento del lenguaje'!AJ15="","",'Conocimiento del lenguaje'!AJ15) ->  | AH44: =IF('Conocimiento del lenguaje'!AK15="","",'Conocimiento del lenguaje'!AK15) ->  | AI44: =IF('Conocimiento del lenguaje'!AL15="","",'Conocimiento del lenguaje'!AL15) ->  | AJ44: =IF('Conocimiento del lenguaje'!AM15="","",'Conocimiento del lenguaje'!AM15) ->  | AK44: =IF('Conocimiento del lenguaje'!AN15="","",'Conocimiento del lenguaje'!AN15) ->  | AL44: =IF('Conocimiento del lenguaje'!AO15="","",'Conocimiento del lenguaje'!AO15) ->  | AM44: =IF('Conocimiento del lenguaje'!AP15="","",'Conocimiento del lenguaje'!AP15) -> 
B45: Educación Física | C45: Comp. Esp. 1 | D45: Criterio Evaluación 1.1 | E45: =IF('Educacion Fisica'!H4="","",'Educacion Fisica'!H4) ->  | F45: =IF('Educacion Fisica'!I4="","",'Educacion Fisica'!I4) ->  | G45: =IF('Educacion Fisica'!J4="","",'Educacion Fisica'!J4) ->  | H45: =IF('Educacion Fisica'!K4="","",'Educacion Fisica'!K4) ->  | I45: =IF('Educacion Fisica'!L4="","",'Educacion Fisica'!L4) ->  | J45: =IF('Educacion Fisica'!M4="","",'Educacion Fisica'!M4) ->  | K45: =IF('Educacion Fisica'!N4="","",'Educacion Fisica'!N4) ->  | L45: =IF('Educacion Fisica'!O4="","",'Educacion Fisica'!O4) ->  | M45: =IF('Educacion Fisica'!P4="","",'Educacion Fisica'!P4) ->  | N45: =IF('Educacion Fisica'!Q4="","",'Educacion Fisica'!Q4) ->  | O45: =IF('Educacion Fisica'!R4="","",'Educacion Fisica'!R4) ->  | P45: =IF('Educacion Fisica'!S4="","",'Educacion Fisica'!S4) ->  | Q45: =IF('Educacion Fisica'!T4="","",'Educacion Fisica'!T4) ->  | R45: =IF('Educacion Fisica'!U4="","",'Educacion Fisica'!U4) ->  | S45: =IF('Educacion Fisica'!V4="","",'Educacion Fisica'!V4) ->  | T45: =IF('Educacion Fisica'!W4="","",'Educacion Fisica'!W4) ->  | U45: =IF('Educacion Fisica'!X4="","",'Educacion Fisica'!X4) ->  | V45: =IF('Educacion Fisica'!Y4="","",'Educacion Fisica'!Y4) ->  | W45: =IF('Educacion Fisica'!Z4="","",'Educacion Fisica'!Z4) ->  | X45: =IF('Educacion Fisica'!AA4="","",'Educacion Fisica'!AA4) ->  | Y45: =IF('Educacion Fisica'!AB4="","",'Educacion Fisica'!AB4) ->  | Z45: =IF('Educacion Fisica'!AC4="","",'Educacion Fisica'!AC4) ->  | AA45: =IF('Educacion Fisica'!AD4="","",'Educacion Fisica'!AD4) ->  | AB45: =IF('Educacion Fisica'!AE4="","",'Educacion Fisica'!AE4) ->  | AC45: =IF('Educacion Fisica'!AF4="","",'Educacion Fisica'!AF4) ->  | AD45: =IF('Educacion Fisica'!AG4="","",'Educacion Fisica'!AG4) ->  | AE45: =IF('Educacion Fisica'!AH4="","",'Educacion Fisica'!AH4) ->  | AF45: =IF('Educacion Fisica'!AI4="","",'Educacion Fisica'!AI4) ->  | AG45: =IF('Educacion Fisica'!AJ4="","",'Educacion Fisica'!AJ4) ->  | AH45: =IF('Educacion Fisica'!AK4="","",'Educacion Fisica'!AK4) ->  | AI45: =IF('Educacion Fisica'!AL4="","",'Educacion Fisica'!AL4) ->  | AJ45: =IF('Educacion Fisica'!AM4="","",'Educacion Fisica'!AM4) ->  | AK45: =IF('Educacion Fisica'!AN4="","",'Educacion Fisica'!AN4) ->  | AL45: =IF('Educacion Fisica'!AO4="","",'Educacion Fisica'!AO4) ->  | AM45: =IF('Educacion Fisica'!AP4="","",'Educacion Fisica'!AP4) -> 
D46: Criterio Evaluación 1.2 | E46: =IF('Educacion Fisica'!H5="","",'Educacion Fisica'!H5) ->  | F46: =IF('Educacion Fisica'!I5="","",'Educacion Fisica'!I5) ->  | G46: =IF('Educacion Fisica'!J5="","",'Educacion Fisica'!J5) ->  | H46: =IF('Educacion Fisica'!K5="","",'Educacion Fisica'!K5) ->  | I46: =IF('Educacion Fisica'!L5="","",'Educacion Fisica'!L5) ->  | J46: =IF('Educacion Fisica'!M5="","",'Educacion Fisica'!M5) ->  | K46: =IF('Educacion Fisica'!N5="","",'Educacion Fisica'!N5) ->  | L46: =IF('Educacion Fisica'!O5="","",'Educacion Fisica'!O5) ->  | M46: =IF('Educacion Fisica'!P5="","",'Educacion Fisica'!P5) ->  | N46: =IF('Educacion Fisica'!Q5="","",'Educacion Fisica'!Q5) ->  | O46: =IF('Educacion Fisica'!R5="","",'Educacion Fisica'!R5) ->  | P46: =IF('Educacion Fisica'!S5="","",'Educacion Fisica'!S5) ->  | Q46: =IF('Educacion Fisica'!T5="","",'Educacion Fisica'!T5) ->  | R46: =IF('Educacion Fisica'!U5="","",'Educacion Fisica'!U5) ->  | S46: =IF('Educacion Fisica'!V5="","",'Educacion Fisica'!V5) ->  | T46: =IF('Educacion Fisica'!W5="","",'Educacion Fisica'!W5) ->  | U46: =IF('Educacion Fisica'!X5="","",'Educacion Fisica'!X5) ->  | V46: =IF('Educacion Fisica'!Y5="","",'Educacion Fisica'!Y5) ->  | W46: =IF('Educacion Fisica'!Z5="","",'Educacion Fisica'!Z5) ->  | X46: =IF('Educacion Fisica'!AA5="","",'Educacion Fisica'!AA5) ->  | Y46: =IF('Educacion Fisica'!AB5="","",'Educacion Fisica'!AB5) ->  | Z46: =IF('Educacion Fisica'!AC5="","",'Educacion Fisica'!AC5) ->  | AA46: =IF('Educacion Fisica'!AD5="","",'Educacion Fisica'!AD5) ->  | AB46: =IF('Educacion Fisica'!AE5="","",'Educacion Fisica'!AE5) ->  | AC46: =IF('Educacion Fisica'!AF5="","",'Educacion Fisica'!AF5) ->  | AD46: =IF('Educacion Fisica'!AG5="","",'Educacion Fisica'!AG5) ->  | AE46: =IF('Educacion Fisica'!AH5="","",'Educacion Fisica'!AH5) ->  | AF46: =IF('Educacion Fisica'!AI5="","",'Educacion Fisica'!AI5) ->  | AG46: =IF('Educacion Fisica'!AJ5="","",'Educacion Fisica'!AJ5) ->  | AH46: =IF('Educacion Fisica'!AK5="","",'Educacion Fisica'!AK5) ->  | AI46: =IF('Educacion Fisica'!AL5="","",'Educacion Fisica'!AL5) ->  | AJ46: =IF('Educacion Fisica'!AM5="","",'Educacion Fisica'!AM5) ->  | AK46: =IF('Educacion Fisica'!AN5="","",'Educacion Fisica'!AN5) ->  | AL46: =IF('Educacion Fisica'!AO5="","",'Educacion Fisica'!AO5) ->  | AM46: =IF('Educacion Fisica'!AP5="","",'Educacion Fisica'!AP5) -> 
D47: Criterio Evaluación 1.3 | E47: =IF('Educacion Fisica'!H6="","",'Educacion Fisica'!H6) ->  | F47: =IF('Educacion Fisica'!I6="","",'Educacion Fisica'!I6) ->  | G47: =IF('Educacion Fisica'!J6="","",'Educacion Fisica'!J6) ->  | H47: =IF('Educacion Fisica'!K6="","",'Educacion Fisica'!K6) ->  | I47: =IF('Educacion Fisica'!L6="","",'Educacion Fisica'!L6) ->  | J47: =IF('Educacion Fisica'!M6="","",'Educacion Fisica'!M6) ->  | K47: =IF('Educacion Fisica'!N6="","",'Educacion Fisica'!N6) ->  | L47: =IF('Educacion Fisica'!O6="","",'Educacion Fisica'!O6) ->  | M47: =IF('Educacion Fisica'!P6="","",'Educacion Fisica'!P6) ->  | N47: =IF('Educacion Fisica'!Q6="","",'Educacion Fisica'!Q6) ->  | O47: =IF('Educacion Fisica'!R6="","",'Educacion Fisica'!R6) ->  | P47: =IF('Educacion Fisica'!S6="","",'Educacion Fisica'!S6) ->  | Q47: =IF('Educacion Fisica'!T6="","",'Educacion Fisica'!T6) ->  | R47: =IF('Educacion Fisica'!U6="","",'Educacion Fisica'!U6) ->  | S47: =IF('Educacion Fisica'!V6="","",'Educacion Fisica'!V6) ->  | T47: =IF('Educacion Fisica'!W6="","",'Educacion Fisica'!W6) ->  | U47: =IF('Educacion Fisica'!X6="","",'Educacion Fisica'!X6) ->  | V47: =IF('Educacion Fisica'!Y6="","",'Educacion Fisica'!Y6) ->  | W47: =IF('Educacion Fisica'!Z6="","",'Educacion Fisica'!Z6) ->  | X47: =IF('Educacion Fisica'!AA6="","",'Educacion Fisica'!AA6) ->  | Y47: =IF('Educacion Fisica'!AB6="","",'Educacion Fisica'!AB6) ->  | Z47: =IF('Educacion Fisica'!AC6="","",'Educacion Fisica'!AC6) ->  | AA47: =IF('Educacion Fisica'!AD6="","",'Educacion Fisica'!AD6) ->  | AB47: =IF('Educacion Fisica'!AE6="","",'Educacion Fisica'!AE6) ->  | AC47: =IF('Educacion Fisica'!AF6="","",'Educacion Fisica'!AF6) ->  | AD47: =IF('Educacion Fisica'!AG6="","",'Educacion Fisica'!AG6) ->  | AE47: =IF('Educacion Fisica'!AH6="","",'Educacion Fisica'!AH6) ->  | AF47: =IF('Educacion Fisica'!AI6="","",'Educacion Fisica'!AI6) ->  | AG47: =IF('Educacion Fisica'!AJ6="","",'Educacion Fisica'!AJ6) ->  | AH47: =IF('Educacion Fisica'!AK6="","",'Educacion Fisica'!AK6) ->  | AI47: =IF('Educacion Fisica'!AL6="","",'Educacion Fisica'!AL6) ->  | AJ47: =IF('Educacion Fisica'!AM6="","",'Educacion Fisica'!AM6) ->  | AK47: =IF('Educacion Fisica'!AN6="","",'Educacion Fisica'!AN6) ->  | AL47: =IF('Educacion Fisica'!AO6="","",'Educacion Fisica'!AO6) ->  | AM47: =IF('Educacion Fisica'!AP6="","",'Educacion Fisica'!AP6) -> 
D48: Criterio Evaluación 1.4 | E48: =IF('Educacion Fisica'!H7="","",'Educacion Fisica'!H7) ->  | F48: =IF('Educacion Fisica'!I7="","",'Educacion Fisica'!I7) ->  | G48: =IF('Educacion Fisica'!J7="","",'Educacion Fisica'!J7) ->  | H48: =IF('Educacion Fisica'!K7="","",'Educacion Fisica'!K7) ->  | I48: =IF('Educacion Fisica'!L7="","",'Educacion Fisica'!L7) ->  | J48: =IF('Educacion Fisica'!M7="","",'Educacion Fisica'!M7) ->  | K48: =IF('Educacion Fisica'!N7="","",'Educacion Fisica'!N7) ->  | L48: =IF('Educacion Fisica'!O7="","",'Educacion Fisica'!O7) ->  | M48: =IF('Educacion Fisica'!P7="","",'Educacion Fisica'!P7) ->  | N48: =IF('Educacion Fisica'!Q7="","",'Educacion Fisica'!Q7) ->  | O48: =IF('Educacion Fisica'!R7="","",'Educacion Fisica'!R7) ->  | P48: =IF('Educacion Fisica'!S7="","",'Educacion Fisica'!S7) ->  | Q48: =IF('Educacion Fisica'!T7="","",'Educacion Fisica'!T7) ->  | R48: =IF('Educacion Fisica'!U7="","",'Educacion Fisica'!U7) ->  | S48: =IF('Educacion Fisica'!V7="","",'Educacion Fisica'!V7) ->  | T48: =IF('Educacion Fisica'!W7="","",'Educacion Fisica'!W7) ->  | U48: =IF('Educacion Fisica'!X7="","",'Educacion Fisica'!X7) ->  | V48: =IF('Educacion Fisica'!Y7="","",'Educacion Fisica'!Y7) ->  | W48: =IF('Educacion Fisica'!Z7="","",'Educacion Fisica'!Z7) ->  | X48: =IF('Educacion Fisica'!AA7="","",'Educacion Fisica'!AA7) ->  | Y48: =IF('Educacion Fisica'!AB7="","",'Educacion Fisica'!AB7) ->  | Z48: =IF('Educacion Fisica'!AC7="","",'Educacion Fisica'!AC7) ->  | AA48: =IF('Educacion Fisica'!AD7="","",'Educacion Fisica'!AD7) ->  | AB48: =IF('Educacion Fisica'!AE7="","",'Educacion Fisica'!AE7) ->  | AC48: =IF('Educacion Fisica'!AF7="","",'Educacion Fisica'!AF7) ->  | AD48: =IF('Educacion Fisica'!AG7="","",'Educacion Fisica'!AG7) ->  | AE48: =IF('Educacion Fisica'!AH7="","",'Educacion Fisica'!AH7) ->  | AF48: =IF('Educacion Fisica'!AI7="","",'Educacion Fisica'!AI7) ->  | AG48: =IF('Educacion Fisica'!AJ7="","",'Educacion Fisica'!AJ7) ->  | AH48: =IF('Educacion Fisica'!AK7="","",'Educacion Fisica'!AK7) ->  | AI48: =IF('Educacion Fisica'!AL7="","",'Educacion Fisica'!AL7) ->  | AJ48: =IF('Educacion Fisica'!AM7="","",'Educacion Fisica'!AM7) ->  | AK48: =IF('Educacion Fisica'!AN7="","",'Educacion Fisica'!AN7) ->  | AL48: =IF('Educacion Fisica'!AO7="","",'Educacion Fisica'!AO7) ->  | AM48: =IF('Educacion Fisica'!AP7="","",'Educacion Fisica'!AP7) -> 
D49: Criterio Evaluación 1.5 | E49: =IF('Educacion Fisica'!H8="","",'Educacion Fisica'!H8) ->  | F49: =IF('Educacion Fisica'!I8="","",'Educacion Fisica'!I8) ->  | G49: =IF('Educacion Fisica'!J8="","",'Educacion Fisica'!J8) ->  | H49: =IF('Educacion Fisica'!K8="","",'Educacion Fisica'!K8) ->  | I49: =IF('Educacion Fisica'!L8="","",'Educacion Fisica'!L8) ->  | J49: =IF('Educacion Fisica'!M8="","",'Educacion Fisica'!M8) ->  | K49: =IF('Educacion Fisica'!N8="","",'Educacion Fisica'!N8) ->  | L49: =IF('Educacion Fisica'!O8="","",'Educacion Fisica'!O8) ->  | M49: =IF('Educacion Fisica'!P8="","",'Educacion Fisica'!P8) ->  | N49: =IF('Educacion Fisica'!Q8="","",'Educacion Fisica'!Q8) ->  | O49: =IF('Educacion Fisica'!R8="","",'Educacion Fisica'!R8) ->  | P49: =IF('Educacion Fisica'!S8="","",'Educacion Fisica'!S8) ->  | Q49: =IF('Educacion Fisica'!T8="","",'Educacion Fisica'!T8) ->  | R49: =IF('Educacion Fisica'!U8="","",'Educacion Fisica'!U8) ->  | S49: =IF('Educacion Fisica'!V8="","",'Educacion Fisica'!V8) ->  | T49: =IF('Educacion Fisica'!W8="","",'Educacion Fisica'!W8) ->  | U49: =IF('Educacion Fisica'!X8="","",'Educacion Fisica'!X8) ->  | V49: =IF('Educacion Fisica'!Y8="","",'Educacion Fisica'!Y8) ->  | W49: =IF('Educacion Fisica'!Z8="","",'Educacion Fisica'!Z8) ->  | X49: =IF('Educacion Fisica'!AA8="","",'Educacion Fisica'!AA8) ->  | Y49: =IF('Educacion Fisica'!AB8="","",'Educacion Fisica'!AB8) ->  | Z49: =IF('Educacion Fisica'!AC8="","",'Educacion Fisica'!AC8) ->  | AA49: =IF('Educacion Fisica'!AD8="","",'Educacion Fisica'!AD8) ->  | AB49: =IF('Educacion Fisica'!AE8="","",'Educacion Fisica'!AE8) ->  | AC49: =IF('Educacion Fisica'!AF8="","",'Educacion Fisica'!AF8) ->  | AD49: =IF('Educacion Fisica'!AG8="","",'Educacion Fisica'!AG8) ->  | AE49: =IF('Educacion Fisica'!AH8="","",'Educacion Fisica'!AH8) ->  | AF49: =IF('Educacion Fisica'!AI8="","",'Educacion Fisica'!AI8) ->  | AG49: =IF('Educacion Fisica'!AJ8="","",'Educacion Fisica'!AJ8) ->  | AH49: =IF('Educacion Fisica'!AK8="","",'Educacion Fisica'!AK8) ->  | AI49: =IF('Educacion Fisica'!AL8="","",'Educacion Fisica'!AL8) ->  | AJ49: =IF('Educacion Fisica'!AM8="","",'Educacion Fisica'!AM8) ->  | AK49: =IF('Educacion Fisica'!AN8="","",'Educacion Fisica'!AN8) ->  | AL49: =IF('Educacion Fisica'!AO8="","",'Educacion Fisica'!AO8) ->  | AM49: =IF('Educacion Fisica'!AP8="","",'Educacion Fisica'!AP8) -> 
D50: Criterio Evaluación 1.6 | E50: =IF('Educacion Fisica'!H9="","",'Educacion Fisica'!H9) ->  | F50: =IF('Educacion Fisica'!I9="","",'Educacion Fisica'!I9) ->  | G50: =IF('Educacion Fisica'!J9="","",'Educacion Fisica'!J9) ->  | H50: =IF('Educacion Fisica'!K9="","",'Educacion Fisica'!K9) ->  | I50: =IF('Educacion Fisica'!L9="","",'Educacion Fisica'!L9) ->  | J50: =IF('Educacion Fisica'!M9="","",'Educacion Fisica'!M9) ->  | K50: =IF('Educacion Fisica'!N9="","",'Educacion Fisica'!N9) ->  | L50: =IF('Educacion Fisica'!O9="","",'Educacion Fisica'!O9) ->  | M50: =IF('Educacion Fisica'!P9="","",'Educacion Fisica'!P9) ->  | N50: =IF('Educacion Fisica'!Q9="","",'Educacion Fisica'!Q9) ->  | O50: =IF('Educacion Fisica'!R9="","",'Educacion Fisica'!R9) ->  | P50: =IF('Educacion Fisica'!S9="","",'Educacion Fisica'!S9) ->  | Q50: =IF('Educacion Fisica'!T9="","",'Educacion Fisica'!T9) ->  | R50: =IF('Educacion Fisica'!U9="","",'Educacion Fisica'!U9) ->  | S50: =IF('Educacion Fisica'!V9="","",'Educacion Fisica'!V9) ->  | T50: =IF('Educacion Fisica'!W9="","",'Educacion Fisica'!W9) ->  | U50: =IF('Educacion Fisica'!X9="","",'Educacion Fisica'!X9) ->  | V50: =IF('Educacion Fisica'!Y9="","",'Educacion Fisica'!Y9) ->  | W50: =IF('Educacion Fisica'!Z9="","",'Educacion Fisica'!Z9) ->  | X50: =IF('Educacion Fisica'!AA9="","",'Educacion Fisica'!AA9) ->  | Y50: =IF('Educacion Fisica'!AB9="","",'Educacion Fisica'!AB9) ->  | Z50: =IF('Educacion Fisica'!AC9="","",'Educacion Fisica'!AC9) ->  | AA50: =IF('Educacion Fisica'!AD9="","",'Educacion Fisica'!AD9) ->  | AB50: =IF('Educacion Fisica'!AE9="","",'Educacion Fisica'!AE9) ->  | AC50: =IF('Educacion Fisica'!AF9="","",'Educacion Fisica'!AF9) ->  | AD50: =IF('Educacion Fisica'!AG9="","",'Educacion Fisica'!AG9) ->  | AE50: =IF('Educacion Fisica'!AH9="","",'Educacion Fisica'!AH9) ->  | AF50: =IF('Educacion Fisica'!AI9="","",'Educacion Fisica'!AI9) ->  | AG50: =IF('Educacion Fisica'!AJ9="","",'Educacion Fisica'!AJ9) ->  | AH50: =IF('Educacion Fisica'!AK9="","",'Educacion Fisica'!AK9) ->  | AI50: =IF('Educacion Fisica'!AL9="","",'Educacion Fisica'!AL9) ->  | AJ50: =IF('Educacion Fisica'!AM9="","",'Educacion Fisica'!AM9) ->  | AK50: =IF('Educacion Fisica'!AN9="","",'Educacion Fisica'!AN9) ->  | AL50: =IF('Educacion Fisica'!AO9="","",'Educacion Fisica'!AO9) ->  | AM50: =IF('Educacion Fisica'!AP9="","",'Educacion Fisica'!AP9) -> 
D51: Criterio Evaluación 1.7 | E51: =IF('Educacion Fisica'!H10="","",'Educacion Fisica'!H10) ->  | F51: =IF('Educacion Fisica'!I10="","",'Educacion Fisica'!I10) ->  | G51: =IF('Educacion Fisica'!J10="","",'Educacion Fisica'!J10) ->  | H51: =IF('Educacion Fisica'!K10="","",'Educacion Fisica'!K10) ->  | I51: =IF('Educacion Fisica'!L10="","",'Educacion Fisica'!L10) ->  | J51: =IF('Educacion Fisica'!M10="","",'Educacion Fisica'!M10) ->  | K51: =IF('Educacion Fisica'!N10="","",'Educacion Fisica'!N10) ->  | L51: =IF('Educacion Fisica'!O10="","",'Educacion Fisica'!O10) ->  | M51: =IF('Educacion Fisica'!P10="","",'Educacion Fisica'!P10) ->  | N51: =IF('Educacion Fisica'!Q10="","",'Educacion Fisica'!Q10) ->  | O51: =IF('Educacion Fisica'!R10="","",'Educacion Fisica'!R10) ->  | P51: =IF('Educacion Fisica'!S10="","",'Educacion Fisica'!S10) ->  | Q51: =IF('Educacion Fisica'!T10="","",'Educacion Fisica'!T10) ->  | R51: =IF('Educacion Fisica'!U10="","",'Educacion Fisica'!U10) ->  | S51: =IF('Educacion Fisica'!V10="","",'Educacion Fisica'!V10) ->  | T51: =IF('Educacion Fisica'!W10="","",'Educacion Fisica'!W10) ->  | U51: =IF('Educacion Fisica'!X10="","",'Educacion Fisica'!X10) ->  | V51: =IF('Educacion Fisica'!Y10="","",'Educacion Fisica'!Y10) ->  | W51: =IF('Educacion Fisica'!Z10="","",'Educacion Fisica'!Z10) ->  | X51: =IF('Educacion Fisica'!AA10="","",'Educacion Fisica'!AA10) ->  | Y51: =IF('Educacion Fisica'!AB10="","",'Educacion Fisica'!AB10) ->  | Z51: =IF('Educacion Fisica'!AC10="","",'Educacion Fisica'!AC10) ->  | AA51: =IF('Educacion Fisica'!AD10="","",'Educacion Fisica'!AD10) ->  | AB51: =IF('Educacion Fisica'!AE10="","",'Educacion Fisica'!AE10) ->  | AC51: =IF('Educacion Fisica'!AF10="","",'Educacion Fisica'!AF10) ->  | AD51: =IF('Educacion Fisica'!AG10="","",'Educacion Fisica'!AG10) ->  | AE51: =IF('Educacion Fisica'!AH10="","",'Educacion Fisica'!AH10) ->  | AF51: =IF('Educacion Fisica'!AI10="","",'Educacion Fisica'!AI10) ->  | AG51: =IF('Educacion Fisica'!AJ10="","",'Educacion Fisica'!AJ10) ->  | AH51: =IF('Educacion Fisica'!AK10="","",'Educacion Fisica'!AK10) ->  | AI51: =IF('Educacion Fisica'!AL10="","",'Educacion Fisica'!AL10) ->  | AJ51: =IF('Educacion Fisica'!AM10="","",'Educacion Fisica'!AM10) ->  | AK51: =IF('Educacion Fisica'!AN10="","",'Educacion Fisica'!AN10) ->  | AL51: =IF('Educacion Fisica'!AO10="","",'Educacion Fisica'!AO10) ->  | AM51: =IF('Educacion Fisica'!AP10="","",'Educacion Fisica'!AP10) -> 
D52: Criterio Evaluación 1.8 | E52: =IF('Educacion Fisica'!H11="","",'Educacion Fisica'!H11) ->  | F52: =IF('Educacion Fisica'!I11="","",'Educacion Fisica'!I11) ->  | G52: =IF('Educacion Fisica'!J11="","",'Educacion Fisica'!J11) ->  | H52: =IF('Educacion Fisica'!K11="","",'Educacion Fisica'!K11) ->  | I52: =IF('Educacion Fisica'!L11="","",'Educacion Fisica'!L11) ->  | J52: =IF('Educacion Fisica'!M11="","",'Educacion Fisica'!M11) ->  | K52: =IF('Educacion Fisica'!N11="","",'Educacion Fisica'!N11) ->  | L52: =IF('Educacion Fisica'!O11="","",'Educacion Fisica'!O11) ->  | M52: =IF('Educacion Fisica'!P11="","",'Educacion Fisica'!P11) ->  | N52: =IF('Educacion Fisica'!Q11="","",'Educacion Fisica'!Q11) ->  | O52: =IF('Educacion Fisica'!R11="","",'Educacion Fisica'!R11) ->  | P52: =IF('Educacion Fisica'!S11="","",'Educacion Fisica'!S11) ->  | Q52: =IF('Educacion Fisica'!T11="","",'Educacion Fisica'!T11) ->  | R52: =IF('Educacion Fisica'!U11="","",'Educacion Fisica'!U11) ->  | S52: =IF('Educacion Fisica'!V11="","",'Educacion Fisica'!V11) ->  | T52: =IF('Educacion Fisica'!W11="","",'Educacion Fisica'!W11) ->  | U52: =IF('Educacion Fisica'!X11="","",'Educacion Fisica'!X11) ->  | V52: =IF('Educacion Fisica'!Y11="","",'Educacion Fisica'!Y11) ->  | W52: =IF('Educacion Fisica'!Z11="","",'Educacion Fisica'!Z11) ->  | X52: =IF('Educacion Fisica'!AA11="","",'Educacion Fisica'!AA11) ->  | Y52: =IF('Educacion Fisica'!AB11="","",'Educacion Fisica'!AB11) ->  | Z52: =IF('Educacion Fisica'!AC11="","",'Educacion Fisica'!AC11) ->  | AA52: =IF('Educacion Fisica'!AD11="","",'Educacion Fisica'!AD11) ->  | AB52: =IF('Educacion Fisica'!AE11="","",'Educacion Fisica'!AE11) ->  | AC52: =IF('Educacion Fisica'!AF11="","",'Educacion Fisica'!AF11) ->  | AD52: =IF('Educacion Fisica'!AG11="","",'Educacion Fisica'!AG11) ->  | AE52: =IF('Educacion Fisica'!AH11="","",'Educacion Fisica'!AH11) ->  | AF52: =IF('Educacion Fisica'!AI11="","",'Educacion Fisica'!AI11) ->  | AG52: =IF('Educacion Fisica'!AJ11="","",'Educacion Fisica'!AJ11) ->  | AH52: =IF('Educacion Fisica'!AK11="","",'Educacion Fisica'!AK11) ->  | AI52: =IF('Educacion Fisica'!AL11="","",'Educacion Fisica'!AL11) ->  | AJ52: =IF('Educacion Fisica'!AM11="","",'Educacion Fisica'!AM11) ->  | AK52: =IF('Educacion Fisica'!AN11="","",'Educacion Fisica'!AN11) ->  | AL52: =IF('Educacion Fisica'!AO11="","",'Educacion Fisica'!AO11) ->  | AM52: =IF('Educacion Fisica'!AP11="","",'Educacion Fisica'!AP11) -> 
D53: Criterio Evaluación 1.9 | E53: =IF('Educacion Fisica'!H12="","",'Educacion Fisica'!H12) ->  | F53: =IF('Educacion Fisica'!I12="","",'Educacion Fisica'!I12) ->  | G53: =IF('Educacion Fisica'!J12="","",'Educacion Fisica'!J12) ->  | H53: =IF('Educacion Fisica'!K12="","",'Educacion Fisica'!K12) ->  | I53: =IF('Educacion Fisica'!L12="","",'Educacion Fisica'!L12) ->  | J53: =IF('Educacion Fisica'!M12="","",'Educacion Fisica'!M12) ->  | K53: =IF('Educacion Fisica'!N12="","",'Educacion Fisica'!N12) ->  | L53: =IF('Educacion Fisica'!O12="","",'Educacion Fisica'!O12) ->  | M53: =IF('Educacion Fisica'!P12="","",'Educacion Fisica'!P12) ->  | N53: =IF('Educacion Fisica'!Q12="","",'Educacion Fisica'!Q12) ->  | O53: =IF('Educacion Fisica'!R12="","",'Educacion Fisica'!R12) ->  | P53: =IF('Educacion Fisica'!S12="","",'Educacion Fisica'!S12) ->  | Q53: =IF('Educacion Fisica'!T12="","",'Educacion Fisica'!T12) ->  | R53: =IF('Educacion Fisica'!U12="","",'Educacion Fisica'!U12) ->  | S53: =IF('Educacion Fisica'!V12="","",'Educacion Fisica'!V12) ->  | T53: =IF('Educacion Fisica'!W12="","",'Educacion Fisica'!W12) ->  | U53: =IF('Educacion Fisica'!X12="","",'Educacion Fisica'!X12) ->  | V53: =IF('Educacion Fisica'!Y12="","",'Educacion Fisica'!Y12) ->  | W53: =IF('Educacion Fisica'!Z12="","",'Educacion Fisica'!Z12) ->  | X53: =IF('Educacion Fisica'!AA12="","",'Educacion Fisica'!AA12) ->  | Y53: =IF('Educacion Fisica'!AB12="","",'Educacion Fisica'!AB12) ->  | Z53: =IF('Educacion Fisica'!AC12="","",'Educacion Fisica'!AC12) ->  | AA53: =IF('Educacion Fisica'!AD12="","",'Educacion Fisica'!AD12) ->  | AB53: =IF('Educacion Fisica'!AE12="","",'Educacion Fisica'!AE12) ->  | AC53: =IF('Educacion Fisica'!AF12="","",'Educacion Fisica'!AF12) ->  | AD53: =IF('Educacion Fisica'!AG12="","",'Educacion Fisica'!AG12) ->  | AE53: =IF('Educacion Fisica'!AH12="","",'Educacion Fisica'!AH12) ->  | AF53: =IF('Educacion Fisica'!AI12="","",'Educacion Fisica'!AI12) ->  | AG53: =IF('Educacion Fisica'!AJ12="","",'Educacion Fisica'!AJ12) ->  | AH53: =IF('Educacion Fisica'!AK12="","",'Educacion Fisica'!AK12) ->  | AI53: =IF('Educacion Fisica'!AL12="","",'Educacion Fisica'!AL12) ->  | AJ53: =IF('Educacion Fisica'!AM12="","",'Educacion Fisica'!AM12) ->  | AK53: =IF('Educacion Fisica'!AN12="","",'Educacion Fisica'!AN12) ->  | AL53: =IF('Educacion Fisica'!AO12="","",'Educacion Fisica'!AO12) ->  | AM53: =IF('Educacion Fisica'!AP12="","",'Educacion Fisica'!AP12) -> 
C54: Comp. Esp. 2 | D54: Criterio Evaluación 2.1 | E54: =IF('Educacion Fisica'!H13="","",'Educacion Fisica'!H13) ->  | F54: =IF('Educacion Fisica'!I13="","",'Educacion Fisica'!I13) ->  | G54: =IF('Educacion Fisica'!J13="","",'Educacion Fisica'!J13) ->  | H54: =IF('Educacion Fisica'!K13="","",'Educacion Fisica'!K13) ->  | I54: =IF('Educacion Fisica'!L13="","",'Educacion Fisica'!L13) ->  | J54: =IF('Educacion Fisica'!M13="","",'Educacion Fisica'!M13) ->  | K54: =IF('Educacion Fisica'!N13="","",'Educacion Fisica'!N13) ->  | L54: =IF('Educacion Fisica'!O13="","",'Educacion Fisica'!O13) ->  | M54: =IF('Educacion Fisica'!P13="","",'Educacion Fisica'!P13) ->  | N54: =IF('Educacion Fisica'!Q13="","",'Educacion Fisica'!Q13) ->  | O54: =IF('Educacion Fisica'!R13="","",'Educacion Fisica'!R13) ->  | P54: =IF('Educacion Fisica'!S13="","",'Educacion Fisica'!S13) ->  | Q54: =IF('Educacion Fisica'!T13="","",'Educacion Fisica'!T13) ->  | R54: =IF('Educacion Fisica'!U13="","",'Educacion Fisica'!U13) ->  | S54: =IF('Educacion Fisica'!V13="","",'Educacion Fisica'!V13) ->  | T54: =IF('Educacion Fisica'!W13="","",'Educacion Fisica'!W13) ->  | U54: =IF('Educacion Fisica'!X13="","",'Educacion Fisica'!X13) ->  | V54: =IF('Educacion Fisica'!Y13="","",'Educacion Fisica'!Y13) ->  | W54: =IF('Educacion Fisica'!Z13="","",'Educacion Fisica'!Z13) ->  | X54: =IF('Educacion Fisica'!AA13="","",'Educacion Fisica'!AA13) ->  | Y54: =IF('Educacion Fisica'!AB13="","",'Educacion Fisica'!AB13) ->  | Z54: =IF('Educacion Fisica'!AC13="","",'Educacion Fisica'!AC13) ->  | AA54: =IF('Educacion Fisica'!AD13="","",'Educacion Fisica'!AD13) ->  | AB54: =IF('Educacion Fisica'!AE13="","",'Educacion Fisica'!AE13) ->  | AC54: =IF('Educacion Fisica'!AF13="","",'Educacion Fisica'!AF13) ->  | AD54: =IF('Educacion Fisica'!AG13="","",'Educacion Fisica'!AG13) ->  | AE54: =IF('Educacion Fisica'!AH13="","",'Educacion Fisica'!AH13) ->  | AF54: =IF('Educacion Fisica'!AI13="","",'Educacion Fisica'!AI13) ->  | AG54: =IF('Educacion Fisica'!AJ13="","",'Educacion Fisica'!AJ13) ->  | AH54: =IF('Educacion Fisica'!AK13="","",'Educacion Fisica'!AK13) ->  | AI54: =IF('Educacion Fisica'!AL13="","",'Educacion Fisica'!AL13) ->  | AJ54: =IF('Educacion Fisica'!AM13="","",'Educacion Fisica'!AM13) ->  | AK54: =IF('Educacion Fisica'!AN13="","",'Educacion Fisica'!AN13) ->  | AL54: =IF('Educacion Fisica'!AO13="","",'Educacion Fisica'!AO13) ->  | AM54: =IF('Educacion Fisica'!AP13="","",'Educacion Fisica'!AP13) -> 
D55: Criterio Evaluación 2.2 | E55: =IF('Educacion Fisica'!H14="","",'Educacion Fisica'!H14) ->  | F55: =IF('Educacion Fisica'!I14="","",'Educacion Fisica'!I14) ->  | G55: =IF('Educacion Fisica'!J14="","",'Educacion Fisica'!J14) ->  | H55: =IF('Educacion Fisica'!K14="","",'Educacion Fisica'!K14) ->  | I55: =IF('Educacion Fisica'!L14="","",'Educacion Fisica'!L14) ->  | J55: =IF('Educacion Fisica'!M14="","",'Educacion Fisica'!M14) ->  | K55: =IF('Educacion Fisica'!N14="","",'Educacion Fisica'!N14) ->  | L55: =IF('Educacion Fisica'!O14="","",'Educacion Fisica'!O14) ->  | M55: =IF('Educacion Fisica'!P14="","",'Educacion Fisica'!P14) ->  | N55: =IF('Educacion Fisica'!Q14="","",'Educacion Fisica'!Q14) ->  | O55: =IF('Educacion Fisica'!R14="","",'Educacion Fisica'!R14) ->  | P55: =IF('Educacion Fisica'!S14="","",'Educacion Fisica'!S14) ->  | Q55: =IF('Educacion Fisica'!T14="","",'Educacion Fisica'!T14) ->  | R55: =IF('Educacion Fisica'!U14="","",'Educacion Fisica'!U14) ->  | S55: =IF('Educacion Fisica'!V14="","",'Educacion Fisica'!V14) ->  | T55: =IF('Educacion Fisica'!W14="","",'Educacion Fisica'!W14) ->  | U55: =IF('Educacion Fisica'!X14="","",'Educacion Fisica'!X14) ->  | V55: =IF('Educacion Fisica'!Y14="","",'Educacion Fisica'!Y14) ->  | W55: =IF('Educacion Fisica'!Z14="","",'Educacion Fisica'!Z14) ->  | X55: =IF('Educacion Fisica'!AA14="","",'Educacion Fisica'!AA14) ->  | Y55: =IF('Educacion Fisica'!AB14="","",'Educacion Fisica'!AB14) ->  | Z55: =IF('Educacion Fisica'!AC14="","",'Educacion Fisica'!AC14) ->  | AA55: =IF('Educacion Fisica'!AD14="","",'Educacion Fisica'!AD14) ->  | AB55: =IF('Educacion Fisica'!AE14="","",'Educacion Fisica'!AE14) ->  | AC55: =IF('Educacion Fisica'!AF14="","",'Educacion Fisica'!AF14) ->  | AD55: =IF('Educacion Fisica'!AG14="","",'Educacion Fisica'!AG14) ->  | AE55: =IF('Educacion Fisica'!AH14="","",'Educacion Fisica'!AH14) ->  | AF55: =IF('Educacion Fisica'!AI14="","",'Educacion Fisica'!AI14) ->  | AG55: =IF('Educacion Fisica'!AJ14="","",'Educacion Fisica'!AJ14) ->  | AH55: =IF('Educacion Fisica'!AK14="","",'Educacion Fisica'!AK14) ->  | AI55: =IF('Educacion Fisica'!AL14="","",'Educacion Fisica'!AL14) ->  | AJ55: =IF('Educacion Fisica'!AM14="","",'Educacion Fisica'!AM14) ->  | AK55: =IF('Educacion Fisica'!AN14="","",'Educacion Fisica'!AN14) ->  | AL55: =IF('Educacion Fisica'!AO14="","",'Educacion Fisica'!AO14) ->  | AM55: =IF('Educacion Fisica'!AP14="","",'Educacion Fisica'!AP14) -> 
D56: Criterio Evaluación 2.3 | E56: =IF('Educacion Fisica'!H15="","",'Educacion Fisica'!H15) ->  | F56: =IF('Educacion Fisica'!I15="","",'Educacion Fisica'!I15) ->  | G56: =IF('Educacion Fisica'!J15="","",'Educacion Fisica'!J15) ->  | H56: =IF('Educacion Fisica'!K15="","",'Educacion Fisica'!K15) ->  | I56: =IF('Educacion Fisica'!L15="","",'Educacion Fisica'!L15) ->  | J56: =IF('Educacion Fisica'!M15="","",'Educacion Fisica'!M15) ->  | K56: =IF('Educacion Fisica'!N15="","",'Educacion Fisica'!N15) ->  | L56: =IF('Educacion Fisica'!O15="","",'Educacion Fisica'!O15) ->  | M56: =IF('Educacion Fisica'!P15="","",'Educacion Fisica'!P15) ->  | N56: =IF('Educacion Fisica'!Q15="","",'Educacion Fisica'!Q15) ->  | O56: =IF('Educacion Fisica'!R15="","",'Educacion Fisica'!R15) ->  | P56: =IF('Educacion Fisica'!S15="","",'Educacion Fisica'!S15) ->  | Q56: =IF('Educacion Fisica'!T15="","",'Educacion Fisica'!T15) ->  | R56: =IF('Educacion Fisica'!U15="","",'Educacion Fisica'!U15) ->  | S56: =IF('Educacion Fisica'!V15="","",'Educacion Fisica'!V15) ->  | T56: =IF('Educacion Fisica'!W15="","",'Educacion Fisica'!W15) ->  | U56: =IF('Educacion Fisica'!X15="","",'Educacion Fisica'!X15) ->  | V56: =IF('Educacion Fisica'!Y15="","",'Educacion Fisica'!Y15) ->  | W56: =IF('Educacion Fisica'!Z15="","",'Educacion Fisica'!Z15) ->  | X56: =IF('Educacion Fisica'!AA15="","",'Educacion Fisica'!AA15) ->  | Y56: =IF('Educacion Fisica'!AB15="","",'Educacion Fisica'!AB15) ->  | Z56: =IF('Educacion Fisica'!AC15="","",'Educacion Fisica'!AC15) ->  | AA56: =IF('Educacion Fisica'!AD15="","",'Educacion Fisica'!AD15) ->  | AB56: =IF('Educacion Fisica'!AE15="","",'Educacion Fisica'!AE15) ->  | AC56: =IF('Educacion Fisica'!AF15="","",'Educacion Fisica'!AF15) ->  | AD56: =IF('Educacion Fisica'!AG15="","",'Educacion Fisica'!AG15) ->  | AE56: =IF('Educacion Fisica'!AH15="","",'Educacion Fisica'!AH15) ->  | AF56: =IF('Educacion Fisica'!AI15="","",'Educacion Fisica'!AI15) ->  | AG56: =IF('Educacion Fisica'!AJ15="","",'Educacion Fisica'!AJ15) ->  | AH56: =IF('Educacion Fisica'!AK15="","",'Educacion Fisica'!AK15) ->  | AI56: =IF('Educacion Fisica'!AL15="","",'Educacion Fisica'!AL15) ->  | AJ56: =IF('Educacion Fisica'!AM15="","",'Educacion Fisica'!AM15) ->  | AK56: =IF('Educacion Fisica'!AN15="","",'Educacion Fisica'!AN15) ->  | AL56: =IF('Educacion Fisica'!AO15="","",'Educacion Fisica'!AO15) ->  | AM56: =IF('Educacion Fisica'!AP15="","",'Educacion Fisica'!AP15) -> 
D57: Criterio Evaluación 2.4 | E57: =IF('Educacion Fisica'!H16="","",'Educacion Fisica'!H16) ->  | F57: =IF('Educacion Fisica'!I16="","",'Educacion Fisica'!I16) ->  | G57: =IF('Educacion Fisica'!J16="","",'Educacion Fisica'!J16) ->  | H57: =IF('Educacion Fisica'!K16="","",'Educacion Fisica'!K16) ->  | I57: =IF('Educacion Fisica'!L16="","",'Educacion Fisica'!L16) ->  | J57: =IF('Educacion Fisica'!M16="","",'Educacion Fisica'!M16) ->  | K57: =IF('Educacion Fisica'!N16="","",'Educacion Fisica'!N16) ->  | L57: =IF('Educacion Fisica'!O16="","",'Educacion Fisica'!O16) ->  | M57: =IF('Educacion Fisica'!P16="","",'Educacion Fisica'!P16) ->  | N57: =IF('Educacion Fisica'!Q16="","",'Educacion Fisica'!Q16) ->  | O57: =IF('Educacion Fisica'!R16="","",'Educacion Fisica'!R16) ->  | P57: =IF('Educacion Fisica'!S16="","",'Educacion Fisica'!S16) ->  | Q57: =IF('Educacion Fisica'!T16="","",'Educacion Fisica'!T16) ->  | R57: =IF('Educacion Fisica'!U16="","",'Educacion Fisica'!U16) ->  | S57: =IF('Educacion Fisica'!V16="","",'Educacion Fisica'!V16) ->  | T57: =IF('Educacion Fisica'!W16="","",'Educacion Fisica'!W16) ->  | U57: =IF('Educacion Fisica'!X16="","",'Educacion Fisica'!X16) ->  | V57: =IF('Educacion Fisica'!Y16="","",'Educacion Fisica'!Y16) ->  | W57: =IF('Educacion Fisica'!Z16="","",'Educacion Fisica'!Z16) ->  | X57: =IF('Educacion Fisica'!AA16="","",'Educacion Fisica'!AA16) ->  | Y57: =IF('Educacion Fisica'!AB16="","",'Educacion Fisica'!AB16) ->  | Z57: =IF('Educacion Fisica'!AC16="","",'Educacion Fisica'!AC16) ->  | AA57: =IF('Educacion Fisica'!AD16="","",'Educacion Fisica'!AD16) ->  | AB57: =IF('Educacion Fisica'!AE16="","",'Educacion Fisica'!AE16) ->  | AC57: =IF('Educacion Fisica'!AF16="","",'Educacion Fisica'!AF16) ->  | AD57: =IF('Educacion Fisica'!AG16="","",'Educacion Fisica'!AG16) ->  | AE57: =IF('Educacion Fisica'!AH16="","",'Educacion Fisica'!AH16) ->  | AF57: =IF('Educacion Fisica'!AI16="","",'Educacion Fisica'!AI16) ->  | AG57: =IF('Educacion Fisica'!AJ16="","",'Educacion Fisica'!AJ16) ->  | AH57: =IF('Educacion Fisica'!AK16="","",'Educacion Fisica'!AK16) ->  | AI57: =IF('Educacion Fisica'!AL16="","",'Educacion Fisica'!AL16) ->  | AJ57: =IF('Educacion Fisica'!AM16="","",'Educacion Fisica'!AM16) ->  | AK57: =IF('Educacion Fisica'!AN16="","",'Educacion Fisica'!AN16) ->  | AL57: =IF('Educacion Fisica'!AO16="","",'Educacion Fisica'!AO16) ->  | AM57: =IF('Educacion Fisica'!AP16="","",'Educacion Fisica'!AP16) -> 
C58: Comp. Esp. 3 | D58: Criterio Evaluación 3.1 | E58: =IF('Educacion Fisica'!H17="","",'Educacion Fisica'!H17) ->  | F58: =IF('Educacion Fisica'!I17="","",'Educacion Fisica'!I17) ->  | G58: =IF('Educacion Fisica'!J17="","",'Educacion Fisica'!J17) ->  | H58: =IF('Educacion Fisica'!K17="","",'Educacion Fisica'!K17) ->  | I58: =IF('Educacion Fisica'!L17="","",'Educacion Fisica'!L17) ->  | J58: =IF('Educacion Fisica'!M17="","",'Educacion Fisica'!M17) ->  | K58: =IF('Educacion Fisica'!N17="","",'Educacion Fisica'!N17) ->  | L58: =IF('Educacion Fisica'!O17="","",'Educacion Fisica'!O17) ->  | M58: =IF('Educacion Fisica'!P17="","",'Educacion Fisica'!P17) ->  | N58: =IF('Educacion Fisica'!Q17="","",'Educacion Fisica'!Q17) ->  | O58: =IF('Educacion Fisica'!R17="","",'Educacion Fisica'!R17) ->  | P58: =IF('Educacion Fisica'!S17="","",'Educacion Fisica'!S17) ->  | Q58: =IF('Educacion Fisica'!T17="","",'Educacion Fisica'!T17) ->  | R58: =IF('Educacion Fisica'!U17="","",'Educacion Fisica'!U17) ->  | S58: =IF('Educacion Fisica'!V17="","",'Educacion Fisica'!V17) ->  | T58: =IF('Educacion Fisica'!W17="","",'Educacion Fisica'!W17) ->  | U58: =IF('Educacion Fisica'!X17="","",'Educacion Fisica'!X17) ->  | V58: =IF('Educacion Fisica'!Y17="","",'Educacion Fisica'!Y17) ->  | W58: =IF('Educacion Fisica'!Z17="","",'Educacion Fisica'!Z17) ->  | X58: =IF('Educacion Fisica'!AA17="","",'Educacion Fisica'!AA17) ->  | Y58: =IF('Educacion Fisica'!AB17="","",'Educacion Fisica'!AB17) ->  | Z58: =IF('Educacion Fisica'!AC17="","",'Educacion Fisica'!AC17) ->  | AA58: =IF('Educacion Fisica'!AD17="","",'Educacion Fisica'!AD17) ->  | AB58: =IF('Educacion Fisica'!AE17="","",'Educacion Fisica'!AE17) ->  | AC58: =IF('Educacion Fisica'!AF17="","",'Educacion Fisica'!AF17) ->  | AD58: =IF('Educacion Fisica'!AG17="","",'Educacion Fisica'!AG17) ->  | AE58: =IF('Educacion Fisica'!AH17="","",'Educacion Fisica'!AH17) ->  | AF58: =IF('Educacion Fisica'!AI17="","",'Educacion Fisica'!AI17) ->  | AG58: =IF('Educacion Fisica'!AJ17="","",'Educacion Fisica'!AJ17) ->  | AH58: =IF('Educacion Fisica'!AK17="","",'Educacion Fisica'!AK17) ->  | AI58: =IF('Educacion Fisica'!AL17="","",'Educacion Fisica'!AL17) ->  | AJ58: =IF('Educacion Fisica'!AM17="","",'Educacion Fisica'!AM17) ->  | AK58: =IF('Educacion Fisica'!AN17="","",'Educacion Fisica'!AN17) ->  | AL58: =IF('Educacion Fisica'!AO17="","",'Educacion Fisica'!AO17) ->  | AM58: =IF('Educacion Fisica'!AP17="","",'Educacion Fisica'!AP17) -> 
D59: Criterio Evaluación 3.2 | E59: =IF('Educacion Fisica'!H18="","",'Educacion Fisica'!H18) ->  | F59: =IF('Educacion Fisica'!I18="","",'Educacion Fisica'!I18) ->  | G59: =IF('Educacion Fisica'!J18="","",'Educacion Fisica'!J18) ->  | H59: =IF('Educacion Fisica'!K18="","",'Educacion Fisica'!K18) ->  | I59: =IF('Educacion Fisica'!L18="","",'Educacion Fisica'!L18) ->  | J59: =IF('Educacion Fisica'!M18="","",'Educacion Fisica'!M18) ->  | K59: =IF('Educacion Fisica'!N18="","",'Educacion Fisica'!N18) ->  | L59: =IF('Educacion Fisica'!O18="","",'Educacion Fisica'!O18) ->  | M59: =IF('Educacion Fisica'!P18="","",'Educacion Fisica'!P18) ->  | N59: =IF('Educacion Fisica'!Q18="","",'Educacion Fisica'!Q18) ->  | O59: =IF('Educacion Fisica'!R18="","",'Educacion Fisica'!R18) ->  | P59: =IF('Educacion Fisica'!S18="","",'Educacion Fisica'!S18) ->  | Q59: =IF('Educacion Fisica'!T18="","",'Educacion Fisica'!T18) ->  | R59: =IF('Educacion Fisica'!U18="","",'Educacion Fisica'!U18) ->  | S59: =IF('Educacion Fisica'!V18="","",'Educacion Fisica'!V18) ->  | T59: =IF('Educacion Fisica'!W18="","",'Educacion Fisica'!W18) ->  | U59: =IF('Educacion Fisica'!X18="","",'Educacion Fisica'!X18) ->  | V59: =IF('Educacion Fisica'!Y18="","",'Educacion Fisica'!Y18) ->  | W59: =IF('Educacion Fisica'!Z18="","",'Educacion Fisica'!Z18) ->  | X59: =IF('Educacion Fisica'!AA18="","",'Educacion Fisica'!AA18) ->  | Y59: =IF('Educacion Fisica'!AB18="","",'Educacion Fisica'!AB18) ->  | Z59: =IF('Educacion Fisica'!AC18="","",'Educacion Fisica'!AC18) ->  | AA59: =IF('Educacion Fisica'!AD18="","",'Educacion Fisica'!AD18) ->  | AB59: =IF('Educacion Fisica'!AE18="","",'Educacion Fisica'!AE18) ->  | AC59: =IF('Educacion Fisica'!AF18="","",'Educacion Fisica'!AF18) ->  | AD59: =IF('Educacion Fisica'!AG18="","",'Educacion Fisica'!AG18) ->  | AE59: =IF('Educacion Fisica'!AH18="","",'Educacion Fisica'!AH18) ->  | AF59: =IF('Educacion Fisica'!AI18="","",'Educacion Fisica'!AI18) ->  | AG59: =IF('Educacion Fisica'!AJ18="","",'Educacion Fisica'!AJ18) ->  | AH59: =IF('Educacion Fisica'!AK18="","",'Educacion Fisica'!AK18) ->  | AI59: =IF('Educacion Fisica'!AL18="","",'Educacion Fisica'!AL18) ->  | AJ59: =IF('Educacion Fisica'!AM18="","",'Educacion Fisica'!AM18) ->  | AK59: =IF('Educacion Fisica'!AN18="","",'Educacion Fisica'!AN18) ->  | AL59: =IF('Educacion Fisica'!AO18="","",'Educacion Fisica'!AO18) ->  | AM59: =IF('Educacion Fisica'!AP18="","",'Educacion Fisica'!AP18) -> 
D60: Criterio Evaluación 3.3 | E60: =IF('Educacion Fisica'!H19="","",'Educacion Fisica'!H19) ->  | F60: =IF('Educacion Fisica'!I19="","",'Educacion Fisica'!I19) ->  | G60: =IF('Educacion Fisica'!J19="","",'Educacion Fisica'!J19) ->  | H60: =IF('Educacion Fisica'!K19="","",'Educacion Fisica'!K19) ->  | I60: =IF('Educacion Fisica'!L19="","",'Educacion Fisica'!L19) ->  | J60: =IF('Educacion Fisica'!M19="","",'Educacion Fisica'!M19) ->  | K60: =IF('Educacion Fisica'!N19="","",'Educacion Fisica'!N19) ->  | L60: =IF('Educacion Fisica'!O19="","",'Educacion Fisica'!O19) ->  | M60: =IF('Educacion Fisica'!P19="","",'Educacion Fisica'!P19) ->  | N60: =IF('Educacion Fisica'!Q19="","",'Educacion Fisica'!Q19) ->  | O60: =IF('Educacion Fisica'!R19="","",'Educacion Fisica'!R19) ->  | P60: =IF('Educacion Fisica'!S19="","",'Educacion Fisica'!S19) ->  | Q60: =IF('Educacion Fisica'!T19="","",'Educacion Fisica'!T19) ->  | R60: =IF('Educacion Fisica'!U19="","",'Educacion Fisica'!U19) ->  | S60: =IF('Educacion Fisica'!V19="","",'Educacion Fisica'!V19) ->  | T60: =IF('Educacion Fisica'!W19="","",'Educacion Fisica'!W19) ->  | U60: =IF('Educacion Fisica'!X19="","",'Educacion Fisica'!X19) ->  | V60: =IF('Educacion Fisica'!Y19="","",'Educacion Fisica'!Y19) ->  | W60: =IF('Educacion Fisica'!Z19="","",'Educacion Fisica'!Z19) ->  | X60: =IF('Educacion Fisica'!AA19="","",'Educacion Fisica'!AA19) ->  | Y60: =IF('Educacion Fisica'!AB19="","",'Educacion Fisica'!AB19) ->  | Z60: =IF('Educacion Fisica'!AC19="","",'Educacion Fisica'!AC19) ->  | AA60: =IF('Educacion Fisica'!AD19="","",'Educacion Fisica'!AD19) ->  | AB60: =IF('Educacion Fisica'!AE19="","",'Educacion Fisica'!AE19) ->  | AC60: =IF('Educacion Fisica'!AF19="","",'Educacion Fisica'!AF19) ->  | AD60: =IF('Educacion Fisica'!AG19="","",'Educacion Fisica'!AG19) ->  | AE60: =IF('Educacion Fisica'!AH19="","",'Educacion Fisica'!AH19) ->  | AF60: =IF('Educacion Fisica'!AI19="","",'Educacion Fisica'!AI19) ->  | AG60: =IF('Educacion Fisica'!AJ19="","",'Educacion Fisica'!AJ19) ->  | AH60: =IF('Educacion Fisica'!AK19="","",'Educacion Fisica'!AK19) ->  | AI60: =IF('Educacion Fisica'!AL19="","",'Educacion Fisica'!AL19) ->  | AJ60: =IF('Educacion Fisica'!AM19="","",'Educacion Fisica'!AM19) ->  | AK60: =IF('Educacion Fisica'!AN19="","",'Educacion Fisica'!AN19) ->  | AL60: =IF('Educacion Fisica'!AO19="","",'Educacion Fisica'!AO19) ->  | AM60: =IF('Educacion Fisica'!AP19="","",'Educacion Fisica'!AP19) -> 
C61: Comp. Esp. 4 | D61: Criterio Evaluación 4.1 | E61: =IF('Educacion Fisica'!H20="","",'Educacion Fisica'!H20) ->  | F61: =IF('Educacion Fisica'!I20="","",'Educacion Fisica'!I20) ->  | G61: =IF('Educacion Fisica'!J20="","",'Educacion Fisica'!J20) ->  | H61: =IF('Educacion Fisica'!K20="","",'Educacion Fisica'!K20) ->  | I61: =IF('Educacion Fisica'!L20="","",'Educacion Fisica'!L20) ->  | J61: =IF('Educacion Fisica'!M20="","",'Educacion Fisica'!M20) ->  | K61: =IF('Educacion Fisica'!N20="","",'Educacion Fisica'!N20) ->  | L61: =IF('Educacion Fisica'!O20="","",'Educacion Fisica'!O20) ->  | M61: =IF('Educacion Fisica'!P20="","",'Educacion Fisica'!P20) ->  | N61: =IF('Educacion Fisica'!Q20="","",'Educacion Fisica'!Q20) ->  | O61: =IF('Educacion Fisica'!R20="","",'Educacion Fisica'!R20) ->  | P61: =IF('Educacion Fisica'!S20="","",'Educacion Fisica'!S20) ->  | Q61: =IF('Educacion Fisica'!T20="","",'Educacion Fisica'!T20) ->  | R61: =IF('Educacion Fisica'!U20="","",'Educacion Fisica'!U20) ->  | S61: =IF('Educacion Fisica'!V20="","",'Educacion Fisica'!V20) ->  | T61: =IF('Educacion Fisica'!W20="","",'Educacion Fisica'!W20) ->  | U61: =IF('Educacion Fisica'!X20="","",'Educacion Fisica'!X20) ->  | V61: =IF('Educacion Fisica'!Y20="","",'Educacion Fisica'!Y20) ->  | W61: =IF('Educacion Fisica'!Z20="","",'Educacion Fisica'!Z20) ->  | X61: =IF('Educacion Fisica'!AA20="","",'Educacion Fisica'!AA20) ->  | Y61: =IF('Educacion Fisica'!AB20="","",'Educacion Fisica'!AB20) ->  | Z61: =IF('Educacion Fisica'!AC20="","",'Educacion Fisica'!AC20) ->  | AA61: =IF('Educacion Fisica'!AD20="","",'Educacion Fisica'!AD20) ->  | AB61: =IF('Educacion Fisica'!AE20="","",'Educacion Fisica'!AE20) ->  | AC61: =IF('Educacion Fisica'!AF20="","",'Educacion Fisica'!AF20) ->  | AD61: =IF('Educacion Fisica'!AG20="","",'Educacion Fisica'!AG20) ->  | AE61: =IF('Educacion Fisica'!AH20="","",'Educacion Fisica'!AH20) ->  | AF61: =IF('Educacion Fisica'!AI20="","",'Educacion Fisica'!AI20) ->  | AG61: =IF('Educacion Fisica'!AJ20="","",'Educacion Fisica'!AJ20) ->  | AH61: =IF('Educacion Fisica'!AK20="","",'Educacion Fisica'!AK20) ->  | AI61: =IF('Educacion Fisica'!AL20="","",'Educacion Fisica'!AL20) ->  | AJ61: =IF('Educacion Fisica'!AM20="","",'Educacion Fisica'!AM20) ->  | AK61: =IF('Educacion Fisica'!AN20="","",'Educacion Fisica'!AN20) ->  | AL61: =IF('Educacion Fisica'!AO20="","",'Educacion Fisica'!AO20) ->  | AM61: =IF('Educacion Fisica'!AP20="","",'Educacion Fisica'!AP20) -> 
D62: Criterio Evaluación 4.2 | E62: =IF('Educacion Fisica'!H21="","",'Educacion Fisica'!H21) ->  | F62: =IF('Educacion Fisica'!I21="","",'Educacion Fisica'!I21) ->  | G62: =IF('Educacion Fisica'!J21="","",'Educacion Fisica'!J21) ->  | H62: =IF('Educacion Fisica'!K21="","",'Educacion Fisica'!K21) ->  | I62: =IF('Educacion Fisica'!L21="","",'Educacion Fisica'!L21) ->  | J62: =IF('Educacion Fisica'!M21="","",'Educacion Fisica'!M21) ->  | K62: =IF('Educacion Fisica'!N21="","",'Educacion Fisica'!N21) ->  | L62: =IF('Educacion Fisica'!O21="","",'Educacion Fisica'!O21) ->  | M62: =IF('Educacion Fisica'!P21="","",'Educacion Fisica'!P21) ->  | N62: =IF('Educacion Fisica'!Q21="","",'Educacion Fisica'!Q21) ->  | O62: =IF('Educacion Fisica'!R21="","",'Educacion Fisica'!R21) ->  | P62: =IF('Educacion Fisica'!S21="","",'Educacion Fisica'!S21) ->  | Q62: =IF('Educacion Fisica'!T21="","",'Educacion Fisica'!T21) ->  | R62: =IF('Educacion Fisica'!U21="","",'Educacion Fisica'!U21) ->  | S62: =IF('Educacion Fisica'!V21="","",'Educacion Fisica'!V21) ->  | T62: =IF('Educacion Fisica'!W21="","",'Educacion Fisica'!W21) ->  | U62: =IF('Educacion Fisica'!X21="","",'Educacion Fisica'!X21) ->  | V62: =IF('Educacion Fisica'!Y21="","",'Educacion Fisica'!Y21) ->  | W62: =IF('Educacion Fisica'!Z21="","",'Educacion Fisica'!Z21) ->  | X62: =IF('Educacion Fisica'!AA21="","",'Educacion Fisica'!AA21) ->  | Y62: =IF('Educacion Fisica'!AB21="","",'Educacion Fisica'!AB21) ->  | Z62: =IF('Educacion Fisica'!AC21="","",'Educacion Fisica'!AC21) ->  | AA62: =IF('Educacion Fisica'!AD21="","",'Educacion Fisica'!AD21) ->  | AB62: =IF('Educacion Fisica'!AE21="","",'Educacion Fisica'!AE21) ->  | AC62: =IF('Educacion Fisica'!AF21="","",'Educacion Fisica'!AF21) ->  | AD62: =IF('Educacion Fisica'!AG21="","",'Educacion Fisica'!AG21) ->  | AE62: =IF('Educacion Fisica'!AH21="","",'Educacion Fisica'!AH21) ->  | AF62: =IF('Educacion Fisica'!AI21="","",'Educacion Fisica'!AI21) ->  | AG62: =IF('Educacion Fisica'!AJ21="","",'Educacion Fisica'!AJ21) ->  | AH62: =IF('Educacion Fisica'!AK21="","",'Educacion Fisica'!AK21) ->  | AI62: =IF('Educacion Fisica'!AL21="","",'Educacion Fisica'!AL21) ->  | AJ62: =IF('Educacion Fisica'!AM21="","",'Educacion Fisica'!AM21) ->  | AK62: =IF('Educacion Fisica'!AN21="","",'Educacion Fisica'!AN21) ->  | AL62: =IF('Educacion Fisica'!AO21="","",'Educacion Fisica'!AO21) ->  | AM62: =IF('Educacion Fisica'!AP21="","",'Educacion Fisica'!AP21) -> 
D63: Criterio Evaluación 4.3 | E63: =IF('Educacion Fisica'!H22="","",'Educacion Fisica'!H22) ->  | F63: =IF('Educacion Fisica'!I22="","",'Educacion Fisica'!I22) ->  | G63: =IF('Educacion Fisica'!J22="","",'Educacion Fisica'!J22) ->  | H63: =IF('Educacion Fisica'!K22="","",'Educacion Fisica'!K22) ->  | I63: =IF('Educacion Fisica'!L22="","",'Educacion Fisica'!L22) ->  | J63: =IF('Educacion Fisica'!M22="","",'Educacion Fisica'!M22) ->  | K63: =IF('Educacion Fisica'!N22="","",'Educacion Fisica'!N22) ->  | L63: =IF('Educacion Fisica'!O22="","",'Educacion Fisica'!O22) ->  | M63: =IF('Educacion Fisica'!P22="","",'Educacion Fisica'!P22) ->  | N63: =IF('Educacion Fisica'!Q22="","",'Educacion Fisica'!Q22) ->  | O63: =IF('Educacion Fisica'!R22="","",'Educacion Fisica'!R22) ->  | P63: =IF('Educacion Fisica'!S22="","",'Educacion Fisica'!S22) ->  | Q63: =IF('Educacion Fisica'!T22="","",'Educacion Fisica'!T22) ->  | R63: =IF('Educacion Fisica'!U22="","",'Educacion Fisica'!U22) ->  | S63: =IF('Educacion Fisica'!V22="","",'Educacion Fisica'!V22) ->  | T63: =IF('Educacion Fisica'!W22="","",'Educacion Fisica'!W22) ->  | U63: =IF('Educacion Fisica'!X22="","",'Educacion Fisica'!X22) ->  | V63: =IF('Educacion Fisica'!Y22="","",'Educacion Fisica'!Y22) ->  | W63: =IF('Educacion Fisica'!Z22="","",'Educacion Fisica'!Z22) ->  | X63: =IF('Educacion Fisica'!AA22="","",'Educacion Fisica'!AA22) ->  | Y63: =IF('Educacion Fisica'!AB22="","",'Educacion Fisica'!AB22) ->  | Z63: =IF('Educacion Fisica'!AC22="","",'Educacion Fisica'!AC22) ->  | AA63: =IF('Educacion Fisica'!AD22="","",'Educacion Fisica'!AD22) ->  | AB63: =IF('Educacion Fisica'!AE22="","",'Educacion Fisica'!AE22) ->  | AC63: =IF('Educacion Fisica'!AF22="","",'Educacion Fisica'!AF22) ->  | AD63: =IF('Educacion Fisica'!AG22="","",'Educacion Fisica'!AG22) ->  | AE63: =IF('Educacion Fisica'!AH22="","",'Educacion Fisica'!AH22) ->  | AF63: =IF('Educacion Fisica'!AI22="","",'Educacion Fisica'!AI22) ->  | AG63: =IF('Educacion Fisica'!AJ22="","",'Educacion Fisica'!AJ22) ->  | AH63: =IF('Educacion Fisica'!AK22="","",'Educacion Fisica'!AK22) ->  | AI63: =IF('Educacion Fisica'!AL22="","",'Educacion Fisica'!AL22) ->  | AJ63: =IF('Educacion Fisica'!AM22="","",'Educacion Fisica'!AM22) ->  | AK63: =IF('Educacion Fisica'!AN22="","",'Educacion Fisica'!AN22) ->  | AL63: =IF('Educacion Fisica'!AO22="","",'Educacion Fisica'!AO22) ->  | AM63: =IF('Educacion Fisica'!AP22="","",'Educacion Fisica'!AP22) -> 
C64: Comp. Esp. 5 | D64: Criterio Evaluación 5.1 | E64: =IF('Educacion Fisica'!H23="","",'Educacion Fisica'!H23) ->  | F64: =IF('Educacion Fisica'!I23="","",'Educacion Fisica'!I23) ->  | G64: =IF('Educacion Fisica'!J23="","",'Educacion Fisica'!J23) ->  | H64: =IF('Educacion Fisica'!K23="","",'Educacion Fisica'!K23) ->  | I64: =IF('Educacion Fisica'!L23="","",'Educacion Fisica'!L23) ->  | J64: =IF('Educacion Fisica'!M23="","",'Educacion Fisica'!M23) ->  | K64: =IF('Educacion Fisica'!N23="","",'Educacion Fisica'!N23) ->  | L64: =IF('Educacion Fisica'!O23="","",'Educacion Fisica'!O23) ->  | M64: =IF('Educacion Fisica'!P23="","",'Educacion Fisica'!P23) ->  | N64: =IF('Educacion Fisica'!Q23="","",'Educacion Fisica'!Q23) ->  | O64: =IF('Educacion Fisica'!R23="","",'Educacion Fisica'!R23) ->  | P64: =IF('Educacion Fisica'!S23="","",'Educacion Fisica'!S23) ->  | Q64: =IF('Educacion Fisica'!T23="","",'Educacion Fisica'!T23) ->  | R64: =IF('Educacion Fisica'!U23="","",'Educacion Fisica'!U23) ->  | S64: =IF('Educacion Fisica'!V23="","",'Educacion Fisica'!V23) ->  | T64: =IF('Educacion Fisica'!W23="","",'Educacion Fisica'!W23) ->  | U64: =IF('Educacion Fisica'!X23="","",'Educacion Fisica'!X23) ->  | V64: =IF('Educacion Fisica'!Y23="","",'Educacion Fisica'!Y23) ->  | W64: =IF('Educacion Fisica'!Z23="","",'Educacion Fisica'!Z23) ->  | X64: =IF('Educacion Fisica'!AA23="","",'Educacion Fisica'!AA23) ->  | Y64: =IF('Educacion Fisica'!AB23="","",'Educacion Fisica'!AB23) ->  | Z64: =IF('Educacion Fisica'!AC23="","",'Educacion Fisica'!AC23) ->  | AA64: =IF('Educacion Fisica'!AD23="","",'Educacion Fisica'!AD23) ->  | AB64: =IF('Educacion Fisica'!AE23="","",'Educacion Fisica'!AE23) ->  | AC64: =IF('Educacion Fisica'!AF23="","",'Educacion Fisica'!AF23) ->  | AD64: =IF('Educacion Fisica'!AG23="","",'Educacion Fisica'!AG23) ->  | AE64: =IF('Educacion Fisica'!AH23="","",'Educacion Fisica'!AH23) ->  | AF64: =IF('Educacion Fisica'!AI23="","",'Educacion Fisica'!AI23) ->  | AG64: =IF('Educacion Fisica'!AJ23="","",'Educacion Fisica'!AJ23) ->  | AH64: =IF('Educacion Fisica'!AK23="","",'Educacion Fisica'!AK23) ->  | AI64: =IF('Educacion Fisica'!AL23="","",'Educacion Fisica'!AL23) ->  | AJ64: =IF('Educacion Fisica'!AM23="","",'Educacion Fisica'!AM23) ->  | AK64: =IF('Educacion Fisica'!AN23="","",'Educacion Fisica'!AN23) ->  | AL64: =IF('Educacion Fisica'!AO23="","",'Educacion Fisica'!AO23) ->  | AM64: =IF('Educacion Fisica'!AP23="","",'Educacion Fisica'!AP23) -> 
D65: Criterio Evaluación 5.2 | E65: =IF('Educacion Fisica'!H24="","",'Educacion Fisica'!H24) ->  | F65: =IF('Educacion Fisica'!I24="","",'Educacion Fisica'!I24) ->  | G65: =IF('Educacion Fisica'!J24="","",'Educacion Fisica'!J24) ->  | H65: =IF('Educacion Fisica'!K24="","",'Educacion Fisica'!K24) ->  | I65: =IF('Educacion Fisica'!L24="","",'Educacion Fisica'!L24) ->  | J65: =IF('Educacion Fisica'!M24="","",'Educacion Fisica'!M24) ->  | K65: =IF('Educacion Fisica'!N24="","",'Educacion Fisica'!N24) ->  | L65: =IF('Educacion Fisica'!O24="","",'Educacion Fisica'!O24) ->  | M65: =IF('Educacion Fisica'!P24="","",'Educacion Fisica'!P24) ->  | N65: =IF('Educacion Fisica'!Q24="","",'Educacion Fisica'!Q24) ->  | O65: =IF('Educacion Fisica'!R24="","",'Educacion Fisica'!R24) ->  | P65: =IF('Educacion Fisica'!S24="","",'Educacion Fisica'!S24) ->  | Q65: =IF('Educacion Fisica'!T24="","",'Educacion Fisica'!T24) ->  | R65: =IF('Educacion Fisica'!U24="","",'Educacion Fisica'!U24) ->  | S65: =IF('Educacion Fisica'!V24="","",'Educacion Fisica'!V24) ->  | T65: =IF('Educacion Fisica'!W24="","",'Educacion Fisica'!W24) ->  | U65: =IF('Educacion Fisica'!X24="","",'Educacion Fisica'!X24) ->  | V65: =IF('Educacion Fisica'!Y24="","",'Educacion Fisica'!Y24) ->  | W65: =IF('Educacion Fisica'!Z24="","",'Educacion Fisica'!Z24) ->  | X65: =IF('Educacion Fisica'!AA24="","",'Educacion Fisica'!AA24) ->  | Y65: =IF('Educacion Fisica'!AB24="","",'Educacion Fisica'!AB24) ->  | Z65: =IF('Educacion Fisica'!AC24="","",'Educacion Fisica'!AC24) ->  | AA65: =IF('Educacion Fisica'!AD24="","",'Educacion Fisica'!AD24) ->  | AB65: =IF('Educacion Fisica'!AE24="","",'Educacion Fisica'!AE24) ->  | AC65: =IF('Educacion Fisica'!AF24="","",'Educacion Fisica'!AF24) ->  | AD65: =IF('Educacion Fisica'!AG24="","",'Educacion Fisica'!AG24) ->  | AE65: =IF('Educacion Fisica'!AH24="","",'Educacion Fisica'!AH24) ->  | AF65: =IF('Educacion Fisica'!AI24="","",'Educacion Fisica'!AI24) ->  | AG65: =IF('Educacion Fisica'!AJ24="","",'Educacion Fisica'!AJ24) ->  | AH65: =IF('Educacion Fisica'!AK24="","",'Educacion Fisica'!AK24) ->  | AI65: =IF('Educacion Fisica'!AL24="","",'Educacion Fisica'!AL24) ->  | AJ65: =IF('Educacion Fisica'!AM24="","",'Educacion Fisica'!AM24) ->  | AK65: =IF('Educacion Fisica'!AN24="","",'Educacion Fisica'!AN24) ->  | AL65: =IF('Educacion Fisica'!AO24="","",'Educacion Fisica'!AO24) ->  | AM65: =IF('Educacion Fisica'!AP24="","",'Educacion Fisica'!AP24) -> 
B66: Educación Plástica, Visual y Audiovisual | C66: Comp. Esp. 1 | D66: Criterio Evaluación 1.1 | E66: =IF(EPVA!H4="","",EPVA!H4) ->  | F66: =IF(EPVA!I4="","",EPVA!I4) ->  | G66: =IF(EPVA!J4="","",EPVA!J4) ->  | H66: =IF(EPVA!K4="","",EPVA!K4) ->  | I66: =IF(EPVA!L4="","",EPVA!L4) ->  | J66: =IF(EPVA!M4="","",EPVA!M4) ->  | K66: =IF(EPVA!N4="","",EPVA!N4) ->  | L66: =IF(EPVA!O4="","",EPVA!O4) ->  | M66: =IF(EPVA!P4="","",EPVA!P4) ->  | N66: =IF(EPVA!Q4="","",EPVA!Q4) ->  | O66: =IF(EPVA!R4="","",EPVA!R4) ->  | P66: =IF(EPVA!S4="","",EPVA!S4) ->  | Q66: =IF(EPVA!T4="","",EPVA!T4) ->  | R66: =IF(EPVA!U4="","",EPVA!U4) ->  | S66: =IF(EPVA!V4="","",EPVA!V4) ->  | T66: =IF(EPVA!W4="","",EPVA!W4) ->  | U66: =IF(EPVA!X4="","",EPVA!X4) ->  | V66: =IF(EPVA!Y4="","",EPVA!Y4) ->  | W66: =IF(EPVA!Z4="","",EPVA!Z4) ->  | X66: =IF(EPVA!AA4="","",EPVA!AA4) ->  | Y66: =IF(EPVA!AB4="","",EPVA!AB4) ->  | Z66: =IF(EPVA!AC4="","",EPVA!AC4) ->  | AA66: =IF(EPVA!AD4="","",EPVA!AD4) ->  | AB66: =IF(EPVA!AE4="","",EPVA!AE4) ->  | AC66: =IF(EPVA!AF4="","",EPVA!AF4) ->  | AD66: =IF(EPVA!AG4="","",EPVA!AG4) ->  | AE66: =IF(EPVA!AH4="","",EPVA!AH4) ->  | AF66: =IF(EPVA!AI4="","",EPVA!AI4) ->  | AG66: =IF(EPVA!AJ4="","",EPVA!AJ4) ->  | AH66: =IF(EPVA!AK4="","",EPVA!AK4) ->  | AI66: =IF(EPVA!AL4="","",EPVA!AL4) ->  | AJ66: =IF(EPVA!AM4="","",EPVA!AM4) ->  | AK66: =IF(EPVA!AN4="","",EPVA!AN4) ->  | AL66: =IF(EPVA!AO4="","",EPVA!AO4) ->  | AM66: =IF(EPVA!AP4="","",EPVA!AP4) -> 
D67: Criterio Evaluación 1.2 | E67: =IF(EPVA!H5="","",EPVA!H5) ->  | F67: =IF(EPVA!I5="","",EPVA!I5) ->  | G67: =IF(EPVA!J5="","",EPVA!J5) ->  | H67: =IF(EPVA!K5="","",EPVA!K5) ->  | I67: =IF(EPVA!L5="","",EPVA!L5) ->  | J67: =IF(EPVA!M5="","",EPVA!M5) ->  | K67: =IF(EPVA!N5="","",EPVA!N5) ->  | L67: =IF(EPVA!O5="","",EPVA!O5) ->  | M67: =IF(EPVA!P5="","",EPVA!P5) ->  | N67: =IF(EPVA!Q5="","",EPVA!Q5) ->  | O67: =IF(EPVA!R5="","",EPVA!R5) ->  | P67: =IF(EPVA!S5="","",EPVA!S5) ->  | Q67: =IF(EPVA!T5="","",EPVA!T5) ->  | R67: =IF(EPVA!U5="","",EPVA!U5) ->  | S67: =IF(EPVA!V5="","",EPVA!V5) ->  | T67: =IF(EPVA!W5="","",EPVA!W5) ->  | U67: =IF(EPVA!X5="","",EPVA!X5) ->  | V67: =IF(EPVA!Y5="","",EPVA!Y5) ->  | W67: =IF(EPVA!Z5="","",EPVA!Z5) ->  | X67: =IF(EPVA!AA5="","",EPVA!AA5) ->  | Y67: =IF(EPVA!AB5="","",EPVA!AB5) ->  | Z67: =IF(EPVA!AC5="","",EPVA!AC5) ->  | AA67: =IF(EPVA!AD5="","",EPVA!AD5) ->  | AB67: =IF(EPVA!AE5="","",EPVA!AE5) ->  | AC67: =IF(EPVA!AF5="","",EPVA!AF5) ->  | AD67: =IF(EPVA!AG5="","",EPVA!AG5) ->  | AE67: =IF(EPVA!AH5="","",EPVA!AH5) ->  | AF67: =IF(EPVA!AI5="","",EPVA!AI5) ->  | AG67: =IF(EPVA!AJ5="","",EPVA!AJ5) ->  | AH67: =IF(EPVA!AK5="","",EPVA!AK5) ->  | AI67: =IF(EPVA!AL5="","",EPVA!AL5) ->  | AJ67: =IF(EPVA!AM5="","",EPVA!AM5) ->  | AK67: =IF(EPVA!AN5="","",EPVA!AN5) ->  | AL67: =IF(EPVA!AO5="","",EPVA!AO5) ->  | AM67: =IF(EPVA!AP5="","",EPVA!AP5) -> 
D68: Criterio Evaluación 1.3 | E68: =IF(EPVA!H6="","",EPVA!H6) ->  | F68: =IF(EPVA!I6="","",EPVA!I6) ->  | G68: =IF(EPVA!J6="","",EPVA!J6) ->  | H68: =IF(EPVA!K6="","",EPVA!K6) ->  | I68: =IF(EPVA!L6="","",EPVA!L6) ->  | J68: =IF(EPVA!M6="","",EPVA!M6) ->  | K68: =IF(EPVA!N6="","",EPVA!N6) ->  | L68: =IF(EPVA!O6="","",EPVA!O6) ->  | M68: =IF(EPVA!P6="","",EPVA!P6) ->  | N68: =IF(EPVA!Q6="","",EPVA!Q6) ->  | O68: =IF(EPVA!R6="","",EPVA!R6) ->  | P68: =IF(EPVA!S6="","",EPVA!S6) ->  | Q68: =IF(EPVA!T6="","",EPVA!T6) ->  | R68: =IF(EPVA!U6="","",EPVA!U6) ->  | S68: =IF(EPVA!V6="","",EPVA!V6) ->  | T68: =IF(EPVA!W6="","",EPVA!W6) ->  | U68: =IF(EPVA!X6="","",EPVA!X6) ->  | V68: =IF(EPVA!Y6="","",EPVA!Y6) ->  | W68: =IF(EPVA!Z6="","",EPVA!Z6) ->  | X68: =IF(EPVA!AA6="","",EPVA!AA6) ->  | Y68: =IF(EPVA!AB6="","",EPVA!AB6) ->  | Z68: =IF(EPVA!AC6="","",EPVA!AC6) ->  | AA68: =IF(EPVA!AD6="","",EPVA!AD6) ->  | AB68: =IF(EPVA!AE6="","",EPVA!AE6) ->  | AC68: =IF(EPVA!AF6="","",EPVA!AF6) ->  | AD68: =IF(EPVA!AG6="","",EPVA!AG6) ->  | AE68: =IF(EPVA!AH6="","",EPVA!AH6) ->  | AF68: =IF(EPVA!AI6="","",EPVA!AI6) ->  | AG68: =IF(EPVA!AJ6="","",EPVA!AJ6) ->  | AH68: =IF(EPVA!AK6="","",EPVA!AK6) ->  | AI68: =IF(EPVA!AL6="","",EPVA!AL6) ->  | AJ68: =IF(EPVA!AM6="","",EPVA!AM6) ->  | AK68: =IF(EPVA!AN6="","",EPVA!AN6) ->  | AL68: =IF(EPVA!AO6="","",EPVA!AO6) ->  | AM68: =IF(EPVA!AP6="","",EPVA!AP6) -> 
C69: Comp. Esp. 2 | D69: Criterio Evaluación 2.1 | E69: =IF(EPVA!H7="","",EPVA!H7) ->  | F69: =IF(EPVA!I7="","",EPVA!I7) ->  | G69: =IF(EPVA!J7="","",EPVA!J7) ->  | H69: =IF(EPVA!K7="","",EPVA!K7) ->  | I69: =IF(EPVA!L7="","",EPVA!L7) ->  | J69: =IF(EPVA!M7="","",EPVA!M7) ->  | K69: =IF(EPVA!N7="","",EPVA!N7) ->  | L69: =IF(EPVA!O7="","",EPVA!O7) ->  | M69: =IF(EPVA!P7="","",EPVA!P7) ->  | N69: =IF(EPVA!Q7="","",EPVA!Q7) ->  | O69: =IF(EPVA!R7="","",EPVA!R7) ->  | P69: =IF(EPVA!S7="","",EPVA!S7) ->  | Q69: =IF(EPVA!T7="","",EPVA!T7) ->  | R69: =IF(EPVA!U7="","",EPVA!U7) ->  | S69: =IF(EPVA!V7="","",EPVA!V7) ->  | T69: =IF(EPVA!W7="","",EPVA!W7) ->  | U69: =IF(EPVA!X7="","",EPVA!X7) ->  | V69: =IF(EPVA!Y7="","",EPVA!Y7) ->  | W69: =IF(EPVA!Z7="","",EPVA!Z7) ->  | X69: =IF(EPVA!AA7="","",EPVA!AA7) ->  | Y69: =IF(EPVA!AB7="","",EPVA!AB7) ->  | Z69: =IF(EPVA!AC7="","",EPVA!AC7) ->  | AA69: =IF(EPVA!AD7="","",EPVA!AD7) ->  | AB69: =IF(EPVA!AE7="","",EPVA!AE7) ->  | AC69: =IF(EPVA!AF7="","",EPVA!AF7) ->  | AD69: =IF(EPVA!AG7="","",EPVA!AG7) ->  | AE69: =IF(EPVA!AH7="","",EPVA!AH7) ->  | AF69: =IF(EPVA!AI7="","",EPVA!AI7) ->  | AG69: =IF(EPVA!AJ7="","",EPVA!AJ7) ->  | AH69: =IF(EPVA!AK7="","",EPVA!AK7) ->  | AI69: =IF(EPVA!AL7="","",EPVA!AL7) ->  | AJ69: =IF(EPVA!AM7="","",EPVA!AM7) ->  | AK69: =IF(EPVA!AN7="","",EPVA!AN7) ->  | AL69: =IF(EPVA!AO7="","",EPVA!AO7) ->  | AM69: =IF(EPVA!AP7="","",EPVA!AP7) -> 
D70: Criterio Evaluación 2.2 | E70: =IF(EPVA!H8="","",EPVA!H8) ->  | F70: =IF(EPVA!I8="","",EPVA!I8) ->  | G70: =IF(EPVA!J8="","",EPVA!J8) ->  | H70: =IF(EPVA!K8="","",EPVA!K8) ->  | I70: =IF(EPVA!L8="","",EPVA!L8) ->  | J70: =IF(EPVA!M8="","",EPVA!M8) ->  | K70: =IF(EPVA!N8="","",EPVA!N8) ->  | L70: =IF(EPVA!O8="","",EPVA!O8) ->  | M70: =IF(EPVA!P8="","",EPVA!P8) ->  | N70: =IF(EPVA!Q8="","",EPVA!Q8) ->  | O70: =IF(EPVA!R8="","",EPVA!R8) ->  | P70: =IF(EPVA!S8="","",EPVA!S8) ->  | Q70: =IF(EPVA!T8="","",EPVA!T8) ->  | R70: =IF(EPVA!U8="","",EPVA!U8) ->  | S70: =IF(EPVA!V8="","",EPVA!V8) ->  | T70: =IF(EPVA!W8="","",EPVA!W8) ->  | U70: =IF(EPVA!X8="","",EPVA!X8) ->  | V70: =IF(EPVA!Y8="","",EPVA!Y8) ->  | W70: =IF(EPVA!Z8="","",EPVA!Z8) ->  | X70: =IF(EPVA!AA8="","",EPVA!AA8) ->  | Y70: =IF(EPVA!AB8="","",EPVA!AB8) ->  | Z70: =IF(EPVA!AC8="","",EPVA!AC8) ->  | AA70: =IF(EPVA!AD8="","",EPVA!AD8) ->  | AB70: =IF(EPVA!AE8="","",EPVA!AE8) ->  | AC70: =IF(EPVA!AF8="","",EPVA!AF8) ->  | AD70: =IF(EPVA!AG8="","",EPVA!AG8) ->  | AE70: =IF(EPVA!AH8="","",EPVA!AH8) ->  | AF70: =IF(EPVA!AI8="","",EPVA!AI8) ->  | AG70: =IF(EPVA!AJ8="","",EPVA!AJ8) ->  | AH70: =IF(EPVA!AK8="","",EPVA!AK8) ->  | AI70: =IF(EPVA!AL8="","",EPVA!AL8) ->  | AJ70: =IF(EPVA!AM8="","",EPVA!AM8) ->  | AK70: =IF(EPVA!AN8="","",EPVA!AN8) ->  | AL70: =IF(EPVA!AO8="","",EPVA!AO8) ->  | AM70: =IF(EPVA!AP8="","",EPVA!AP8) -> 
C71: Comp. Esp. 3 | D71: Criterio Evaluación 3.1 | E71: =IF(EPVA!H9="","",EPVA!H9) ->  | F71: =IF(EPVA!I9="","",EPVA!I9) ->  | G71: =IF(EPVA!J9="","",EPVA!J9) ->  | H71: =IF(EPVA!K9="","",EPVA!K9) ->  | I71: =IF(EPVA!L9="","",EPVA!L9) ->  | J71: =IF(EPVA!M9="","",EPVA!M9) ->  | K71: =IF(EPVA!N9="","",EPVA!N9) ->  | L71: =IF(EPVA!O9="","",EPVA!O9) ->  | M71: =IF(EPVA!P9="","",EPVA!P9) ->  | N71: =IF(EPVA!Q9="","",EPVA!Q9) ->  | O71: =IF(EPVA!R9="","",EPVA!R9) ->  | P71: =IF(EPVA!S9="","",EPVA!S9) ->  | Q71: =IF(EPVA!T9="","",EPVA!T9) ->  | R71: =IF(EPVA!U9="","",EPVA!U9) ->  | S71: =IF(EPVA!V9="","",EPVA!V9) ->  | T71: =IF(EPVA!W9="","",EPVA!W9) ->  | U71: =IF(EPVA!X9="","",EPVA!X9) ->  | V71: =IF(EPVA!Y9="","",EPVA!Y9) ->  | W71: =IF(EPVA!Z9="","",EPVA!Z9) ->  | X71: =IF(EPVA!AA9="","",EPVA!AA9) ->  | Y71: =IF(EPVA!AB9="","",EPVA!AB9) ->  | Z71: =IF(EPVA!AC9="","",EPVA!AC9) ->  | AA71: =IF(EPVA!AD9="","",EPVA!AD9) ->  | AB71: =IF(EPVA!AE9="","",EPVA!AE9) ->  | AC71: =IF(EPVA!AF9="","",EPVA!AF9) ->  | AD71: =IF(EPVA!AG9="","",EPVA!AG9) ->  | AE71: =IF(EPVA!AH9="","",EPVA!AH9) ->  | AF71: =IF(EPVA!AI9="","",EPVA!AI9) ->  | AG71: =IF(EPVA!AJ9="","",EPVA!AJ9) ->  | AH71: =IF(EPVA!AK9="","",EPVA!AK9) ->  | AI71: =IF(EPVA!AL9="","",EPVA!AL9) ->  | AJ71: =IF(EPVA!AM9="","",EPVA!AM9) ->  | AK71: =IF(EPVA!AN9="","",EPVA!AN9) ->  | AL71: =IF(EPVA!AO9="","",EPVA!AO9) ->  | AM71: =IF(EPVA!AP9="","",EPVA!AP9) -> 
D72: Criterio Evaluación 3.2 | E72: =IF(EPVA!H10="","",EPVA!H10) ->  | F72: =IF(EPVA!I10="","",EPVA!I10) ->  | G72: =IF(EPVA!J10="","",EPVA!J10) ->  | H72: =IF(EPVA!K10="","",EPVA!K10) ->  | I72: =IF(EPVA!L10="","",EPVA!L10) ->  | J72: =IF(EPVA!M10="","",EPVA!M10) ->  | K72: =IF(EPVA!N10="","",EPVA!N10) ->  | L72: =IF(EPVA!O10="","",EPVA!O10) ->  | M72: =IF(EPVA!P10="","",EPVA!P10) ->  | N72: =IF(EPVA!Q10="","",EPVA!Q10) ->  | O72: =IF(EPVA!R10="","",EPVA!R10) ->  | P72: =IF(EPVA!S10="","",EPVA!S10) ->  | Q72: =IF(EPVA!T10="","",EPVA!T10) ->  | R72: =IF(EPVA!U10="","",EPVA!U10) ->  | S72: =IF(EPVA!V10="","",EPVA!V10) ->  | T72: =IF(EPVA!W10="","",EPVA!W10) ->  | U72: =IF(EPVA!X10="","",EPVA!X10) ->  | V72: =IF(EPVA!Y10="","",EPVA!Y10) ->  | W72: =IF(EPVA!Z10="","",EPVA!Z10) ->  | X72: =IF(EPVA!AA10="","",EPVA!AA10) ->  | Y72: =IF(EPVA!AB10="","",EPVA!AB10) ->  | Z72: =IF(EPVA!AC10="","",EPVA!AC10) ->  | AA72: =IF(EPVA!AD10="","",EPVA!AD10) ->  | AB72: =IF(EPVA!AE10="","",EPVA!AE10) ->  | AC72: =IF(EPVA!AF10="","",EPVA!AF10) ->  | AD72: =IF(EPVA!AG10="","",EPVA!AG10) ->  | AE72: =IF(EPVA!AH10="","",EPVA!AH10) ->  | AF72: =IF(EPVA!AI10="","",EPVA!AI10) ->  | AG72: =IF(EPVA!AJ10="","",EPVA!AJ10) ->  | AH72: =IF(EPVA!AK10="","",EPVA!AK10) ->  | AI72: =IF(EPVA!AL10="","",EPVA!AL10) ->  | AJ72: =IF(EPVA!AM10="","",EPVA!AM10) ->  | AK72: =IF(EPVA!AN10="","",EPVA!AN10) ->  | AL72: =IF(EPVA!AO10="","",EPVA!AO10) ->  | AM72: =IF(EPVA!AP10="","",EPVA!AP10) -> 
D73: Criterio Evaluación 3.3 | E73: =IF(EPVA!H11="","",EPVA!H11) ->  | F73: =IF(EPVA!I11="","",EPVA!I11) ->  | G73: =IF(EPVA!J11="","",EPVA!J11) ->  | H73: =IF(EPVA!K11="","",EPVA!K11) ->  | I73: =IF(EPVA!L11="","",EPVA!L11) ->  | J73: =IF(EPVA!M11="","",EPVA!M11) ->  | K73: =IF(EPVA!N11="","",EPVA!N11) ->  | L73: =IF(EPVA!O11="","",EPVA!O11) ->  | M73: =IF(EPVA!P11="","",EPVA!P11) ->  | N73: =IF(EPVA!Q11="","",EPVA!Q11) ->  | O73: =IF(EPVA!R11="","",EPVA!R11) ->  | P73: =IF(EPVA!S11="","",EPVA!S11) ->  | Q73: =IF(EPVA!T11="","",EPVA!T11) ->  | R73: =IF(EPVA!U11="","",EPVA!U11) ->  | S73: =IF(EPVA!V11="","",EPVA!V11) ->  | T73: =IF(EPVA!W11="","",EPVA!W11) ->  | U73: =IF(EPVA!X11="","",EPVA!X11) ->  | V73: =IF(EPVA!Y11="","",EPVA!Y11) ->  | W73: =IF(EPVA!Z11="","",EPVA!Z11) ->  | X73: =IF(EPVA!AA11="","",EPVA!AA11) ->  | Y73: =IF(EPVA!AB11="","",EPVA!AB11) ->  | Z73: =IF(EPVA!AC11="","",EPVA!AC11) ->  | AA73: =IF(EPVA!AD11="","",EPVA!AD11) ->  | AB73: =IF(EPVA!AE11="","",EPVA!AE11) ->  | AC73: =IF(EPVA!AF11="","",EPVA!AF11) ->  | AD73: =IF(EPVA!AG11="","",EPVA!AG11) ->  | AE73: =IF(EPVA!AH11="","",EPVA!AH11) ->  | AF73: =IF(EPVA!AI11="","",EPVA!AI11) ->  | AG73: =IF(EPVA!AJ11="","",EPVA!AJ11) ->  | AH73: =IF(EPVA!AK11="","",EPVA!AK11) ->  | AI73: =IF(EPVA!AL11="","",EPVA!AL11) ->  | AJ73: =IF(EPVA!AM11="","",EPVA!AM11) ->  | AK73: =IF(EPVA!AN11="","",EPVA!AN11) ->  | AL73: =IF(EPVA!AO11="","",EPVA!AO11) ->  | AM73: =IF(EPVA!AP11="","",EPVA!AP11) -> 
D74: Criterio Evaluación 3.4 | E74: =IF(EPVA!H12="","",EPVA!H12) ->  | F74: =IF(EPVA!I12="","",EPVA!I12) ->  | G74: =IF(EPVA!J12="","",EPVA!J12) ->  | H74: =IF(EPVA!K12="","",EPVA!K12) ->  | I74: =IF(EPVA!L12="","",EPVA!L12) ->  | J74: =IF(EPVA!M12="","",EPVA!M12) ->  | K74: =IF(EPVA!N12="","",EPVA!N12) ->  | L74: =IF(EPVA!O12="","",EPVA!O12) ->  | M74: =IF(EPVA!P12="","",EPVA!P12) ->  | N74: =IF(EPVA!Q12="","",EPVA!Q12) ->  | O74: =IF(EPVA!R12="","",EPVA!R12) ->  | P74: =IF(EPVA!S12="","",EPVA!S12) ->  | Q74: =IF(EPVA!T12="","",EPVA!T12) ->  | R74: =IF(EPVA!U12="","",EPVA!U12) ->  | S74: =IF(EPVA!V12="","",EPVA!V12) ->  | T74: =IF(EPVA!W12="","",EPVA!W12) ->  | U74: =IF(EPVA!X12="","",EPVA!X12) ->  | V74: =IF(EPVA!Y12="","",EPVA!Y12) ->  | W74: =IF(EPVA!Z12="","",EPVA!Z12) ->  | X74: =IF(EPVA!AA12="","",EPVA!AA12) ->  | Y74: =IF(EPVA!AB12="","",EPVA!AB12) ->  | Z74: =IF(EPVA!AC12="","",EPVA!AC12) ->  | AA74: =IF(EPVA!AD12="","",EPVA!AD12) ->  | AB74: =IF(EPVA!AE12="","",EPVA!AE12) ->  | AC74: =IF(EPVA!AF12="","",EPVA!AF12) ->  | AD74: =IF(EPVA!AG12="","",EPVA!AG12) ->  | AE74: =IF(EPVA!AH12="","",EPVA!AH12) ->  | AF74: =IF(EPVA!AI12="","",EPVA!AI12) ->  | AG74: =IF(EPVA!AJ12="","",EPVA!AJ12) ->  | AH74: =IF(EPVA!AK12="","",EPVA!AK12) ->  | AI74: =IF(EPVA!AL12="","",EPVA!AL12) ->  | AJ74: =IF(EPVA!AM12="","",EPVA!AM12) ->  | AK74: =IF(EPVA!AN12="","",EPVA!AN12) ->  | AL74: =IF(EPVA!AO12="","",EPVA!AO12) ->  | AM74: =IF(EPVA!AP12="","",EPVA!AP12) -> 
C75: Comp. Esp. 4 | D75: Criterio Evaluación 4.1 | E75: =IF(EPVA!H13="","",EPVA!H13) ->  | F75: =IF(EPVA!I13="","",EPVA!I13) ->  | G75: =IF(EPVA!J13="","",EPVA!J13) ->  | H75: =IF(EPVA!K13="","",EPVA!K13) ->  | I75: =IF(EPVA!L13="","",EPVA!L13) ->  | J75: =IF(EPVA!M13="","",EPVA!M13) ->  | K75: =IF(EPVA!N13="","",EPVA!N13) ->  | L75: =IF(EPVA!O13="","",EPVA!O13) ->  | M75: =IF(EPVA!P13="","",EPVA!P13) ->  | N75: =IF(EPVA!Q13="","",EPVA!Q13) ->  | O75: =IF(EPVA!R13="","",EPVA!R13) ->  | P75: =IF(EPVA!S13="","",EPVA!S13) ->  | Q75: =IF(EPVA!T13="","",EPVA!T13) ->  | R75: =IF(EPVA!U13="","",EPVA!U13) ->  | S75: =IF(EPVA!V13="","",EPVA!V13) ->  | T75: =IF(EPVA!W13="","",EPVA!W13) ->  | U75: =IF(EPVA!X13="","",EPVA!X13) ->  | V75: =IF(EPVA!Y13="","",EPVA!Y13) ->  | W75: =IF(EPVA!Z13="","",EPVA!Z13) ->  | X75: =IF(EPVA!AA13="","",EPVA!AA13) ->  | Y75: =IF(EPVA!AB13="","",EPVA!AB13) ->  | Z75: =IF(EPVA!AC13="","",EPVA!AC13) ->  | AA75: =IF(EPVA!AD13="","",EPVA!AD13) ->  | AB75: =IF(EPVA!AE13="","",EPVA!AE13) ->  | AC75: =IF(EPVA!AF13="","",EPVA!AF13) ->  | AD75: =IF(EPVA!AG13="","",EPVA!AG13) ->  | AE75: =IF(EPVA!AH13="","",EPVA!AH13) ->  | AF75: =IF(EPVA!AI13="","",EPVA!AI13) ->  | AG75: =IF(EPVA!AJ13="","",EPVA!AJ13) ->  | AH75: =IF(EPVA!AK13="","",EPVA!AK13) ->  | AI75: =IF(EPVA!AL13="","",EPVA!AL13) ->  | AJ75: =IF(EPVA!AM13="","",EPVA!AM13) ->  | AK75: =IF(EPVA!AN13="","",EPVA!AN13) ->  | AL75: =IF(EPVA!AO13="","",EPVA!AO13) ->  | AM75: =IF(EPVA!AP13="","",EPVA!AP13) -> 
D76: Criterio Evaluación 4.2 | E76: =IF(EPVA!H14="","",EPVA!H14) ->  | F76: =IF(EPVA!I14="","",EPVA!I14) ->  | G76: =IF(EPVA!J14="","",EPVA!J14) ->  | H76: =IF(EPVA!K14="","",EPVA!K14) ->  | I76: =IF(EPVA!L14="","",EPVA!L14) ->  | J76: =IF(EPVA!M14="","",EPVA!M14) ->  | K76: =IF(EPVA!N14="","",EPVA!N14) ->  | L76: =IF(EPVA!O14="","",EPVA!O14) ->  | M76: =IF(EPVA!P14="","",EPVA!P14) ->  | N76: =IF(EPVA!Q14="","",EPVA!Q14) ->  | O76: =IF(EPVA!R14="","",EPVA!R14) ->  | P76: =IF(EPVA!S14="","",EPVA!S14) ->  | Q76: =IF(EPVA!T14="","",EPVA!T14) ->  | R76: =IF(EPVA!U14="","",EPVA!U14) ->  | S76: =IF(EPVA!V14="","",EPVA!V14) ->  | T76: =IF(EPVA!W14="","",EPVA!W14) ->  | U76: =IF(EPVA!X14="","",EPVA!X14) ->  | V76: =IF(EPVA!Y14="","",EPVA!Y14) ->  | W76: =IF(EPVA!Z14="","",EPVA!Z14) ->  | X76: =IF(EPVA!AA14="","",EPVA!AA14) ->  | Y76: =IF(EPVA!AB14="","",EPVA!AB14) ->  | Z76: =IF(EPVA!AC14="","",EPVA!AC14) ->  | AA76: =IF(EPVA!AD14="","",EPVA!AD14) ->  | AB76: =IF(EPVA!AE14="","",EPVA!AE14) ->  | AC76: =IF(EPVA!AF14="","",EPVA!AF14) ->  | AD76: =IF(EPVA!AG14="","",EPVA!AG14) ->  | AE76: =IF(EPVA!AH14="","",EPVA!AH14) ->  | AF76: =IF(EPVA!AI14="","",EPVA!AI14) ->  | AG76: =IF(EPVA!AJ14="","",EPVA!AJ14) ->  | AH76: =IF(EPVA!AK14="","",EPVA!AK14) ->  | AI76: =IF(EPVA!AL14="","",EPVA!AL14) ->  | AJ76: =IF(EPVA!AM14="","",EPVA!AM14) ->  | AK76: =IF(EPVA!AN14="","",EPVA!AN14) ->  | AL76: =IF(EPVA!AO14="","",EPVA!AO14) ->  | AM76: =IF(EPVA!AP14="","",EPVA!AP14) -> 
C77: Comp. Esp. 5 | D77: Criterio Evaluación 5.1 | E77: =IF(EPVA!H15="","",EPVA!H15) ->  | F77: =IF(EPVA!I15="","",EPVA!I15) ->  | G77: =IF(EPVA!J15="","",EPVA!J15) ->  | H77: =IF(EPVA!K15="","",EPVA!K15) ->  | I77: =IF(EPVA!L15="","",EPVA!L15) ->  | J77: =IF(EPVA!M15="","",EPVA!M15) ->  | K77: =IF(EPVA!N15="","",EPVA!N15) ->  | L77: =IF(EPVA!O15="","",EPVA!O15) ->  | M77: =IF(EPVA!P15="","",EPVA!P15) ->  | N77: =IF(EPVA!Q15="","",EPVA!Q15) ->  | O77: =IF(EPVA!R15="","",EPVA!R15) ->  | P77: =IF(EPVA!S15="","",EPVA!S15) ->  | Q77: =IF(EPVA!T15="","",EPVA!T15) ->  | R77: =IF(EPVA!U15="","",EPVA!U15) ->  | S77: =IF(EPVA!V15="","",EPVA!V15) ->  | T77: =IF(EPVA!W15="","",EPVA!W15) ->  | U77: =IF(EPVA!X15="","",EPVA!X15) ->  | V77: =IF(EPVA!Y15="","",EPVA!Y15) ->  | W77: =IF(EPVA!Z15="","",EPVA!Z15) ->  | X77: =IF(EPVA!AA15="","",EPVA!AA15) ->  | Y77: =IF(EPVA!AB15="","",EPVA!AB15) ->  | Z77: =IF(EPVA!AC15="","",EPVA!AC15) ->  | AA77: =IF(EPVA!AD15="","",EPVA!AD15) ->  | AB77: =IF(EPVA!AE15="","",EPVA!AE15) ->  | AC77: =IF(EPVA!AF15="","",EPVA!AF15) ->  | AD77: =IF(EPVA!AG15="","",EPVA!AG15) ->  | AE77: =IF(EPVA!AH15="","",EPVA!AH15) ->  | AF77: =IF(EPVA!AI15="","",EPVA!AI15) ->  | AG77: =IF(EPVA!AJ15="","",EPVA!AJ15) ->  | AH77: =IF(EPVA!AK15="","",EPVA!AK15) ->  | AI77: =IF(EPVA!AL15="","",EPVA!AL15) ->  | AJ77: =IF(EPVA!AM15="","",EPVA!AM15) ->  | AK77: =IF(EPVA!AN15="","",EPVA!AN15) ->  | AL77: =IF(EPVA!AO15="","",EPVA!AO15) ->  | AM77: =IF(EPVA!AP15="","",EPVA!AP15) -> 
D78: Criterio Evaluación 5.2 | E78: =IF(EPVA!H16="","",EPVA!H16) ->  | F78: =IF(EPVA!I16="","",EPVA!I16) ->  | G78: =IF(EPVA!J16="","",EPVA!J16) ->  | H78: =IF(EPVA!K16="","",EPVA!K16) ->  | I78: =IF(EPVA!L16="","",EPVA!L16) ->  | J78: =IF(EPVA!M16="","",EPVA!M16) ->  | K78: =IF(EPVA!N16="","",EPVA!N16) ->  | L78: =IF(EPVA!O16="","",EPVA!O16) ->  | M78: =IF(EPVA!P16="","",EPVA!P16) ->  | N78: =IF(EPVA!Q16="","",EPVA!Q16) ->  | O78: =IF(EPVA!R16="","",EPVA!R16) ->  | P78: =IF(EPVA!S16="","",EPVA!S16) ->  | Q78: =IF(EPVA!T16="","",EPVA!T16) ->  | R78: =IF(EPVA!U16="","",EPVA!U16) ->  | S78: =IF(EPVA!V16="","",EPVA!V16) ->  | T78: =IF(EPVA!W16="","",EPVA!W16) ->  | U78: =IF(EPVA!X16="","",EPVA!X16) ->  | V78: =IF(EPVA!Y16="","",EPVA!Y16) ->  | W78: =IF(EPVA!Z16="","",EPVA!Z16) ->  | X78: =IF(EPVA!AA16="","",EPVA!AA16) ->  | Y78: =IF(EPVA!AB16="","",EPVA!AB16) ->  | Z78: =IF(EPVA!AC16="","",EPVA!AC16) ->  | AA78: =IF(EPVA!AD16="","",EPVA!AD16) ->  | AB78: =IF(EPVA!AE16="","",EPVA!AE16) ->  | AC78: =IF(EPVA!AF16="","",EPVA!AF16) ->  | AD78: =IF(EPVA!AG16="","",EPVA!AG16) ->  | AE78: =IF(EPVA!AH16="","",EPVA!AH16) ->  | AF78: =IF(EPVA!AI16="","",EPVA!AI16) ->  | AG78: =IF(EPVA!AJ16="","",EPVA!AJ16) ->  | AH78: =IF(EPVA!AK16="","",EPVA!AK16) ->  | AI78: =IF(EPVA!AL16="","",EPVA!AL16) ->  | AJ78: =IF(EPVA!AM16="","",EPVA!AM16) ->  | AK78: =IF(EPVA!AN16="","",EPVA!AN16) ->  | AL78: =IF(EPVA!AO16="","",EPVA!AO16) ->  | AM78: =IF(EPVA!AP16="","",EPVA!AP16) -> 
D79: Criterio Evaluación 5.3 | E79: =IF(EPVA!H17="","",EPVA!H17) ->  | F79: =IF(EPVA!I17="","",EPVA!I17) ->  | G79: =IF(EPVA!J17="","",EPVA!J17) ->  | H79: =IF(EPVA!K17="","",EPVA!K17) ->  | I79: =IF(EPVA!L17="","",EPVA!L17) ->  | J79: =IF(EPVA!M17="","",EPVA!M17) ->  | K79: =IF(EPVA!N17="","",EPVA!N17) ->  | L79: =IF(EPVA!O17="","",EPVA!O17) ->  | M79: =IF(EPVA!P17="","",EPVA!P17) ->  | N79: =IF(EPVA!Q17="","",EPVA!Q17) ->  | O79: =IF(EPVA!R17="","",EPVA!R17) ->  | P79: =IF(EPVA!S17="","",EPVA!S17) ->  | Q79: =IF(EPVA!T17="","",EPVA!T17) ->  | R79: =IF(EPVA!U17="","",EPVA!U17) ->  | S79: =IF(EPVA!V17="","",EPVA!V17) ->  | T79: =IF(EPVA!W17="","",EPVA!W17) ->  | U79: =IF(EPVA!X17="","",EPVA!X17) ->  | V79: =IF(EPVA!Y17="","",EPVA!Y17) ->  | W79: =IF(EPVA!Z17="","",EPVA!Z17) ->  | X79: =IF(EPVA!AA17="","",EPVA!AA17) ->  | Y79: =IF(EPVA!AB17="","",EPVA!AB17) ->  | Z79: =IF(EPVA!AC17="","",EPVA!AC17) ->  | AA79: =IF(EPVA!AD17="","",EPVA!AD17) ->  | AB79: =IF(EPVA!AE17="","",EPVA!AE17) ->  | AC79: =IF(EPVA!AF17="","",EPVA!AF17) ->  | AD79: =IF(EPVA!AG17="","",EPVA!AG17) ->  | AE79: =IF(EPVA!AH17="","",EPVA!AH17) ->  | AF79: =IF(EPVA!AI17="","",EPVA!AI17) ->  | AG79: =IF(EPVA!AJ17="","",EPVA!AJ17) ->  | AH79: =IF(EPVA!AK17="","",EPVA!AK17) ->  | AI79: =IF(EPVA!AL17="","",EPVA!AL17) ->  | AJ79: =IF(EPVA!AM17="","",EPVA!AM17) ->  | AK79: =IF(EPVA!AN17="","",EPVA!AN17) ->  | AL79: =IF(EPVA!AO17="","",EPVA!AO17) ->  | AM79: =IF(EPVA!AP17="","",EPVA!AP17) -> 
C80: Comp. Esp. 6 | D80: Criterio Evaluación 6.1 | E80: =IF(EPVA!H18="","",EPVA!H18) ->  | F80: =IF(EPVA!I18="","",EPVA!I18) ->  | G80: =IF(EPVA!J18="","",EPVA!J18) ->  | H80: =IF(EPVA!K18="","",EPVA!K18) ->  | I80: =IF(EPVA!L18="","",EPVA!L18) ->  | J80: =IF(EPVA!M18="","",EPVA!M18) ->  | K80: =IF(EPVA!N18="","",EPVA!N18) ->  | L80: =IF(EPVA!O18="","",EPVA!O18) ->  | M80: =IF(EPVA!P18="","",EPVA!P18) ->  | N80: =IF(EPVA!Q18="","",EPVA!Q18) ->  | O80: =IF(EPVA!R18="","",EPVA!R18) ->  | P80: =IF(EPVA!S18="","",EPVA!S18) ->  | Q80: =IF(EPVA!T18="","",EPVA!T18) ->  | R80: =IF(EPVA!U18="","",EPVA!U18) ->  | S80: =IF(EPVA!V18="","",EPVA!V18) ->  | T80: =IF(EPVA!W18="","",EPVA!W18) ->  | U80: =IF(EPVA!X18="","",EPVA!X18) ->  | V80: =IF(EPVA!Y18="","",EPVA!Y18) ->  | W80: =IF(EPVA!Z18="","",EPVA!Z18) ->  | X80: =IF(EPVA!AA18="","",EPVA!AA18) ->  | Y80: =IF(EPVA!AB18="","",EPVA!AB18) ->  | Z80: =IF(EPVA!AC18="","",EPVA!AC18) ->  | AA80: =IF(EPVA!AD18="","",EPVA!AD18) ->  | AB80: =IF(EPVA!AE18="","",EPVA!AE18) ->  | AC80: =IF(EPVA!AF18="","",EPVA!AF18) ->  | AD80: =IF(EPVA!AG18="","",EPVA!AG18) ->  | AE80: =IF(EPVA!AH18="","",EPVA!AH18) ->  | AF80: =IF(EPVA!AI18="","",EPVA!AI18) ->  | AG80: =IF(EPVA!AJ18="","",EPVA!AJ18) ->  | AH80: =IF(EPVA!AK18="","",EPVA!AK18) ->  | AI80: =IF(EPVA!AL18="","",EPVA!AL18) ->  | AJ80: =IF(EPVA!AM18="","",EPVA!AM18) ->  | AK80: =IF(EPVA!AN18="","",EPVA!AN18) ->  | AL80: =IF(EPVA!AO18="","",EPVA!AO18) ->  | AM80: =IF(EPVA!AP18="","",EPVA!AP18) -> 
D81: Criterio Evaluación 6.2 | E81: =IF(EPVA!H19="","",EPVA!H19) ->  | F81: =IF(EPVA!I19="","",EPVA!I19) ->  | G81: =IF(EPVA!J19="","",EPVA!J19) ->  | H81: =IF(EPVA!K19="","",EPVA!K19) ->  | I81: =IF(EPVA!L19="","",EPVA!L19) ->  | J81: =IF(EPVA!M19="","",EPVA!M19) ->  | K81: =IF(EPVA!N19="","",EPVA!N19) ->  | L81: =IF(EPVA!O19="","",EPVA!O19) ->  | M81: =IF(EPVA!P19="","",EPVA!P19) ->  | N81: =IF(EPVA!Q19="","",EPVA!Q19) ->  | O81: =IF(EPVA!R19="","",EPVA!R19) ->  | P81: =IF(EPVA!S19="","",EPVA!S19) ->  | Q81: =IF(EPVA!T19="","",EPVA!T19) ->  | R81: =IF(EPVA!U19="","",EPVA!U19) ->  | S81: =IF(EPVA!V19="","",EPVA!V19) ->  | T81: =IF(EPVA!W19="","",EPVA!W19) ->  | U81: =IF(EPVA!X19="","",EPVA!X19) ->  | V81: =IF(EPVA!Y19="","",EPVA!Y19) ->  | W81: =IF(EPVA!Z19="","",EPVA!Z19) ->  | X81: =IF(EPVA!AA19="","",EPVA!AA19) ->  | Y81: =IF(EPVA!AB19="","",EPVA!AB19) ->  | Z81: =IF(EPVA!AC19="","",EPVA!AC19) ->  | AA81: =IF(EPVA!AD19="","",EPVA!AD19) ->  | AB81: =IF(EPVA!AE19="","",EPVA!AE19) ->  | AC81: =IF(EPVA!AF19="","",EPVA!AF19) ->  | AD81: =IF(EPVA!AG19="","",EPVA!AG19) ->  | AE81: =IF(EPVA!AH19="","",EPVA!AH19) ->  | AF81: =IF(EPVA!AI19="","",EPVA!AI19) ->  | AG81: =IF(EPVA!AJ19="","",EPVA!AJ19) ->  | AH81: =IF(EPVA!AK19="","",EPVA!AK19) ->  | AI81: =IF(EPVA!AL19="","",EPVA!AL19) ->  | AJ81: =IF(EPVA!AM19="","",EPVA!AM19) ->  | AK81: =IF(EPVA!AN19="","",EPVA!AN19) ->  | AL81: =IF(EPVA!AO19="","",EPVA!AO19) ->  | AM81: =IF(EPVA!AP19="","",EPVA!AP19) -> 
C82: Comp. Esp. 7 | D82: Criterio Evaluación 7.1 | E82: =IF(EPVA!H20="","",EPVA!H20) ->  | F82: =IF(EPVA!I20="","",EPVA!I20) ->  | G82: =IF(EPVA!J20="","",EPVA!J20) ->  | H82: =IF(EPVA!K20="","",EPVA!K20) ->  | I82: =IF(EPVA!L20="","",EPVA!L20) ->  | J82: =IF(EPVA!M20="","",EPVA!M20) ->  | K82: =IF(EPVA!N20="","",EPVA!N20) ->  | L82: =IF(EPVA!O20="","",EPVA!O20) ->  | M82: =IF(EPVA!P20="","",EPVA!P20) ->  | N82: =IF(EPVA!Q20="","",EPVA!Q20) ->  | O82: =IF(EPVA!R20="","",EPVA!R20) ->  | P82: =IF(EPVA!S20="","",EPVA!S20) ->  | Q82: =IF(EPVA!T20="","",EPVA!T20) ->  | R82: =IF(EPVA!U20="","",EPVA!U20) ->  | S82: =IF(EPVA!V20="","",EPVA!V20) ->  | T82: =IF(EPVA!W20="","",EPVA!W20) ->  | U82: =IF(EPVA!X20="","",EPVA!X20) ->  | V82: =IF(EPVA!Y20="","",EPVA!Y20) ->  | W82: =IF(EPVA!Z20="","",EPVA!Z20) ->  | X82: =IF(EPVA!AA20="","",EPVA!AA20) ->  | Y82: =IF(EPVA!AB20="","",EPVA!AB20) ->  | Z82: =IF(EPVA!AC20="","",EPVA!AC20) ->  | AA82: =IF(EPVA!AD20="","",EPVA!AD20) ->  | AB82: =IF(EPVA!AE20="","",EPVA!AE20) ->  | AC82: =IF(EPVA!AF20="","",EPVA!AF20) ->  | AD82: =IF(EPVA!AG20="","",EPVA!AG20) ->  | AE82: =IF(EPVA!AH20="","",EPVA!AH20) ->  | AF82: =IF(EPVA!AI20="","",EPVA!AI20) ->  | AG82: =IF(EPVA!AJ20="","",EPVA!AJ20) ->  | AH82: =IF(EPVA!AK20="","",EPVA!AK20) ->  | AI82: =IF(EPVA!AL20="","",EPVA!AL20) ->  | AJ82: =IF(EPVA!AM20="","",EPVA!AM20) ->  | AK82: =IF(EPVA!AN20="","",EPVA!AN20) ->  | AL82: =IF(EPVA!AO20="","",EPVA!AO20) ->  | AM82: =IF(EPVA!AP20="","",EPVA!AP20) -> 
D83: Criterio Evaluación 7.2 | E83: =IF(EPVA!H21="","",EPVA!H21) ->  | F83: =IF(EPVA!I21="","",EPVA!I21) ->  | G83: =IF(EPVA!J21="","",EPVA!J21) ->  | H83: =IF(EPVA!K21="","",EPVA!K21) ->  | I83: =IF(EPVA!L21="","",EPVA!L21) ->  | J83: =IF(EPVA!M21="","",EPVA!M21) ->  | K83: =IF(EPVA!N21="","",EPVA!N21) ->  | L83: =IF(EPVA!O21="","",EPVA!O21) ->  | M83: =IF(EPVA!P21="","",EPVA!P21) ->  | N83: =IF(EPVA!Q21="","",EPVA!Q21) ->  | O83: =IF(EPVA!R21="","",EPVA!R21) ->  | P83: =IF(EPVA!S21="","",EPVA!S21) ->  | Q83: =IF(EPVA!T21="","",EPVA!T21) ->  | R83: =IF(EPVA!U21="","",EPVA!U21) ->  | S83: =IF(EPVA!V21="","",EPVA!V21) ->  | T83: =IF(EPVA!W21="","",EPVA!W21) ->  | U83: =IF(EPVA!X21="","",EPVA!X21) ->  | V83: =IF(EPVA!Y21="","",EPVA!Y21) ->  | W83: =IF(EPVA!Z21="","",EPVA!Z21) ->  | X83: =IF(EPVA!AA21="","",EPVA!AA21) ->  | Y83: =IF(EPVA!AB21="","",EPVA!AB21) ->  | Z83: =IF(EPVA!AC21="","",EPVA!AC21) ->  | AA83: =IF(EPVA!AD21="","",EPVA!AD21) ->  | AB83: =IF(EPVA!AE21="","",EPVA!AE21) ->  | AC83: =IF(EPVA!AF21="","",EPVA!AF21) ->  | AD83: =IF(EPVA!AG21="","",EPVA!AG21) ->  | AE83: =IF(EPVA!AH21="","",EPVA!AH21) ->  | AF83: =IF(EPVA!AI21="","",EPVA!AI21) ->  | AG83: =IF(EPVA!AJ21="","",EPVA!AJ21) ->  | AH83: =IF(EPVA!AK21="","",EPVA!AK21) ->  | AI83: =IF(EPVA!AL21="","",EPVA!AL21) ->  | AJ83: =IF(EPVA!AM21="","",EPVA!AM21) ->  | AK83: =IF(EPVA!AN21="","",EPVA!AN21) ->  | AL83: =IF(EPVA!AO21="","",EPVA!AO21) ->  | AM83: =IF(EPVA!AP21="","",EPVA!AP21) -> 
D84: Criterio Evaluación 7.3 | E84: =IF(EPVA!H22="","",EPVA!H22) ->  | F84: =IF(EPVA!I22="","",EPVA!I22) ->  | G84: =IF(EPVA!J22="","",EPVA!J22) ->  | H84: =IF(EPVA!K22="","",EPVA!K22) ->  | I84: =IF(EPVA!L22="","",EPVA!L22) ->  | J84: =IF(EPVA!M22="","",EPVA!M22) ->  | K84: =IF(EPVA!N22="","",EPVA!N22) ->  | L84: =IF(EPVA!O22="","",EPVA!O22) ->  | M84: =IF(EPVA!P22="","",EPVA!P22) ->  | N84: =IF(EPVA!Q22="","",EPVA!Q22) ->  | O84: =IF(EPVA!R22="","",EPVA!R22) ->  | P84: =IF(EPVA!S22="","",EPVA!S22) ->  | Q84: =IF(EPVA!T22="","",EPVA!T22) ->  | R84: =IF(EPVA!U22="","",EPVA!U22) ->  | S84: =IF(EPVA!V22="","",EPVA!V22) ->  | T84: =IF(EPVA!W22="","",EPVA!W22) ->  | U84: =IF(EPVA!X22="","",EPVA!X22) ->  | V84: =IF(EPVA!Y22="","",EPVA!Y22) ->  | W84: =IF(EPVA!Z22="","",EPVA!Z22) ->  | X84: =IF(EPVA!AA22="","",EPVA!AA22) ->  | Y84: =IF(EPVA!AB22="","",EPVA!AB22) ->  | Z84: =IF(EPVA!AC22="","",EPVA!AC22) ->  | AA84: =IF(EPVA!AD22="","",EPVA!AD22) ->  | AB84: =IF(EPVA!AE22="","",EPVA!AE22) ->  | AC84: =IF(EPVA!AF22="","",EPVA!AF22) ->  | AD84: =IF(EPVA!AG22="","",EPVA!AG22) ->  | AE84: =IF(EPVA!AH22="","",EPVA!AH22) ->  | AF84: =IF(EPVA!AI22="","",EPVA!AI22) ->  | AG84: =IF(EPVA!AJ22="","",EPVA!AJ22) ->  | AH84: =IF(EPVA!AK22="","",EPVA!AK22) ->  | AI84: =IF(EPVA!AL22="","",EPVA!AL22) ->  | AJ84: =IF(EPVA!AM22="","",EPVA!AM22) ->  | AK84: =IF(EPVA!AN22="","",EPVA!AN22) ->  | AL84: =IF(EPVA!AO22="","",EPVA!AO22) ->  | AM84: =IF(EPVA!AP22="","",EPVA!AP22) -> 
D85: Criterio Evaluación 7.4 | E85: =IF(EPVA!H23="","",EPVA!H23) ->  | F85: =IF(EPVA!I23="","",EPVA!I23) ->  | G85: =IF(EPVA!J23="","",EPVA!J23) ->  | H85: =IF(EPVA!K23="","",EPVA!K23) ->  | I85: =IF(EPVA!L23="","",EPVA!L23) ->  | J85: =IF(EPVA!M23="","",EPVA!M23) ->  | K85: =IF(EPVA!N23="","",EPVA!N23) ->  | L85: =IF(EPVA!O23="","",EPVA!O23) ->  | M85: =IF(EPVA!P23="","",EPVA!P23) ->  | N85: =IF(EPVA!Q23="","",EPVA!Q23) ->  | O85: =IF(EPVA!R23="","",EPVA!R23) ->  | P85: =IF(EPVA!S23="","",EPVA!S23) ->  | Q85: =IF(EPVA!T23="","",EPVA!T23) ->  | R85: =IF(EPVA!U23="","",EPVA!U23) ->  | S85: =IF(EPVA!V23="","",EPVA!V23) ->  | T85: =IF(EPVA!W23="","",EPVA!W23) ->  | U85: =IF(EPVA!X23="","",EPVA!X23) ->  | V85: =IF(EPVA!Y23="","",EPVA!Y23) ->  | W85: =IF(EPVA!Z23="","",EPVA!Z23) ->  | X85: =IF(EPVA!AA23="","",EPVA!AA23) ->  | Y85: =IF(EPVA!AB23="","",EPVA!AB23) ->  | Z85: =IF(EPVA!AC23="","",EPVA!AC23) ->  | AA85: =IF(EPVA!AD23="","",EPVA!AD23) ->  | AB85: =IF(EPVA!AE23="","",EPVA!AE23) ->  | AC85: =IF(EPVA!AF23="","",EPVA!AF23) ->  | AD85: =IF(EPVA!AG23="","",EPVA!AG23) ->  | AE85: =IF(EPVA!AH23="","",EPVA!AH23) ->  | AF85: =IF(EPVA!AI23="","",EPVA!AI23) ->  | AG85: =IF(EPVA!AJ23="","",EPVA!AJ23) ->  | AH85: =IF(EPVA!AK23="","",EPVA!AK23) ->  | AI85: =IF(EPVA!AL23="","",EPVA!AL23) ->  | AJ85: =IF(EPVA!AM23="","",EPVA!AM23) ->  | AK85: =IF(EPVA!AN23="","",EPVA!AN23) ->  | AL85: =IF(EPVA!AO23="","",EPVA!AO23) ->  | AM85: =IF(EPVA!AP23="","",EPVA!AP23) -> 
C86: Comp. Esp. 8 | D86: Criterio Evaluación 8.1 | E86: =IF(EPVA!H24="","",EPVA!H24) ->  | F86: =IF(EPVA!I24="","",EPVA!I24) ->  | G86: =IF(EPVA!J24="","",EPVA!J24) ->  | H86: =IF(EPVA!K24="","",EPVA!K24) ->  | I86: =IF(EPVA!L24="","",EPVA!L24) ->  | J86: =IF(EPVA!M24="","",EPVA!M24) ->  | K86: =IF(EPVA!N24="","",EPVA!N24) ->  | L86: =IF(EPVA!O24="","",EPVA!O24) ->  | M86: =IF(EPVA!P24="","",EPVA!P24) ->  | N86: =IF(EPVA!Q24="","",EPVA!Q24) ->  | O86: =IF(EPVA!R24="","",EPVA!R24) ->  | P86: =IF(EPVA!S24="","",EPVA!S24) ->  | Q86: =IF(EPVA!T24="","",EPVA!T24) ->  | R86: =IF(EPVA!U24="","",EPVA!U24) ->  | S86: =IF(EPVA!V24="","",EPVA!V24) ->  | T86: =IF(EPVA!W24="","",EPVA!W24) ->  | U86: =IF(EPVA!X24="","",EPVA!X24) ->  | V86: =IF(EPVA!Y24="","",EPVA!Y24) ->  | W86: =IF(EPVA!Z24="","",EPVA!Z24) ->  | X86: =IF(EPVA!AA24="","",EPVA!AA24) ->  | Y86: =IF(EPVA!AB24="","",EPVA!AB24) ->  | Z86: =IF(EPVA!AC24="","",EPVA!AC24) ->  | AA86: =IF(EPVA!AD24="","",EPVA!AD24) ->  | AB86: =IF(EPVA!AE24="","",EPVA!AE24) ->  | AC86: =IF(EPVA!AF24="","",EPVA!AF24) ->  | AD86: =IF(EPVA!AG24="","",EPVA!AG24) ->  | AE86: =IF(EPVA!AH24="","",EPVA!AH24) ->  | AF86: =IF(EPVA!AI24="","",EPVA!AI24) ->  | AG86: =IF(EPVA!AJ24="","",EPVA!AJ24) ->  | AH86: =IF(EPVA!AK24="","",EPVA!AK24) ->  | AI86: =IF(EPVA!AL24="","",EPVA!AL24) ->  | AJ86: =IF(EPVA!AM24="","",EPVA!AM24) ->  | AK86: =IF(EPVA!AN24="","",EPVA!AN24) ->  | AL86: =IF(EPVA!AO24="","",EPVA!AO24) ->  | AM86: =IF(EPVA!AP24="","",EPVA!AP24) -> 
D87: Criterio Evaluación 8.2 | E87: =IF(EPVA!H25="","",EPVA!H25) ->  | F87: =IF(EPVA!I25="","",EPVA!I25) ->  | G87: =IF(EPVA!J25="","",EPVA!J25) ->  | H87: =IF(EPVA!K25="","",EPVA!K25) ->  | I87: =IF(EPVA!L25="","",EPVA!L25) ->  | J87: =IF(EPVA!M25="","",EPVA!M25) ->  | K87: =IF(EPVA!N25="","",EPVA!N25) ->  | L87: =IF(EPVA!O25="","",EPVA!O25) ->  | M87: =IF(EPVA!P25="","",EPVA!P25) ->  | N87: =IF(EPVA!Q25="","",EPVA!Q25) ->  | O87: =IF(EPVA!R25="","",EPVA!R25) ->  | P87: =IF(EPVA!S25="","",EPVA!S25) ->  | Q87: =IF(EPVA!T25="","",EPVA!T25) ->  | R87: =IF(EPVA!U25="","",EPVA!U25) ->  | S87: =IF(EPVA!V25="","",EPVA!V25) ->  | T87: =IF(EPVA!W25="","",EPVA!W25) ->  | U87: =IF(EPVA!X25="","",EPVA!X25) ->  | V87: =IF(EPVA!Y25="","",EPVA!Y25) ->  | W87: =IF(EPVA!Z25="","",EPVA!Z25) ->  | X87: =IF(EPVA!AA25="","",EPVA!AA25) ->  | Y87: =IF(EPVA!AB25="","",EPVA!AB25) ->  | Z87: =IF(EPVA!AC25="","",EPVA!AC25) ->  | AA87: =IF(EPVA!AD25="","",EPVA!AD25) ->  | AB87: =IF(EPVA!AE25="","",EPVA!AE25) ->  | AC87: =IF(EPVA!AF25="","",EPVA!AF25) ->  | AD87: =IF(EPVA!AG25="","",EPVA!AG25) ->  | AE87: =IF(EPVA!AH25="","",EPVA!AH25) ->  | AF87: =IF(EPVA!AI25="","",EPVA!AI25) ->  | AG87: =IF(EPVA!AJ25="","",EPVA!AJ25) ->  | AH87: =IF(EPVA!AK25="","",EPVA!AK25) ->  | AI87: =IF(EPVA!AL25="","",EPVA!AL25) ->  | AJ87: =IF(EPVA!AM25="","",EPVA!AM25) ->  | AK87: =IF(EPVA!AN25="","",EPVA!AN25) ->  | AL87: =IF(EPVA!AO25="","",EPVA!AO25) ->  | AM87: =IF(EPVA!AP25="","",EPVA!AP25) -> 
D88: Criterio Evaluación 8.3 | E88: =IF(EPVA!H26="","",EPVA!H26) ->  | F88: =IF(EPVA!I26="","",EPVA!I26) ->  | G88: =IF(EPVA!J26="","",EPVA!J26) ->  | H88: =IF(EPVA!K26="","",EPVA!K26) ->  | I88: =IF(EPVA!L26="","",EPVA!L26) ->  | J88: =IF(EPVA!M26="","",EPVA!M26) ->  | K88: =IF(EPVA!N26="","",EPVA!N26) ->  | L88: =IF(EPVA!O26="","",EPVA!O26) ->  | M88: =IF(EPVA!P26="","",EPVA!P26) ->  | N88: =IF(EPVA!Q26="","",EPVA!Q26) ->  | O88: =IF(EPVA!R26="","",EPVA!R26) ->  | P88: =IF(EPVA!S26="","",EPVA!S26) ->  | Q88: =IF(EPVA!T26="","",EPVA!T26) ->  | R88: =IF(EPVA!U26="","",EPVA!U26) ->  | S88: =IF(EPVA!V26="","",EPVA!V26) ->  | T88: =IF(EPVA!W26="","",EPVA!W26) ->  | U88: =IF(EPVA!X26="","",EPVA!X26) ->  | V88: =IF(EPVA!Y26="","",EPVA!Y26) ->  | W88: =IF(EPVA!Z26="","",EPVA!Z26) ->  | X88: =IF(EPVA!AA26="","",EPVA!AA26) ->  | Y88: =IF(EPVA!AB26="","",EPVA!AB26) ->  | Z88: =IF(EPVA!AC26="","",EPVA!AC26) ->  | AA88: =IF(EPVA!AD26="","",EPVA!AD26) ->  | AB88: =IF(EPVA!AE26="","",EPVA!AE26) ->  | AC88: =IF(EPVA!AF26="","",EPVA!AF26) ->  | AD88: =IF(EPVA!AG26="","",EPVA!AG26) ->  | AE88: =IF(EPVA!AH26="","",EPVA!AH26) ->  | AF88: =IF(EPVA!AI26="","",EPVA!AI26) ->  | AG88: =IF(EPVA!AJ26="","",EPVA!AJ26) ->  | AH88: =IF(EPVA!AK26="","",EPVA!AK26) ->  | AI88: =IF(EPVA!AL26="","",EPVA!AL26) ->  | AJ88: =IF(EPVA!AM26="","",EPVA!AM26) ->  | AK88: =IF(EPVA!AN26="","",EPVA!AN26) ->  | AL88: =IF(EPVA!AO26="","",EPVA!AO26) ->  | AM88: =IF(EPVA!AP26="","",EPVA!AP26) -> 
D89: Criterio Evaluación 8.4 | E89: =IF(EPVA!H27="","",EPVA!H27) ->  | F89: =IF(EPVA!I27="","",EPVA!I27) ->  | G89: =IF(EPVA!J27="","",EPVA!J27) ->  | H89: =IF(EPVA!K27="","",EPVA!K27) ->  | I89: =IF(EPVA!L27="","",EPVA!L27) ->  | J89: =IF(EPVA!M27="","",EPVA!M27) ->  | K89: =IF(EPVA!N27="","",EPVA!N27) ->  | L89: =IF(EPVA!O27="","",EPVA!O27) ->  | M89: =IF(EPVA!P27="","",EPVA!P27) ->  | N89: =IF(EPVA!Q27="","",EPVA!Q27) ->  | O89: =IF(EPVA!R27="","",EPVA!R27) ->  | P89: =IF(EPVA!S27="","",EPVA!S27) ->  | Q89: =IF(EPVA!T27="","",EPVA!T27) ->  | R89: =IF(EPVA!U27="","",EPVA!U27) ->  | S89: =IF(EPVA!V27="","",EPVA!V27) ->  | T89: =IF(EPVA!W27="","",EPVA!W27) ->  | U89: =IF(EPVA!X27="","",EPVA!X27) ->  | V89: =IF(EPVA!Y27="","",EPVA!Y27) ->  | W89: =IF(EPVA!Z27="","",EPVA!Z27) ->  | X89: =IF(EPVA!AA27="","",EPVA!AA27) ->  | Y89: =IF(EPVA!AB27="","",EPVA!AB27) ->  | Z89: =IF(EPVA!AC27="","",EPVA!AC27) ->  | AA89: =IF(EPVA!AD27="","",EPVA!AD27) ->  | AB89: =IF(EPVA!AE27="","",EPVA!AE27) ->  | AC89: =IF(EPVA!AF27="","",EPVA!AF27) ->  | AD89: =IF(EPVA!AG27="","",EPVA!AG27) ->  | AE89: =IF(EPVA!AH27="","",EPVA!AH27) ->  | AF89: =IF(EPVA!AI27="","",EPVA!AI27) ->  | AG89: =IF(EPVA!AJ27="","",EPVA!AJ27) ->  | AH89: =IF(EPVA!AK27="","",EPVA!AK27) ->  | AI89: =IF(EPVA!AL27="","",EPVA!AL27) ->  | AJ89: =IF(EPVA!AM27="","",EPVA!AM27) ->  | AK89: =IF(EPVA!AN27="","",EPVA!AN27) ->  | AL89: =IF(EPVA!AO27="","",EPVA!AO27) ->  | AM89: =IF(EPVA!AP27="","",EPVA!AP27) -> 
B90: Geografía e Historia | C90: Comp. Esp. 1 | D90: Criterio Evaluación 1.1 | E90: =IF('Geografia e Historia'!H4="","",'Geografia e Historia'!H4) ->  | F90: =IF('Geografia e Historia'!I4="","",'Geografia e Historia'!I4) ->  | G90: =IF('Geografia e Historia'!J4="","",'Geografia e Historia'!J4) ->  | H90: =IF('Geografia e Historia'!K4="","",'Geografia e Historia'!K4) ->  | I90: =IF('Geografia e Historia'!L4="","",'Geografia e Historia'!L4) ->  | J90: =IF('Geografia e Historia'!M4="","",'Geografia e Historia'!M4) ->  | K90: =IF('Geografia e Historia'!N4="","",'Geografia e Historia'!N4) ->  | L90: =IF('Geografia e Historia'!O4="","",'Geografia e Historia'!O4) ->  | M90: =IF('Geografia e Historia'!P4="","",'Geografia e Historia'!P4) ->  | N90: =IF('Geografia e Historia'!Q4="","",'Geografia e Historia'!Q4) ->  | O90: =IF('Geografia e Historia'!R4="","",'Geografia e Historia'!R4) ->  | P90: =IF('Geografia e Historia'!S4="","",'Geografia e Historia'!S4) ->  | Q90: =IF('Geografia e Historia'!T4="","",'Geografia e Historia'!T4) ->  | R90: =IF('Geografia e Historia'!U4="","",'Geografia e Historia'!U4) ->  | S90: =IF('Geografia e Historia'!V4="","",'Geografia e Historia'!V4) ->  | T90: =IF('Geografia e Historia'!W4="","",'Geografia e Historia'!W4) ->  | U90: =IF('Geografia e Historia'!X4="","",'Geografia e Historia'!X4) ->  | V90: =IF('Geografia e Historia'!Y4="","",'Geografia e Historia'!Y4) ->  | W90: =IF('Geografia e Historia'!Z4="","",'Geografia e Historia'!Z4) ->  | X90: =IF('Geografia e Historia'!AA4="","",'Geografia e Historia'!AA4) ->  | Y90: =IF('Geografia e Historia'!AB4="","",'Geografia e Historia'!AB4) ->  | Z90: =IF('Geografia e Historia'!AC4="","",'Geografia e Historia'!AC4) ->  | AA90: =IF('Geografia e Historia'!AD4="","",'Geografia e Historia'!AD4) ->  | AB90: =IF('Geografia e Historia'!AE4="","",'Geografia e Historia'!AE4) ->  | AC90: =IF('Geografia e Historia'!AF4="","",'Geografia e Historia'!AF4) ->  | AD90: =IF('Geografia e Historia'!AG4="","",'Geografia e Historia'!AG4) ->  | AE90: =IF('Geografia e Historia'!AH4="","",'Geografia e Historia'!AH4) ->  | AF90: =IF('Geografia e Historia'!AI4="","",'Geografia e Historia'!AI4) ->  | AG90: =IF('Geografia e Historia'!AJ4="","",'Geografia e Historia'!AJ4) ->  | AH90: =IF('Geografia e Historia'!AK4="","",'Geografia e Historia'!AK4) ->  | AI90: =IF('Geografia e Historia'!AL4="","",'Geografia e Historia'!AL4) ->  | AJ90: =IF('Geografia e Historia'!AM4="","",'Geografia e Historia'!AM4) ->  | AK90: =IF('Geografia e Historia'!AN4="","",'Geografia e Historia'!AN4) ->  | AL90: =IF('Geografia e Historia'!AO4="","",'Geografia e Historia'!AO4) ->  | AM90: =IF('Geografia e Historia'!AP4="","",'Geografia e Historia'!AP4) -> 
D91: Criterio Evaluación 1.2 | E91: =IF('Geografia e Historia'!H5="","",'Geografia e Historia'!H5) ->  | F91: =IF('Geografia e Historia'!I5="","",'Geografia e Historia'!I5) ->  | G91: =IF('Geografia e Historia'!J5="","",'Geografia e Historia'!J5) ->  | H91: =IF('Geografia e Historia'!K5="","",'Geografia e Historia'!K5) ->  | I91: =IF('Geografia e Historia'!L5="","",'Geografia e Historia'!L5) ->  | J91: =IF('Geografia e Historia'!M5="","",'Geografia e Historia'!M5) ->  | K91: =IF('Geografia e Historia'!N5="","",'Geografia e Historia'!N5) ->  | L91: =IF('Geografia e Historia'!O5="","",'Geografia e Historia'!O5) ->  | M91: =IF('Geografia e Historia'!P5="","",'Geografia e Historia'!P5) ->  | N91: =IF('Geografia e Historia'!Q5="","",'Geografia e Historia'!Q5) ->  | O91: =IF('Geografia e Historia'!R5="","",'Geografia e Historia'!R5) ->  | P91: =IF('Geografia e Historia'!S5="","",'Geografia e Historia'!S5) ->  | Q91: =IF('Geografia e Historia'!T5="","",'Geografia e Historia'!T5) ->  | R91: =IF('Geografia e Historia'!U5="","",'Geografia e Historia'!U5) ->  | S91: =IF('Geografia e Historia'!V5="","",'Geografia e Historia'!V5) ->  | T91: =IF('Geografia e Historia'!W5="","",'Geografia e Historia'!W5) ->  | U91: =IF('Geografia e Historia'!X5="","",'Geografia e Historia'!X5) ->  | V91: =IF('Geografia e Historia'!Y5="","",'Geografia e Historia'!Y5) ->  | W91: =IF('Geografia e Historia'!Z5="","",'Geografia e Historia'!Z5) ->  | X91: =IF('Geografia e Historia'!AA5="","",'Geografia e Historia'!AA5) ->  | Y91: =IF('Geografia e Historia'!AB5="","",'Geografia e Historia'!AB5) ->  | Z91: =IF('Geografia e Historia'!AC5="","",'Geografia e Historia'!AC5) ->  | AA91: =IF('Geografia e Historia'!AD5="","",'Geografia e Historia'!AD5) ->  | AB91: =IF('Geografia e Historia'!AE5="","",'Geografia e Historia'!AE5) ->  | AC91: =IF('Geografia e Historia'!AF5="","",'Geografia e Historia'!AF5) ->  | AD91: =IF('Geografia e Historia'!AG5="","",'Geografia e Historia'!AG5) ->  | AE91: =IF('Geografia e Historia'!AH5="","",'Geografia e Historia'!AH5) ->  | AF91: =IF('Geografia e Historia'!AI5="","",'Geografia e Historia'!AI5) ->  | AG91: =IF('Geografia e Historia'!AJ5="","",'Geografia e Historia'!AJ5) ->  | AH91: =IF('Geografia e Historia'!AK5="","",'Geografia e Historia'!AK5) ->  | AI91: =IF('Geografia e Historia'!AL5="","",'Geografia e Historia'!AL5) ->  | AJ91: =IF('Geografia e Historia'!AM5="","",'Geografia e Historia'!AM5) ->  | AK91: =IF('Geografia e Historia'!AN5="","",'Geografia e Historia'!AN5) ->  | AL91: =IF('Geografia e Historia'!AO5="","",'Geografia e Historia'!AO5) ->  | AM91: =IF('Geografia e Historia'!AP5="","",'Geografia e Historia'!AP5) -> 
C92: Comp. Esp. 2 | D92: Criterio Evaluación 2.1 | E92: =IF('Geografia e Historia'!H6="","",'Geografia e Historia'!H6) ->  | F92: =IF('Geografia e Historia'!I6="","",'Geografia e Historia'!I6) ->  | G92: =IF('Geografia e Historia'!J6="","",'Geografia e Historia'!J6) ->  | H92: =IF('Geografia e Historia'!K6="","",'Geografia e Historia'!K6) ->  | I92: =IF('Geografia e Historia'!L6="","",'Geografia e Historia'!L6) ->  | J92: =IF('Geografia e Historia'!M6="","",'Geografia e Historia'!M6) ->  | K92: =IF('Geografia e Historia'!N6="","",'Geografia e Historia'!N6) ->  | L92: =IF('Geografia e Historia'!O6="","",'Geografia e Historia'!O6) ->  | M92: =IF('Geografia e Historia'!P6="","",'Geografia e Historia'!P6) ->  | N92: =IF('Geografia e Historia'!Q6="","",'Geografia e Historia'!Q6) ->  | O92: =IF('Geografia e Historia'!R6="","",'Geografia e Historia'!R6) ->  | P92: =IF('Geografia e Historia'!S6="","",'Geografia e Historia'!S6) ->  | Q92: =IF('Geografia e Historia'!T6="","",'Geografia e Historia'!T6) ->  | R92: =IF('Geografia e Historia'!U6="","",'Geografia e Historia'!U6) ->  | S92: =IF('Geografia e Historia'!V6="","",'Geografia e Historia'!V6) ->  | T92: =IF('Geografia e Historia'!W6="","",'Geografia e Historia'!W6) ->  | U92: =IF('Geografia e Historia'!X6="","",'Geografia e Historia'!X6) ->  | V92: =IF('Geografia e Historia'!Y6="","",'Geografia e Historia'!Y6) ->  | W92: =IF('Geografia e Historia'!Z6="","",'Geografia e Historia'!Z6) ->  | X92: =IF('Geografia e Historia'!AA6="","",'Geografia e Historia'!AA6) ->  | Y92: =IF('Geografia e Historia'!AB6="","",'Geografia e Historia'!AB6) ->  | Z92: =IF('Geografia e Historia'!AC6="","",'Geografia e Historia'!AC6) ->  | AA92: =IF('Geografia e Historia'!AD6="","",'Geografia e Historia'!AD6) ->  | AB92: =IF('Geografia e Historia'!AE6="","",'Geografia e Historia'!AE6) ->  | AC92: =IF('Geografia e Historia'!AF6="","",'Geografia e Historia'!AF6) ->  | AD92: =IF('Geografia e Historia'!AG6="","",'Geografia e Historia'!AG6) ->  | AE92: =IF('Geografia e Historia'!AH6="","",'Geografia e Historia'!AH6) ->  | AF92: =IF('Geografia e Historia'!AI6="","",'Geografia e Historia'!AI6) ->  | AG92: =IF('Geografia e Historia'!AJ6="","",'Geografia e Historia'!AJ6) ->  | AH92: =IF('Geografia e Historia'!AK6="","",'Geografia e Historia'!AK6) ->  | AI92: =IF('Geografia e Historia'!AL6="","",'Geografia e Historia'!AL6) ->  | AJ92: =IF('Geografia e Historia'!AM6="","",'Geografia e Historia'!AM6) ->  | AK92: =IF('Geografia e Historia'!AN6="","",'Geografia e Historia'!AN6) ->  | AL92: =IF('Geografia e Historia'!AO6="","",'Geografia e Historia'!AO6) ->  | AM92: =IF('Geografia e Historia'!AP6="","",'Geografia e Historia'!AP6) -> 
C93: Comp. Esp. 3 | D93: Criterio Evaluación 3.1 | E93: =IF('Geografia e Historia'!H7="","",'Geografia e Historia'!H7) ->  | F93: =IF('Geografia e Historia'!I7="","",'Geografia e Historia'!I7) ->  | G93: =IF('Geografia e Historia'!J7="","",'Geografia e Historia'!J7) ->  | H93: =IF('Geografia e Historia'!K7="","",'Geografia e Historia'!K7) ->  | I93: =IF('Geografia e Historia'!L7="","",'Geografia e Historia'!L7) ->  | J93: =IF('Geografia e Historia'!M7="","",'Geografia e Historia'!M7) ->  | K93: =IF('Geografia e Historia'!N7="","",'Geografia e Historia'!N7) ->  | L93: =IF('Geografia e Historia'!O7="","",'Geografia e Historia'!O7) ->  | M93: =IF('Geografia e Historia'!P7="","",'Geografia e Historia'!P7) ->  | N93: =IF('Geografia e Historia'!Q7="","",'Geografia e Historia'!Q7) ->  | O93: =IF('Geografia e Historia'!R7="","",'Geografia e Historia'!R7) ->  | P93: =IF('Geografia e Historia'!S7="","",'Geografia e Historia'!S7) ->  | Q93: =IF('Geografia e Historia'!T7="","",'Geografia e Historia'!T7) ->  | R93: =IF('Geografia e Historia'!U7="","",'Geografia e Historia'!U7) ->  | S93: =IF('Geografia e Historia'!V7="","",'Geografia e Historia'!V7) ->  | T93: =IF('Geografia e Historia'!W7="","",'Geografia e Historia'!W7) ->  | U93: =IF('Geografia e Historia'!X7="","",'Geografia e Historia'!X7) ->  | V93: =IF('Geografia e Historia'!Y7="","",'Geografia e Historia'!Y7) ->  | W93: =IF('Geografia e Historia'!Z7="","",'Geografia e Historia'!Z7) ->  | X93: =IF('Geografia e Historia'!AA7="","",'Geografia e Historia'!AA7) ->  | Y93: =IF('Geografia e Historia'!AB7="","",'Geografia e Historia'!AB7) ->  | Z93: =IF('Geografia e Historia'!AC7="","",'Geografia e Historia'!AC7) ->  | AA93: =IF('Geografia e Historia'!AD7="","",'Geografia e Historia'!AD7) ->  | AB93: =IF('Geografia e Historia'!AE7="","",'Geografia e Historia'!AE7) ->  | AC93: =IF('Geografia e Historia'!AF7="","",'Geografia e Historia'!AF7) ->  | AD93: =IF('Geografia e Historia'!AG7="","",'Geografia e Historia'!AG7) ->  | AE93: =IF('Geografia e Historia'!AH7="","",'Geografia e Historia'!AH7) ->  | AF93: =IF('Geografia e Historia'!AI7="","",'Geografia e Historia'!AI7) ->  | AG93: =IF('Geografia e Historia'!AJ7="","",'Geografia e Historia'!AJ7) ->  | AH93: =IF('Geografia e Historia'!AK7="","",'Geografia e Historia'!AK7) ->  | AI93: =IF('Geografia e Historia'!AL7="","",'Geografia e Historia'!AL7) ->  | AJ93: =IF('Geografia e Historia'!AM7="","",'Geografia e Historia'!AM7) ->  | AK93: =IF('Geografia e Historia'!AN7="","",'Geografia e Historia'!AN7) ->  | AL93: =IF('Geografia e Historia'!AO7="","",'Geografia e Historia'!AO7) ->  | AM93: =IF('Geografia e Historia'!AP7="","",'Geografia e Historia'!AP7) -> 
D94: Criterio Evaluación 3.2 | E94: =IF('Geografia e Historia'!H8="","",'Geografia e Historia'!H8) ->  | F94: =IF('Geografia e Historia'!I8="","",'Geografia e Historia'!I8) ->  | G94: =IF('Geografia e Historia'!J8="","",'Geografia e Historia'!J8) ->  | H94: =IF('Geografia e Historia'!K8="","",'Geografia e Historia'!K8) ->  | I94: =IF('Geografia e Historia'!L8="","",'Geografia e Historia'!L8) ->  | J94: =IF('Geografia e Historia'!M8="","",'Geografia e Historia'!M8) ->  | K94: =IF('Geografia e Historia'!N8="","",'Geografia e Historia'!N8) ->  | L94: =IF('Geografia e Historia'!O8="","",'Geografia e Historia'!O8) ->  | M94: =IF('Geografia e Historia'!P8="","",'Geografia e Historia'!P8) ->  | N94: =IF('Geografia e Historia'!Q8="","",'Geografia e Historia'!Q8) ->  | O94: =IF('Geografia e Historia'!R8="","",'Geografia e Historia'!R8) ->  | P94: =IF('Geografia e Historia'!S8="","",'Geografia e Historia'!S8) ->  | Q94: =IF('Geografia e Historia'!T8="","",'Geografia e Historia'!T8) ->  | R94: =IF('Geografia e Historia'!U8="","",'Geografia e Historia'!U8) ->  | S94: =IF('Geografia e Historia'!V8="","",'Geografia e Historia'!V8) ->  | T94: =IF('Geografia e Historia'!W8="","",'Geografia e Historia'!W8) ->  | U94: =IF('Geografia e Historia'!X8="","",'Geografia e Historia'!X8) ->  | V94: =IF('Geografia e Historia'!Y8="","",'Geografia e Historia'!Y8) ->  | W94: =IF('Geografia e Historia'!Z8="","",'Geografia e Historia'!Z8) ->  | X94: =IF('Geografia e Historia'!AA8="","",'Geografia e Historia'!AA8) ->  | Y94: =IF('Geografia e Historia'!AB8="","",'Geografia e Historia'!AB8) ->  | Z94: =IF('Geografia e Historia'!AC8="","",'Geografia e Historia'!AC8) ->  | AA94: =IF('Geografia e Historia'!AD8="","",'Geografia e Historia'!AD8) ->  | AB94: =IF('Geografia e Historia'!AE8="","",'Geografia e Historia'!AE8) ->  | AC94: =IF('Geografia e Historia'!AF8="","",'Geografia e Historia'!AF8) ->  | AD94: =IF('Geografia e Historia'!AG8="","",'Geografia e Historia'!AG8) ->  | AE94: =IF('Geografia e Historia'!AH8="","",'Geografia e Historia'!AH8) ->  | AF94: =IF('Geografia e Historia'!AI8="","",'Geografia e Historia'!AI8) ->  | AG94: =IF('Geografia e Historia'!AJ8="","",'Geografia e Historia'!AJ8) ->  | AH94: =IF('Geografia e Historia'!AK8="","",'Geografia e Historia'!AK8) ->  | AI94: =IF('Geografia e Historia'!AL8="","",'Geografia e Historia'!AL8) ->  | AJ94: =IF('Geografia e Historia'!AM8="","",'Geografia e Historia'!AM8) ->  | AK94: =IF('Geografia e Historia'!AN8="","",'Geografia e Historia'!AN8) ->  | AL94: =IF('Geografia e Historia'!AO8="","",'Geografia e Historia'!AO8) ->  | AM94: =IF('Geografia e Historia'!AP8="","",'Geografia e Historia'!AP8) -> 
D95: Criterio Evaluación 3.3 | E95: =IF('Geografia e Historia'!H9="","",'Geografia e Historia'!H9) ->  | F95: =IF('Geografia e Historia'!I9="","",'Geografia e Historia'!I9) ->  | G95: =IF('Geografia e Historia'!J9="","",'Geografia e Historia'!J9) ->  | H95: =IF('Geografia e Historia'!K9="","",'Geografia e Historia'!K9) ->  | I95: =IF('Geografia e Historia'!L9="","",'Geografia e Historia'!L9) ->  | J95: =IF('Geografia e Historia'!M9="","",'Geografia e Historia'!M9) ->  | K95: =IF('Geografia e Historia'!N9="","",'Geografia e Historia'!N9) ->  | L95: =IF('Geografia e Historia'!O9="","",'Geografia e Historia'!O9) ->  | M95: =IF('Geografia e Historia'!P9="","",'Geografia e Historia'!P9) ->  | N95: =IF('Geografia e Historia'!Q9="","",'Geografia e Historia'!Q9) ->  | O95: =IF('Geografia e Historia'!R9="","",'Geografia e Historia'!R9) ->  | P95: =IF('Geografia e Historia'!S9="","",'Geografia e Historia'!S9) ->  | Q95: =IF('Geografia e Historia'!T9="","",'Geografia e Historia'!T9) ->  | R95: =IF('Geografia e Historia'!U9="","",'Geografia e Historia'!U9) ->  | S95: =IF('Geografia e Historia'!V9="","",'Geografia e Historia'!V9) ->  | T95: =IF('Geografia e Historia'!W9="","",'Geografia e Historia'!W9) ->  | U95: =IF('Geografia e Historia'!X9="","",'Geografia e Historia'!X9) ->  | V95: =IF('Geografia e Historia'!Y9="","",'Geografia e Historia'!Y9) ->  | W95: =IF('Geografia e Historia'!Z9="","",'Geografia e Historia'!Z9) ->  | X95: =IF('Geografia e Historia'!AA9="","",'Geografia e Historia'!AA9) ->  | Y95: =IF('Geografia e Historia'!AB9="","",'Geografia e Historia'!AB9) ->  | Z95: =IF('Geografia e Historia'!AC9="","",'Geografia e Historia'!AC9) ->  | AA95: =IF('Geografia e Historia'!AD9="","",'Geografia e Historia'!AD9) ->  | AB95: =IF('Geografia e Historia'!AE9="","",'Geografia e Historia'!AE9) ->  | AC95: =IF('Geografia e Historia'!AF9="","",'Geografia e Historia'!AF9) ->  | AD95: =IF('Geografia e Historia'!AG9="","",'Geografia e Historia'!AG9) ->  | AE95: =IF('Geografia e Historia'!AH9="","",'Geografia e Historia'!AH9) ->  | AF95: =IF('Geografia e Historia'!AI9="","",'Geografia e Historia'!AI9) ->  | AG95: =IF('Geografia e Historia'!AJ9="","",'Geografia e Historia'!AJ9) ->  | AH95: =IF('Geografia e Historia'!AK9="","",'Geografia e Historia'!AK9) ->  | AI95: =IF('Geografia e Historia'!AL9="","",'Geografia e Historia'!AL9) ->  | AJ95: =IF('Geografia e Historia'!AM9="","",'Geografia e Historia'!AM9) ->  | AK95: =IF('Geografia e Historia'!AN9="","",'Geografia e Historia'!AN9) ->  | AL95: =IF('Geografia e Historia'!AO9="","",'Geografia e Historia'!AO9) ->  | AM95: =IF('Geografia e Historia'!AP9="","",'Geografia e Historia'!AP9) -> 
C96: Comp. Esp. 4 | D96: Criterio Evaluación 4.1 | E96: =IF('Geografia e Historia'!H10="","",'Geografia e Historia'!H10) ->  | F96: =IF('Geografia e Historia'!I10="","",'Geografia e Historia'!I10) ->  | G96: =IF('Geografia e Historia'!J10="","",'Geografia e Historia'!J10) ->  | H96: =IF('Geografia e Historia'!K10="","",'Geografia e Historia'!K10) ->  | I96: =IF('Geografia e Historia'!L10="","",'Geografia e Historia'!L10) ->  | J96: =IF('Geografia e Historia'!M10="","",'Geografia e Historia'!M10) ->  | K96: =IF('Geografia e Historia'!N10="","",'Geografia e Historia'!N10) ->  | L96: =IF('Geografia e Historia'!O10="","",'Geografia e Historia'!O10) ->  | M96: =IF('Geografia e Historia'!P10="","",'Geografia e Historia'!P10) ->  | N96: =IF('Geografia e Historia'!Q10="","",'Geografia e Historia'!Q10) ->  | O96: =IF('Geografia e Historia'!R10="","",'Geografia e Historia'!R10) ->  | P96: =IF('Geografia e Historia'!S10="","",'Geografia e Historia'!S10) ->  | Q96: =IF('Geografia e Historia'!T10="","",'Geografia e Historia'!T10) ->  | R96: =IF('Geografia e Historia'!U10="","",'Geografia e Historia'!U10) ->  | S96: =IF('Geografia e Historia'!V10="","",'Geografia e Historia'!V10) ->  | T96: =IF('Geografia e Historia'!W10="","",'Geografia e Historia'!W10) ->  | U96: =IF('Geografia e Historia'!X10="","",'Geografia e Historia'!X10) ->  | V96: =IF('Geografia e Historia'!Y10="","",'Geografia e Historia'!Y10) ->  | W96: =IF('Geografia e Historia'!Z10="","",'Geografia e Historia'!Z10) ->  | X96: =IF('Geografia e Historia'!AA10="","",'Geografia e Historia'!AA10) ->  | Y96: =IF('Geografia e Historia'!AB10="","",'Geografia e Historia'!AB10) ->  | Z96: =IF('Geografia e Historia'!AC10="","",'Geografia e Historia'!AC10) ->  | AA96: =IF('Geografia e Historia'!AD10="","",'Geografia e Historia'!AD10) ->  | AB96: =IF('Geografia e Historia'!AE10="","",'Geografia e Historia'!AE10) ->  | AC96: =IF('Geografia e Historia'!AF10="","",'Geografia e Historia'!AF10) ->  | AD96: =IF('Geografia e Historia'!AG10="","",'Geografia e Historia'!AG10) ->  | AE96: =IF('Geografia e Historia'!AH10="","",'Geografia e Historia'!AH10) ->  | AF96: =IF('Geografia e Historia'!AI10="","",'Geografia e Historia'!AI10) ->  | AG96: =IF('Geografia e Historia'!AJ10="","",'Geografia e Historia'!AJ10) ->  | AH96: =IF('Geografia e Historia'!AK10="","",'Geografia e Historia'!AK10) ->  | AI96: =IF('Geografia e Historia'!AL10="","",'Geografia e Historia'!AL10) ->  | AJ96: =IF('Geografia e Historia'!AM10="","",'Geografia e Historia'!AM10) ->  | AK96: =IF('Geografia e Historia'!AN10="","",'Geografia e Historia'!AN10) ->  | AL96: =IF('Geografia e Historia'!AO10="","",'Geografia e Historia'!AO10) ->  | AM96: =IF('Geografia e Historia'!AP10="","",'Geografia e Historia'!AP10) -> 
C97: Comp. Esp. 5 | D97: Criterio Evaluación 5.1 | E97: =IF('Geografia e Historia'!H11="","",'Geografia e Historia'!H11) ->  | F97: =IF('Geografia e Historia'!I11="","",'Geografia e Historia'!I11) ->  | G97: =IF('Geografia e Historia'!J11="","",'Geografia e Historia'!J11) ->  | H97: =IF('Geografia e Historia'!K11="","",'Geografia e Historia'!K11) ->  | I97: =IF('Geografia e Historia'!L11="","",'Geografia e Historia'!L11) ->  | J97: =IF('Geografia e Historia'!M11="","",'Geografia e Historia'!M11) ->  | K97: =IF('Geografia e Historia'!N11="","",'Geografia e Historia'!N11) ->  | L97: =IF('Geografia e Historia'!O11="","",'Geografia e Historia'!O11) ->  | M97: =IF('Geografia e Historia'!P11="","",'Geografia e Historia'!P11) ->  | N97: =IF('Geografia e Historia'!Q11="","",'Geografia e Historia'!Q11) ->  | O97: =IF('Geografia e Historia'!R11="","",'Geografia e Historia'!R11) ->  | P97: =IF('Geografia e Historia'!S11="","",'Geografia e Historia'!S11) ->  | Q97: =IF('Geografia e Historia'!T11="","",'Geografia e Historia'!T11) ->  | R97: =IF('Geografia e Historia'!U11="","",'Geografia e Historia'!U11) ->  | S97: =IF('Geografia e Historia'!V11="","",'Geografia e Historia'!V11) ->  | T97: =IF('Geografia e Historia'!W11="","",'Geografia e Historia'!W11) ->  | U97: =IF('Geografia e Historia'!X11="","",'Geografia e Historia'!X11) ->  | V97: =IF('Geografia e Historia'!Y11="","",'Geografia e Historia'!Y11) ->  | W97: =IF('Geografia e Historia'!Z11="","",'Geografia e Historia'!Z11) ->  | X97: =IF('Geografia e Historia'!AA11="","",'Geografia e Historia'!AA11) ->  | Y97: =IF('Geografia e Historia'!AB11="","",'Geografia e Historia'!AB11) ->  | Z97: =IF('Geografia e Historia'!AC11="","",'Geografia e Historia'!AC11) ->  | AA97: =IF('Geografia e Historia'!AD11="","",'Geografia e Historia'!AD11) ->  | AB97: =IF('Geografia e Historia'!AE11="","",'Geografia e Historia'!AE11) ->  | AC97: =IF('Geografia e Historia'!AF11="","",'Geografia e Historia'!AF11) ->  | AD97: =IF('Geografia e Historia'!AG11="","",'Geografia e Historia'!AG11) ->  | AE97: =IF('Geografia e Historia'!AH11="","",'Geografia e Historia'!AH11) ->  | AF97: =IF('Geografia e Historia'!AI11="","",'Geografia e Historia'!AI11) ->  | AG97: =IF('Geografia e Historia'!AJ11="","",'Geografia e Historia'!AJ11) ->  | AH97: =IF('Geografia e Historia'!AK11="","",'Geografia e Historia'!AK11) ->  | AI97: =IF('Geografia e Historia'!AL11="","",'Geografia e Historia'!AL11) ->  | AJ97: =IF('Geografia e Historia'!AM11="","",'Geografia e Historia'!AM11) ->  | AK97: =IF('Geografia e Historia'!AN11="","",'Geografia e Historia'!AN11) ->  | AL97: =IF('Geografia e Historia'!AO11="","",'Geografia e Historia'!AO11) ->  | AM97: =IF('Geografia e Historia'!AP11="","",'Geografia e Historia'!AP11) -> 
D98: Criterio Evaluación 5.2 | E98: =IF('Geografia e Historia'!H12="","",'Geografia e Historia'!H12) ->  | F98: =IF('Geografia e Historia'!I12="","",'Geografia e Historia'!I12) ->  | G98: =IF('Geografia e Historia'!J12="","",'Geografia e Historia'!J12) ->  | H98: =IF('Geografia e Historia'!K12="","",'Geografia e Historia'!K12) ->  | I98: =IF('Geografia e Historia'!L12="","",'Geografia e Historia'!L12) ->  | J98: =IF('Geografia e Historia'!M12="","",'Geografia e Historia'!M12) ->  | K98: =IF('Geografia e Historia'!N12="","",'Geografia e Historia'!N12) ->  | L98: =IF('Geografia e Historia'!O12="","",'Geografia e Historia'!O12) ->  | M98: =IF('Geografia e Historia'!P12="","",'Geografia e Historia'!P12) ->  | N98: =IF('Geografia e Historia'!Q12="","",'Geografia e Historia'!Q12) ->  | O98: =IF('Geografia e Historia'!R12="","",'Geografia e Historia'!R12) ->  | P98: =IF('Geografia e Historia'!S12="","",'Geografia e Historia'!S12) ->  | Q98: =IF('Geografia e Historia'!T12="","",'Geografia e Historia'!T12) ->  | R98: =IF('Geografia e Historia'!U12="","",'Geografia e Historia'!U12) ->  | S98: =IF('Geografia e Historia'!V12="","",'Geografia e Historia'!V12) ->  | T98: =IF('Geografia e Historia'!W12="","",'Geografia e Historia'!W12) ->  | U98: =IF('Geografia e Historia'!X12="","",'Geografia e Historia'!X12) ->  | V98: =IF('Geografia e Historia'!Y12="","",'Geografia e Historia'!Y12) ->  | W98: =IF('Geografia e Historia'!Z12="","",'Geografia e Historia'!Z12) ->  | X98: =IF('Geografia e Historia'!AA12="","",'Geografia e Historia'!AA12) ->  | Y98: =IF('Geografia e Historia'!AB12="","",'Geografia e Historia'!AB12) ->  | Z98: =IF('Geografia e Historia'!AC12="","",'Geografia e Historia'!AC12) ->  | AA98: =IF('Geografia e Historia'!AD12="","",'Geografia e Historia'!AD12) ->  | AB98: =IF('Geografia e Historia'!AE12="","",'Geografia e Historia'!AE12) ->  | AC98: =IF('Geografia e Historia'!AF12="","",'Geografia e Historia'!AF12) ->  | AD98: =IF('Geografia e Historia'!AG12="","",'Geografia e Historia'!AG12) ->  | AE98: =IF('Geografia e Historia'!AH12="","",'Geografia e Historia'!AH12) ->  | AF98: =IF('Geografia e Historia'!AI12="","",'Geografia e Historia'!AI12) ->  | AG98: =IF('Geografia e Historia'!AJ12="","",'Geografia e Historia'!AJ12) ->  | AH98: =IF('Geografia e Historia'!AK12="","",'Geografia e Historia'!AK12) ->  | AI98: =IF('Geografia e Historia'!AL12="","",'Geografia e Historia'!AL12) ->  | AJ98: =IF('Geografia e Historia'!AM12="","",'Geografia e Historia'!AM12) ->  | AK98: =IF('Geografia e Historia'!AN12="","",'Geografia e Historia'!AN12) ->  | AL98: =IF('Geografia e Historia'!AO12="","",'Geografia e Historia'!AO12) ->  | AM98: =IF('Geografia e Historia'!AP12="","",'Geografia e Historia'!AP12) -> 
C99: Comp. Esp. 6 | D99: Criterio Evaluación 6.1 | E99: =IF('Geografia e Historia'!H13="","",'Geografia e Historia'!H13) ->  | F99: =IF('Geografia e Historia'!I13="","",'Geografia e Historia'!I13) ->  | G99: =IF('Geografia e Historia'!J13="","",'Geografia e Historia'!J13) ->  | H99: =IF('Geografia e Historia'!K13="","",'Geografia e Historia'!K13) ->  | I99: =IF('Geografia e Historia'!L13="","",'Geografia e Historia'!L13) ->  | J99: =IF('Geografia e Historia'!M13="","",'Geografia e Historia'!M13) ->  | K99: =IF('Geografia e Historia'!N13="","",'Geografia e Historia'!N13) ->  | L99: =IF('Geografia e Historia'!O13="","",'Geografia e Historia'!O13) ->  | M99: =IF('Geografia e Historia'!P13="","",'Geografia e Historia'!P13) ->  | N99: =IF('Geografia e Historia'!Q13="","",'Geografia e Historia'!Q13) ->  | O99: =IF('Geografia e Historia'!R13="","",'Geografia e Historia'!R13) ->  | P99: =IF('Geografia e Historia'!S13="","",'Geografia e Historia'!S13) ->  | Q99: =IF('Geografia e Historia'!T13="","",'Geografia e Historia'!T13) ->  | R99: =IF('Geografia e Historia'!U13="","",'Geografia e Historia'!U13) ->  | S99: =IF('Geografia e Historia'!V13="","",'Geografia e Historia'!V13) ->  | T99: =IF('Geografia e Historia'!W13="","",'Geografia e Historia'!W13) ->  | U99: =IF('Geografia e Historia'!X13="","",'Geografia e Historia'!X13) ->  | V99: =IF('Geografia e Historia'!Y13="","",'Geografia e Historia'!Y13) ->  | W99: =IF('Geografia e Historia'!Z13="","",'Geografia e Historia'!Z13) ->  | X99: =IF('Geografia e Historia'!AA13="","",'Geografia e Historia'!AA13) ->  | Y99: =IF('Geografia e Historia'!AB13="","",'Geografia e Historia'!AB13) ->  | Z99: =IF('Geografia e Historia'!AC13="","",'Geografia e Historia'!AC13) ->  | AA99: =IF('Geografia e Historia'!AD13="","",'Geografia e Historia'!AD13) ->  | AB99: =IF('Geografia e Historia'!AE13="","",'Geografia e Historia'!AE13) ->  | AC99: =IF('Geografia e Historia'!AF13="","",'Geografia e Historia'!AF13) ->  | AD99: =IF('Geografia e Historia'!AG13="","",'Geografia e Historia'!AG13) ->  | AE99: =IF('Geografia e Historia'!AH13="","",'Geografia e Historia'!AH13) ->  | AF99: =IF('Geografia e Historia'!AI13="","",'Geografia e Historia'!AI13) ->  | AG99: =IF('Geografia e Historia'!AJ13="","",'Geografia e Historia'!AJ13) ->  | AH99: =IF('Geografia e Historia'!AK13="","",'Geografia e Historia'!AK13) ->  | AI99: =IF('Geografia e Historia'!AL13="","",'Geografia e Historia'!AL13) ->  | AJ99: =IF('Geografia e Historia'!AM13="","",'Geografia e Historia'!AM13) ->  | AK99: =IF('Geografia e Historia'!AN13="","",'Geografia e Historia'!AN13) ->  | AL99: =IF('Geografia e Historia'!AO13="","",'Geografia e Historia'!AO13) ->  | AM99: =IF('Geografia e Historia'!AP13="","",'Geografia e Historia'!AP13) -> 
D100: Criterio Evaluación 6.2 | E100: =IF('Geografia e Historia'!H14="","",'Geografia e Historia'!H14) ->  | F100: =IF('Geografia e Historia'!I14="","",'Geografia e Historia'!I14) ->  | G100: =IF('Geografia e Historia'!J14="","",'Geografia e Historia'!J14) ->  | H100: =IF('Geografia e Historia'!K14="","",'Geografia e Historia'!K14) ->  | I100: =IF('Geografia e Historia'!L14="","",'Geografia e Historia'!L14) ->  | J100: =IF('Geografia e Historia'!M14="","",'Geografia e Historia'!M14) ->  | K100: =IF('Geografia e Historia'!N14="","",'Geografia e Historia'!N14) ->  | L100: =IF('Geografia e Historia'!O14="","",'Geografia e Historia'!O14) ->  | M100: =IF('Geografia e Historia'!P14="","",'Geografia e Historia'!P14) ->  | N100: =IF('Geografia e Historia'!Q14="","",'Geografia e Historia'!Q14) ->  | O100: =IF('Geografia e Historia'!R14="","",'Geografia e Historia'!R14) ->  | P100: =IF('Geografia e Historia'!S14="","",'Geografia e Historia'!S14) ->  | Q100: =IF('Geografia e Historia'!T14="","",'Geografia e Historia'!T14) ->  | R100: =IF('Geografia e Historia'!U14="","",'Geografia e Historia'!U14) ->  | S100: =IF('Geografia e Historia'!V14="","",'Geografia e Historia'!V14) ->  | T100: =IF('Geografia e Historia'!W14="","",'Geografia e Historia'!W14) ->  | U100: =IF('Geografia e Historia'!X14="","",'Geografia e Historia'!X14) ->  | V100: =IF('Geografia e Historia'!Y14="","",'Geografia e Historia'!Y14) ->  | W100: =IF('Geografia e Historia'!Z14="","",'Geografia e Historia'!Z14) ->  | X100: =IF('Geografia e Historia'!AA14="","",'Geografia e Historia'!AA14) ->  | Y100: =IF('Geografia e Historia'!AB14="","",'Geografia e Historia'!AB14) ->  | Z100: =IF('Geografia e Historia'!AC14="","",'Geografia e Historia'!AC14) ->  | AA100: =IF('Geografia e Historia'!AD14="","",'Geografia e Historia'!AD14) ->  | AB100: =IF('Geografia e Historia'!AE14="","",'Geografia e Historia'!AE14) ->  | AC100: =IF('Geografia e Historia'!AF14="","",'Geografia e Historia'!AF14) ->  | AD100: =IF('Geografia e Historia'!AG14="","",'Geografia e Historia'!AG14) ->  | AE100: =IF('Geografia e Historia'!AH14="","",'Geografia e Historia'!AH14) ->  | AF100: =IF('Geografia e Historia'!AI14="","",'Geografia e Historia'!AI14) ->  | AG100: =IF('Geografia e Historia'!AJ14="","",'Geografia e Historia'!AJ14) ->  | AH100: =IF('Geografia e Historia'!AK14="","",'Geografia e Historia'!AK14) ->  | AI100: =IF('Geografia e Historia'!AL14="","",'Geografia e Historia'!AL14) ->  | AJ100: =IF('Geografia e Historia'!AM14="","",'Geografia e Historia'!AM14) ->  | AK100: =IF('Geografia e Historia'!AN14="","",'Geografia e Historia'!AN14) ->  | AL100: =IF('Geografia e Historia'!AO14="","",'Geografia e Historia'!AO14) ->  | AM100: =IF('Geografia e Historia'!AP14="","",'Geografia e Historia'!AP14) -> 
C101: Comp. Esp. 7 | D101: Criterio Evaluación 7.1 | E101: =IF('Geografia e Historia'!H15="","",'Geografia e Historia'!H15) ->  | F101: =IF('Geografia e Historia'!I15="","",'Geografia e Historia'!I15) ->  | G101: =IF('Geografia e Historia'!J15="","",'Geografia e Historia'!J15) ->  | H101: =IF('Geografia e Historia'!K15="","",'Geografia e Historia'!K15) ->  | I101: =IF('Geografia e Historia'!L15="","",'Geografia e Historia'!L15) ->  | J101: =IF('Geografia e Historia'!M15="","",'Geografia e Historia'!M15) ->  | K101: =IF('Geografia e Historia'!N15="","",'Geografia e Historia'!N15) ->  | L101: =IF('Geografia e Historia'!O15="","",'Geografia e Historia'!O15) ->  | M101: =IF('Geografia e Historia'!P15="","",'Geografia e Historia'!P15) ->  | N101: =IF('Geografia e Historia'!Q15="","",'Geografia e Historia'!Q15) ->  | O101: =IF('Geografia e Historia'!R15="","",'Geografia e Historia'!R15) ->  | P101: =IF('Geografia e Historia'!S15="","",'Geografia e Historia'!S15) ->  | Q101: =IF('Geografia e Historia'!T15="","",'Geografia e Historia'!T15) ->  | R101: =IF('Geografia e Historia'!U15="","",'Geografia e Historia'!U15) ->  | S101: =IF('Geografia e Historia'!V15="","",'Geografia e Historia'!V15) ->  | T101: =IF('Geografia e Historia'!W15="","",'Geografia e Historia'!W15) ->  | U101: =IF('Geografia e Historia'!X15="","",'Geografia e Historia'!X15) ->  | V101: =IF('Geografia e Historia'!Y15="","",'Geografia e Historia'!Y15) ->  | W101: =IF('Geografia e Historia'!Z15="","",'Geografia e Historia'!Z15) ->  | X101: =IF('Geografia e Historia'!AA15="","",'Geografia e Historia'!AA15) ->  | Y101: =IF('Geografia e Historia'!AB15="","",'Geografia e Historia'!AB15) ->  | Z101: =IF('Geografia e Historia'!AC15="","",'Geografia e Historia'!AC15) ->  | AA101: =IF('Geografia e Historia'!AD15="","",'Geografia e Historia'!AD15) ->  | AB101: =IF('Geografia e Historia'!AE15="","",'Geografia e Historia'!AE15) ->  | AC101: =IF('Geografia e Historia'!AF15="","",'Geografia e Historia'!AF15) ->  | AD101: =IF('Geografia e Historia'!AG15="","",'Geografia e Historia'!AG15) ->  | AE101: =IF('Geografia e Historia'!AH15="","",'Geografia e Historia'!AH15) ->  | AF101: =IF('Geografia e Historia'!AI15="","",'Geografia e Historia'!AI15) ->  | AG101: =IF('Geografia e Historia'!AJ15="","",'Geografia e Historia'!AJ15) ->  | AH101: =IF('Geografia e Historia'!AK15="","",'Geografia e Historia'!AK15) ->  | AI101: =IF('Geografia e Historia'!AL15="","",'Geografia e Historia'!AL15) ->  | AJ101: =IF('Geografia e Historia'!AM15="","",'Geografia e Historia'!AM15) ->  | AK101: =IF('Geografia e Historia'!AN15="","",'Geografia e Historia'!AN15) ->  | AL101: =IF('Geografia e Historia'!AO15="","",'Geografia e Historia'!AO15) ->  | AM101: =IF('Geografia e Historia'!AP15="","",'Geografia e Historia'!AP15) -> 
D102: Criterio Evaluación 7.2 | E102: =IF('Geografia e Historia'!H16="","",'Geografia e Historia'!H16) ->  | F102: =IF('Geografia e Historia'!I16="","",'Geografia e Historia'!I16) ->  | G102: =IF('Geografia e Historia'!J16="","",'Geografia e Historia'!J16) ->  | H102: =IF('Geografia e Historia'!K16="","",'Geografia e Historia'!K16) ->  | I102: =IF('Geografia e Historia'!L16="","",'Geografia e Historia'!L16) ->  | J102: =IF('Geografia e Historia'!M16="","",'Geografia e Historia'!M16) ->  | K102: =IF('Geografia e Historia'!N16="","",'Geografia e Historia'!N16) ->  | L102: =IF('Geografia e Historia'!O16="","",'Geografia e Historia'!O16) ->  | M102: =IF('Geografia e Historia'!P16="","",'Geografia e Historia'!P16) ->  | N102: =IF('Geografia e Historia'!Q16="","",'Geografia e Historia'!Q16) ->  | O102: =IF('Geografia e Historia'!R16="","",'Geografia e Historia'!R16) ->  | P102: =IF('Geografia e Historia'!S16="","",'Geografia e Historia'!S16) ->  | Q102: =IF('Geografia e Historia'!T16="","",'Geografia e Historia'!T16) ->  | R102: =IF('Geografia e Historia'!U16="","",'Geografia e Historia'!U16) ->  | S102: =IF('Geografia e Historia'!V16="","",'Geografia e Historia'!V16) ->  | T102: =IF('Geografia e Historia'!W16="","",'Geografia e Historia'!W16) ->  | U102: =IF('Geografia e Historia'!X16="","",'Geografia e Historia'!X16) ->  | V102: =IF('Geografia e Historia'!Y16="","",'Geografia e Historia'!Y16) ->  | W102: =IF('Geografia e Historia'!Z16="","",'Geografia e Historia'!Z16) ->  | X102: =IF('Geografia e Historia'!AA16="","",'Geografia e Historia'!AA16) ->  | Y102: =IF('Geografia e Historia'!AB16="","",'Geografia e Historia'!AB16) ->  | Z102: =IF('Geografia e Historia'!AC16="","",'Geografia e Historia'!AC16) ->  | AA102: =IF('Geografia e Historia'!AD16="","",'Geografia e Historia'!AD16) ->  | AB102: =IF('Geografia e Historia'!AE16="","",'Geografia e Historia'!AE16) ->  | AC102: =IF('Geografia e Historia'!AF16="","",'Geografia e Historia'!AF16) ->  | AD102: =IF('Geografia e Historia'!AG16="","",'Geografia e Historia'!AG16) ->  | AE102: =IF('Geografia e Historia'!AH16="","",'Geografia e Historia'!AH16) ->  | AF102: =IF('Geografia e Historia'!AI16="","",'Geografia e Historia'!AI16) ->  | AG102: =IF('Geografia e Historia'!AJ16="","",'Geografia e Historia'!AJ16) ->  | AH102: =IF('Geografia e Historia'!AK16="","",'Geografia e Historia'!AK16) ->  | AI102: =IF('Geografia e Historia'!AL16="","",'Geografia e Historia'!AL16) ->  | AJ102: =IF('Geografia e Historia'!AM16="","",'Geografia e Historia'!AM16) ->  | AK102: =IF('Geografia e Historia'!AN16="","",'Geografia e Historia'!AN16) ->  | AL102: =IF('Geografia e Historia'!AO16="","",'Geografia e Historia'!AO16) ->  | AM102: =IF('Geografia e Historia'!AP16="","",'Geografia e Historia'!AP16) -> 
C103: Comp. Esp. 8 | D103: Criterio Evaluación 8.1 | E103: =IF('Geografia e Historia'!H17="","",'Geografia e Historia'!H17) ->  | F103: =IF('Geografia e Historia'!I17="","",'Geografia e Historia'!I17) ->  | G103: =IF('Geografia e Historia'!J17="","",'Geografia e Historia'!J17) ->  | H103: =IF('Geografia e Historia'!K17="","",'Geografia e Historia'!K17) ->  | I103: =IF('Geografia e Historia'!L17="","",'Geografia e Historia'!L17) ->  | J103: =IF('Geografia e Historia'!M17="","",'Geografia e Historia'!M17) ->  | K103: =IF('Geografia e Historia'!N17="","",'Geografia e Historia'!N17) ->  | L103: =IF('Geografia e Historia'!O17="","",'Geografia e Historia'!O17) ->  | M103: =IF('Geografia e Historia'!P17="","",'Geografia e Historia'!P17) ->  | N103: =IF('Geografia e Historia'!Q17="","",'Geografia e Historia'!Q17) ->  | O103: =IF('Geografia e Historia'!R17="","",'Geografia e Historia'!R17) ->  | P103: =IF('Geografia e Historia'!S17="","",'Geografia e Historia'!S17) ->  | Q103: =IF('Geografia e Historia'!T17="","",'Geografia e Historia'!T17) ->  | R103: =IF('Geografia e Historia'!U17="","",'Geografia e Historia'!U17) ->  | S103: =IF('Geografia e Historia'!V17="","",'Geografia e Historia'!V17) ->  | T103: =IF('Geografia e Historia'!W17="","",'Geografia e Historia'!W17) ->  | U103: =IF('Geografia e Historia'!X17="","",'Geografia e Historia'!X17) ->  | V103: =IF('Geografia e Historia'!Y17="","",'Geografia e Historia'!Y17) ->  | W103: =IF('Geografia e Historia'!Z17="","",'Geografia e Historia'!Z17) ->  | X103: =IF('Geografia e Historia'!AA17="","",'Geografia e Historia'!AA17) ->  | Y103: =IF('Geografia e Historia'!AB17="","",'Geografia e Historia'!AB17) ->  | Z103: =IF('Geografia e Historia'!AC17="","",'Geografia e Historia'!AC17) ->  | AA103: =IF('Geografia e Historia'!AD17="","",'Geografia e Historia'!AD17) ->  | AB103: =IF('Geografia e Historia'!AE17="","",'Geografia e Historia'!AE17) ->  | AC103: =IF('Geografia e Historia'!AF17="","",'Geografia e Historia'!AF17) ->  | AD103: =IF('Geografia e Historia'!AG17="","",'Geografia e Historia'!AG17) ->  | AE103: =IF('Geografia e Historia'!AH17="","",'Geografia e Historia'!AH17) ->  | AF103: =IF('Geografia e Historia'!AI17="","",'Geografia e Historia'!AI17) ->  | AG103: =IF('Geografia e Historia'!AJ17="","",'Geografia e Historia'!AJ17) ->  | AH103: =IF('Geografia e Historia'!AK17="","",'Geografia e Historia'!AK17) ->  | AI103: =IF('Geografia e Historia'!AL17="","",'Geografia e Historia'!AL17) ->  | AJ103: =IF('Geografia e Historia'!AM17="","",'Geografia e Historia'!AM17) ->  | AK103: =IF('Geografia e Historia'!AN17="","",'Geografia e Historia'!AN17) ->  | AL103: =IF('Geografia e Historia'!AO17="","",'Geografia e Historia'!AO17) ->  | AM103: =IF('Geografia e Historia'!AP17="","",'Geografia e Historia'!AP17) -> 
D104: Criterio Evaluación 8.2 | E104: =IF('Geografia e Historia'!H18="","",'Geografia e Historia'!H18) ->  | F104: =IF('Geografia e Historia'!I18="","",'Geografia e Historia'!I18) ->  | G104: =IF('Geografia e Historia'!J18="","",'Geografia e Historia'!J18) ->  | H104: =IF('Geografia e Historia'!K18="","",'Geografia e Historia'!K18) ->  | I104: =IF('Geografia e Historia'!L18="","",'Geografia e Historia'!L18) ->  | J104: =IF('Geografia e Historia'!M18="","",'Geografia e Historia'!M18) ->  | K104: =IF('Geografia e Historia'!N18="","",'Geografia e Historia'!N18) ->  | L104: =IF('Geografia e Historia'!O18="","",'Geografia e Historia'!O18) ->  | M104: =IF('Geografia e Historia'!P18="","",'Geografia e Historia'!P18) ->  | N104: =IF('Geografia e Historia'!Q18="","",'Geografia e Historia'!Q18) ->  | O104: =IF('Geografia e Historia'!R18="","",'Geografia e Historia'!R18) ->  | P104: =IF('Geografia e Historia'!S18="","",'Geografia e Historia'!S18) ->  | Q104: =IF('Geografia e Historia'!T18="","",'Geografia e Historia'!T18) ->  | R104: =IF('Geografia e Historia'!U18="","",'Geografia e Historia'!U18) ->  | S104: =IF('Geografia e Historia'!V18="","",'Geografia e Historia'!V18) ->  | T104: =IF('Geografia e Historia'!W18="","",'Geografia e Historia'!W18) ->  | U104: =IF('Geografia e Historia'!X18="","",'Geografia e Historia'!X18) ->  | V104: =IF('Geografia e Historia'!Y18="","",'Geografia e Historia'!Y18) ->  | W104: =IF('Geografia e Historia'!Z18="","",'Geografia e Historia'!Z18) ->  | X104: =IF('Geografia e Historia'!AA18="","",'Geografia e Historia'!AA18) ->  | Y104: =IF('Geografia e Historia'!AB18="","",'Geografia e Historia'!AB18) ->  | Z104: =IF('Geografia e Historia'!AC18="","",'Geografia e Historia'!AC18) ->  | AA104: =IF('Geografia e Historia'!AD18="","",'Geografia e Historia'!AD18) ->  | AB104: =IF('Geografia e Historia'!AE18="","",'Geografia e Historia'!AE18) ->  | AC104: =IF('Geografia e Historia'!AF18="","",'Geografia e Historia'!AF18) ->  | AD104: =IF('Geografia e Historia'!AG18="","",'Geografia e Historia'!AG18) ->  | AE104: =IF('Geografia e Historia'!AH18="","",'Geografia e Historia'!AH18) ->  | AF104: =IF('Geografia e Historia'!AI18="","",'Geografia e Historia'!AI18) ->  | AG104: =IF('Geografia e Historia'!AJ18="","",'Geografia e Historia'!AJ18) ->  | AH104: =IF('Geografia e Historia'!AK18="","",'Geografia e Historia'!AK18) ->  | AI104: =IF('Geografia e Historia'!AL18="","",'Geografia e Historia'!AL18) ->  | AJ104: =IF('Geografia e Historia'!AM18="","",'Geografia e Historia'!AM18) ->  | AK104: =IF('Geografia e Historia'!AN18="","",'Geografia e Historia'!AN18) ->  | AL104: =IF('Geografia e Historia'!AO18="","",'Geografia e Historia'!AO18) ->  | AM104: =IF('Geografia e Historia'!AP18="","",'Geografia e Historia'!AP18) -> 
C105: Comp. Esp. 9 | D105: Criterio Evaluación 9.1 | E105: =IF('Geografia e Historia'!H19="","",'Geografia e Historia'!H19) ->  | F105: =IF('Geografia e Historia'!I19="","",'Geografia e Historia'!I19) ->  | G105: =IF('Geografia e Historia'!J19="","",'Geografia e Historia'!J19) ->  | H105: =IF('Geografia e Historia'!K19="","",'Geografia e Historia'!K19) ->  | I105: =IF('Geografia e Historia'!L19="","",'Geografia e Historia'!L19) ->  | J105: =IF('Geografia e Historia'!M19="","",'Geografia e Historia'!M19) ->  | K105: =IF('Geografia e Historia'!N19="","",'Geografia e Historia'!N19) ->  | L105: =IF('Geografia e Historia'!O19="","",'Geografia e Historia'!O19) ->  | M105: =IF('Geografia e Historia'!P19="","",'Geografia e Historia'!P19) ->  | N105: =IF('Geografia e Historia'!Q19="","",'Geografia e Historia'!Q19) ->  | O105: =IF('Geografia e Historia'!R19="","",'Geografia e Historia'!R19) ->  | P105: =IF('Geografia e Historia'!S19="","",'Geografia e Historia'!S19) ->  | Q105: =IF('Geografia e Historia'!T19="","",'Geografia e Historia'!T19) ->  | R105: =IF('Geografia e Historia'!U19="","",'Geografia e Historia'!U19) ->  | S105: =IF('Geografia e Historia'!V19="","",'Geografia e Historia'!V19) ->  | T105: =IF('Geografia e Historia'!W19="","",'Geografia e Historia'!W19) ->  | U105: =IF('Geografia e Historia'!X19="","",'Geografia e Historia'!X19) ->  | V105: =IF('Geografia e Historia'!Y19="","",'Geografia e Historia'!Y19) ->  | W105: =IF('Geografia e Historia'!Z19="","",'Geografia e Historia'!Z19) ->  | X105: =IF('Geografia e Historia'!AA19="","",'Geografia e Historia'!AA19) ->  | Y105: =IF('Geografia e Historia'!AB19="","",'Geografia e Historia'!AB19) ->  | Z105: =IF('Geografia e Historia'!AC19="","",'Geografia e Historia'!AC19) ->  | AA105: =IF('Geografia e Historia'!AD19="","",'Geografia e Historia'!AD19) ->  | AB105: =IF('Geografia e Historia'!AE19="","",'Geografia e Historia'!AE19) ->  | AC105: =IF('Geografia e Historia'!AF19="","",'Geografia e Historia'!AF19) ->  | AD105: =IF('Geografia e Historia'!AG19="","",'Geografia e Historia'!AG19) ->  | AE105: =IF('Geografia e Historia'!AH19="","",'Geografia e Historia'!AH19) ->  | AF105: =IF('Geografia e Historia'!AI19="","",'Geografia e Historia'!AI19) ->  | AG105: =IF('Geografia e Historia'!AJ19="","",'Geografia e Historia'!AJ19) ->  | AH105: =IF('Geografia e Historia'!AK19="","",'Geografia e Historia'!AK19) ->  | AI105: =IF('Geografia e Historia'!AL19="","",'Geografia e Historia'!AL19) ->  | AJ105: =IF('Geografia e Historia'!AM19="","",'Geografia e Historia'!AM19) ->  | AK105: =IF('Geografia e Historia'!AN19="","",'Geografia e Historia'!AN19) ->  | AL105: =IF('Geografia e Historia'!AO19="","",'Geografia e Historia'!AO19) ->  | AM105: =IF('Geografia e Historia'!AP19="","",'Geografia e Historia'!AP19) -> 
B106: Lengua Castellana y Literatura | C106: Comp. Esp. 1 | D106: Criterio Evaluación 1.1 | E106: =IF('Lengua Castellana y Lit.'!H4="","",'Lengua Castellana y Lit.'!H4) ->  | F106: =IF('Lengua Castellana y Lit.'!I4="","",'Lengua Castellana y Lit.'!I4) ->  | G106: =IF('Lengua Castellana y Lit.'!J4="","",'Lengua Castellana y Lit.'!J4) ->  | H106: =IF('Lengua Castellana y Lit.'!K4="","",'Lengua Castellana y Lit.'!K4) ->  | I106: =IF('Lengua Castellana y Lit.'!L4="","",'Lengua Castellana y Lit.'!L4) ->  | J106: =IF('Lengua Castellana y Lit.'!M4="","",'Lengua Castellana y Lit.'!M4) ->  | K106: =IF('Lengua Castellana y Lit.'!N4="","",'Lengua Castellana y Lit.'!N4) ->  | L106: =IF('Lengua Castellana y Lit.'!O4="","",'Lengua Castellana y Lit.'!O4) ->  | M106: =IF('Lengua Castellana y Lit.'!P4="","",'Lengua Castellana y Lit.'!P4) ->  | N106: =IF('Lengua Castellana y Lit.'!Q4="","",'Lengua Castellana y Lit.'!Q4) ->  | O106: =IF('Lengua Castellana y Lit.'!R4="","",'Lengua Castellana y Lit.'!R4) ->  | P106: =IF('Lengua Castellana y Lit.'!S4="","",'Lengua Castellana y Lit.'!S4) ->  | Q106: =IF('Lengua Castellana y Lit.'!T4="","",'Lengua Castellana y Lit.'!T4) ->  | R106: =IF('Lengua Castellana y Lit.'!U4="","",'Lengua Castellana y Lit.'!U4) ->  | S106: =IF('Lengua Castellana y Lit.'!V4="","",'Lengua Castellana y Lit.'!V4) ->  | T106: =IF('Lengua Castellana y Lit.'!W4="","",'Lengua Castellana y Lit.'!W4) ->  | U106: =IF('Lengua Castellana y Lit.'!X4="","",'Lengua Castellana y Lit.'!X4) ->  | V106: =IF('Lengua Castellana y Lit.'!Y4="","",'Lengua Castellana y Lit.'!Y4) ->  | W106: =IF('Lengua Castellana y Lit.'!Z4="","",'Lengua Castellana y Lit.'!Z4) ->  | X106: =IF('Lengua Castellana y Lit.'!AA4="","",'Lengua Castellana y Lit.'!AA4) ->  | Y106: =IF('Lengua Castellana y Lit.'!AB4="","",'Lengua Castellana y Lit.'!AB4) ->  | Z106: =IF('Lengua Castellana y Lit.'!AC4="","",'Lengua Castellana y Lit.'!AC4) ->  | AA106: =IF('Lengua Castellana y Lit.'!AD4="","",'Lengua Castellana y Lit.'!AD4) ->  | AB106: =IF('Lengua Castellana y Lit.'!AE4="","",'Lengua Castellana y Lit.'!AE4) ->  | AC106: =IF('Lengua Castellana y Lit.'!AF4="","",'Lengua Castellana y Lit.'!AF4) ->  | AD106: =IF('Lengua Castellana y Lit.'!AG4="","",'Lengua Castellana y Lit.'!AG4) ->  | AE106: =IF('Lengua Castellana y Lit.'!AH4="","",'Lengua Castellana y Lit.'!AH4) ->  | AF106: =IF('Lengua Castellana y Lit.'!AI4="","",'Lengua Castellana y Lit.'!AI4) ->  | AG106: =IF('Lengua Castellana y Lit.'!AJ4="","",'Lengua Castellana y Lit.'!AJ4) ->  | AH106: =IF('Lengua Castellana y Lit.'!AK4="","",'Lengua Castellana y Lit.'!AK4) ->  | AI106: =IF('Lengua Castellana y Lit.'!AL4="","",'Lengua Castellana y Lit.'!AL4) ->  | AJ106: =IF('Lengua Castellana y Lit.'!AM4="","",'Lengua Castellana y Lit.'!AM4) ->  | AK106: =IF('Lengua Castellana y Lit.'!AN4="","",'Lengua Castellana y Lit.'!AN4) ->  | AL106: =IF('Lengua Castellana y Lit.'!AO4="","",'Lengua Castellana y Lit.'!AO4) ->  | AM106: =IF('Lengua Castellana y Lit.'!AP4="","",'Lengua Castellana y Lit.'!AP4) -> 
D107: Criterio Evaluación 1.2 | E107: =IF('Lengua Castellana y Lit.'!H5="","",'Lengua Castellana y Lit.'!H5) ->  | F107: =IF('Lengua Castellana y Lit.'!I5="","",'Lengua Castellana y Lit.'!I5) ->  | G107: =IF('Lengua Castellana y Lit.'!J5="","",'Lengua Castellana y Lit.'!J5) ->  | H107: =IF('Lengua Castellana y Lit.'!K5="","",'Lengua Castellana y Lit.'!K5) ->  | I107: =IF('Lengua Castellana y Lit.'!L5="","",'Lengua Castellana y Lit.'!L5) ->  | J107: =IF('Lengua Castellana y Lit.'!M5="","",'Lengua Castellana y Lit.'!M5) ->  | K107: =IF('Lengua Castellana y Lit.'!N5="","",'Lengua Castellana y Lit.'!N5) ->  | L107: =IF('Lengua Castellana y Lit.'!O5="","",'Lengua Castellana y Lit.'!O5) ->  | M107: =IF('Lengua Castellana y Lit.'!P5="","",'Lengua Castellana y Lit.'!P5) ->  | N107: =IF('Lengua Castellana y Lit.'!Q5="","",'Lengua Castellana y Lit.'!Q5) ->  | O107: =IF('Lengua Castellana y Lit.'!R5="","",'Lengua Castellana y Lit.'!R5) ->  | P107: =IF('Lengua Castellana y Lit.'!S5="","",'Lengua Castellana y Lit.'!S5) ->  | Q107: =IF('Lengua Castellana y Lit.'!T5="","",'Lengua Castellana y Lit.'!T5) ->  | R107: =IF('Lengua Castellana y Lit.'!U5="","",'Lengua Castellana y Lit.'!U5) ->  | S107: =IF('Lengua Castellana y Lit.'!V5="","",'Lengua Castellana y Lit.'!V5) ->  | T107: =IF('Lengua Castellana y Lit.'!W5="","",'Lengua Castellana y Lit.'!W5) ->  | U107: =IF('Lengua Castellana y Lit.'!X5="","",'Lengua Castellana y Lit.'!X5) ->  | V107: =IF('Lengua Castellana y Lit.'!Y5="","",'Lengua Castellana y Lit.'!Y5) ->  | W107: =IF('Lengua Castellana y Lit.'!Z5="","",'Lengua Castellana y Lit.'!Z5) ->  | X107: =IF('Lengua Castellana y Lit.'!AA5="","",'Lengua Castellana y Lit.'!AA5) ->  | Y107: =IF('Lengua Castellana y Lit.'!AB5="","",'Lengua Castellana y Lit.'!AB5) ->  | Z107: =IF('Lengua Castellana y Lit.'!AC5="","",'Lengua Castellana y Lit.'!AC5) ->  | AA107: =IF('Lengua Castellana y Lit.'!AD5="","",'Lengua Castellana y Lit.'!AD5) ->  | AB107: =IF('Lengua Castellana y Lit.'!AE5="","",'Lengua Castellana y Lit.'!AE5) ->  | AC107: =IF('Lengua Castellana y Lit.'!AF5="","",'Lengua Castellana y Lit.'!AF5) ->  | AD107: =IF('Lengua Castellana y Lit.'!AG5="","",'Lengua Castellana y Lit.'!AG5) ->  | AE107: =IF('Lengua Castellana y Lit.'!AH5="","",'Lengua Castellana y Lit.'!AH5) ->  | AF107: =IF('Lengua Castellana y Lit.'!AI5="","",'Lengua Castellana y Lit.'!AI5) ->  | AG107: =IF('Lengua Castellana y Lit.'!AJ5="","",'Lengua Castellana y Lit.'!AJ5) ->  | AH107: =IF('Lengua Castellana y Lit.'!AK5="","",'Lengua Castellana y Lit.'!AK5) ->  | AI107: =IF('Lengua Castellana y Lit.'!AL5="","",'Lengua Castellana y Lit.'!AL5) ->  | AJ107: =IF('Lengua Castellana y Lit.'!AM5="","",'Lengua Castellana y Lit.'!AM5) ->  | AK107: =IF('Lengua Castellana y Lit.'!AN5="","",'Lengua Castellana y Lit.'!AN5) ->  | AL107: =IF('Lengua Castellana y Lit.'!AO5="","",'Lengua Castellana y Lit.'!AO5) ->  | AM107: =IF('Lengua Castellana y Lit.'!AP5="","",'Lengua Castellana y Lit.'!AP5) -> 
D108: Criterio Evaluación 1.3 | E108: =IF('Lengua Castellana y Lit.'!H6="","",'Lengua Castellana y Lit.'!H6) ->  | F108: =IF('Lengua Castellana y Lit.'!I6="","",'Lengua Castellana y Lit.'!I6) ->  | G108: =IF('Lengua Castellana y Lit.'!J6="","",'Lengua Castellana y Lit.'!J6) ->  | H108: =IF('Lengua Castellana y Lit.'!K6="","",'Lengua Castellana y Lit.'!K6) ->  | I108: =IF('Lengua Castellana y Lit.'!L6="","",'Lengua Castellana y Lit.'!L6) ->  | J108: =IF('Lengua Castellana y Lit.'!M6="","",'Lengua Castellana y Lit.'!M6) ->  | K108: =IF('Lengua Castellana y Lit.'!N6="","",'Lengua Castellana y Lit.'!N6) ->  | L108: =IF('Lengua Castellana y Lit.'!O6="","",'Lengua Castellana y Lit.'!O6) ->  | M108: =IF('Lengua Castellana y Lit.'!P6="","",'Lengua Castellana y Lit.'!P6) ->  | N108: =IF('Lengua Castellana y Lit.'!Q6="","",'Lengua Castellana y Lit.'!Q6) ->  | O108: =IF('Lengua Castellana y Lit.'!R6="","",'Lengua Castellana y Lit.'!R6) ->  | P108: =IF('Lengua Castellana y Lit.'!S6="","",'Lengua Castellana y Lit.'!S6) ->  | Q108: =IF('Lengua Castellana y Lit.'!T6="","",'Lengua Castellana y Lit.'!T6) ->  | R108: =IF('Lengua Castellana y Lit.'!U6="","",'Lengua Castellana y Lit.'!U6) ->  | S108: =IF('Lengua Castellana y Lit.'!V6="","",'Lengua Castellana y Lit.'!V6) ->  | T108: =IF('Lengua Castellana y Lit.'!W6="","",'Lengua Castellana y Lit.'!W6) ->  | U108: =IF('Lengua Castellana y Lit.'!X6="","",'Lengua Castellana y Lit.'!X6) ->  | V108: =IF('Lengua Castellana y Lit.'!Y6="","",'Lengua Castellana y Lit.'!Y6) ->  | W108: =IF('Lengua Castellana y Lit.'!Z6="","",'Lengua Castellana y Lit.'!Z6) ->  | X108: =IF('Lengua Castellana y Lit.'!AA6="","",'Lengua Castellana y Lit.'!AA6) ->  | Y108: =IF('Lengua Castellana y Lit.'!AB6="","",'Lengua Castellana y Lit.'!AB6) ->  | Z108: =IF('Lengua Castellana y Lit.'!AC6="","",'Lengua Castellana y Lit.'!AC6) ->  | AA108: =IF('Lengua Castellana y Lit.'!AD6="","",'Lengua Castellana y Lit.'!AD6) ->  | AB108: =IF('Lengua Castellana y Lit.'!AE6="","",'Lengua Castellana y Lit.'!AE6) ->  | AC108: =IF('Lengua Castellana y Lit.'!AF6="","",'Lengua Castellana y Lit.'!AF6) ->  | AD108: =IF('Lengua Castellana y Lit.'!AG6="","",'Lengua Castellana y Lit.'!AG6) ->  | AE108: =IF('Lengua Castellana y Lit.'!AH6="","",'Lengua Castellana y Lit.'!AH6) ->  | AF108: =IF('Lengua Castellana y Lit.'!AI6="","",'Lengua Castellana y Lit.'!AI6) ->  | AG108: =IF('Lengua Castellana y Lit.'!AJ6="","",'Lengua Castellana y Lit.'!AJ6) ->  | AH108: =IF('Lengua Castellana y Lit.'!AK6="","",'Lengua Castellana y Lit.'!AK6) ->  | AI108: =IF('Lengua Castellana y Lit.'!AL6="","",'Lengua Castellana y Lit.'!AL6) ->  | AJ108: =IF('Lengua Castellana y Lit.'!AM6="","",'Lengua Castellana y Lit.'!AM6) ->  | AK108: =IF('Lengua Castellana y Lit.'!AN6="","",'Lengua Castellana y Lit.'!AN6) ->  | AL108: =IF('Lengua Castellana y Lit.'!AO6="","",'Lengua Castellana y Lit.'!AO6) ->  | AM108: =IF('Lengua Castellana y Lit.'!AP6="","",'Lengua Castellana y Lit.'!AP6) -> 
